Workbook

Sheet Титульный
A1: Производственная программа и расчет финансовых потребностей, необходимых на ее реализацию
A3: Регион РФ | B3: Томская область
A5: Муниципальный район
A6: Муниципальное образование
A8: ИНН
A9: Наименование организации | B9: =IF(Титульный!B8=""," ",INDEX(списки!M2:O185,MATCH(Титульный!B8,списки!M2:M185,0),3)) -> 
A10: наименование подразделения
A11: КПП | B11: =IF(Титульный!B8=""," ",INDEX(списки!M2:O185,MATCH(Титульный!B8,списки!M2:M185,0),2)) -> 
A13: Вид деятельности | B13: водоотведение
A15: предбазовый период | B15: 2016
A17: базовый период | B17: 2017
A19: Первый год периода регулирования | B19: 2018
A21: Период регулирования | B21: 2018
A23: Вид тарифа в системе водоотведения
A27: Система налогообложения

Sheet списки (hidden)
A1: Районы | C1: Муниципальные образования | E1: Год | G1: Выбор | H1: Вид тарифа | I1: Система налогообложения | M1: ИНН | N1: КПП | O1: Наименование организации | P1: Имущество | Q1: Метод | R1: Период регулирования
K2: 1 | L2: 2 | M2: 5116000922 | N2: 540645001 | O2: акционерное общество "Главное управление жилищно-коммунального хозяйства" | P2: договор аренды | Q2: метода экономически обоснованных расходов (затрат) | R2: 2018
A3: Александровский | C3: Александровское | E3: 2011 | G3: да | H3: водоотведение | I3: Общая | J3: 1 | K3: прибыль | L3: доходы | M3: 7002006723 | N3: 701701001 | O3: муниципальное бюджетное учреждение здравоохранения "Асиновская центральная районная больница" | P3: постановление | Q3: метод индексации | R3: 2018-2020
A4: Асиновский | C4: Анастасьевское | E4: 2012 | G4: нет | H4: водоотведение (очистка сточных вод) | I4: Упрощенная | J4: 2 | L4: доходы минус расходы | M4: 7002010695 | N4: 700201001 | O4: муниципальное унитарное предприятие "Спецавтохозяйство" | P4: акт приема-передачи
A5: Бакчарский | C5: Асиновское городское | E5: 2013 | H5: транспортировка сточных вод | M5: 7002011508 | N5: 700201001 | O5: муниципальное унитарное предприятие "Большедороховское жилищно-коммунальное хозяйство" | P5: иное
A6: Верхнекетский | C6: Базойское | E6: 2014 | M6: 7002011515 | N6: 700201001 | O6: муниципальное унитарное предприятие "Новокусковское жилищно-коммунальное хозяйство"
A7: г. Кедровый | C7: Бакчарское | E7: 2015 | M7: 7002011522 | N7: 700201001 | O7: муниципальное унитарное предприятие "Новиковское жилищно-коммунальное хозяйство"
A8: г. Северск | C8: Баткатское | E8: 2016 | M8: 7002011530 | N8: 700201001 | O8: муниципальное унитарное предприятие "Батуринское жилищно-коммунальное хозяйство"
A9: г. Стрежевой | C9: Батуринское | E9: 2017 | M9: 7002011547 | N9: 700201001 | O9: муниципальноте унитарное предприятие "Ягодное жилищно-коммунальное хозяйство"
A10: г. Томск | C10: Белоярское | E10: 2018 | M10: 7002011787 | N10: 700201001 | O10: муниципальное унитарное предприятие "Новониколаевское жилищно-коммунальное хозяйство"
A11: Зырянский | C11: Белоярское городское | E11: 2019 | H11: услуга | M11: 7002016312 | N11: 700201001 | O11: общество с ограниченной ответственностью "Асиновская водяная компания"
A12: Каргасокский | C12: Берегаевское | E12: 2020 | H12: на водоотведение | M12: 7002016626 | N12: 700201001 | O12: общество с ограниченной ответственностью "Асиновская тепло-генерирующая компания-№1"
A13: Кожевниковский | C13: Богатыревское | H13: на водоотведение (очистку сточных вод) | M13: 7002016954 | N13: 700201001 | O13: муниципальное унитарное предприятие "Новокусковские коммунальные системы"
A14: Колпашевский | C14: Богашевское | H14: на транспортировку сточных вод | M14: 7002017027 | N14: 700201001 | O14: общество с ограниченной ответсвенностью "Асиновский водоканал"
A15: Кривошеинский | C15: Большедороховское | M15: 7002017059 | N15: 700201001 | O15: общество с ограниченной ответственностью "АКОС"
A16: Молчановский | C16: Вавиловское | M16: 7002017186 | N16: 700201001 | O16: общество с ограниченной ответственностью "Теплоэнергоресурс №1"
A17: Парабельский | C17: Вертикосское | M17: 7002017193 | N17: 700201001 | O17: общество с ограниченной ответственностью "Теплоэнергоресурс №2"
A18: Первомайский | C18: Володинское | M18: 7002017203 | N18: 700201001 | O18: общество с ограниченной ответственностью "Теплоэнергоресурс №3"
A19: Тегульдетский | C19: Воронинское | M19: 7002017210 | N19: 700201001 | O19: общество с ограниченной ответственностью "Теплоэнергоресурс №4"
A20: Томский | C20: Вороновское | M20: 7003000227 | N20: 700301001 | O20: муниципальное унитарное предприятие Бакчарского района "Бакчарский коммунальный комплекс"
A21: Чаинский | C21: Высоковское | M21: 7003000273 | N21: 700301001 | O21: областное государственное бюджетное образовательное учреждение начального профессионального образования "Профессиональное училище № 35"
A22: Шегарский | C22: Высокоярское | M22: 7003003130 | N22: 700301001 | O22: открытое акционерное общество "Агропромышленная компания "Галкинская"
C23: Галкинское | M23: 7004004746 | N23: 700401001 | O23: общество с ограниченной ответственностью "Гранит"
C24: г. Кедровый | M24: 7004005323 | N24: 700401001 | O24: общество с ограниченной ответственностью "БИО ТЭК Верхняя Кеть"
C25: городской округ "ЗАТО Северск" | M25: 7004006052 | N25: 700401001 | O25: общество с ограниченной ответственностью "БИО ТЭК-С"
C26: городской округ "Город Стрежевой" | M26: 700400687080 | N26: отсутствует | O26: индивидуальный предприниматель Ковыряхин Юрий Анатольевич
C27: городской округ "Город Томск" | M27: 7004007151 | N27: 700401001 | O27: общество с ограниченной ответственностью "Деметра"
C28: Колпашевское городское поселение | M28: 7004007200 | N28: 700401001 | O28: общество с ограниченной ответственностью "Сайга-Энерго"
C29: Дальненское | M29: 7004007240 | N29: 700401001 | O29: общество с ограниченной ответственностью "Коммунально-жилищный сервис Ягодное"
C30: Дубровское | M30: 7004007610 | N30: 700401001 | O30: муниципальное унитарное предприятие Степановского сельского поселения "Степановское"
C31: Заводское | M31: 7004007708 | N31: 700401001 | O31: общество с ограниченной ответственностью "Орловка"
C32: Заречное | M32: 700500339834 | N32: отсутствует | O32: индивидуальный предприниматель Маслов Сергей Афанасьевич
C33: Зональненское | M33: 7005006305 | N33: 700501001 | O33: муниципальное учреждение - Администрация Чердатского сельского поселения
C34: Зоркальцевское | M34: 7005006312 | N34: 700501001 | O34: муниципальное учреждение - Администрация Высоковского сельского поселения
C35: Зырянское | M35: 7005006344 | N35: 700501001 | O35: муниципальное учреждение - Администрация Дубровского сельского поселения
C36: Инкинское | M36: 7005006560 | N36: 700501001 | O36: Михайловское муниципальное унитарное предприятие "Родник"
C37: Итатское | M37: 7005007193 | N37: 700501001 | O37: общество с ограниченной ответственностью "Аква-Сервис"
C38: Иштанское | M38: 7005007203 | N38: 700501001 | O38: общество с ограниченной ответственностью "Эко-Транс"
C39: Калтайское | M39: 7005015638 | N39: 700501001 | O39: общество с ограниченной ответственностью "КомСервис Тегульдет"
C40: Каргасокское | M40: 7005016590 | N40: 700501001 | O40: муниципальное унитарное предприятие "Прогресс"
C41: Катайгинское | M41: 700501702507 | N41: отсутствует | O41: индивидуальный предприниматель Антипин Андрей Федорович
C42: Кидальское | M42: 7006005110 | N42: 700601001 | O42: муниципальное унитарное предприятие "Каргасокский жилищно=эксплуатационный участок" Каргасокского сельского поселения
C43: Клюквинское | M43: 7006005632 | N43: 700601001 | O43: муниципальное унитарное предприятие Каргасокский "Тепловодоканал"
C44: Кожевниковское | M44: 7006006153 | N44: 700601001 | O44: муниципальное унитарное предприятие "ЖКХ Сосновское" муниципального образования "Сосновское сельское поселение"
C45: Коломинское | M45: 7006006160 | N45: 700601001 | O45: муниципальное унитарное предприятие "ЖКХ Молодежный" муниципального образования "Среднетымское сельское поселение"
C46: Комсомольское | M46: 7006006298 | N46: 700601001 | O46: муниципальное унитарное предприятие "ЖКХ Тымское" муниципального образования "Тымское сельское поселение"
C47: Копыловское | M47: 7006007407 | N47: 700601001 | O47: муниципальное унитарное предприятие " Нововасюганское" муниципального образования "Нововасюганское сельское поселение"
C48: Корниловское | M48: 7006008432 | N48: 700601001 | O48: муниципальное унитарное предприятие "ЖКХ Васюган" муниципального образования "Средневасюганское сельское поселение"
C49: Красногорское | M49: 700700053744 | N49: отсутствует | O49: индивидуальный предприниматель Волшуков Виктор Николаевич
C50: Красноярское | M50: 7007007583 | N50: 700701001 | O50: общество с ограниченной ответственностью "Риск"
C51: Кривошеинское | M51: 7007007657 | N51: 700701001 | O51: общество с ограниченной ответственностью "Заря - Сервис"
C52: Курлекское | M52: 7007009950 | N52: 700701001 | O52: общество с ограниченной ответственностью "Колпашевская тепловая компания"
C53: Куяновское | M53: 7007010120 | N53: 700701001 | O53: общество с ограниченной ответственностью "Водоканал - 2"
C54: Лукашкин-Ярское | M54: 7007010138 | N54: 700701001 | O54: общество с ограниченной ответственностью "Водоканал - 1"
C55: Макзырское | M55: 7007011117 | N55: 700701001 | O55: общество с ограниченной ответственностью "Энергия"
C56: Малиновское | M56: 7007011269 | N56: 700701001 | O56: муниципальное унитарное предприятие "Пламя"
C57: Межениновское | M57: 7007011639 | N57: 700701001 | O57: общество с ограниченной ответственностью "Колпашевские очистные системы"
C58: Мирнинское | M58: 700704480874 | N58: отсутствует | O58: индивидуальный предприниматель Воронин Сергей Петрович
C59: Михайловское | M59: 7008006430 | N59: 700801001 | O59: Кожевниковское районное муниципальное унитарное предприятие "Коммунальное ремонтно-строительное хозяйство"
C60: Могочинское | M60: 7008006448 | N60: 700801001 | O60: общество с ограниченной ответственностью "Кожевниковский КОМХОЗ"
C61: Молчановское | M61: 7008007554 | N61: 700801001 | O61: общество с ограниченной ответственностью "Селькомхоз"
C62: Моряковское | M62: 7009003954 | N62: 700901001 | O62: муниципальное унитарное предприятие "Жилищно-коммунальное хозяйство Кривошеинского сельского поселения"
C63: Назинское | M63: 7009004027 | N63: 700901001 | O63: общество с ограниченной ответственностью "H 2 O"
C64: Наргинское | M64: 7009004073 | N64: 700901001 | O64: общество с ограниченной ответственностью "Энергоресурс"
C65: Нарымское | M65: 701000127664 | N65: отсутствует | O65: индивидуальный предприниматель Сысоев Владимир Геннадьевич
C66: Наумовское | M66: 7010002296 | N66: 701001001 | O66: общество с ограниченной ответственностью "Энергия-М"
C67: Национальное Иванкинское | M67: 7010002673 | N67: 701001001 | O67: общество с ограниченной ответственностью "Компания экологической безопасности"
C68: Новиковское | M68: 7010002916 | N68: 701001001 | O68: общество с ограниченной ответственностью "Водовод"
C69: Нововасюганское | M69: 7010005579 | N69: 701001001 | O69: исполнительно-распорядительный орган муниципального образованияТунгусовского сельского поселения Администрация Тунгусовского сельского поселения
C70: Новогоренское | M70: 7011003207 | N70: 701101001 | O70: муниципальное унитарное предприятие "Нарымское жилищно-коммунальное хозяйство"
C71: Новокривошеинское | M71: 7011005155 | N71: 701101001 | O71: муниципальное казенное учреждение Администрация Новосельцевского сельского поселения - исполнительно распорядительный орган муниципального образования Новосельцевского сельского поселения
C72: Новокусковское | M72: 7011005162 | N72: 701101001 | O72: муниципальное казенное учреждение Администрация Заводского сельского поселения - исполнительно распорядительный орган муниципального образования Заводского сельского поселения
C73: Новомариинское | M73: 7011006014 | N73: 700401001 | O73: общество с ограниченной ответственностью "Универсал-Сервис"
C74: Новониколаевское | M74: 7011006092 | N74: 701101001 | O74: муниципальное унитарное предприятие "Парабель - Энергокомплекс"
C75: Новоникольское | M75: 7011006215 | N75: 701101001 | O75: общество с ограниченной ответственностью "Строитель"
C76: Новопокровское | M76: 701100720660 | N76: отсутствует | O76: индивидуальный предприниматель Стрельников Сергей Владимирович
C77: Новорождественское | M77: 701101197192 | N77: отсутствует | O77: индивидуальный предприниматель Михайлов Андрей Васильевич
C78: Новоселовское | M78: 7012004926 | N78: 701201001 | O78: муниципальное унитарное предприятие "Сергеевское"
C79: Новосельцевское | M79: 7012004958 | N79: 701201001 | O79: муниципальное унитарное предприятие "Жилкомхоз"
C80: Новоюгинское | M80: 7012006779 | N80: 701201001 | O80: общество с ограниченной ответственностью "Луговское"
C81: Октябрьское | M81: 7012007162 | N81: 701201001 | O81: общество с ограниченной ответственностью "Жилкомфорт"
C82: Орловское | M82: 7012007170 | N82: 701201001 | O82: общество с ограниченной ответственностью "Альянс"
C83: Палочкинское | M83: 7014000490 | N83: 701701001 | O83: открытое акционерное общество "Томскснаб"
C84: Парабельское | M84: 701401371204 | N84: отсутствует | O84: индивидуальный предприниматель Тимофеев Юрий Никитович
C85: Парбигское | M85: 701401633450 | N85: отсутствует | O85: ииндивидуальный предприниматель Градовец Александр Владимирович
C86: Первомайское | M86: 7014027742 | N86: 701401001 | O86: общество с ограниченной ответственностью "Межениновская птицефабрика"
C87: Песочно-Дубровское | M87: 7014040790 | N87: 701401001 | O87: общество с ограниченной ответственностью "Тепло-энергетическое предприятие Лоскутовское"
C88: Петровское | M88: 7014041063 | N88: 701401001 | O88: общество с ограниченной ответственностью "ЖКХ Рыбаловское"
C89: Плотниковское | M89: 7014041634 | N89: 701401001 | O89: общество с ограниченной ответственностью "Санаторий Синий Утес"
C90: Побединское | M90: 7014043021 | N90: 701401001 | O90: общество с ограниченной ответственностью "РЕКА+"
C91: Подгорнское | M91: 7014044794 | N91: 701701001 | O91: общество с ограниченной ответственностью "КП "Ключи"
C92: Поротниковское | M92: 7014045068 | N92: 701401001 | O92: муниципальное унитарное предприятие Богашевского сельского поселения "Орион"
C93: Пудовское | M93: 7014048076 | N93: 701401001 | O93: общество с ограниченной ответственностью "Восточная Инвестиционная Газовая Компания"
C94: Рыбаловское | M94: 7014049866 | N94: 701401001 | O94: муниципальное казенное предприятие Томского района "Технополигон"
C95: Сайгинское | M95: 7014049915 | N95: 701401001 | O95: общество с ограниченной ответственностью "ЭКМО"
C96: Саровское | M96: 7014053541 | N96: 701401001 | O96: общество с ограниченной ответственностью "Ресурс-Т"
C97: Северное | M97: 7014054440 | N97: 701401001 | O97: общество с ограниченной ответственностью "Водоресурс"
C98: Сергеевское | M98: 7014054979 | N98: 701401001 | O98: муниципальное предприятие Зональненского сельского поселения "Служба коммунального сервиса"
C99: Сосновское | M99: 7014055027 | N99: 701401001 | O99: муниципальное унитарное предприятие Мирненского сельского поселения "ТВК"
C100: Спасское | M100: 7014055404 | N100: 701401001 | O100: муниципальное унитарное предприятие жилищно-коммунального хозяйства "Исток" Новорождественского сельского поселения
C101: Средневасюганское | M101: 7014055644 | N101: 701401001 | O101: общество с ограниченной ответственностью "Управляющая компания "Томскосельское"
C102: Среднетымское | M102: 7014055796 | N102: 701401001 | O102: общество с ограниченной ответственностью "Восточная Водяная Компания"
C103: Старицынское | M103: 7014055806 | N103: 701401001 | O103: общество с ограниченной ответственностью "Восточная Тепловая Компания"
C104: Староювалинское | M104: 7014055813 | N104: 701401001 | O104: общество с ограниченной ответственностью "Восточная Компания"
C105: Степановское | M105: 7014055845 | N105: 701401001 | O105: общество с ограниченной ответственность "Западная Тепловая Компания"
C106: Суйгинское | M106: 7014055884 | N106: 701401001 | O106: общество с ограниченной ответственностью "Южная Тепловая Компания"
C107: Тевризское | M107: 7014056084 | N107: 701401001 | O107: общество с ограниченной ответственностью "Теплогазсервис"
C108: Тегульдетское | M108: 7014056711 | N108: 701401001 | O108: общество с ограниченной ответственностью "Гарант"
C109: Тогуровское | M109: 7014057257 | N109: 701401001 | O109: муниципальное унитарное предприятие Межениновского сельского поселения "Жилищно-коммунальное хозяйство ВодСервис"
C110: Толпаровское | M110: 7014057320 | N110: 701401001 | O110: муниципальное унитарное предприятие "Жилищное коммунальное хозяйство Октябрьское"
C111: Трубоческое | M111: 7014057377 | N111: 701401001 | O111: общество с ограниченной ответственностью "Комсервис+М"
C112: Тунгуссовское | M112: 7014057715 | N112: 701401001 | O112: муниципальное унитарное предприятие Заречного сельского поселения "Заречное"
C113: Турунтаевское | M113: 7014057754 | N113: 701701001 | O113: общество с ограниченной ответственностью "Водоканал"
C114: Тымское | M114: 7014057779 | N114: 701401001 | O114: муниципальное унитарное предприятие «ТУРУНТАЕВО-ПАРТНЕР»
C115: Улу-Юльское | M115: 7014057916 | N115: 701401001 | O115: муниципальное унитарное предприятие "Норма"
C116: Уртамское | M116: 7014059825 | N116: 701401001 | O116: Муниципальное унитарное предприятие Мирненского сельского поселения "ВК"
C117: Усть-Бакчарское | M117: 7014059920 | N117: 701401001 | O117: муниципальное унитарное предприятие Спасского сельского поселения "Техник"
C118: Усть-Тымское | M118: 7014061454 | N118: 701401001 | O118: общество с ограниченной ответственностью "Ресурс"
C119: Усть-Чижапское | M119: 7015000373 | N119: 701501001 | O119: муниципальное унитарное предприятие Чаинского района "Чаинское производственное объединение жилищно-коммунального хозяйства"
C120: Чажемтовское | M120: 7015000535 | N120: 701501001 | O120: областное государственное бюджетное учреждение здравоохранения "Чаинская районная больница"
C121: Чаинское | M121: 7016000016 | N121: 701601001 | O121: общество с ограниченной ответственностью "Водоканал"
C122: Черноярское | M122: 7016000030 | N122: 701601001 | O122: общество с ограниченной ответственностью "Автотранс"
C123: Чернышевское | M123: 7016000584 | N123: 701601001 | O123: муниципальное унитарное предприятие "Комфорт"
C124: Четское | M124: 7016001098 | N124: 701601001 | O124: областное государственное социальное учреждение "Дом-интернат для престарелых и инвалидов "Лесная дача"
C125: Чилинское | M125: 7016001620 | N125: 701601001 | O125: областное государственное автономное учреждение "Шегарский психоневрологический интернат "ЗАБОТА"
C126: Шегарское | M126: 7016005617 | N126: 701601001 | O126: общество с ограниченной ответственностью "Шегарский водоканал"
C127: Ягоднинское | M127: 7016007156 | N127: 701601001 | O127: общество с ограниченной отвественностью Управляющая компания "Успех"
C128: Ягодное | M128: 7017001968 | N128: 701701001 | O128: онитарное муниципальное предприятие "Спецавтохозяйство г. Томска"
M129: 7017002136 | N129: 701701001 | O129: онитарное муниципальное предприятие г. Томска "Комбинат Спецобслуживания" по организации похорон и предоставлению связанных с ними услуг
M130: 7017004366 | N130: 701701001 | O130: акционерное общество "Транснефть-Центральная Сибирь"
M131: 7017005289 | N131: 701702010 | O131: общество с ограниченной ответственностью "Газпром трансгаз Томск"
M132: 7017005289 | N132: 702243001 | O132: общество с ограниченной ответственностью "Газпром трансгаз Томск"
M133: 7017012254 | N133: 701401001 | O133: закрытое акционерное общество "Сибирская Аграрная Группа"
M134: 7017063682 | N134: 701401001 | O134: закрытое акционерное общество "Восточная Инвестиционная Газовая Компания"
M135: 7017071531 | N135: 701401001 | O135: общество с ограниченной ответственностью "Квинта"
M136: 7017075536 | N136: 701701001 | O136: общество с ограниченной ответственностью "Томскнефтехим"
M137: 7017095349 | N137: 701701001 | O137: открытое акционерное общество "Организация "Технотрон"
M138: 7017098220 | N138: 701701001 | O138: общество с ограниченной ответственностью "Завод приборных подшипников"
M139: 7017110131 | N139: 701701001 | O139: закрытое акционерное общество Кондитерская фабрика "Красная звезда"
M140: 7017123606 | N140: 701701001 | O140: общество с ограниченной ответственностью "Управляющая компания "Томского приборного завода"
M141: 7017129118 | N141: 701701001 | O141: общество с ограниченной ответственностью "СетьСервис"
M142: 7017134397 | N142: 701701001 | O142: общество с ограниченной ответственностью "ГазТехСервис"
M143: 7017213271 | N143: 701701001 | O143: общество с ограниченной ответственностью "Томлесдрев"
M144: 7017245330 | N144: 701701001 | O144: общество с ограниченной ответственностью "Сетевая компания ТДСК"
M145: 7017249750 | N145: 701701001 | O145: общество с ограниченной ответственностью «Термо»
M146: 7017253147 | N146: 700743001 | O146: государственное унитарное предприятие Томской области "Областное дорожное ремонтно - строительное управление"
M147: 7017253147 | N147: 701443001 | O147: государственное унитарное предприятие Томской области "Областное дорожное ремонтно - строительное управление"
M148: 7017270664 | N148: 701701001 | O148: общество с ограниченной ответственностью "Томскводоканал"
M149: 7017291311 | N149: 701701001 | O149: общество с ограниченной ответственностью "Колос-С"
M150: 7017318531 | N150: 701701001 | O150: общество с ограниченной ответственностью "ЭнергоТЭК"
M151: 7017323595 | N151: 701701001 | O151: общество с ограниченной ответственностью "Тепловая компания "Стандарт"
M152: 7017326170 | N152: 701401001 | O152: общество с ограниченной ответственностью "Аргентум"
M153: 7017351521 | N153: 701701001 | O153: акционерное общество "ТомскРТС"
M154: 7017373035 | N154: 701701001 | O154: общество с ограниченной ответственностью "Энергогарант"
M155: 7017373959 | N155: 701701001 | O155: акционерное общество "Томская генерация"
M156: 7017374014 | N156: 701701001 | O156: общество с ограниченной ответсвенностью "Городские очистные сооружения"
M157: 7020008610 | N157: 702001001 | O157: открытое акционерное общество Финансово-строительная компания "Газ Химстрой Инвест"
M158: 7020035798 | N158: 701701001 | O158: федеральное казенное учреждение "Исправительная колония № 3 Управления Федеральной службы исполнения наказаний по Томской области"
M159: 7021001569 | N159: 701701001 | O159: федеральное государственное унитарное предприятие "Комбинат коммунальных предприятий Томского научного центра Сибирского отделения Российской академии наук"
M160: 7022000310 | N160: 997150001 | O160: открытое акционерное общество "Томскнефть" Восточной Нефтяной Компании
M161: 7022010478 | N161: 702201001 | O161: муниципальное унитарное предприятие "Жилкомсервис" Александровского сельского поселения
M162: 7022010799 | N162: 702201001 | O162: общество с ограниченной ответственностью "Энергонефть Томск"
M163: 7022011087 | N163: 702201001 | O163: общество с ограниченной ответственностью "Стрежевой теплоэнергоснабжение"
M164: 7022014835 | N164: 702201001 | O164: муниципальное унитарное предприятие "Комсервис" Лукашкин-Ярского сельского поселения Александровского района Томской области
M165: 7022014842 | N165: 702201001 | O165: муниципальное унитарное предприятие "Жилищно-коммунальное хозяйство" села Назино
M166: 7022014874 | N166: 702201001 | O166: муниципальное унитарное предприятие "Комсервис" Александровского района Томской области
M167: 7022017561 | N167: 702201001 | O167: общество с ограниченной ответственностью "Транспортные коммунальные системы"
M168: 7022018300 | N168: 702201001 | O168: общество с ограниченной ответственностью "Жилстрой"
M169: 7022019336 | N169: 702201001 | O169: общество с ограниченной ответственностью "ТРАНССИБ"
M170: 702280350128 | N170: отсутствует | O170: индивидуальный предприниматель Голованов Андрей Николаевич
M171: 7023005209 | N171: 702301001 | O171: общество с ограниченной ответственностью "Северная Тепловая Компания"
M172: 7024021972 | N172: 701401001 | O172: общество с ограниченной ответственностью "Экополис"
M173: 7024024853 | N173: 702401001 | O173: открытое акционерное общество "Северский водоканал"
M174: 7024024860 | N174: 702401001 | O174: открытое акционерное общество "Тепловые сети"
M175: 7024028054 | N175: 702401001 | O175: общество с ограниченной ответственностью "Полигон твердых бытовых отходов комбината благоустройства"
M176: 7024029499 | N176: 702401001 | O176: акционерное общество "Сибирский химический комбинат"
M177: 7024032100 | N177: 702401001 | O177: общество с ограниченной ответственностью "ВКХ"
M178: 7024033488 | N178: 702401001 | O178: общество с ограниченной ответственностью "Управление энергоснабжения"
M179: 7024037595 | N179: 702401001 | O179: общество с ограниченной ответственностью "Северские энергетические сети"
M180: 7024038704 | N180: 702401001 | O180: общество с ограниченной ответственностью "Тепло плюс"
M181: 7024038863 | N181: 702401001 | O181: общество с ограниченной ответственностью "ВКХ "Самусь"
M182: 7224031400 | N182: 701401001 | O182: закрытое акционерное общество "Сибирская Аграрная Группа Мясопереработка"
M183: 7224067981 | N183: 722401001 | O183: общество с ограниченной ответственностью "Промпереработка"
M184: 7708503727 | N184: 540775040 | O184: Кузбасский территорильный участокЗападно-Сибирской дирекции по тепловодоснабжению - структурного подразделения Центральной дирекции по тепловодоснабжению-филиал ОАО "РЖД"
M185: 7722292838 | N185: 701702001 | O185: федеральное государственное унитарное предприятие "Научно-производственное объединение по медицинским иммунобиологическим препаратам "Микроген" Министерства здравоохранения Российской Федерации

Sheet анкета
A1: Анкета организации и системы водоотведения
A3: =Титульный!B9 -> 
A5: =Титульный!B23 -> 0
A6: Район | B6: =Титульный!B5 -> 0 | C6: МО | D6: =Титульный!B6 -> 0
A7: № п/п | B7: Показатель | C7: Ед. изм. | D7: Значение
A8: 1 | B8: Желаемый метод регулирования | C8: - | D8: метод индексации
A9: 2 | B9: Изменялся ли объем предоставления услуг водоотведения вследствие выбытия/приема на баланс объектов коммунального комплекса | C9: -
A10: 3 | B10: Общая мощность объектов водоотведения | C10: куб.м./час
A11: 4 | B11: Общая протяженность сетей водоотведения | C11: км | D11: ='Техн характер системы'!F85/1000 -> 0
A12: 6 | B12: Процент износа ОС (по БУ на начало года) | C12: %
A13: 6.1 | B13: -систем очистки сточных вод | C13: %
A14: 6.2 | B14: -сетей | C14: %
A15: 4 | B15: Количество выбывших/принятых на баланс объектов за 3 прошедших года («-» выбыли, «+» приняты) | C15: ед.
A16: 5 | B16: Мощность выбывших/принятых на баланс объектов за прошедшие 3 года («-» выбыли, «+» приняты) | C16: куб.м./ч
A17: 6 | B17: Количество переданных сетей за 3 прошедших года («-» выбыли, «+» приняты) | C17: м
A18: 7 | B18: Наличие бесхозных или не оформленных объектов и сетей | C18: -
A19: 7.1 | B19: Сети - бесхозные | C19: км | D19: ='Техн характер системы'!F198/1000 -> 0
A20: 7.2 | B20: Объекты - бесхозные | C20: ед.
A21: 7.3 | B21: Объекты без оформленных документов (кадастр, договор аренды и т.д.) | C21: ед.
A22: 8 | B22: Нормативный срок службы оборудования, в том числе:
A23: 8.1 | B23: -оборудование систем очистки сточных вод | C23: лет
A24: 8.2 | B24: -оборудование системы транспортирования сточных вод | C24: лет
A25: 9 | B25: Фактический срок службы оборудования, в том числе:
A26: 9.1 | B26: -оборудование систем очистки сточных вод | C26: лет
A27: 9.2 | B27: -оборудование системы транспортирования сточных вод | C27: лет
A28: 10 | B28: Износ систем коммунальной инфраструктуры, в том числе: | C28: % | D28: =IF(SUM(D29:D30)=0,0,AVERAGE((D29:D30))) -> 0
A29: 10.1 | B29: -оборудование систем очистки сточных вод | C29: % | D29: =IF(D23=0,0,D26/D23*100) -> 0
A30: 10.2 | B30: -оборудование системы транспортирования сточных вод | C30: % | D30: =IF(D24=0,0,D27/D24*100) -> 0
A31: 11 | B31: Наличие утвержденной схемы водоотведения | C31: -
A32: 11.1 | B32: Реквизиты документа об утверждении (наименование утвердившего органа, № и дата) | C32: -
A33: 12 | B33: Статус гарантирующей организации | C33: -
A34: 12.1 | B34: Реквизиты документа об утверждении (наименование утвердившего органа, № и дата) | C34: -
A35: 13 | B35: Наличие утвержденной инвестиционной программы | C35: -
A36: 13.1 | B36: Реквизиты документа об утверждении (наименование утвердившего органа, № и дата) | C36: -
A37: 14 | B37: Наличие у организации концессионных соглашений | C37: -
A38: 14.1 | B38: Описание (кратко) | C38: -

Sheet тарифная заявка
A1: Тарифная заявка
A3: =Титульный!B9 -> 
A4: Район | B4: =Титульный!B5 -> 0 | D4: МО | E4: =Титульный!B6 -> 0
A6: Период действия тарифов | B6: Год | C6: Предложение организации
C7: НВВ, тыс. руб | D7: тариф 1-го полугодия, руб/м3 | E7: тариф 2-го полугодия, руб/м3 | F7: роста тарифа 2-го полугодия к 1-му полугодию
A8: =IF(анкета!D8="метод индексации","три года","один год") -> три года | B8: 2018 год | C8: =IF($A$8="один год",'НВВ методом ДИ'!M185/1000,'НВВ методом ДИ'!C71/1000) -> 0 | D8: =IF($A$8="один год",'смета 2018'!M191,'НВВ методом ДИ'!C73) -> 0 | E8: =IF($A$8="один год",'смета 2018'!M192,'НВВ методом ДИ'!C74) -> 0 | F8: =IF(D8=0,,IF(D8="-","-",E8/D8-1)) -> 0
B9: 2019 год | C9: =IF($A$8="один год","-",'НВВ методом ДИ'!E71/1000) -> 0 | D9: =IF($A$8="один год","-",'НВВ методом ДИ'!E73) -> 0 | E9: =IF($A$8="один год","-",'НВВ методом ДИ'!E74) -> 0 | F9: =IF(D9=0,,IF(D9="-","-",E9/D9-1)) -> 0
B10: 2020 год | C10: =IF($A$8="один год","-",'НВВ методом ДИ'!G71/1000) -> 0 | D10: =IF($A$8="один год","-",'НВВ методом ДИ'!G73) -> 0 | E10: =IF($A$8="один год","-",'НВВ методом ДИ'!G74) -> 0 | F10: =IF(D10=0,,IF(D10="-","-",E10/D10-1)) -> 0

Sheet дефляторы
B2: № п/п | C2: Наименование показателя | D2: Индексы-дефляторы, применяемые при расчете НВВ | I2: Индексы-дефляторы, применяемые при расчете НВВ
D3: по данным организации, г/г | I3: экспертом ДТР ТО, г/г
D4: 2016 г | E4: 2017 г | F4: 2018 г | G4: 2019, г | H4: 2020, г | I4: 2016 г | J4: 2017 г | K4: 2018 г | L4: 2019 г | M4: 2020 г
B5: 1. | C5: Основные материалы | I5: 1.04 | J5: 1.04 | K5: 1.04 | L5: 1.04 | M5: 1.04
B6: 2. | C6: Вспомогательные материалы, включая химреагенты | I6: 1.04 | J6: 1.04 | K6: 1.04 | L6: 1.04 | M6: 1.04
B7: 3. | C7: Вода на технологические нужды | I7: 1.04 | J7: 1.04 | K7: 1.04 | L7: 1.04 | M7: 1.04
B8: 4. | C8: Работы и услуги производственного характера (ремонтные и регламентные работы, транспортные расходы и другие работы и услуги) | I8: 1.04 | J8: 1.04 | K8: 1.04 | L8: 1.04 | M8: 1.04
B9: 5. | C9: Топливо на технологические цели, в т.ч.:
B10: 5.1.1. | C10: уголь | I10: 1.043 | J10: 1.043 | K10: 1.043 | L10: 1.043 | M10: 1.043
B11: 5.1.2. | C11: газ природный (включая попутный) | I11: 1.043 | J11: 1.043 | K11: 1.044 | L11: 1.043 | M11: 1.043
B12: 5.1.3. | C12: мазут | I12: 1.026 | J12: 1.026 | K12: 1.015 | L12: 1.026 | M12: 1.026
B13: 5.1.4. | C13: нефть | I13: 1.022 | J13: 1.022 | K13: 1.017 | L13: 1.022 | M13: 1.022
B14: 5.1.5. | C14: дизельное топливо | I14: 1.026 | J14: 1.026 | K14: 1.015 | L14: 1.026 | M14: 1.026
B15: 5.1.6. | C15: дрова | I15: 1.034 | J15: 1.034 | K15: 1.035 | L15: 1.034 | M15: 1.034
B16: 5.2.1. | C16: стоимость ж/д перевозок (индексация с января) | I16: 1.04 | J16: 1.04 | K16: 1.04 | L16: 1.04 | M16: 1.04
B17: 5.2.2. | C17: грузовой транспорт | I17: 1.04 | J17: 1.04 | K17: 1.04 | L17: 1.04 | M17: 1.04
B18: 6. | C18: Энергия на технологические цели, в т.ч.:
B19: 6.1. | C19: электроэнергия | I19: 1.053 | J19: 1.053 | K19: 1.053 | L19: 1.053 | M19: 1.053
B20: 6.2. | C20: теплоэнергия | I20: 1.04 | J20: 1.04 | K20: 1.04 | L20: 1.04 | M20: 1.04
B21: 7. | C21: Затраты на оплату труда | I21: 1.04 | J21: 1.04 | K21: 1.04 | L21: 1.04 | M21: 1.04
B22: 7.1. | C22: Отчисления от ФОТ | I22: 0.3 | J22: 0.3 | K22: 0.3 | L22: 0.3 | M22: 0.3
B23: 8. | C23: Амортизация основных фондов | I23: 1 | J23: 1 | K23: 1 | L23: 1 | M23: 1
B24: 9. | C24: Налоги и сборы | I24: 1 | J24: 1 | K24: 1 | L24: 1 | M24: 1
B25: 10. | C25: Арендная плата | I25: 1.04 | J25: 1.04 | K25: 1.04 | L25: 1.04 | M25: 1.04
B26: 11. | C26: Прочие затраты | I26: 1.04 | J26: 1.04 | K26: 1.04 | L26: 1.04 | M26: 1.04
B27: 12. | C27: Прибыль
C28: в том числе
B29: 12.1. | C29: Прибыль на социальное развитие | I29: 1.04 | J29: 1.04 | K29: 1.04 | L29: 1.04 | M29: 1.04
B30: 12.2. | C30: Прибыль на прочие цели | I30: 1.04 | J30: 1.04 | K30: 1.04 | L30: 1.04 | M30: 1.04
B31: 12.2. | C31: Индекс потребительских цен | I31: 1.04 | J31: 1.04 | K31: 1.04 | L31: 1.04 | M31: 1.04

Sheet данные об организации
A1: Краткие сведения об организации
A3: Наименование организации: | C3: =Титульный!B9 -> 
A4: Почтовый адрес:
A5: Тел/факс:
A6: E-mail:
A7: Должность руководителя
A8: Ф.И.О. (полностью)
A10: Перечень населенных пунктов, в которых организация осуществляет деятельность по водоснабжению
A12: Наименование МО | E12: Наименование населенного пункта
E13: 1
E14: 2
E15: 3
E16: 4
E17: 5
E18: 6
E19: 7
E20: 8
E21: 9
E22: 10
A24: Налогообложение | F24: Сведения об установленных тарифах на 2017 год
A26: система налогообложения | B26: объект налогообложения | D26: налоговая ставка | F26: № приказа ДТР ТО | G26: дата приказа | H26: срок действия тарифа | I26: величина тарифа, руб/куб.м. | J26: НДС
A28: =Титульный!B27 -> 0 | B28: прибыль | D28: =IF(B28="доходы",6,IF(B28="доходы минус расходы",10,20)) -> 20 | H28: 2017-01-01 | J28: =IF(A28="Общая","без учета НДС","НДС не предусмотрен") -> НДС не предусмотрен
H29: 2017-06-30
H30: 2017-07-01 | J30: =IF(A28="Общая","без учета НДС","НДС не предусмотрен") -> НДС не предусмотрен
H31: 2017-12-31
A33: Размер страховых взносов | F33: Сведения о компенсации до установленного тарифа на 2016 год
A35: год | B35: размер страховых взносов в % от ФОТ | F35: Наименование документа | G35: № и дата документа | H35: срок действия компенсации | I35: разница в тарифах, руб/куб.м. | J35: НДС
B36: всего | C36: в том числе:
C37: ПФ, ФСС,ОМС | D37: страхование от несчастных случаев на производстве и профессиональных заболеваний
A39: 2017 | B39: =C39+D39 -> 30.2 | C39: 30 | D39: 0.2 | F39: 50 | G39: № 50 от 01.01.2000 | H39: 2016-01-01 | J39: =J28 -> НДС не предусмотрен
A40: 2018 | B40: =C40+D40 -> 30.2 | C40: =C39 -> 30 | D40: 0.2 | H40: 2016-06-30
A41: 2019 | B41: =C41+D41 -> 30.2 | C41: 30 | D41: 0.2 | H41: 2016-07-01 | J41: =J30 -> НДС не предусмотрен
A42: 2020 | B42: =C42+D42 -> 30.2 | C42: 30 | D42: 0.2 | H42: 2016-12-31

Sheet балансы по МО
A1: Баланс водоотведения и очистки сточных вод
A2: =Титульный!B9 -> 
A3: =Титульный!B23 -> 0
B4: С РАЗБИВКОЙ ПО МУНИЦИПАЛЬНЫМ ОБРАЗОВАНИЯМ И (ИЛИ) НАСЕЛЕННЫМ ПУНКТАМ
S5: м3
A6: № п/п | B6: Наименование муниципального образования | C6: Наименование населенного пункта | D6: 1. Прием сточных вод, всего | E6: Технологические нужды предприятия | F6: неучтенный приток сточных вод, поверхностные сточные воды | G6: Объем реализации (пропущено) сточных вод, всего | H6: Жидкие бытовые отходы | K6: Принято от собственных абонентов | N6: Принято сточных вод от других организаций, осуществляющих водоотведение | Q6: По категориям потребителей | AA6: 2. Объем транспорттируемых сточных вод | AB6: Пропущено через cобственные очистные сооружения | AC6: Передано сточных вод другим организациям | AD6: Сброс сточных вод без очистки
Q7: Всего | R7: бюджет | U7: Население | X7: Прочие
H8: Итого | I8: по приборам учета | J8: по нормативам (расчетным способом) | K8: Итого | L8: по приборам учета | M8: по нормативам (расчетным способом) | N8: Итого | O8: по приборам учета | P8: по нормативам (расчетным способом) | R8: Итого | S8: по приборам учета | T8: по нормативам (расчетным способом) | U8: Итого | V8: по приборам учета | W8: по нормативам (расчетным способом) | X8: Итого | Y8: по приборам учета | Z8: по нормативам (расчетным способом)
A9: 1 | B9: 2 | C9: 3 | D9: 4 | E9: 5 | F9: 6 | G9: 7 | H9: 8 | I9: 9 | J9: 10 | K9: 11 | L9: 12 | M9: 13 | N9: 14 | O9: 15 | P9: 16 | Q9: 17 | R9: 18 | S9: 19 | T9: 20 | U9: 21 | V9: 22 | W9: 23 | X9: 24 | Y9: 25 | Z9: 26 | AA9: 27 | AB9: 28 | AC9: 29 | AD9: 30
O10: Предбазовый период (факт)
A11: 1 | B11: 2013 | C11: факт по данным организации | D11: =SUM(D12:D21) -> 0 | E11: 0 | F11: 0 | G11: 0 | H11: =I11+J11 -> 0 | I11: 0 | J11: 0 | K11: =L11+M11 -> 0 | L11: 0 | M11: 0 | N11: =O11+P11 -> 0 | O11: 0 | P11: 0 | Q11: 0 | R11: =S11+T11 -> 0 | S11: =SUM(S12:S21) -> 0 | T11: =SUM(T12:T21) -> 0 | U11: =V11+W11 -> 0 | V11: 0 | W11: 0 | X11: =Y11+Z11 -> 0 | Y11: 0 | Z11: 0 | AA11: 0 | AB11: 0 | AC11: 0 | AD11: =SUM(AD12:AD21) -> 0
A12: 1.1 | B12: ='данные об организации'!A13:D13 -> 0 | C12: ='данные об организации'!F13 -> 0 | D12: =E12+F12+G12 -> 0 | G12: =K12+N12+Q12+H12 -> 0 | H12: =I12+J12 -> 0 | K12: =L12+M12 -> 0 | N12: =O12+P12 -> 0 | Q12: =R12+U12+X12 -> 0 | R12: =S12+T12 -> 0 | U12: =V12+W12 -> 0 | X12: =Y12+Z12 -> 0 | AA12: =D12 -> 0 | AD12: =AA12-AB12-AC12 -> 0
A13: 1.2 | B13: ='данные об организации'!A14:D14 -> 0 | C13: ='данные об организации'!F14 -> 0 | D13: =E13+F13+G13 -> 0 | G13: =K13+N13+Q13+H13 -> 0 | H13: 0 | K13: 0 | N13: 0 | Q13: =R13+U13+X13 -> 0 | R13: 0 | U13: 0 | X13: =Y13+Z13 -> 0 | AA13: 0 | AD13: =AA13-AB13-AC13 -> 0
A14: 1.3 | B14: ='данные об организации'!A15:D15 -> 0 | C14: ='данные об организации'!F15 -> 0 | D14: 0 | G14: 0 | H14: 0 | K14: 0 | N14: 0 | Q14: 0 | R14: 0 | U14: 0 | X14: 0 | AA14: 0 | AD14: 0
A15: 1.4 | B15: ='данные об организации'!A16:D16 -> 0 | C15: ='данные об организации'!F16 -> 0 | D15: 0 | G15: 0 | H15: 0 | K15: 0 | N15: 0 | Q15: 0 | R15: 0 | U15: 0 | X15: 0 | AA15: 0 | AD15: 0
A16: 1.5 | B16: ='данные об организации'!A17:D17 -> 0 | C16: ='данные об организации'!F17 -> 0 | D16: 0 | G16: 0 | H16: 0 | K16: 0 | N16: 0 | Q16: 0 | R16: 0 | U16: 0 | X16: 0 | AA16: 0 | AD16: 0
A17: 1.6 | B17: ='данные об организации'!A18:D18 -> 0 | C17: ='данные об организации'!F18 -> 0 | D17: 0 | G17: 0 | H17: 0 | K17: 0 | N17: 0 | Q17: 0 | R17: 0 | U17: 0 | X17: 0 | AA17: 0 | AD17: 0
A18: 1.7 | B18: ='данные об организации'!A19:D19 -> 0 | C18: ='данные об организации'!F19 -> 0 | D18: 0 | G18: 0 | H18: 0 | K18: 0 | N18: 0 | Q18: 0 | R18: 0 | U18: 0 | X18: 0 | AA18: 0 | AD18: 0
A19: 1.8 | B19: ='данные об организации'!A20:D20 -> 0 | C19: ='данные об организации'!F20 -> 0 | D19: 0 | G19: 0 | H19: 0 | K19: 0 | N19: 0 | Q19: 0 | R19: 0 | U19: 0 | X19: 0 | AA19: 0 | AD19: 0
A20: 1.9 | B20: ='данные об организации'!A21:D21 -> 0 | C20: ='данные об организации'!F21 -> 0 | D20: 0 | G20: 0 | H20: 0 | K20: 0 | N20: 0 | Q20: 0 | R20: 0 | U20: 0 | X20: 0 | AA20: 0 | AD20: 0
A21: 1.10 | B21: ='данные об организации'!A22:D22 -> 0 | C21: ='данные об организации'!F22 -> 0 | D21: 0 | G21: 0 | H21: 0 | K21: 0 | N21: 0 | Q21: 0 | R21: 0 | U21: 0 | X21: 0 | AA21: 0 | AD21: 0
O22: =O10 -> Предбазовый период (факт)
A23: 1 | B23: =B11+1 -> 2014 | C23: =C11 -> факт по данным организации | D23: =SUM(D24:D33) -> 0 | E23: =SUM(E24:E33) -> 0 | F23: =SUM(F24:F33) -> 0 | G23: =SUM(G24:G33) -> 0 | H23: =I23+J23 -> 0 | I23: =SUM(I24:I33) -> 0 | J23: =SUM(J24:J33) -> 0 | K23: =L23+M23 -> 0 | L23: =SUM(L24:L33) -> 0 | M23: =SUM(M24:M33) -> 0 | N23: =O23+P23 -> 0 | O23: =SUM(O24:O33) -> 0 | P23: =SUM(P24:P33) -> 0 | Q23: =SUM(Q24:Q33) -> 0 | R23: =S23+T23 -> 0 | S23: =SUM(S24:S33) -> 0 | T23: =SUM(T24:T33) -> 0 | U23: =V23+W23 -> 0 | V23: =SUM(V24:V33) -> 0 | W23: =SUM(W24:W33) -> 0 | X23: =Y23+Z23 -> 0 | Y23: =SUM(Y24:Y33) -> 0 | Z23: 0 | AA23: 0 | AB23: 0 | AC23: 0 | AD23: 0
A24: 1.1 | B24: =B12 -> 0 | C24: 0 | D24: =E24+F24+G24 -> 0 | G24: =K24+N24+Q24+H24 -> 0 | H24: =I24+J24 -> 0 | K24: =L24+M24 -> 0 | N24: =O24+P24 -> 0 | Q24: =R24+U24+X24 -> 0 | R24: =S24+T24 -> 0 | U24: =V24+W24 -> 0 | X24: =Y24+Z24 -> 0 | AA24: =D24 -> 0 | AD24: =AA24-AB24-AC24 -> 0
A25: 1.2 | B25: 0 | C25: 0 | D25: =E25+F25+G25 -> 0 | G25: =K25+N25+Q25+H25 -> 0 | H25: 0 | K25: 0 | N25: 0 | Q25: =R25+U25+X25 -> 0 | R25: 0 | U25: 0 | X25: =Y25+Z25 -> 0 | AA25: 0 | AD25: =AA25-AB25-AC25 -> 0
A26: 1.3 | B26: 0 | C26: 0 | D26: 0 | G26: 0 | H26: 0 | K26: 0 | N26: 0 | Q26: 0 | R26: 0 | U26: 0 | X26: 0 | AA26: 0 | AD26: 0
A27: 1.4 | B27: 0 | C27: 0 | D27: 0 | G27: 0 | H27: 0 | K27: 0 | N27: 0 | Q27: 0 | R27: 0 | U27: 0 | X27: 0 | AA27: 0 | AD27: 0
A28: 1.5 | B28: 0 | C28: 0 | D28: 0 | G28: 0 | H28: 0 | K28: 0 | N28: 0 | Q28: 0 | R28: 0 | U28: 0 | X28: 0 | AA28: 0 | AD28: 0
A29: 1.6 | B29: 0 | C29: 0 | D29: 0 | G29: 0 | H29: 0 | K29: 0 | N29: 0 | Q29: 0 | R29: 0 | U29: 0 | X29: 0 | AA29: 0 | AD29: 0
A30: 1.7 | B30: 0 | C30: 0 | D30: 0 | G30: 0 | H30: 0 | K30: 0 | N30: 0 | Q30: 0 | R30: 0 | U30: 0 | X30: 0 | AA30: 0 | AD30: 0
A31: 1.8 | B31: 0 | C31: 0 | D31: 0 | G31: 0 | H31: 0 | K31: 0 | N31: 0 | Q31: 0 | R31: 0 | U31: 0 | X31: 0 | AA31: 0 | AD31: 0
A32: 1.9 | B32: 0 | C32: 0 | D32: 0 | G32: 0 | H32: 0 | K32: 0 | N32: 0 | Q32: 0 | R32: 0 | U32: 0 | X32: 0 | AA32: 0 | AD32: 0
A33: 1.10 | B33: 0 | C33: 0 | D33: 0 | G33: 0 | H33: 0 | K33: 0 | N33: 0 | Q33: 0 | R33: 0 | U33: 0 | X33: 0 | AA33: 0 | AD33: 0
O34: =O22 -> Предбазовый период (факт)
A35: 1 | B35: =B23+1 -> 2015 | C35: =C23 -> факт по данным организации | D35: =SUM(D36:D45) -> 0 | E35: =SUM(E36:E45) -> 0 | F35: =SUM(F36:F45) -> 0 | G35: =SUM(G36:G45) -> 0 | H35: =I35+J35 -> 0 | I35: =SUM(I36:I45) -> 0 | J35: =SUM(J36:J45) -> 0 | K35: =L35+M35 -> 0 | L35: =SUM(L36:L45) -> 0 | M35: =SUM(M36:M45) -> 0 | N35: =O35+P35 -> 0 | O35: =SUM(O36:O45) -> 0 | P35: =SUM(P36:P45) -> 0 | Q35: =SUM(Q36:Q45) -> 0 | R35: =S35+T35 -> 0 | S35: =SUM(S36:S45) -> 0 | T35: =SUM(T36:T45) -> 0 | U35: =V35+W35 -> 0 | V35: =SUM(V36:V45) -> 0 | W35: =SUM(W36:W45) -> 0 | X35: =Y35+Z35 -> 0 | Y35: =SUM(Y36:Y45) -> 0 | Z35: 0 | AA35: 0 | AB35: 0 | AC35: 0 | AD35: 0
A36: 1.1 | B36: =B24 -> 0 | C36: 0 | D36: =E36+F36+G36 -> 0 | G36: =K36+N36+Q36+H36 -> 0 | H36: =I36+J36 -> 0 | K36: =L36+M36 -> 0 | N36: =O36+P36 -> 0 | Q36: =R36+U36+X36 -> 0 | R36: =S36+T36 -> 0 | U36: =V36+W36 -> 0 | X36: =Y36+Z36 -> 0 | AA36: =D36 -> 0 | AD36: =AA36-AB36-AC36 -> 0
A37: 1.2 | B37: 0 | C37: 0 | D37: =E37+F37+G37 -> 0 | G37: =K37+N37+Q37+H37 -> 0 | H37: 0 | K37: 0 | N37: 0 | Q37: =R37+U37+X37 -> 0 | R37: 0 | U37: 0 | X37: =Y37+Z37 -> 0 | AA37: 0 | AD37: =AA37-AB37-AC37 -> 0
A38: 1.3 | B38: 0 | C38: 0 | D38: 0 | G38: 0 | H38: 0 | K38: 0 | N38: 0 | Q38: 0 | R38: 0 | U38: 0 | X38: 0 | AA38: 0 | AD38: 0
A39: 1.4 | B39: 0 | C39: 0 | D39: 0 | G39: 0 | H39: 0 | K39: 0 | N39: 0 | Q39: 0 | R39: 0 | U39: 0 | X39: 0 | AA39: 0 | AD39: 0
A40: 1.5 | B40: 0 | C40: 0 | D40: 0 | G40: 0 | H40: 0 | K40: 0 | N40: 0 | Q40: 0 | R40: 0 | U40: 0 | X40: 0 | AA40: 0 | AD40: 0
A41: 1.6 | B41: 0 | C41: 0 | D41: 0 | G41: 0 | H41: 0 | K41: 0 | N41: 0 | Q41: 0 | R41: 0 | U41: 0 | X41: 0 | AA41: 0 | AD41: 0
A42: 1.7 | B42: 0 | C42: 0 | D42: 0 | G42: 0 | H42: 0 | K42: 0 | N42: 0 | Q42: 0 | R42: 0 | U42: 0 | X42: 0 | AA42: 0 | AD42: 0
A43: 1.8 | B43: 0 | C43: 0 | D43: 0 | G43: 0 | H43: 0 | K43: 0 | N43: 0 | Q43: 0 | R43: 0 | U43: 0 | X43: 0 | AA43: 0 | AD43: 0
A44: 1.9 | B44: 0 | C44: 0 | D44: 0 | G44: 0 | H44: 0 | K44: 0 | N44: 0 | Q44: 0 | R44: 0 | U44: 0 | X44: 0 | AA44: 0 | AD44: 0
A45: 1.10 | B45: 0 | C45: 0 | D45: 0 | G45: 0 | H45: 0 | K45: 0 | N45: 0 | Q45: 0 | R45: 0 | U45: 0 | X45: 0 | AA45: 0 | AD45: 0
O46: =O34 -> Предбазовый период (факт)
A47: 1 | B47: =B35+1 -> 2016 | C47: =C35 -> факт по данным организации | D47: =SUM(D48:D57) -> 0 | E47: =SUM(E48:E57) -> 0 | F47: =SUM(F48:F57) -> 0 | G47: =SUM(G48:G57) -> 0 | H47: =I47+J47 -> 0 | I47: =SUM(I48:I57) -> 0 | J47: =SUM(J48:J57) -> 0 | K47: =L47+M47 -> 0 | L47: =SUM(L48:L57) -> 0 | M47: =SUM(M48:M57) -> 0 | N47: =O47+P47 -> 0 | O47: =SUM(O48:O57) -> 0 | P47: =SUM(P48:P57) -> 0 | Q47: =SUM(Q48:Q57) -> 0 | R47: =S47+T47 -> 0 | S47: =SUM(S48:S57) -> 0 | T47: =SUM(T48:T57) -> 0 | U47: =V47+W47 -> 0 | V47: =SUM(V48:V57) -> 0 | W47: =SUM(W48:W57) -> 0 | X47: =Y47+Z47 -> 0 | Y47: =SUM(Y48:Y57) -> 0 | Z47: 0 | AA47: 0 | AB47: 0 | AC47: 0 | AD47: 0
A48: 1.1 | B48: =B36 -> 0 | C48: 0 | D48: =E48+F48+G48 -> 0 | G48: =K48+N48+Q48+H48 -> 0 | H48: =I48+J48 -> 0 | K48: =L48+M48 -> 0 | N48: =O48+P48 -> 0 | Q48: =R48+U48+X48 -> 0 | R48: =S48+T48 -> 0 | U48: =V48+W48 -> 0 | X48: =Y48+Z48 -> 0 | AA48: =D48 -> 0 | AD48: =AA48-AB48-AC48 -> 0
A49: 1.2 | B49: 0 | C49: 0 | D49: =E49+F49+G49 -> 0 | G49: =K49+N49+Q49+H49 -> 0 | H49: 0 | K49: 0 | N49: 0 | Q49: =R49+U49+X49 -> 0 | R49: 0 | U49: 0 | X49: =Y49+Z49 -> 0 | AA49: 0 | AD49: =AA49-AB49-AC49 -> 0
A50: 1.3 | B50: 0 | C50: 0 | D50: 0 | G50: 0 | H50: 0 | K50: 0 | N50: 0 | Q50: 0 | R50: 0 | U50: 0 | X50: 0 | AA50: 0 | AD50: 0
A51: 1.4 | B51: 0 | C51: 0 | D51: 0 | G51: 0 | H51: 0 | K51: 0 | N51: 0 | Q51: 0 | R51: 0 | U51: 0 | X51: 0 | AA51: 0 | AD51: 0
A52: 1.5 | B52: 0 | C52: 0 | D52: 0 | G52: 0 | H52: 0 | K52: 0 | N52: 0 | Q52: 0 | R52: 0 | U52: 0 | X52: 0 | AA52: 0 | AD52: 0
A53: 1.6 | B53: 0 | C53: 0 | D53: 0 | G53: 0 | H53: 0 | K53: 0 | N53: 0 | Q53: 0 | R53: 0 | U53: 0 | X53: 0 | AA53: 0 | AD53: 0
A54: 1.7 | B54: 0 | C54: 0 | D54: 0 | G54: 0 | H54: 0 | K54: 0 | N54: 0 | Q54: 0 | R54: 0 | U54: 0 | X54: 0 | AA54: 0 | AD54: 0
A55: 1.8 | B55: 0 | C55: 0 | D55: 0 | G55: 0 | H55: 0 | K55: 0 | N55: 0 | Q55: 0 | R55: 0 | U55: 0 | X55: 0 | AA55: 0 | AD55: 0
A56: 1.9 | B56: 0 | C56: 0 | D56: 0 | G56: 0 | H56: 0 | K56: 0 | N56: 0 | Q56: 0 | R56: 0 | U56: 0 | X56: 0 | AA56: 0 | AD56: 0
A57: 1.10 | B57: 0 | C57: 0 | D57: 0 | G57: 0 | H57: 0 | K57: 0 | N57: 0 | Q57: 0 | R57: 0 | U57: 0 | X57: 0 | AA57: 0 | AD57: 0
O58: Базовый период (план)
A59: 2 | B59: 2017 | C59: утвержденный план | D59: =SUM(D60:D69) -> 0 | E59: =SUM(E60:E69) -> 0 | F59: =SUM(F60:F69) -> 0 | G59: =SUM(G60:G69) -> 0 | H59: =I59+J59 -> 0 | I59: =SUM(I60:I69) -> 0 | J59: =SUM(J60:J69) -> 0 | K59: =L59+M59 -> 0 | L59: =SUM(L60:L69) -> 0 | M59: =SUM(M60:M69) -> 0 | N59: =O59+P59 -> 0 | O59: =SUM(O60:O69) -> 0 | P59: =SUM(P60:P69) -> 0 | Q59: =SUM(Q60:Q69) -> 0 | R59: =S59+T59 -> 0 | S59: =SUM(S60:S69) -> 0 | T59: =SUM(T60:T69) -> 0 | U59: =V59+W59 -> 0 | V59: =SUM(V60:V69) -> 0 | W59: =SUM(W60:W69) -> 0 | X59: =Y59+Z59 -> 0 | Y59: =SUM(Y60:Y69) -> 0 | Z59: 0 | AA59: 0 | AB59: 0 | AC59: 0 | AD59: 0
A60: 2.1. | B60: =B48 -> 0 | C60: 0 | D60: =E60+F60+G60 -> 0 | G60: =K60+N60+Q60+H60 -> 0 | H60: =I60+J60 -> 0 | K60: =L60+M60 -> 0 | N60: =O60+P60 -> 0 | Q60: =R60+U60+X60 -> 0 | R60: =S60+T60 -> 0 | U60: =V60+W60 -> 0 | X60: =Y60+Z60 -> 0 | AA60: =D60 -> 0 | AD60: =AA60-AB60-AC60 -> 0
A61: 2.2. | B61: 0 | C61: 0 | D61: =E61+F61+G61 -> 0 | G61: =K61+N61+Q61+H61 -> 0 | H61: 0 | K61: 0 | N61: 0 | Q61: =R61+U61+X61 -> 0 | R61: 0 | U61: 0 | X61: =Y61+Z61 -> 0 | AA61: 0 | AD61: =AA61-AB61-AC61 -> 0
A62: 2.3 | B62: 0 | C62: 0 | D62: 0 | G62: 0 | H62: 0 | K62: 0 | N62: 0 | Q62: 0 | R62: 0 | U62: 0 | X62: 0 | AA62: 0 | AD62: 0
A63: 2.4 | B63: 0 | C63: 0 | D63: 0 | G63: 0 | H63: 0 | K63: 0 | N63: 0 | Q63: 0 | R63: 0 | U63: 0 | X63: 0 | AA63: 0 | AD63: 0
A64: 2.5 | B64: 0 | C64: 0 | D64: 0 | G64: 0 | H64: 0 | K64: 0 | N64: 0 | Q64: 0 | R64: 0 | U64: 0 | X64: 0 | AA64: 0 | AD64: 0
A65: 2.6 | B65: 0 | C65: 0 | D65: 0 | G65: 0 | H65: 0 | K65: 0 | N65: 0 | Q65: 0 | R65: 0 | U65: 0 | X65: 0 | AA65: 0 | AD65: 0
A66: 2.7 | B66: 0 | C66: 0 | D66: 0 | G66: 0 | H66: 0 | K66: 0 | N66: 0 | Q66: 0 | R66: 0 | U66: 0 | X66: 0 | AA66: 0 | AD66: 0
A67: 2.8 | B67: 0 | C67: 0 | D67: 0 | G67: 0 | H67: 0 | K67: 0 | N67: 0 | Q67: 0 | R67: 0 | U67: 0 | X67: 0 | AA67: 0 | AD67: 0
A68: 2.9 | B68: 0 | C68: 0 | D68: 0 | G68: 0 | H68: 0 | K68: 0 | N68: 0 | Q68: 0 | R68: 0 | U68: 0 | X68: 0 | AA68: 0 | AD68: 0
A69: 2.10 | B69: 0 | C69: 0 | D69: 0 | G69: 0 | H69: 0 | K69: 0 | N69: 0 | Q69: 0 | R69: 0 | U69: 0 | X69: 0 | AA69: 0 | AD69: 0
O70: Период регулирования (план)
A71: 3.1. | B71: =B59+1 -> 2018 | C71: предложение организации | D71: =SUM(D72:D81) -> 0 | E71: =SUM(E72:E81) -> 0 | F71: =SUM(F72:F81) -> 0 | G71: =SUM(G72:G81) -> 0 | H71: =I71+J71 -> 0 | I71: =SUM(I72:I81) -> 0 | J71: =SUM(J72:J81) -> 0 | K71: =L71+M71 -> 0 | L71: =SUM(L72:L81) -> 0 | M71: =SUM(M72:M81) -> 0 | N71: =O71+P71 -> 0 | O71: =SUM(O72:O81) -> 0 | P71: =SUM(P72:P81) -> 0 | Q71: =SUM(Q72:Q81) -> 0 | R71: =S71+T71 -> 0 | S71: =SUM(S72:S81) -> 0 | T71: =SUM(T72:T81) -> 0 | U71: =V71+W71 -> 0 | V71: =SUM(V72:V81) -> 0 | W71: =SUM(W72:W81) -> 0 | X71: =Y71+Z71 -> 0 | Y71: =SUM(Y72:Y81) -> 0 | Z71: 0 | AA71: 0 | AB71: 0 | AC71: 0 | AD71: 0
A72: 3.1.1. | B72: =B60 -> 0 | C72: 0 | D72: =E72+F72+G72 -> 0 | G72: =K72+N72+Q72+H72 -> 0 | H72: =I72+J72 -> 0 | K72: =L72+M72 -> 0 | N72: =O72+P72 -> 0 | Q72: =R72+U72+X72 -> 0 | R72: =S72+T72 -> 0 | U72: =V72+W72 -> 0 | X72: =Y72+Z72 -> 0 | AA72: =D72 -> 0 | AD72: =AA72-AB72-AC72 -> 0
A73: 3.1.2. | B73: 0 | C73: 0 | D73: =E73+F73+G73 -> 0 | G73: =K73+N73+Q73+H73 -> 0 | H73: 0 | K73: 0 | N73: 0 | Q73: =R73+U73+X73 -> 0 | R73: 0 | U73: 0 | X73: =Y73+Z73 -> 0 | AA73: 0 | AD73: =AA73-AB73-AC73 -> 0
A74: 3.1.3 | B74: 0 | C74: 0 | D74: 0 | G74: 0 | H74: 0 | K74: 0 | N74: 0 | Q74: 0 | R74: 0 | U74: 0 | X74: 0 | AA74: 0 | AD74: 0
A75: 3.1.4 | B75: 0 | C75: 0 | D75: 0 | G75: 0 | H75: 0 | K75: 0 | N75: 0 | Q75: 0 | R75: 0 | U75: 0 | X75: 0 | AA75: 0 | AD75: 0
A76: 3.1.5 | B76: 0 | C76: 0 | D76: 0 | G76: 0 | H76: 0 | K76: 0 | N76: 0 | Q76: 0 | R76: 0 | U76: 0 | X76: 0 | AA76: 0 | AD76: 0
A77: 3.1.6 | B77: 0 | C77: 0 | D77: 0 | G77: 0 | H77: 0 | K77: 0 | N77: 0 | Q77: 0 | R77: 0 | U77: 0 | X77: 0 | AA77: 0 | AD77: 0
A78: 3.1.7 | B78: 0 | C78: 0 | D78: 0 | G78: 0 | H78: 0 | K78: 0 | N78: 0 | Q78: 0 | R78: 0 | U78: 0 | X78: 0 | AA78: 0 | AD78: 0
A79: 3.1.8 | B79: 0 | C79: 0 | D79: 0 | G79: 0 | H79: 0 | K79: 0 | N79: 0 | Q79: 0 | R79: 0 | U79: 0 | X79: 0 | AA79: 0 | AD79: 0
A80: 3.1.9 | B80: 0 | C80: 0 | D80: 0 | G80: 0 | H80: 0 | K80: 0 | N80: 0 | Q80: 0 | R80: 0 | U80: 0 | X80: 0 | AA80: 0 | AD80: 0
A81: 3.1.10 | B81: 0 | C81: 0 | D81: 0 | G81: 0 | H81: 0 | K81: 0 | N81: 0 | Q81: 0 | R81: 0 | U81: 0 | X81: 0 | AA81: 0 | AD81: 0
O82: Период регулирования (план)
A83: 3.1. | B83: =B71+1 -> 2019 | C83: предложение организации | D83: =SUM(D84:D93) -> 0 | E83: =SUM(E84:E93) -> 0 | F83: =SUM(F84:F93) -> 0 | G83: =SUM(G84:G93) -> 0 | H83: =I83+J83 -> 0 | I83: =SUM(I84:I93) -> 0 | J83: =SUM(J84:J93) -> 0 | K83: =L83+M83 -> 0 | L83: =SUM(L84:L93) -> 0 | M83: =SUM(M84:M93) -> 0 | N83: =O83+P83 -> 0 | O83: =SUM(O84:O93) -> 0 | P83: =SUM(P84:P93) -> 0 | Q83: =SUM(Q84:Q93) -> 0 | R83: =S83+T83 -> 0 | S83: =SUM(S84:S93) -> 0 | T83: =SUM(T84:T93) -> 0 | U83: =V83+W83 -> 0 | V83: =SUM(V84:V93) -> 0 | W83: =SUM(W84:W93) -> 0 | X83: =Y83+Z83 -> 0 | Y83: =SUM(Y84:Y93) -> 0 | Z83: 0 | AA83: 0 | AB83: 0 | AC83: 0 | AD83: 0
A84: 3.1.1. | B84: =B72 -> 0 | C84: 0 | D84: =E84+F84+G84 -> 0 | E84: =E72 -> 0 | F84: =F72 -> 0 | G84: =K84+N84+Q84+H84 -> 0 | H84: =I84+J84 -> 0 | I84: =I72 -> 0 | J84: =J72 -> 0 | K84: =L84+M84 -> 0 | L84: =L72 -> 0 | M84: =M72 -> 0 | N84: =O84+P84 -> 0 | O84: =O72 -> 0 | P84: =P72 -> 0 | Q84: =R84+U84+X84 -> 0 | R84: =S84+T84 -> 0 | S84: =S72 -> 0 | T84: =T72 -> 0 | U84: =V84+W84 -> 0 | V84: =V72 -> 0 | W84: =W72 -> 0 | X84: =Y84+Z84 -> 0 | Y84: =Y72 -> 0 | Z84: =Z72 -> 0 | AA84: =D84 -> 0 | AB84: =AB72 -> 0 | AC84: =AC72 -> 0 | AD84: =AA84-AB84-AC84 -> 0
A85: 3.1.2. | B85: 0 | C85: 0 | D85: =E85+F85+G85 -> 0 | E85: =E73 -> 0 | F85: 0 | G85: =K85+N85+Q85+H85 -> 0 | H85: 0 | I85: =I73 -> 0 | J85: 0 | K85: 0 | L85: =L73 -> 0 | M85: 0 | N85: 0 | O85: =O73 -> 0 | P85: 0 | Q85: =R85+U85+X85 -> 0 | R85: 0 | S85: =S73 -> 0 | T85: 0 | U85: 0 | V85: =V73 -> 0 | W85: 0 | X85: =Y85+Z85 -> 0 | Y85: =Y73 -> 0 | Z85: 0 | AA85: 0 | AB85: =AB73 -> 0 | AC85: 0 | AD85: =AA85-AB85-AC85 -> 0
A86: 3.1.3 | B86: 0 | C86: 0 | D86: 0 | E86: =E74 -> 0 | F86: 0 | G86: 0 | H86: 0 | I86: =I74 -> 0 | J86: 0 | K86: 0 | L86: =L74 -> 0 | M86: 0 | N86: 0 | O86: =O74 -> 0 | P86: 0 | Q86: 0 | R86: 0 | S86: =S74 -> 0 | T86: 0 | U86: 0 | V86: =V74 -> 0 | W86: 0 | X86: 0 | Y86: =Y74 -> 0 | Z86: 0 | AA86: 0 | AB86: =AB74 -> 0 | AC86: 0 | AD86: 0
A87: 3.1.4 | B87: 0 | C87: 0 | D87: 0 | E87: =E75 -> 0 | F87: 0 | G87: 0 | H87: 0 | I87: =I75 -> 0 | J87: 0 | K87: 0 | L87: =L75 -> 0 | M87: 0 | N87: 0 | O87: =O75 -> 0 | P87: 0 | Q87: 0 | R87: 0 | S87: =S75 -> 0 | T87: 0 | U87: 0 | V87: =V75 -> 0 | W87: 0 | X87: 0 | Y87: =Y75 -> 0 | Z87: 0 | AA87: 0 | AB87: =AB75 -> 0 | AC87: 0 | AD87: 0
A88: 3.1.5 | B88: 0 | C88: 0 | D88: 0 | E88: =E76 -> 0 | F88: 0 | G88: 0 | H88: 0 | I88: =I76 -> 0 | J88: 0 | K88: 0 | L88: =L76 -> 0 | M88: 0 | N88: 0 | O88: =O76 -> 0 | P88: 0 | Q88: 0 | R88: 0 | S88: =S76 -> 0 | T88: 0 | U88: 0 | V88: =V76 -> 0 | W88: 0 | X88: 0 | Y88: =Y76 -> 0 | Z88: 0 | AA88: 0 | AB88: =AB76 -> 0 | AC88: 0 | AD88: 0
A89: 3.1.6 | B89: 0 | C89: 0 | D89: 0 | E89: =E77 -> 0 | F89: 0 | G89: 0 | H89: 0 | I89: =I77 -> 0 | J89: 0 | K89: 0 | L89: =L77 -> 0 | M89: 0 | N89: 0 | O89: =O77 -> 0 | P89: 0 | Q89: 0 | R89: 0 | S89: =S77 -> 0 | T89: 0 | U89: 0 | V89: =V77 -> 0 | W89: 0 | X89: 0 | Y89: =Y77 -> 0 | Z89: 0 | AA89: 0 | AB89: =AB77 -> 0 | AC89: 0 | AD89: 0
A90: 3.1.7 | B90: 0 | C90: 0 | D90: 0 | E90: =E78 -> 0 | F90: 0 | G90: 0 | H90: 0 | I90: =I78 -> 0 | J90: 0 | K90: 0 | L90: =L78 -> 0 | M90: 0 | N90: 0 | O90: =O78 -> 0 | P90: 0 | Q90: 0 | R90: 0 | S90: =S78 -> 0 | T90: 0 | U90: 0 | V90: =V78 -> 0 | W90: 0 | X90: 0 | Y90: =Y78 -> 0 | Z90: 0 | AA90: 0 | AB90: =AB78 -> 0 | AC90: 0 | AD90: 0
A91: 3.1.8 | B91: 0 | C91: 0 | D91: 0 | E91: =E79 -> 0 | F91: 0 | G91: 0 | H91: 0 | I91: =I79 -> 0 | J91: 0 | K91: 0 | L91: =L79 -> 0 | M91: 0 | N91: 0 | O91: =O79 -> 0 | P91: 0 | Q91: 0 | R91: 0 | S91: =S79 -> 0 | T91: 0 | U91: 0 | V91: =V79 -> 0 | W91: 0 | X91: 0 | Y91: =Y79 -> 0 | Z91: 0 | AA91: 0 | AB91: =AB79 -> 0 | AC91: 0 | AD91: 0
A92: 3.1.9 | B92: 0 | C92: 0 | D92: 0 | E92: =E80 -> 0 | F92: 0 | G92: 0 | H92: 0 | I92: =I80 -> 0 | J92: 0 | K92: 0 | L92: =L80 -> 0 | M92: 0 | N92: 0 | O92: =O80 -> 0 | P92: 0 | Q92: 0 | R92: 0 | S92: =S80 -> 0 | T92: 0 | U92: 0 | V92: =V80 -> 0 | W92: 0 | X92: 0 | Y92: =Y80 -> 0 | Z92: 0 | AA92: 0 | AB92: =AB80 -> 0 | AC92: 0 | AD92: 0
A93: 3.1.10 | B93: 0 | C93: 0 | D93: 0 | E93: =E81 -> 0 | F93: 0 | G93: 0 | H93: 0 | I93: =I81 -> 0 | J93: 0 | K93: 0 | L93: =L81 -> 0 | M93: 0 | N93: 0 | O93: =O81 -> 0 | P93: 0 | Q93: 0 | R93: 0 | S93: =S81 -> 0 | T93: 0 | U93: 0 | V93: =V81 -> 0 | W93: 0 | X93: 0 | Y93: =Y81 -> 0 | Z93: 0 | AA93: 0 | AB93: =AB81 -> 0 | AC93: 0 | AD93: 0
O94: Период регулирования (план)
A95: 3.1. | B95: =B83+1 -> 2020 | C95: предложение организации | D95: =SUM(D96:D105) -> 0 | E95: =SUM(E96:E105) -> 0 | F95: =SUM(F96:F105) -> 0 | G95: =SUM(G96:G105) -> 0 | H95: =I95+J95 -> 0 | I95: =SUM(I96:I105) -> 0 | J95: =SUM(J96:J105) -> 0 | K95: =L95+M95 -> 0 | L95: =SUM(L96:L105) -> 0 | M95: =SUM(M96:M105) -> 0 | N95: =O95+P95 -> 0 | O95: =SUM(O96:O105) -> 0 | P95: =SUM(P96:P105) -> 0 | Q95: =SUM(Q96:Q105) -> 0 | R95: =S95+T95 -> 0 | S95: =SUM(S96:S105) -> 0 | T95: =SUM(T96:T105) -> 0 | U95: =V95+W95 -> 0 | V95: =SUM(V96:V105) -> 0 | W95: =SUM(W96:W105) -> 0 | X95: =Y95+Z95 -> 0 | Y95: =SUM(Y96:Y105) -> 0 | Z95: 0 | AA95: 0 | AB95: 0 | AC95: 0 | AD95: 0
A96: 3.1.1. | B96: =B84 -> 0 | C96: 0 | D96: =E96+F96+G96 -> 0 | E96: =E84 -> 0 | F96: =F84 -> 0 | G96: =K96+N96+Q96+H96 -> 0 | H96: =I96+J96 -> 0 | I96: =I84 -> 0 | J96: =J84 -> 0 | K96: =L96+M96 -> 0 | L96: =L84 -> 0 | M96: =M84 -> 0 | N96: =O96+P96 -> 0 | O96: =O84 -> 0 | P96: =P84 -> 0 | Q96: =R96+U96+X96 -> 0 | R96: =S96+T96 -> 0 | S96: =S84 -> 0 | T96: =T84 -> 0 | U96: =V96+W96 -> 0 | V96: =V84 -> 0 | W96: =W84 -> 0 | X96: =Y96+Z96 -> 0 | Y96: =Y84 -> 0 | Z96: =Z84 -> 0 | AA96: =D96 -> 0 | AB96: =AB84 -> 0 | AC96: =AC84 -> 0 | AD96: =AA96-AB96-AC96 -> 0
A97: 3.1.2. | B97: 0 | C97: 0 | D97: =E97+F97+G97 -> 0 | E97: =E85 -> 0 | F97: 0 | G97: =K97+N97+Q97+H97 -> 0 | H97: 0 | I97: =I85 -> 0 | J97: 0 | K97: 0 | L97: =L85 -> 0 | M97: 0 | N97: 0 | O97: =O85 -> 0 | P97: 0 | Q97: =R97+U97+X97 -> 0 | R97: 0 | S97: =S85 -> 0 | T97: 0 | U97: 0 | V97: =V85 -> 0 | W97: 0 | X97: =Y97+Z97 -> 0 | Y97: =Y85 -> 0 | Z97: 0 | AA97: 0 | AB97: =AB85 -> 0 | AC97: 0 | AD97: =AA97-AB97-AC97 -> 0
A98: 3.1.3 | B98: 0 | C98: 0 | D98: 0 | E98: =E86 -> 0 | F98: 0 | G98: 0 | H98: 0 | I98: =I86 -> 0 | J98: 0 | K98: 0 | L98: =L86 -> 0 | M98: 0 | N98: 0 | O98: =O86 -> 0 | P98: 0 | Q98: 0 | R98: 0 | S98: =S86 -> 0 | T98: 0 | U98: 0 | V98: =V86 -> 0 | W98: 0 | X98: 0 | Y98: =Y86 -> 0 | Z98: 0 | AA98: 0 | AB98: =AB86 -> 0 | AC98: 0 | AD98: 0
A99: 3.1.4 | B99: 0 | C99: 0 | D99: 0 | E99: =E87 -> 0 | F99: 0 | G99: 0 | H99: 0 | I99: =I87 -> 0 | J99: 0 | K99: 0 | L99: =L87 -> 0 | M99: 0 | N99: 0 | O99: =O87 -> 0 | P99: 0 | Q99: 0 | R99: 0 | S99: =S87 -> 0 | T99: 0 | U99: 0 | V99: =V87 -> 0 | W99: 0 | X99: 0 | Y99: =Y87 -> 0 | Z99: 0 | AA99: 0 | AB99: =AB87 -> 0 | AC99: 0 | AD99: 0
A100: 3.1.5 | B100: 0 | C100: 0 | D100: 0 | E100: =E88 -> 0 | F100: 0 | G100: 0 | H100: 0 | I100: =I88 -> 0 | J100: 0 | K100: 0 | L100: =L88 -> 0 | M100: 0 | N100: 0 | O100: =O88 -> 0 | P100: 0 | Q100: 0 | R100: 0 | S100: =S88 -> 0 | T100: 0 | U100: 0 | V100: =V88 -> 0 | W100: 0 | X100: 0 | Y100: =Y88 -> 0 | Z100: 0 | AA100: 0 | AB100: =AB88 -> 0 | AC100: 0 | AD100: 0
A101: 3.1.6 | B101: 0 | C101: 0 | D101: 0 | E101: =E89 -> 0 | F101: 0 | G101: 0 | H101: 0 | I101: =I89 -> 0 | J101: 0 | K101: 0 | L101: =L89 -> 0 | M101: 0 | N101: 0 | O101: =O89 -> 0 | P101: 0 | Q101: 0 | R101: 0 | S101: =S89 -> 0 | T101: 0 | U101: 0 | V101: =V89 -> 0 | W101: 0 | X101: 0 | Y101: =Y89 -> 0 | Z101: 0 | AA101: 0 | AB101: =AB89 -> 0 | AC101: 0 | AD101: 0
A102: 3.1.7 | B102: 0 | C102: 0 | D102: 0 | E102: =E90 -> 0 | F102: 0 | G102: 0 | H102: 0 | I102: =I90 -> 0 | J102: 0 | K102: 0 | L102: =L90 -> 0 | M102: 0 | N102: 0 | O102: =O90 -> 0 | P102: 0 | Q102: 0 | R102: 0 | S102: =S90 -> 0 | T102: 0 | U102: 0 | V102: =V90 -> 0 | W102: 0 | X102: 0 | Y102: =Y90 -> 0 | Z102: 0 | AA102: 0 | AB102: =AB90 -> 0 | AC102: 0 | AD102: 0
A103: 3.1.8 | B103: 0 | C103: 0 | D103: 0 | E103: =E91 -> 0 | F103: 0 | G103: 0 | H103: 0 | I103: =I91 -> 0 | J103: 0 | K103: 0 | L103: =L91 -> 0 | M103: 0 | N103: 0 | O103: =O91 -> 0 | P103: 0 | Q103: 0 | R103: 0 | S103: =S91 -> 0 | T103: 0 | U103: 0 | V103: =V91 -> 0 | W103: 0 | X103: 0 | Y103: =Y91 -> 0 | Z103: 0 | AA103: 0 | AB103: =AB91 -> 0 | AC103: 0 | AD103: 0
A104: 3.1.9 | B104: 0 | C104: 0 | D104: 0 | E104: =E92 -> 0 | F104: 0 | G104: 0 | H104: 0 | I104: =I92 -> 0 | J104: 0 | K104: 0 | L104: =L92 -> 0 | M104: 0 | N104: 0 | O104: =O92 -> 0 | P104: 0 | Q104: 0 | R104: 0 | S104: =S92 -> 0 | T104: 0 | U104: 0 | V104: =V92 -> 0 | W104: 0 | X104: 0 | Y104: =Y92 -> 0 | Z104: 0 | AA104: 0 | AB104: =AB92 -> 0 | AC104: 0 | AD104: 0
A105: 3.1.10 | B105: 0 | C105: 0 | D105: 0 | E105: =E93 -> 0 | F105: 0 | G105: 0 | H105: 0 | I105: =I93 -> 0 | J105: 0 | K105: 0 | L105: =L93 -> 0 | M105: 0 | N105: 0 | O105: =O93 -> 0 | P105: 0 | Q105: 0 | R105: 0 | S105: =S93 -> 0 | T105: 0 | U105: 0 | V105: =V93 -> 0 | W105: 0 | X105: 0 | Y105: =Y93 -> 0 | Z105: 0 | AA105: 0 | AB105: =AB93 -> 0 | AC105: 0 | AD105: 0
O106: Период регулирования (план)
A107: 3.2. | B107: =B71 -> 2018 | C107: ДТР ТО | D107: =SUM(D108:D117) -> 0 | E107: =SUM(E108:E117) -> 0 | F107: =SUM(F108:F117) -> 0 | G107: =SUM(G108:G117) -> 0 | H107: =I107+J107 -> 0 | I107: =SUM(I108:I117) -> 0 | J107: =SUM(J108:J117) -> 0 | K107: =L107+M107 -> 0 | L107: =SUM(L108:L117) -> 0 | M107: =SUM(M108:M117) -> 0 | N107: =O107+P107 -> 0 | O107: =SUM(O108:O117) -> 0 | P107: =SUM(P108:P117) -> 0 | Q107: =SUM(Q108:Q117) -> 0 | R107: =S107+T107 -> 0 | S107: =SUM(S108:S117) -> 0 | T107: =SUM(T108:T117) -> 0 | U107: =V107+W107 -> 0 | V107: =SUM(V108:V117) -> 0 | W107: =SUM(W108:W117) -> 0 | X107: =Y107+Z107 -> 0 | Y107: =SUM(Y108:Y117) -> 0 | Z107: 0 | AA107: 0 | AB107: 0 | AC107: 0 | AD107: 0
A108: 3.2.1. | B108: =B96 -> 0 | C108: 0 | D108: =E108+F108+G108 -> 0 | G108: =K108+N108+Q108+H108 -> 0 | H108: =I108+J108 -> 0 | K108: =L108+M108 -> 0 | N108: =O108+P108 -> 0 | Q108: =R108+U108+X108 -> 0 | R108: =S108+T108 -> 0 | U108: =V108+W108 -> 0 | X108: =Y108+Z108 -> 0 | AA108: =D108 -> 0 | AD108: =AA108-AB108-AC108 -> 0
A109: 3.2.2. | B109: 0 | C109: 0 | D109: =E109+F109+G109 -> 0 | G109: =K109+N109+Q109+H109 -> 0 | H109: 0 | K109: 0 | N109: 0 | Q109: =R109+U109+X109 -> 0 | R109: 0 | U109: 0 | X109: =Y109+Z109 -> 0 | AA109: 0 | AD109: =AA109-AB109-AC109 -> 0
A110: 3.2.3 | B110: 0 | C110: 0 | D110: 0 | G110: 0 | H110: 0 | K110: 0 | N110: 0 | Q110: 0 | R110: 0 | U110: 0 | X110: 0 | AA110: 0 | AD110: 0
A111: 3.2.4 | B111: 0 | C111: 0 | D111: 0 | G111: 0 | H111: 0 | K111: 0 | N111: 0 | Q111: 0 | R111: 0 | U111: 0 | X111: 0 | AA111: 0 | AD111: 0
A112: 3.2.5 | B112: 0 | C112: 0 | D112: 0 | G112: 0 | H112: 0 | K112: 0 | N112: 0 | Q112: 0 | R112: 0 | U112: 0 | X112: 0 | AA112: 0 | AD112: 0
A113: 3.2.6 | B113: 0 | C113: 0 | D113: 0 | G113: 0 | H113: 0 | K113: 0 | N113: 0 | Q113: 0 | R113: 0 | U113: 0 | X113: 0 | AA113: 0 | AD113: 0
A114: 3.2.7 | B114: 0 | C114: 0 | D114: 0 | G114: 0 | H114: 0 | K114: 0 | N114: 0 | Q114: 0 | R114: 0 | U114: 0 | X114: 0 | AA114: 0 | AD114: 0
A115: 3.2.8 | B115: 0 | C115: 0 | D115: 0 | G115: 0 | H115: 0 | K115: 0 | N115: 0 | Q115: 0 | R115: 0 | U115: 0 | X115: 0 | AA115: 0 | AD115: 0
A116: 3.2.9 | B116: 0 | C116: 0 | D116: 0 | G116: 0 | H116: 0 | K116: 0 | N116: 0 | Q116: 0 | R116: 0 | U116: 0 | X116: 0 | AA116: 0 | AD116: 0
A117: 3.2.10 | B117: 0 | C117: 0 | D117: 0 | G117: 0 | H117: 0 | K117: 0 | N117: 0 | Q117: 0 | R117: 0 | U117: 0 | X117: 0 | AA117: 0 | AD117: 0
O118: Период регулирования (план)
A119: 3.2. | B119: =B107+1 -> 2019 | C119: =C107 -> ДТР ТО | D119: =SUM(D120:D129) -> 0 | E119: =SUM(E120:E129) -> 0 | F119: =SUM(F120:F129) -> 0 | G119: =SUM(G120:G129) -> 0 | H119: =I119+J119 -> 0 | I119: =SUM(I120:I129) -> 0 | J119: =SUM(J120:J129) -> 0 | K119: =L119+M119 -> 0 | L119: =SUM(L120:L129) -> 0 | M119: =SUM(M120:M129) -> 0 | N119: =O119+P119 -> 0 | O119: =SUM(O120:O129) -> 0 | P119: =SUM(P120:P129) -> 0 | Q119: =SUM(Q120:Q129) -> 0 | R119: =S119+T119 -> 0 | S119: =SUM(S120:S129) -> 0 | T119: =SUM(T120:T129) -> 0 | U119: =V119+W119 -> 0 | V119: =SUM(V120:V129) -> 0 | W119: =SUM(W120:W129) -> 0 | X119: =Y119+Z119 -> 0 | Y119: =SUM(Y120:Y129) -> 0 | Z119: 0 | AA119: 0 | AB119: 0 | AC119: 0 | AD119: 0
A120: 3.2.1. | B120: =B108 -> 0 | C120: 0 | D120: =E120+F120+G120 -> 0 | E120: =E108 -> 0 | F120: =F108 -> 0 | G120: =K120+N120+Q120+H120 -> 0 | H120: =I120+J120 -> 0 | I120: =I108 -> 0 | J120: =J108 -> 0 | K120: =L120+M120 -> 0 | L120: =L108 -> 0 | M120: =M108 -> 0 | N120: =O120+P120 -> 0 | O120: =O108 -> 0 | P120: =P108 -> 0 | Q120: =R120+U120+X120 -> 0 | R120: =S120+T120 -> 0 | S120: =S108 -> 0 | T120: =T108 -> 0 | U120: =V120+W120 -> 0 | V120: =V108 -> 0 | W120: =W108 -> 0 | X120: =Y120+Z120 -> 0 | Y120: =Y108 -> 0 | Z120: =Z108 -> 0 | AA120: =D120 -> 0 | AB120: =AB108 -> 0 | AC120: =AC108 -> 0 | AD120: =AA120-AB120-AC120 -> 0
A121: 3.2.2. | B121: 0 | C121: 0 | D121: =E121+F121+G121 -> 0 | E121: =E109 -> 0 | F121: 0 | G121: =K121+N121+Q121+H121 -> 0 | H121: 0 | I121: =I109 -> 0 | J121: 0 | K121: 0 | L121: =L109 -> 0 | M121: 0 | N121: 0 | O121: =O109 -> 0 | P121: 0 | Q121: =R121+U121+X121 -> 0 | R121: 0 | S121: =S109 -> 0 | T121: 0 | U121: 0 | V121: =V109 -> 0 | W121: 0 | X121: =Y121+Z121 -> 0 | Y121: =Y109 -> 0 | Z121: 0 | AA121: 0 | AB121: =AB109 -> 0 | AC121: 0 | AD121: =AA121-AB121-AC121 -> 0
A122: 3.2.3 | B122: 0 | C122: 0 | D122: 0 | E122: =E110 -> 0 | F122: 0 | G122: 0 | H122: 0 | I122: =I110 -> 0 | J122: 0 | K122: 0 | L122: =L110 -> 0 | M122: 0 | N122: 0 | O122: =O110 -> 0 | P122: 0 | Q122: 0 | R122: 0 | S122: =S110 -> 0 | T122: 0 | U122: 0 | V122: =V110 -> 0 | W122: 0 | X122: 0 | Y122: =Y110 -> 0 | Z122: 0 | AA122: 0 | AB122: =AB110 -> 0 | AC122: 0 | AD122: 0
A123: 3.2.4 | B123: 0 | C123: 0 | D123: 0 | E123: =E111 -> 0 | F123: 0 | G123: 0 | H123: 0 | I123: =I111 -> 0 | J123: 0 | K123: 0 | L123: =L111 -> 0 | M123: 0 | N123: 0 | O123: =O111 -> 0 | P123: 0 | Q123: 0 | R123: 0 | S123: =S111 -> 0 | T123: 0 | U123: 0 | V123: =V111 -> 0 | W123: 0 | X123: 0 | Y123: =Y111 -> 0 | Z123: 0 | AA123: 0 | AB123: =AB111 -> 0 | AC123: 0 | AD123: 0
A124: 3.2.5 | B124: 0 | C124: 0 | D124: 0 | E124: =E112 -> 0 | F124: 0 | G124: 0 | H124: 0 | I124: =I112 -> 0 | J124: 0 | K124: 0 | L124: =L112 -> 0 | M124: 0 | N124: 0 | O124: =O112 -> 0 | P124: 0 | Q124: 0 | R124: 0 | S124: =S112 -> 0 | T124: 0 | U124: 0 | V124: =V112 -> 0 | W124: 0 | X124: 0 | Y124: =Y112 -> 0 | Z124: 0 | AA124: 0 | AB124: =AB112 -> 0 | AC124: 0 | AD124: 0
A125: 3.2.6 | B125: 0 | C125: 0 | D125: 0 | E125: =E113 -> 0 | F125: 0 | G125: 0 | H125: 0 | I125: =I113 -> 0 | J125: 0 | K125: 0 | L125: =L113 -> 0 | M125: 0 | N125: 0 | O125: =O113 -> 0 | P125: 0 | Q125: 0 | R125: 0 | S125: =S113 -> 0 | T125: 0 | U125: 0 | V125: =V113 -> 0 | W125: 0 | X125: 0 | Y125: =Y113 -> 0 | Z125: 0 | AA125: 0 | AB125: =AB113 -> 0 | AC125: 0 | AD125: 0
A126: 3.2.7 | B126: 0 | C126: 0 | D126: 0 | E126: =E114 -> 0 | F126: 0 | G126: 0 | H126: 0 | I126: =I114 -> 0 | J126: 0 | K126: 0 | L126: =L114 -> 0 | M126: 0 | N126: 0 | O126: =O114 -> 0 | P126: 0 | Q126: 0 | R126: 0 | S126: =S114 -> 0 | T126: 0 | U126: 0 | V126: =V114 -> 0 | W126: 0 | X126: 0 | Y126: =Y114 -> 0 | Z126: 0 | AA126: 0 | AB126: =AB114 -> 0 | AC126: 0 | AD126: 0
A127: 3.2.8 | B127: 0 | C127: 0 | D127: 0 | E127: =E115 -> 0 | F127: 0 | G127: 0 | H127: 0 | I127: =I115 -> 0 | J127: 0 | K127: 0 | L127: =L115 -> 0 | M127: 0 | N127: 0 | O127: =O115 -> 0 | P127: 0 | Q127: 0 | R127: 0 | S127: =S115 -> 0 | T127: 0 | U127: 0 | V127: =V115 -> 0 | W127: 0 | X127: 0 | Y127: =Y115 -> 0 | Z127: 0 | AA127: 0 | AB127: =AB115 -> 0 | AC127: 0 | AD127: 0
A128: 3.2.9 | B128: 0 | C128: 0 | D128: 0 | E128: =E116 -> 0 | F128: 0 | G128: 0 | H128: 0 | I128: =I116 -> 0 | J128: 0 | K128: 0 | L128: =L116 -> 0 | M128: 0 | N128: 0 | O128: =O116 -> 0 | P128: 0 | Q128: 0 | R128: 0 | S128: =S116 -> 0 | T128: 0 | U128: 0 | V128: =V116 -> 0 | W128: 0 | X128: 0 | Y128: =Y116 -> 0 | Z128: 0 | AA128: 0 | AB128: =AB116 -> 0 | AC128: 0 | AD128: 0
A129: 3.2.10 | B129: 0 | C129: 0 | D129: 0 | E129: =E117 -> 0 | F129: 0 | G129: 0 | H129: 0 | I129: =I117 -> 0 | J129: 0 | K129: 0 | L129: =L117 -> 0 | M129: 0 | N129: 0 | O129: =O117 -> 0 | P129: 0 | Q129: 0 | R129: 0 | S129: =S117 -> 0 | T129: 0 | U129: 0 | V129: =V117 -> 0 | W129: 0 | X129: 0 | Y129: =Y117 -> 0 | Z129: 0 | AA129: 0 | AB129: =AB117 -> 0 | AC129: 0 | AD129: 0
O130: Период регулирования (план)
A131: 3.2. | B131: =B119+1 -> 2020 | C131: =C119 -> ДТР ТО | D131: =SUM(D132:D141) -> 0 | E131: =SUM(E132:E141) -> 0 | F131: =SUM(F132:F141) -> 0 | G131: =SUM(G132:G141) -> 0 | H131: =I131+J131 -> 0 | I131: =SUM(I132:I141) -> 0 | J131: =SUM(J132:J141) -> 0 | K131: =L131+M131 -> 0 | L131: =SUM(L132:L141) -> 0 | M131: =SUM(M132:M141) -> 0 | N131: =O131+P131 -> 0 | O131: =SUM(O132:O141) -> 0 | P131: =SUM(P132:P141) -> 0 | Q131: =SUM(Q132:Q141) -> 0 | R131: =S131+T131 -> 0 | S131: =SUM(S132:S141) -> 0 | T131: =SUM(T132:T141) -> 0 | U131: =V131+W131 -> 0 | V131: =SUM(V132:V141) -> 0 | W131: =SUM(W132:W141) -> 0 | X131: =Y131+Z131 -> 0 | Y131: =SUM(Y132:Y141) -> 0 | Z131: 0 | AA131: 0 | AB131: 0 | AC131: 0 | AD131: 0
A132: 3.2.1. | B132: =B120 -> 0 | C132: 0 | D132: =E132+F132+G132 -> 0 | E132: =E120 -> 0 | F132: =F120 -> 0 | G132: =K132+N132+Q132+H132 -> 0 | H132: =I132+J132 -> 0 | I132: =I120 -> 0 | J132: =J120 -> 0 | K132: =L132+M132 -> 0 | L132: =L120 -> 0 | M132: =M120 -> 0 | N132: =O132+P132 -> 0 | O132: =O120 -> 0 | P132: =P120 -> 0 | Q132: =R132+U132+X132 -> 0 | R132: =S132+T132 -> 0 | S132: =S120 -> 0 | T132: =T120 -> 0 | U132: =V132+W132 -> 0 | V132: =V120 -> 0 | W132: =W120 -> 0 | X132: =Y132+Z132 -> 0 | Y132: =Y120 -> 0 | Z132: =Z120 -> 0 | AA132: =D132 -> 0 | AB132: =AB120 -> 0 | AC132: =AC120 -> 0 | AD132: =AA132-AB132-AC132 -> 0
A133: 3.2.2. | B133: 0 | C133: 0 | D133: =E133+F133+G133 -> 0 | E133: =E121 -> 0 | F133: 0 | G133: =K133+N133+Q133+H133 -> 0 | H133: 0 | I133: =I121 -> 0 | J133: 0 | K133: 0 | L133: =L121 -> 0 | M133: 0 | N133: 0 | O133: =O121 -> 0 | P133: 0 | Q133: =R133+U133+X133 -> 0 | R133: 0 | S133: =S121 -> 0 | T133: 0 | U133: 0 | V133: =V121 -> 0 | W133: 0 | X133: =Y133+Z133 -> 0 | Y133: =Y121 -> 0 | Z133: 0 | AA133: 0 | AB133: =AB121 -> 0 | AC133: 0 | AD133: =AA133-AB133-AC133 -> 0
A134: 3.2.3 | B134: 0 | C134: 0 | D134: 0 | E134: =E122 -> 0 | F134: 0 | G134: 0 | H134: 0 | I134: =I122 -> 0 | J134: 0 | K134: 0 | L134: =L122 -> 0 | M134: 0 | N134: 0 | O134: =O122 -> 0 | P134: 0 | Q134: 0 | R134: 0 | S134: =S122 -> 0 | T134: 0 | U134: 0 | V134: =V122 -> 0 | W134: 0 | X134: 0 | Y134: =Y122 -> 0 | Z134: 0 | AA134: 0 | AB134: =AB122 -> 0 | AC134: 0 | AD134: 0
A135: 3.2.4 | B135: 0 | C135: 0 | D135: 0 | E135: =E123 -> 0 | F135: 0 | G135: 0 | H135: 0 | I135: =I123 -> 0 | J135: 0 | K135: 0 | L135: =L123 -> 0 | M135: 0 | N135: 0 | O135: =O123 -> 0 | P135: 0 | Q135: 0 | R135: 0 | S135: =S123 -> 0 | T135: 0 | U135: 0 | V135: =V123 -> 0 | W135: 0 | X135: 0 | Y135: =Y123 -> 0 | Z135: 0 | AA135: 0 | AB135: =AB123 -> 0 | AC135: 0 | AD135: 0
A136: 3.2.5 | B136: 0 | C136: 0 | D136: 0 | E136: =E124 -> 0 | F136: 0 | G136: 0 | H136: 0 | I136: =I124 -> 0 | J136: 0 | K136: 0 | L136: =L124 -> 0 | M136: 0 | N136: 0 | O136: =O124 -> 0 | P136: 0 | Q136: 0 | R136: 0 | S136: =S124 -> 0 | T136: 0 | U136: 0 | V136: =V124 -> 0 | W136: 0 | X136: 0 | Y136: =Y124 -> 0 | Z136: 0 | AA136: 0 | AB136: =AB124 -> 0 | AC136: 0 | AD136: 0
A137: 3.2.6 | B137: 0 | C137: 0 | D137: 0 | E137: =E125 -> 0 | F137: 0 | G137: 0 | H137: 0 | I137: =I125 -> 0 | J137: 0 | K137: 0 | L137: =L125 -> 0 | M137: 0 | N137: 0 | O137: =O125 -> 0 | P137: 0 | Q137: 0 | R137: 0 | S137: =S125 -> 0 | T137: 0 | U137: 0 | V137: =V125 -> 0 | W137: 0 | X137: 0 | Y137: =Y125 -> 0 | Z137: 0 | AA137: 0 | AB137: =AB125 -> 0 | AC137: 0 | AD137: 0
A138: 3.2.7 | B138: 0 | C138: 0 | D138: 0 | E138: =E126 -> 0 | F138: 0 | G138: 0 | H138: 0 | I138: =I126 -> 0 | J138: 0 | K138: 0 | L138: =L126 -> 0 | M138: 0 | N138: 0 | O138: =O126 -> 0 | P138: 0 | Q138: 0 | R138: 0 | S138: =S126 -> 0 | T138: 0 | U138: 0 | V138: =V126 -> 0 | W138: 0 | X138: 0 | Y138: =Y126 -> 0 | Z138: 0 | AA138: 0 | AB138: =AB126 -> 0 | AC138: 0 | AD138: 0
A139: 3.2.8 | B139: 0 | C139: 0 | D139: 0 | E139: =E127 -> 0 | F139: 0 | G139: 0 | H139: 0 | I139: =I127 -> 0 | J139: 0 | K139: 0 | L139: =L127 -> 0 | M139: 0 | N139: 0 | O139: =O127 -> 0 | P139: 0 | Q139: 0 | R139: 0 | S139: =S127 -> 0 | T139: 0 | U139: 0 | V139: =V127 -> 0 | W139: 0 | X139: 0 | Y139: =Y127 -> 0 | Z139: 0 | AA139: 0 | AB139: =AB127 -> 0 | AC139: 0 | AD139: 0
A140: 3.2.9 | B140: 0 | C140: 0 | D140: 0 | E140: =E128 -> 0 | F140: 0 | G140: 0 | H140: 0 | I140: =I128 -> 0 | J140: 0 | K140: 0 | L140: =L128 -> 0 | M140: 0 | N140: 0 | O140: =O128 -> 0 | P140: 0 | Q140: 0 | R140: 0 | S140: =S128 -> 0 | T140: 0 | U140: 0 | V140: =V128 -> 0 | W140: 0 | X140: 0 | Y140: =Y128 -> 0 | Z140: 0 | AA140: 0 | AB140: =AB128 -> 0 | AC140: 0 | AD140: 0
A141: 3.2.10 | B141: 0 | C141: 0 | D141: 0 | E141: =E129 -> 0 | F141: 0 | G141: 0 | H141: 0 | I141: =I129 -> 0 | J141: 0 | K141: 0 | L141: =L129 -> 0 | M141: 0 | N141: 0 | O141: =O129 -> 0 | P141: 0 | Q141: 0 | R141: 0 | S141: =S129 -> 0 | T141: 0 | U141: 0 | V141: =V129 -> 0 | W141: 0 | X141: 0 | Y141: =Y129 -> 0 | Z141: 0 | AA141: 0 | AB141: =AB129 -> 0 | AC141: 0 | AD141: 0
B143: темп изменения к . | C143: 2016 | D143: году | E143: =IF(E47=0,0,E107/E47) -> 0 | F143: =IF(F47=0,0,F107/F47) -> 0 | G143: 0 | I143: 0 | L143: 0 | O143: 0 | Q143: 0 | S143: 0 | V143: 0 | Y143: 0 | AA143: 0 | AB143: 0 | AC143: 0 | AD143: 0
B144: темп изменения к | C144: 2017 | D144: году | E144: =IF(E59=0,0,E107/E59) -> 0 | F144: =IF(F59=0,0,F107/F59) -> 0 | G144: 0 | I144: 0 | L144: 0 | O144: 0 | Q144: 0 | S144: 0 | V144: 0 | Y144: 0 | AA144: 0 | AB144: 0 | AC144: 0 | AD144: 0
A145: доля ПО 2016 года по приборам учета | G145: =IF(G47=0,,(I47+L47+O47+S47+V47+Y47)/G47) -> 0
B147: 2018 год, куб.м. | C147: Динамика фактического приема сточных вод
C148: 2014 год | G148: =IF(G11=0,0,(G23-G11)/G11) -> 0 | H148: =IF(H11=0,0,(H23-H11)/H11) -> 0 | K148: =IF(K11=0,0,(K23-K11)/K11) -> 0 | N148: =IF(N11=0,0,(N23-N11)/N11) -> 0 | Q148: =IF(Q11=0,0,(Q23-Q11)/Q11) -> 0 | R148: =IF(R11=0,0,(R23-R11)/R11) -> 0 | U148: =IF(U11=0,0,(U23-U11)/U11) -> 0 | X148: =IF(X11=0,0,(X23-X11)/X11) -> 0
C149: 2015 год | G149: =IF(G23=0,0,(G35-G23)/G23) -> 0 | H149: =IF(H23=0,0,(H35-H23)/H23) -> 0 | K149: =IF(K23=0,0,(K35-K23)/K23) -> 0 | N149: =IF(N23=0,0,(N35-N23)/N23) -> 0 | Q149: =IF(Q23=0,0,(Q35-Q23)/Q23) -> 0 | R149: =IF(R23=0,0,(R35-R23)/R23) -> 0 | U149: =IF(U23=0,0,(U35-U23)/U23) -> 0 | X149: =IF(X23=0,0,(X35-X23)/X23) -> 0
C150: 2016 год | G150: =IF(G35=0,0,(G47-G35)/G35) -> 0 | H150: =IF(H35=0,0,(H47-H35)/H35) -> 0 | K150: =IF(K35=0,0,(K47-K35)/K35) -> 0 | N150: =IF(N35=0,0,(N47-N35)/N35) -> 0 | Q150: =IF(Q35=0,0,(Q47-Q35)/Q35) -> 0 | R150: =IF(R35=0,0,(R47-R35)/R35) -> 0 | U150: =IF(U35=0,0,(U47-U35)/U35) -> 0 | X150: =IF(X35=0,0,(X47-X35)/X35) -> 0
C151: Принимаемая в расчет динамика полезного отпуска
C152: 2014 год | G152: =IF(G148<-0.05,-0.05,G148) -> 0 | H152: 0 | K152: =IF(K148<-0.05,-0.05,K148) -> 0 | N152: =IF(N148<-0.05,-0.05,N148) -> 0 | Q152: =IF(Q148<-0.05,-0.05,Q148) -> 0 | R152: 0 | U152: =IF(U148<-0.05,-0.05,U148) -> 0 | X152: =IF(X148<-0.05,-0.05,X148) -> 0
C153: 2015 год | G153: 0 | H153: 0 | K153: =IF(K149<-0.05,-0.05,K149) -> 0 | N153: =IF(N149<-0.05,-0.05,N149) -> 0 | Q153: 0 | R153: 0 | U153: =IF(U149<-0.05,-0.05,U149) -> 0 | X153: =IF(X149<-0.05,-0.05,X149) -> 0
C154: 2016 год | G154: 0 | H154: 0 | K154: =IF(K150<-0.05,-0.05,K150) -> 0 | N154: =IF(N150<-0.05,-0.05,N150) -> 0 | Q154: 0 | R154: 0 | U154: =IF(U150<-0.05,-0.05,U150) -> 0 | X154: =IF(X150<-0.05,-0.05,X150) -> 0
C155: в среднем за три года | G155: =SUM(G152:G154)/3 -> 0 | H155: =SUM(H152:H154)/3 -> 0 | K155: =SUM(K152:K154)/3 -> 0 | N155: =SUM(N152:N154)/3 -> 0 | Q155: =SUM(Q152:Q154)/3 -> 0 | R155: =SUM(R152:R154)/3 -> 0 | U155: =SUM(U152:U154)/3 -> 0 | X155: =SUM(X152:X154)/3 -> 0
C156: Расчетный объем сточной воды, принятой от новых абонентов, за вычетом объема стоков от абонентами, водоотведение от которых прекращено, м3 | G156: =G157-G158 -> 0 | H156: 0 | I156: 0 | J156: 0 | K156: 0 | L156: 0 | M156: 0 | N156: 0 | O156: 0 | P156: 0 | Q156: 0 | R156: 0 | S156: 0 | T156: 0 | U156: 0 | V156: 0 | W156: 0 | X156: 0 | Y156: 0 | Z156: 0
C157: - объем сточной воды, принятых от новых абонентов, подключившимся к централизованной системе водоотведения | G157: =K157+N157+Q157+H157 -> 0 | H157: =I157+J157 -> 0 | K157: =L157+M157 -> 0 | N157: =O157+P157 -> 0 | Q157: =R157+U157+X157 -> 0 | R157: =S157+T157 -> 0 | U157: =V157+W157 -> 0 | X157: =Y157+Z157 -> 0
C158: - объем стоков от абонентов, водоотведение от которых прекращено | G158: =K158+N158+Q158+H158 -> 0 | H158: =I158+J158 -> 0 | K158: =L158+M158 -> 0 | N158: =O158+P158 -> 0 | Q158: =R158+U158+X158 -> 0 | R158: =S158+T158 -> 0 | U158: =V158+W158 -> 0 | X158: =Y158+Z158 -> 0
C159: Планируемое изменение объемов воды в связи с изменением нормативов в 2017 году, м3 | G159: =G160-G161 -> 0 | H159: 0 | I159: 0 | J159: 0 | K159: 0 | L159: 0 | M159: 0 | N159: 0 | O159: 0 | P159: 0 | Q159: 0 | R159: 0 | S159: 0 | T159: 0 | U159: 0 | V159: 0 | W159: 0 | X159: 0 | Y159: 0 | Z159: 0
C160: - расчетный объем стоков, принимаемых по старым нормативам | G160: =K160+N160+Q160+H160 -> 0 | H160: =I160+J160 -> 0 | K160: =L160+M160 -> 0 | N160: =O160+P160 -> 0 | Q160: =R160+U160+X160 -> 0 | R160: =S160+T160 -> 0 | U160: =V160+W160 -> 0 | X160: =Y160+Z160 -> 0
C161: - расчетный объем стоков, принимаемых по новым нормативам | G161: =K161+N161+Q161+H161 -> 0 | H161: =I161+J161 -> 0 | K161: =L161+M161 -> 0 | N161: =O161+P161 -> 0 | Q161: =R161+U161+X161 -> 0 | R161: =S161+T161 -> 0 | U161: =V161+W161 -> 0 | X161: =Y161+Z161 -> 0
C162: Итого объем стоков, принятых от абонентов | G162: =G47*(1+G155)^2+G156+G159 -> 0 | H162: =H47*(1+H155)^2+H156+H159 -> 0 | K162: =K47*(1+K155)^2+K156+K159 -> 0 | N162: =N47*(1+N155)^2+N156+N159 -> 0 | Q162: =Q47*(1+Q155)^2+Q156+Q159 -> 0 | R162: =R47*(1+R155)^2+R156+R159 -> 0 | U162: =U47*(1+U155)^2+U156+U159 -> 0 | X162: =X47*(1+X155)^2+X156+X159 -> 0
G163: =K162+N162+Q162+H162 -> 0

Sheet НП16 (hidden)
A1: Баланс водоотведения
A7: Наименование статей
B8: 2016
B9: ДТР ТО
B10: утв
B11: год
A12: 1. Прием сточных вод
A13: технологические нужды предприятия
A14: поверхностные сточные воды
A15: от абонентов, которым установлены тарифы
A16: от других абонентов
A17: Объем реализации сточных вод
A18: жидкие бытовые отходы
A19: по категориям потребителей, в том числе:
A20: бюджет
A21: население
A22: прочие
A23: от других организаций, осуществляющих водоотведение
A24: организация 1
A25: организация 2
A26: организация n
A27: от собственных абонентов
A28: Неучтенный приток сточных вод
A29: Организованный приток
A30: Неорганизованный приток
A31: 2. Объем транспортируемых сточных вод
A32: Пропущено через cобственные очистные сооружения
A33: Передано сточных вод другим организациям
A34: 3. Объем сточных вод, поступивших на очистные сооружения
A35: Объем сточных вод, прошедших очистку
A36: Сбросы сточных вод в пределах нормативов и лимитов
A37: 4. Объем обезвоженного осадка сточных вод
A38: 5. Темп изменения объема отводимых сточных вод
A39: 6. Объем потребленной электроэнергии, кВт*ч
A40: Удельный расход электроэнергии , кВт*ч/куб.м
A41: Удельное потребление воды населением, куб.м./ч
A42: Объем отведенных стоков на 1 человека, куб.м/чел в мес
A43: Присоединенная мощность потребителей товаров (услуг) по холодному водоснабжению, куб м/ч
A44: Справочно:
A45: Численность населения, получающего услуги организации, чел

Sheet НП 2018-2020
A1: Баланс водоотведения
A3: =Титульный!B9 -> 
A4: =Титульный!B23 -> 0
A6: Район | B6: =Титульный!B5 -> 0 | E6: МО | F6: =Титульный!B6 -> 0
K7: тыс.куб.м
A8: № п/п | B8: Наименование статей | C8: ед.изм. | D8: 2014 | E8: =D8+1 -> 2015 | F8: =E8+1 -> 2016 | G8: 2016 | H8: =G8+1 -> 2017 | I8: =H8+1 -> 2018 | J8: =I8+1 -> 2019 | K8: =J8+1 -> 2020 | L8: Регулируемый период | N8: Регулируемый период | P8: Регулируемый период
L9: =I8 -> 2018 | N9: =L9+1 -> 2019 | P9: =N9+1 -> 2020
D10: факт по данным организации | E10: факт по данным организации | F10: план ДТР ТО | G10: факт по данным организации | H10: утв.ДТР ТО | I10: план организации | J10: план организации | K10: план организации | L10: план эксперта ДТР ТО | N10: план эксперта ДТР ТО | P10: план эксперта ДТР ТО
L11: всего | M11: темп роста к пред.году | N11: всего | O11: темп роста к пред.году | P11: всего | Q11: темп роста к пред.году
A13: I. | B13: Прием сточных вод | C13: тыс.куб.м. | D13: =D14+D15+D17 -> 0 | E13: =E14+E15+E17 -> 0 | F13: 0 | G13: 0 | H13: 0 | I13: 0 | J13: 0 | K13: 0 | L13: 0 | M13: =IF(H13=0,0,L13/H13*100) -> 0 | N13: 0 | O13: 0 | P13: 0 | Q13: 0
A14: 1. | B14: технологические нужды предприятия | C14: тыс.куб.м. | D14: ='балансы по МО'!$E23/1000 -> 0 | E14: ='балансы по МО'!$E35/1000 -> 0 | F14: =НП16!B13 -> 0 | G14: ='балансы по МО'!$E47/1000 -> 0 | H14: ='балансы по МО'!$E59/1000 -> 0 | I14: ='балансы по МО'!$E71/1000 -> 0 | J14: ='балансы по МО'!$E83/1000 -> 0 | K14: ='балансы по МО'!$E95/1000 -> 0 | L14: ='балансы по МО'!$E107/1000 -> 0 | M14: 0 | N14: ='балансы по МО'!$E119/1000 -> 0 | O14: 0 | P14: ='балансы по МО'!$E131/1000 -> 0 | Q14: 0
A15: 2. | B15: неучтенный приток, поверхностные сточные воды | C15: тыс.куб.м. | D15: ='балансы по МО'!$F23/1000 -> 0 | E15: ='балансы по МО'!$F35/1000 -> 0 | F15: =НП16!B14+НП16!B28 -> 0 | G15: ='балансы по МО'!$F47/1000 -> 0 | H15: ='балансы по МО'!$F59/1000 -> 0 | I15: ='балансы по МО'!$F71/1000 -> 0 | J15: ='балансы по МО'!$F83/1000 -> 0 | K15: ='балансы по МО'!$F95/1000 -> 0 | L15: ='балансы по МО'!$F107/1000 -> 0 | M15: 0 | N15: ='балансы по МО'!$F119/1000 -> 0 | O15: 0 | P15: ='балансы по МО'!$F131/1000 -> 0 | Q15: 0
M16: 0 | O16: 0 | Q16: 0
A17: 3. | B17: Объем реализации сточных вод | C17: тыс.куб.м. | D17: =D18+D19+D20+D21+D22+D26 -> 0 | E17: =E18+E19+E20+E21+E22+E26 -> 0 | F17: 0 | G17: 0 | H17: 0 | I17: 0 | J17: 0 | K17: 0 | L17: 0 | M17: 0 | N17: 0 | O17: 0 | P17: 0 | Q17: 0
A18: 3.1. | B18: жидкие бытовые отходы | C18: тыс.куб.м. | D18: ='балансы по МО'!$H23/1000 -> 0 | E18: ='балансы по МО'!$H35/1000 -> 0 | F18: =НП16!B18 -> 0 | G18: ='балансы по МО'!$H47/1000 -> 0 | H18: ='балансы по МО'!$H59/1000 -> 0 | I18: ='балансы по МО'!$H71/1000 -> 0 | J18: ='балансы по МО'!$H83/1000 -> 0 | K18: ='балансы по МО'!$H95/1000 -> 0 | L18: ='балансы по МО'!$H107/1000 -> 0 | M18: 0 | N18: ='балансы по МО'!$H119/1000 -> 0 | O18: 0 | P18: ='балансы по МО'!$H131/1000 -> 0 | Q18: 0
A19: 3.2. | B19: бюджет | C19: тыс.куб.м. | D19: ='балансы по МО'!$R23/1000 -> 0 | E19: ='балансы по МО'!$R35/1000 -> 0 | F19: =НП16!B20 -> 0 | G19: ='балансы по МО'!$R47/1000 -> 0 | H19: ='балансы по МО'!$R59/1000 -> 0 | I19: ='балансы по МО'!$R71/1000 -> 0 | J19: ='балансы по МО'!$R83/1000 -> 0 | K19: ='балансы по МО'!$R95/1000 -> 0 | L19: ='балансы по МО'!$R107/1000 -> 0 | M19: 0 | N19: ='балансы по МО'!$R119/1000 -> 0 | O19: 0 | P19: ='балансы по МО'!$R131/1000 -> 0 | Q19: 0
A20: 3.3. | B20: население | C20: тыс.куб.м. | D20: ='балансы по МО'!$U23/1000 -> 0 | E20: ='балансы по МО'!$U35/1000 -> 0 | F20: =НП16!B21 -> 0 | G20: ='балансы по МО'!$U47/1000 -> 0 | H20: ='балансы по МО'!$U59/1000 -> 0 | I20: ='балансы по МО'!$U71/1000 -> 0 | J20: ='балансы по МО'!$U83/1000 -> 0 | K20: ='балансы по МО'!$U95/1000 -> 0 | L20: ='балансы по МО'!$U107/1000 -> 0 | M20: 0 | N20: ='балансы по МО'!$U119/1000 -> 0 | O20: 0 | P20: ='балансы по МО'!$U131/1000 -> 0 | Q20: 0
A21: 3.4. | B21: прочие (кроме организаций, осуществляющих водоотведение) | C21: тыс.куб.м. | D21: ='балансы по МО'!$X23/1000 -> 0 | E21: ='балансы по МО'!$X35/1000 -> 0 | F21: =НП16!B22 -> 0 | G21: ='балансы по МО'!$X47/1000 -> 0 | H21: ='балансы по МО'!$X59/1000 -> 0 | I21: ='балансы по МО'!$X71/1000 -> 0 | J21: ='балансы по МО'!$X83/1000 -> 0 | K21: ='балансы по МО'!$X95/1000 -> 0 | L21: ='балансы по МО'!$X107/1000 -> 0 | M21: 0 | N21: ='балансы по МО'!$X119/1000 -> 0 | O21: 0 | P21: ='балансы по МО'!$X131/1000 -> 0 | Q21: 0
A22: 3.5. | B22: от других организаций, осуществляющих водоотведение | C22: тыс.куб.м. | D22: ='балансы по МО'!$N23/1000 -> 0 | E22: ='балансы по МО'!$N35/1000 -> 0 | F22: =НП16!B23 -> 0 | G22: ='балансы по МО'!$N47/1000 -> 0 | H22: ='балансы по МО'!$N59/1000 -> 0 | I22: ='балансы по МО'!$N71/1000 -> 0 | J22: ='балансы по МО'!$N83/1000 -> 0 | K22: ='балансы по МО'!$N95/1000 -> 0 | L22: ='балансы по МО'!$N107/1000 -> 0 | M22: 0 | N22: ='балансы по МО'!$N119/1000 -> 0 | O22: 0 | P22: ='балансы по МО'!$N131/1000 -> 0 | Q22: 0
C23: тыс.куб.м. | F23: =НП16!B24 -> 0 | M23: 0 | O23: 0 | Q23: 0
C24: тыс.куб.м. | F24: =НП16!B25 -> 0 | M24: 0 | O24: 0 | Q24: 0
C25: тыс.куб.м. | F25: =НП16!B26 -> 0 | M25: 0 | O25: 0 | Q25: 0
A26: 3.6. | B26: от собственных абонентов | C26: тыс.куб.м. | D26: ='балансы по МО'!$K23/1000 -> 0 | E26: ='балансы по МО'!$K35/1000 -> 0 | F26: =НП16!B27 -> 0 | G26: ='балансы по МО'!$K47/1000 -> 0 | H26: ='балансы по МО'!$K59/1000 -> 0 | I26: ='балансы по МО'!$K71/1000 -> 0 | J26: ='балансы по МО'!$K83/1000 -> 0 | K26: ='балансы по МО'!$K95/1000 -> 0 | L26: ='балансы по МО'!$K107/1000 -> 0 | M26: 0 | N26: ='балансы по МО'!$K119/1000 -> 0 | O26: 0 | P26: ='балансы по МО'!$K131/1000 -> 0 | Q26: 0
A27: II. | B27: Объем транспортируемых сточных вод | C27: тыс.куб.м. | D27: =D13 -> 0 | E27: =E13 -> 0 | F27: =НП16!B31 -> 0 | G27: 0 | H27: =H13 -> 0 | I27: 0 | J27: 0 | K27: 0 | L27: 0 | M27: 0 | N27: 0 | O27: 0 | P27: 0 | Q27: 0
A28: III. | B28: Пропущено через cобственные очистные сооружения | C28: тыс.куб.м. | D28: ='балансы по МО'!$AB23/1000 -> 0 | E28: ='балансы по МО'!$AB35/1000 -> 0 | F28: =НП16!B32 -> 0 | G28: ='балансы по МО'!$AB47/1000 -> 0 | H28: ='балансы по МО'!$AB59/1000 -> 0 | I28: ='балансы по МО'!$AB71/1000 -> 0 | J28: ='балансы по МО'!$AB83/1000 -> 0 | K28: ='балансы по МО'!$AB95/1000 -> 0 | L28: ='балансы по МО'!$AB107/1000 -> 0 | M28: 0 | N28: ='балансы по МО'!$AB119/1000 -> 0 | O28: 0 | P28: ='балансы по МО'!$AB131/1000 -> 0 | Q28: 0
A29: IV. | B29: Передано сточных вод другим организациям | C29: тыс.куб.м. | D29: ='балансы по МО'!$AC23/1000 -> 0 | E29: ='балансы по МО'!$AC35/1000 -> 0 | F29: =НП16!B33 -> 0 | G29: ='балансы по МО'!$AC47/1000 -> 0 | H29: ='балансы по МО'!$AC59/1000 -> 0 | I29: ='балансы по МО'!$AC71/1000 -> 0 | J29: ='балансы по МО'!$AC83/1000 -> 0 | K29: ='балансы по МО'!$AC95/1000 -> 0 | L29: ='балансы по МО'!$AC107/1000 -> 0 | M29: =IF(H29=0,0,L29/H29*100) -> 0 | N29: ='балансы по МО'!$AC119/1000 -> 0 | O29: 0 | P29: ='балансы по МО'!$AC131/1000 -> 0 | Q29: 0
A30: V. | B30: Сбросы сточных вод без очистки | C30: тыс.куб.м. | D30: =D27-D28-D29 -> 0 | E30: =E27-E28-E29 -> 0 | F30: 0 | G30: 0 | H30: 0 | I30: 0 | J30: 0 | K30: 0 | L30: 0 | M30: 0 | N30: 0 | O30: 0 | P30: 0 | Q30: 0
A31: 4. | B31: Объем реализации услуг водоотведения по приборам учета | C31: % | D31: =IF(D17=0,0,('балансы по МО'!$I23+'балансы по МО'!$L23+'балансы по МО'!$O23+'балансы по МО'!$S23+'балансы по МО'!$V23+'балансы по МО'!$Y23)*0.001/D17*100) -> 0 | E31: =IF(E17=0,0,('балансы по МО'!$I35+'балансы по МО'!$L35+'балансы по МО'!$O35+'балансы по МО'!$S35+'балансы по МО'!$V35+'балансы по МО'!$Y35)*0.001/E17*100) -> 0 | G31: =IF(G17=0,0,('балансы по МО'!$I47+'балансы по МО'!$L47+'балансы по МО'!$O47+'балансы по МО'!$S47+'балансы по МО'!$V47+'балансы по МО'!$Y47)*0.001/G17*100) -> 0 | H31: =IF(H17=0,0,('балансы по МО'!$I59+'балансы по МО'!$L59+'балансы по МО'!$O59+'балансы по МО'!$S59+'балансы по МО'!$V59+'балансы по МО'!$Y59)*0.001/H17*100) -> 0 | I31: =IF(I17=0,0,('балансы по МО'!$I71+'балансы по МО'!$L71+'балансы по МО'!$O71+'балансы по МО'!$S71+'балансы по МО'!$V71+'балансы по МО'!$Y71)*0.001/I17*100) -> 0 | J31: =IF(J17=0,0,('балансы по МО'!$I83+'балансы по МО'!$L83+'балансы по МО'!$O83+'балансы по МО'!$S83+'балансы по МО'!$V83+'балансы по МО'!$Y83)*0.001/J17*100) -> 0 | K31: =IF(K17=0,0,('балансы по МО'!$I95+'балансы по МО'!$L95+'балансы по МО'!$O95+'балансы по МО'!$S95+'балансы по МО'!$V95+'балансы по МО'!$Y95)*0.001/K17*100) -> 0 | L31: =IF(L17=0,0,('балансы по МО'!$I107+'балансы по МО'!$L107+'балансы по МО'!$O107+'балансы по МО'!$S107+'балансы по МО'!$V107+'балансы по МО'!$Y107)*0.001/L17*100) -> 0 | M31: 0 | N31: =IF(N17=0,0,('балансы по МО'!$I119+'балансы по МО'!$L119+'балансы по МО'!$O119+'балансы по МО'!$S119+'балансы по МО'!$V119+'балансы по МО'!$Y119)*0.001/N17*100) -> 0 | O31: 0 | P31: =IF(P17=0,0,('балансы по МО'!$I131+'балансы по МО'!$L131+'балансы по МО'!$O131+'балансы по МО'!$S131+'балансы по МО'!$V131+'балансы по МО'!$Y131)*0.001/P17*100) -> 0 | Q31: 0
A32: 5. | B32: Объем потребленной электроэнергии | C32: тыс.кВтч | D32: ='свод потребности объемов эл.эн'!D12+'свод потребности объемов эл.эн'!D20 -> 0 | E32: ='свод потребности объемов эл.эн'!E12+'свод потребности объемов эл.эн'!E20 -> 0 | F32: =НП16!B39 -> 0 | G32: ='свод потребности объемов эл.эн'!G12+'свод потребности объемов эл.эн'!G20 -> 0 | H32: ='свод потребности объемов эл.эн'!H12+'свод потребности объемов эл.эн'!H20 -> 0 | I32: ='свод потребности объемов эл.эн'!I12+'свод потребности объемов эл.эн'!I20 -> 0 | J32: ='свод потребности объемов эл.эн'!J12+'свод потребности объемов эл.эн'!J20 -> 0 | K32: ='свод потребности объемов эл.эн'!K12+'свод потребности объемов эл.эн'!K20 -> 0 | L32: ='свод потребности объемов эл.эн'!L12 -> 0 | M32: 0 | N32: ='свод потребности объемов эл.эн'!Q12 -> 0 | O32: 0 | P32: ='свод потребности объемов эл.эн'!V12 -> 0 | Q32: 0
A33: 6. | B33: Удельный расход электроэнергии на реализацию стоков | C33: кВтч/куб.м. | D33: =IF(D17=0,0,D32/D17/1000) -> 0 | E33: 0 | F33: 0 | G33: 0 | H33: 0 | I33: 0 | J33: 0 | K33: 0 | L33: 0 | M33: 0 | N33: =IF(N17=0,0,N32/N17/1000) -> 0 | O33: 0 | P33: =IF(P17=0,0,P32/P17/1000) -> 0 | Q33: 0
A34: 7. | B34: Объем отведенных стоков на 1 человека в мес | C34: куб.м/чел в мес. | D34: =IF((12*D37)=0,0,D20/(12*D37)) -> 0 | E34: 0 | F34: 0 | G34: 0 | H34: 0 | I34: 0 | J34: 0 | K34: 0 | L34: 0 | M34: 0 | N34: =IF((12*N37)=0,0,N20/(12*N37)) -> 0 | O34: 0 | P34: =IF((12*P37)=0,0,P20/(12*P37)) -> 0 | Q34: 0
A35: 8. | B35: Присоединенная мощность потребителей товаров (услуг) | C35: куб.м/час | D35: =D17/365/24 -> 0 | E35: =E17/365/24 -> 0 | F35: 0 | G35: 0 | H35: =H17/365/24 -> 0 | I35: 0 | J35: 0 | K35: 0 | L35: 0 | M35: 0 | N35: 0 | O35: 0 | P35: 0 | Q35: 0
B36: Справочно: | M36: 0 | O36: 0 | Q36: 0
A37: 9. | B37: Численность населения, получающего услуги водоотведения, чел | C37: чел | F37: =НП16!B45 -> 0 | M37: 0 | O37: 0 | Q37: 0

Sheet Техн характер системы
A1: Cистема водоотведения
A3: =Титульный!B9 -> 
A5: =Титульный!B23 -> 0
A7: Район | B7: =Титульный!B5 -> 0 | F7: МО | G7: =Титульный!B6 -> 0
A8: I. Имущество, эксплуатируемое на праве собственности, аренды и т.д.
A9: Наименование показателя | B9: Ед.изм | C9: Количество
A12: Оборудование
A13: Приемная камера | B13: шт.
A14: Решетки | B14: шт.
A15: Сооружения по обработке осадка | B15: шт.
A16: Песколовки | B16: шт.
A17: Аэротенки | B17: шт.
A18: Биофильтры | B18: шт.
A19: Отстойники | B19: шт.
A20: Другие | B20: шт.
A21: Вид очистки сточных вод:
A22: Механическая | B22: м3
A23: Биологическая | B23: м3
A24: Физико-химическая | B24: м3
A25: Дезинфекция | B25: м3
A27: Производительность | B27: м3/час
A28: Время работы в году | B28: час
A29: Годовая производительность | B29: м3 | C29: =C27*C28 -> 0
A30: Эффективность очистки сточных вод | B30: %
A32: Основное оборудование канализационных насосных станций и очистных сооружений
A34: Наименование показателя | B34: Количество одновременно в работе | C34: Марка оборудования (насоса) | D34: Производительность оборудования (насоса), куб.м./час | E34: Продолжительность работы в году, час | F34: Мощность оборудования (насоса), кВт | G34: Отопление (обогрев) объектов
G35: ТЭН | I35: Тепловая энергия от котельных
G36: количество, шт | H36: Суммарная мощность, кВт | I36: Объем, Гкал | J36: Наименование организации-поставщика тепловой энергии
A37: Станции очистки сточных вод
A38: Насосное оборудование
A47: Оборудование очистных сооружений
A57: Оборудование канализационных насосных станций
A82: СЕТИ | B82: период регулирования, год | L82: СЕТИ | M82: =B82 -> период регулирования, год
B83: 2015 | C83: 2016 | E83: 2017 | F83: 2018 | M83: =C83 -> 2016 | O83: =E83 -> 2017 | P83: =F83 -> 2018
B84: факт организации | C84: план (утв.) | D84: факт на 31.12.2016 г | E84: план (утв) | F84: план организации | M84: утв.план | N84: факт на 31.12.2016 | O84: утв.план | P84: план эксперта
A85: Протяженность канализационных сетей всего, м | B85: =SUM(B86:B100) -> 0 | C85: =SUM(C86:C100) -> 0 | D85: =SUM(D86:D100) -> 0 | E85: =SUM(E86:E100) -> 0 | F85: =SUM(F86:F100) -> 0 | L85: Протяженность канализационных сетей всего, м | M85: =SUM(M86:M100) -> 0 | N85: =SUM(N86:N100) -> 0 | O85: =SUM(O86:O100) -> 0 | P85: =SUM(P86:P100) -> 0
A86: в том числе диаметром | L86: в том числе диаметром
A87: диаметр до 50 мм | L87: диаметр до 50 мм
A88: диаметр от 50 до 100 мм | L88: диаметр от 50 до 100 мм
A89: диаметр от 100 до 150 мм | L89: диаметр от 100 до 150 мм
A90: диаметр от 150 до 200 мм | L90: диаметр от 150 до 200 мм
A91: диаметр от 200 до 300 мм | L91: диаметр от 200 до 300 мм
A92: диаметр от 300 до 400 мм | L92: диаметр от 300 до 400 мм
A93: диаметр от 400 до 500 мм | L93: диаметр от 400 до 500 мм
A94: диаметр от 500 до 600 мм | L94: диаметр от 500 до 600 мм
A95: диаметр от 600 до 700 мм | L95: диаметр от 600 до 700 мм
A96: диаметр от 700 до 800 мм | L96: диаметр от 700 до 800 мм
A97: диаметр от 800 до 900 мм | L97: диаметр от 800 до 900 мм
A98: диаметр от 900 до 1000 мм | L98: диаметр от 900 до 1000 мм
A99: диаметр от 1000 до 1200 мм | L99: диаметр от 1000 до 1200 мм
A100: диаметр свыше 1200 мм | L100: диаметр свыше 1200 мм
A101: Протяженность канализационных сетей, нуждающихся в замене всего, м | B101: =SUM(B102:B116) -> 0 | C101: =SUM(C102:C116) -> 0 | D101: =SUM(D102:D116) -> 0 | E101: =SUM(E102:E116) -> 0 | F101: =SUM(F102:F116) -> 0 | L101: Протяженность канализационных сетей, нуждающихся в замене всего, м | M101: =SUM(M102:M116) -> 0 | N101: =SUM(N102:N116) -> 0 | O101: =SUM(O102:O116) -> 0 | P101: =SUM(P102:P116) -> 0
A102: в том числе диаметром | L102: в том числе диаметром
A103: диаметр до 50 мм | L103: диаметр до 50 мм
A104: диаметр от 50 до 100 мм | L104: диаметр от 50 до 100 мм
A105: диаметр от 100 до 150 мм | L105: диаметр от 100 до 150 мм
A106: диаметр от 150 до 200 мм | L106: диаметр от 150 до 200 мм
A107: диаметр от 200 до 300 мм | L107: диаметр от 200 до 300 мм
A108: диаметр от 300 до 400 мм | L108: диаметр от 300 до 400 мм
A109: диаметр от 400 до 500 мм | L109: диаметр от 400 до 500 мм
A110: диаметр от 500 до 600 мм | L110: диаметр от 500 до 600 мм
A111: диаметр от 600 до 700 мм | L111: диаметр от 600 до 700 мм
A112: диаметр от 700 до 800 мм | L112: диаметр от 700 до 800 мм
A113: диаметр от 800 до 900 мм | L113: диаметр от 800 до 900 мм
A114: диаметр от 900 до 1000 мм | L114: диаметр от 900 до 1000 мм
A115: диаметр от 1000 до 1200 мм | L115: диаметр от 1000 до 1200 мм
A116: диаметр свыше 1200 мм | L116: диаметр свыше 1200 мм
A117: Удельный вес сетей, нуждающихся в замене, % | B117: =IF(B85=0,0,B101/B85*100) -> 0 | C117: =IF(C85=0,0,C101/C85*100) -> 0 | D117: =IF(D85=0,0,D101/D85*100) -> 0 | E117: =IF(E85=0,0,E101/E85*100) -> 0 | F117: =IF(F85=0,0,F101/F85*100) -> 0 | L117: Удельный вес сетей, нуждающихся в замене, % | M117: =IF(M85=0,0,M101/M85*100) -> 0 | N117: =IF(N85=0,0,N101/N85*100) -> 0 | O117: =IF(O85=0,0,O101/O85*100) -> 0 | P117: =IF(P85=0,0,P101/P85*100) -> 0
A120: II. Бесхозяйное имущество
A122: Наименование показателя | B122: Ед.изм | C122: Количество
A125: Оборудование
A126: Приемная камера | B126: шт.
A127: Решетки | B127: шт.
A128: Сооружения по обработке осадка | B128: шт.
A129: Песколовки | B129: шт.
A130: Аэротенки | B130: шт.
A131: Биофильтры | B131: шт.
A132: Отстойники | B132: шт.
A133: Другие | B133: шт.
A134: Вид очистки сточных вод:
A135: Механическая | B135: м3
A136: Биологическая | B136: м3
A137: Физико-химическая | B137: м3
A138: Дезинфекция | B138: м3
A140: Производительность | B140: м3/час
A141: Время работы в году | B141: час
A142: Годовая производительность | B142: м3 | C142: =C140*C141 -> 0
A143: Эффективность очистки сточных вод | B143: %
A145: Основное оборудование канализационных насосных станций и очистных сооружений
A147: Наименование показателя | B147: Количество одновременно в работе | C147: Марка оборудования (насоса) | D147: Производительность оборудования (насоса), куб.м./час | E147: Продолжительность работы в году, час | F147: Мощность оборудования (насоса), кВт | G147: Отопление (обогрев) объектов
G148: ТЭН | I148: Тепловая энергия от котельных
G149: количество, шт | H149: Суммарная мощность, кВт | I149: Объем, Гкал | J149: Наименование организации-поставщика тепловой энергии
A150: Станции очистки сточных вод
A151: Насосное оборудование
A160: Оборудование очистных сооружений
A170: Оборудование канализационных насосных станций
A195: СЕТИ | B195: период регулирования, год | L195: СЕТИ | M195: =B195 -> период регулирования, год
B196: 2015 | C196: 2016 | E196: 2017 | F196: 2018 | M196: =C196 -> 2016 | O196: =E196 -> 2017 | P196: =F196 -> 2018
B197: факт организации | C197: план (утв.) | D197: факт на 31.12.2016 г | E197: план (утв) | F197: план организации | M197: утв.план | N197: факт на 31.12.2016 | O197: утв.план | P197: план эксперта
A198: Протяженность канализационных сетей всего, м | B198: =SUM(B199:B213) -> 0 | C198: =SUM(C199:C213) -> 0 | D198: =SUM(D199:D213) -> 0 | E198: =SUM(E199:E213) -> 0 | F198: =SUM(F199:F213) -> 0 | L198: Протяженность канализационных сетей всего, м | M198: =SUM(M199:M213) -> 0 | N198: =SUM(N199:N213) -> 0 | O198: =SUM(O199:O213) -> 0 | P198: =SUM(P199:P213) -> 0
A199: в том числе диаметром | L199: в том числе диаметром
A200: диаметр до 50 мм | L200: диаметр до 50 мм
A201: диаметр от 50 до 100 мм | L201: диаметр от 50 до 100 мм
A202: диаметр от 100 до 150 мм | L202: диаметр от 100 до 150 мм
A203: диаметр от 150 до 200 мм | L203: диаметр от 150 до 200 мм
A204: диаметр от 200 до 300 мм | L204: диаметр от 200 до 300 мм
A205: диаметр от 300 до 400 мм | L205: диаметр от 300 до 400 мм
A206: диаметр от 400 до 500 мм | L206: диаметр от 400 до 500 мм
A207: диаметр от 500 до 600 мм | L207: диаметр от 500 до 600 мм
A208: диаметр от 600 до 700 мм | L208: диаметр от 600 до 700 мм
A209: диаметр от 700 до 800 мм | L209: диаметр от 700 до 800 мм
A210: диаметр от 800 до 900 мм | L210: диаметр от 800 до 900 мм
A211: диаметр от 900 до 1000 мм | L211: диаметр от 900 до 1000 мм
A212: диаметр от 1000 до 1200 мм | L212: диаметр от 1000 до 1200 мм
A213: диаметр свыше 1200 мм | L213: диаметр свыше 1200 мм
A214: Протяженность канализационных сетей, нуждающихся в замене всего, м | B214: =SUM(B215:B229) -> 0 | C214: =SUM(C215:C229) -> 0 | D214: =SUM(D215:D229) -> 0 | E214: =SUM(E215:E229) -> 0 | F214: =SUM(F215:F229) -> 0 | L214: Протяженность канализационных сетей, нуждающихся в замене всего, м | M214: =SUM(M215:M229) -> 0 | N214: =SUM(N215:N229) -> 0 | O214: =SUM(O215:O229) -> 0 | P214: =SUM(P215:P229) -> 0
A215: в том числе диаметром | L215: в том числе диаметром
A216: диаметр до 50 мм | L216: диаметр до 50 мм
A217: диаметр от 50 до 100 мм | L217: диаметр от 50 до 100 мм
A218: диаметр от 100 до 150 мм | L218: диаметр от 100 до 150 мм
A219: диаметр от 150 до 200 мм | L219: диаметр от 150 до 200 мм
A220: диаметр от 200 до 300 мм | L220: диаметр от 200 до 300 мм
A221: диаметр от 300 до 400 мм | L221: диаметр от 300 до 400 мм
A222: диаметр от 400 до 500 мм | L222: диаметр от 400 до 500 мм
A223: диаметр от 500 до 600 мм | L223: диаметр от 500 до 600 мм
A224: диаметр от 600 до 700 мм | L224: диаметр от 600 до 700 мм
A225: диаметр от 700 до 800 мм | L225: диаметр от 700 до 800 мм
A226: диаметр от 800 до 900 мм | L226: диаметр от 800 до 900 мм
A227: диаметр от 900 до 1000 мм | L227: диаметр от 900 до 1000 мм
A228: диаметр от 1000 до 1200 мм | L228: диаметр от 1000 до 1200 мм
A229: диаметр свыше 1200 мм | L229: диаметр свыше 1200 мм
A230: Удельный вес сетей, нуждающихся в замене, % | B230: =IF(B198=0,0,B214/B198*100) -> 0 | C230: =IF(C198=0,0,C214/C198*100) -> 0 | D230: =IF(D198=0,0,D214/D198*100) -> 0 | E230: =IF(E198=0,0,E214/E198*100) -> 0 | F230: =IF(F198=0,0,F214/F198*100) -> 0 | L230: Удельный вес сетей, нуждающихся в замене, % | M230: =IF(M198=0,0,M214/M198*100) -> 0 | N230: =IF(N198=0,0,N214/N198*100) -> 0 | O230: =IF(O198=0,0,O214/O198*100) -> 0 | P230: =IF(P198=0,0,P214/P198*100) -> 0

Sheet свод потребности объемов эл.эн
A1: Расчет электрической энергии на производство и реализацию услуг водоотведения
A2: =Титульный!B9 -> 
A3: =Титульный!B23 -> 0
A5: Район | B5: =Титульный!B5 -> 0 | F5: МО | G5: =Титульный!B6 -> 0
A6: № п/п | B6: Наименование направления расхода электрической энергии | C6: Ед.изм. | D6: ='НП 2018-2020'!D8 -> 2014 | E6: =D6+1 -> 2015 | F6: 2016 | G6: 2016 | H6: 2017 | I6: 2018 | J6: =I6+1 -> 2019 | K6: =J6+1 -> 2020 | L6: Период регулирования | Q6: Период регулирования | V6: Период регулирования
L7: 2018 | Q7: =L7+1 -> 2019 | V7: =Q7+1 -> 2020
L8: предложение эксперта | Q8: предложение эксперта | V8: предложение эксперта
D9: ='НП 2018-2020'!D10 -> факт по данным организации | E9: ='НП 2018-2020'!E10 -> факт по данным организации | F9: ='НП 2018-2020'!F10 -> план ДТР ТО | G9: ='НП 2018-2020'!G10 -> факт по данным организации | H9: утвержд. ДТР ТО | I9: ='НП 2018-2020'!I10 -> план организации | J9: =I9 -> план организации | K9: =J9 -> план организации | L9: всего | M9: в том числе по уровням напряжения | Q9: всего | R9: в том числе по уровням напряжения | V9: всего | W9: в том числе по уровням напряжения
M10: ВН | N10: СН1 | O10: СН2 | P10: НН | R10: ВН | S10: СН1 | T10: СН2 | U10: НН | W10: ВН | X10: СН1 | Y10: СН2 | Z10: НН
B11: Объем покупной электроэнергии по одноставочному тарифу
A12: 1 | B12: Итого объем электроэнергии | C12: кВт.ч | D12: =SUM(D13:D14) -> 0 | E12: 0 | F12: 0 | G12: 0 | H12: 0 | I12: 0 | J12: 0 | K12: 0 | L12: 0 | M12: 0 | N12: 0 | O12: 0 | P12: 0 | Q12: 0 | R12: 0 | S12: 0 | T12: 0 | U12: 0 | V12: 0 | W12: 0 | X12: 0 | Y12: 0 | Z12: 0
A13: 1.1.1. | B13: Прием и транспортировка (перекачка) стоков | C13: кВт.ч | L13: =M13+N13+O13+P13 -> 0 | Q13: =R13+S13+T13+U13 -> 0 | R13: =M13 -> 0 | S13: 0 | T13: 0 | U13: 0 | V13: =W13+X13+Y13+Z13 -> 0 | W13: =R13 -> 0 | X13: 0 | Y13: 0 | Z13: 0
A14: 1.1.2. | B14: Очистка стоков | C14: кВт.ч | L14: =M14+N14+O14+P14 -> 0 | Q14: =R14+S14+T14+U14 -> 0 | R14: 0 | S14: 0 | T14: 0 | U14: 0 | V14: =W14+X14+Y14+Z14 -> 0 | W14: 0 | X14: 0 | Y14: 0 | Z14: 0
A16: 2 | B16: Объем покупной электроэнергии по двухставочному тарифу
A17: 2.1. | B17: Мощность | C17: кВт в мес | D17: =SUM(D18:D19) -> 0 | E17: 0 | F17: 0 | G17: 0 | H17: 0 | I17: 0 | J17: 0 | K17: 0 | L17: 0 | M17: 0 | N17: 0 | O17: 0 | P17: 0 | Q17: 0 | R17: =SUM(AH18:AH19) -> 0 | S17: =SUM(AH18:AH19) -> 0 | T17: =SUM(AI18:AI19) -> 0 | U17: =SUM(AJ18:AJ19) -> 0 | V17: =SUM(AQ18:AQ19) -> 0 | W17: =SUM(AR18:AR19) -> 0 | X17: =SUM(AS18:AS19) -> 0 | Y17: =SUM(AT18:AT19) -> 0 | Z17: =SUM(AU18:AU19) -> 0
A18: 2.1.1.1. | B18: Прием и транспортировка (перекачка) стоков | C18: кВт в мес | L18: =M18+N18+O18+P18 -> 0 | Q18: =AH18+AH18+AI18+AJ18 -> 0 | R18: =M18 -> 0 | S18: 0 | T18: 0 | U18: 0 | V18: =AR18+AS18+AT18+AU18 -> 0 | W18: =R18 -> 0 | X18: 0 | Y18: 0 | Z18: 0
A19: 2.1.1.2. | B19: Очистка стоков | C19: кВт в мес | L19: =M19+N19+O19+P19 -> 0 | Q19: =AH19+AH19+AI19+AJ19 -> 0 | R19: 0 | S19: 0 | T19: 0 | U19: 0 | V19: =AR19+AS19+AT19+AU19 -> 0 | W19: 0 | X19: 0 | Y19: 0 | Z19: 0
A20: 2.1. | B20: Активная электроэнергия | C20: кВт.ч | D20: =SUM(D21:D22) -> 0 | E20: 0 | F20: 0 | G20: 0 | H20: 0 | I20: 0 | J20: 0 | K20: 0 | L20: 0 | M20: 0 | N20: 0 | O20: 0 | P20: 0 | Q20: 0 | R20: =SUM(AH21:AH22) -> 0 | S20: =SUM(AH21:AH22) -> 0 | T20: =SUM(AI21:AI22) -> 0 | U20: =SUM(AJ21:AJ22) -> 0 | V20: =SUM(AQ21:AQ22) -> 0 | W20: =SUM(AR21:AR22) -> 0 | X20: =SUM(AS21:AS22) -> 0 | Y20: =SUM(AT21:AT22) -> 0 | Z20: =SUM(AU21:AU22) -> 0
A21: 2.1.1.1. | B21: Прием и транспортировка (перекачка) стоков | C21: кВт.ч | L21: =M21+N21+O21+P21 -> 0 | Q21: =AH21+AH21+AI21+AJ21 -> 0 | R21: =M21 -> 0 | S21: 0 | T21: 0 | U21: 0 | V21: =AR21+AS21+AT21+AU21 -> 0 | W21: =R21 -> 0 | X21: 0 | Y21: 0 | Z21: 0
A22: 2.1.1.2. | B22: Очистка стоков | C22: кВт.ч | L22: =M22+N22+O22+P22 -> 0 | Q22: =AH22+AH22+AI22+AJ22 -> 0 | R22: 0 | S22: 0 | T22: 0 | U22: 0 | V22: =AR22+AS22+AT22+AU22 -> 0 | W22: 0 | X22: 0 | Y22: 0 | Z22: 0
B23: Справочно
A24: расход электроэнергии на транспортировку стоков | C24: кВт.ч | D24: =D13+D21 -> 0 | E24: 0 | F24: 0 | G24: 0 | H24: 0 | I24: 0 | J24: 0 | K24: 0 | L24: 0 | M24: 0 | N24: 0 | O24: 0 | P24: 0 | Q24: 0 | R24: =AH13+AH21 -> 0 | S24: =AH13+AH21 -> 0 | T24: =AI13+AI21 -> 0 | U24: =AJ13+AJ21 -> 0 | V24: =AQ13+AQ21 -> 0 | W24: =AR13+AR21 -> 0 | X24: =AS13+AS21 -> 0 | Y24: =AT13+AT21 -> 0 | Z24: =AU13+AU21 -> 0
A25: расход электроэнергии на очистку стоков | C25: кВт.ч | D25: =D14+D22 -> 0 | E25: =E14+E22 -> 0 | F25: 0 | G25: 0 | H25: 0 | I25: 0 | J25: 0 | K25: 0 | L25: 0 | M25: 0 | N25: 0 | O25: 0 | P25: 0 | Q25: 0 | R25: 0 | S25: 0 | T25: 0 | U25: 0 | V25: 0 | W25: 0 | X25: 0 | Y25: 0 | Z25: 0

Sheet Электроэнергия
A1: Затраты на электроэнергию
A3: =Титульный!B9 -> 
A4: =Титульный!B23 -> 0
A6: Район | B6: =Титульный!B5 -> 0 | E6: МО | F6: =Титульный!B6 -> 0
A7: № п/п | B7: Наименование статей | C7: Единица измерения | D7: ='свод потребности объемов эл.эн'!D6 -> 2014 | E7: ='свод потребности объемов эл.эн'!E6 -> 2015 | F7: ='свод потребности объемов эл.эн'!F6 -> 2016 | G7: ='свод потребности объемов эл.эн'!G6 -> 2016 | H7: ='свод потребности объемов эл.эн'!H6:H6 -> 2017 | I7: ='свод потребности объемов эл.эн'!I6 -> 2018 | J7: =I7+1 -> 2019 | K7: =J7+1 -> 2020 | L7: =I7 -> 2018 | M7: =L7+1 -> 2019 | N7: =M7+1 -> 2020
D9: ='свод потребности объемов эл.эн'!D9 -> факт по данным организации | E9: ='свод потребности объемов эл.эн'!E9 -> факт по данным организации | F9: ='свод потребности объемов эл.эн'!F9 -> план ДТР ТО | G9: ='свод потребности объемов эл.эн'!G9 -> факт по данным организации | H9: утв. ДТР ТО | I9: ='свод потребности объемов эл.эн'!I9 -> план организации | J9: =I9 -> план организации | K9: =J9 -> план организации | L9: предложение эксперта | M9: предложение эксперта | N9: предложение эксперта
A10: 1 | B10: =A10+1 -> 2 | C10: =B10+1 -> 3 | D10: 4 | E10: 5 | F10: 6 | G10: 7 | H10: 8 | I10: 9 | J10: 10 | K10: 11 | L10: =K10+1 -> 12 | M10: 13 | N10: 14
B11: Затраты на покупную электрическую энергию и мощность | C11: руб. | D11: =D13+D30 -> 0 | E11: =E13+E30 -> 0 | F11: 0 | G11: 0 | H11: =H13+H30 -> 0 | I11: 0 | J11: 0 | K11: 0 | L11: 0 | M11: 0 | N11: 0
A13: 1 | B13: Затраты на покупную электрическую энергию по одноставочному тарифу | C13: руб | D13: =D17+D20+D23+D26 -> 0 | E13: =E17+E20+E23+E26 -> 0 | F13: 0 | G13: 0 | H13: =H17+H20+H23+H26 -> 0 | I13: 0 | J13: 0 | K13: 0 | L13: 0 | M13: 0 | N13: 0
B14: средневзвешенный тариф на электрическую энергию | C14: руб/кВт.ч | D14: =IF(D15=0,0,D13/D15) -> 0 | E14: =IF(E15=0,0,E13/E15) -> 0 | F14: 0 | G14: 0 | H14: =IF(H15=0,0,H13/H15) -> 0 | I14: 0 | J14: 0 | K14: 0 | L14: 0 | M14: 0 | N14: 0
B15: объем электроэнергии | C15: кВт.ч | D15: =D19+D22+D25+D28 -> 0 | E15: =E19+E22+E25+E28 -> 0 | F15: =F19+F22+F25+F28 -> 0 | G15: =G19+G22+G25+G28 -> 0 | H15: =H19+H22+H25+H28 -> 0 | I15: =I19+I22+I25+I28 -> 0 | J15: 0 | K15: 0 | L15: =L19+L22+L25+L28 -> 0 | M15: 0 | N15: 0
B16: в том числе
A17: 1.1. | B17: низкое (0,4 и ниже) | C17: руб. | D17: =D18*D19 -> 0 | E17: =E18*E19 -> 0 | F17: =F18*F19 -> 0 | G17: =G18*G19 -> 0 | H17: =H18*H19 -> 0 | I17: =I18*I19 -> 0 | J17: 0 | K17: 0 | L17: 0 | M17: 0 | N17: 0
B18: тариф на электрическую энергию | C18: руб/кВт.ч | L18: =G18*электроэнергия_среднегод_2017*электроэнергия_среднегод_2018 -> 0 | M18: =L18*электроэнергия_среднегод_2019 -> 0 | N18: =M18*электроэнергия_среднегод_2020 -> 0
B19: объем электроэнергии | C19: кВт.ч | L19: ='свод потребности объемов эл.эн'!P12 -> 0 | M19: ='свод потребности объемов эл.эн'!U12 -> 0 | N19: ='свод потребности объемов эл.эн'!Z12 -> 0
A20: 1.2. | B20: среднее напряжение СН2 | C20: руб. | D20: =D21*D22 -> 0 | E20: =E21*E22 -> 0 | F20: =F21*F22 -> 0 | G20: =G21*G22 -> 0 | H20: =H21*H22 -> 0 | I20: =I21*I22 -> 0 | J20: 0 | K20: 0 | L20: 0 | M20: 0 | N20: 0
B21: тариф на электрическую энергию | C21: руб/кВт.ч | L21: =G21*электроэнергия_среднегод_2017*электроэнергия_среднегод_2018 -> 0 | M21: =L21*электроэнергия_среднегод_2019 -> 0 | N21: =M21*электроэнергия_среднегод_2020 -> 0
B22: объем электроэнергии | C22: кВт.ч | L22: ='свод потребности объемов эл.эн'!O12 -> 0 | M22: ='свод потребности объемов эл.эн'!T12 -> 0 | N22: ='свод потребности объемов эл.эн'!Y12 -> 0
A23: 1.3. | B23: среднее напряжение СН1 (35 кВ) | C23: руб. | D23: =D24*D25 -> 0 | E23: =E24*E25 -> 0 | F23: =F24*F25 -> 0 | G23: =G24*G25 -> 0 | H23: =H24*H25 -> 0 | I23: =I24*I25 -> 0 | J23: 0 | K23: 0 | L23: 0 | M23: 0 | N23: 0
B24: тариф на электрическую энергию | C24: руб/кВт.ч | L24: =G24*электроэнергия_среднегод_2017*электроэнергия_среднегод_2018 -> 0 | M24: =L24*электроэнергия_среднегод_2019 -> 0 | N24: =M24*электроэнергия_среднегод_2020 -> 0
B25: объем электроэнергии | C25: кВт.ч | L25: ='свод потребности объемов эл.эн'!N12 -> 0 | M25: ='свод потребности объемов эл.эн'!S12 -> 0 | N25: ='свод потребности объемов эл.эн'!X12 -> 0
A26: 1.4. | B26: высокое напряжение (110 кВ и выше) | C26: руб. | D26: =D27*D28 -> 0 | E26: =E27*E28 -> 0 | F26: =F27*F28 -> 0 | G26: =G27*G28 -> 0 | H26: =H27*H28 -> 0 | I26: =I27*I28 -> 0 | J26: 0 | K26: 0 | L26: 0 | M26: 0 | N26: 0
B27: тариф на электрическую энергию | C27: руб/кВт.ч | L27: =G27*электроэнергия_среднегод_2017*электроэнергия_среднегод_2018 -> 0 | M27: =L27*электроэнергия_среднегод_2019 -> 0 | N27: =M27*электроэнергия_среднегод_2020 -> 0
B28: объем электроэнергии | C28: кВт.ч | L28: ='свод потребности объемов эл.эн'!M12 -> 0 | M28: ='свод потребности объемов эл.эн'!R12 -> 0 | N28: ='свод потребности объемов эл.эн'!W12 -> 0
A30: 2. | B30: Затраты на покупную электрическую энергию по двухставочному тарифу | C30: руб | D30: =D31+D45 -> 0 | E30: =E31+E45 -> 0 | F30: 0 | G30: 0 | H30: =H31+H45 -> 0 | I30: 0 | J30: 0 | K30: 0 | L30: 0 | M30: 0 | N30: 0
A31: 2.1. | B31: Затраты на покупку мощности | D31: =D32+D35+D38+D41 -> 0 | E31: =E32+E35+E38+E41 -> 0 | F31: 0 | G31: 0 | H31: =H32+H35+H38+H41 -> 0 | I31: 0 | J31: 0 | K31: 0 | L31: 0 | M31: 0 | N31: 0
A32: 2.1.1. | B32: низкое (0,4 и ниже) | C32: руб. | D32: =D33*D34 -> 0 | E32: =E33*E34 -> 0 | F32: 0 | G32: 0 | H32: =H33*H34 -> 0 | I32: 0 | J32: 0 | K32: 0 | L32: 0 | M32: 0 | N32: 0
B33: ставка за мощность | C33: руб/кВт | L33: =G33*электроэнергия_среднегод_2017*электроэнергия_среднегод_2018 -> 0 | M33: =L33*электроэнергия_среднегод_2019 -> 0 | N33: =M33*электроэнергия_среднегод_2020 -> 0
B34: объем мощности | C34: кВт
A35: 2.1.2. | B35: среднее напряжение СН2 | C35: руб. | D35: =D36*D37 -> 0 | E35: 0 | F35: 0 | G35: 0 | H35: 0 | I35: 0 | J35: 0 | K35: 0 | L35: =L36*L37*12 -> 0 | M35: =M36*M37*12 -> 0 | N35: =N36*N37*12 -> 0
B36: ставка за мощность | C36: руб/кВт | L36: =G36*электроэнергия_среднегод_2017*электроэнергия_среднегод_2018 -> 0 | M36: =L36*электроэнергия_среднегод_2019 -> 0 | N36: =M36*электроэнергия_среднегод_2020 -> 0
B37: объем мощности | C37: кВт
A38: 2.1.3. | B38: среднее напряжение СН1 (35 кВ) | C38: руб. | D38: =D39*D40 -> 0 | E38: 0 | F38: 0 | G38: 0 | H38: 0 | I38: 0 | J38: 0 | K38: 0 | L38: =L39*L40*12 -> 0 | M38: =M39*M40*12 -> 0 | N38: =N39*N40*12 -> 0
B39: ставка за мощность | C39: руб/кВт | L39: =G39*электроэнергия_среднегод_2017*электроэнергия_среднегод_2018 -> 0 | M39: =L39*электроэнергия_среднегод_2019 -> 0 | N39: =M39*электроэнергия_среднегод_2020 -> 0
B40: объем мощности | C40: кВт
A41: 2.1.4. | B41: высокое напряжение (110 кВ и выше) | C41: руб. | D41: =D42*D43 -> 0 | E41: 0 | F41: 0 | G41: 0 | H41: 0 | I41: 0 | J41: 0 | K41: 0 | L41: =L42*L43*12 -> 0 | M41: =M42*M43*12 -> 0 | N41: =N42*N43*12 -> 0
B42: ставка за мощность | C42: руб/кВт | L42: =G42*электроэнергия_среднегод_2017*электроэнергия_среднегод_2018 -> 0 | M42: =L42*электроэнергия_среднегод_2019 -> 0 | N42: =M42*электроэнергия_среднегод_2020 -> 0
B43: объем мощности | C43: кВт
A45: 2.2. | B45: Затраты на покупку активной электроэнергии | D45: =D46+D49+D52+D55 -> 0 | E45: =E46+E49+E52+E55 -> 0 | F45: 0 | G45: 0 | H45: =H46+H49+H52+H55 -> 0 | I45: 0 | J45: 0 | K45: 0 | L45: 0 | M45: 0 | N45: 0
A46: 2.2.1. | B46: низкое (0,4 и ниже) | C46: руб. | D46: =D47*D48 -> 0 | E46: =E47*E48 -> 0 | F46: =F47*F48 -> 0 | G46: =G47*G48 -> 0 | H46: =H47*H48 -> 0 | I46: =I47*I48 -> 0 | J46: 0 | K46: 0 | L46: 0 | M46: 0 | N46: 0
B47: тариф на электрическую энергию | C47: руб/кВт.ч | L47: =G47*электроэнергия_среднегод_2017*электроэнергия_среднегод_2018 -> 0 | M47: =L47*электроэнергия_среднегод_2019 -> 0 | N47: =M47*электроэнергия_среднегод_2020 -> 0
B48: объем электроэнергии | C48: кВт.ч | L48: ='свод потребности объемов эл.эн'!P20 -> 0 | M48: ='свод потребности объемов эл.эн'!U20 -> 0 | N48: ='свод потребности объемов эл.эн'!Z20 -> 0
A49: 2.2.2. | B49: среднее напряжение СН2 | C49: руб. | D49: =D50*D51 -> 0 | E49: =E50*E51 -> 0 | F49: =F50*F51 -> 0 | G49: =G50*G51 -> 0 | H49: =H50*H51 -> 0 | I49: =I50*I51 -> 0 | J49: 0 | K49: 0 | L49: 0 | M49: 0 | N49: 0
B50: тариф на электрическую энергию | C50: руб/кВт.ч | L50: =G50*электроэнергия_среднегод_2017*электроэнергия_среднегод_2018 -> 0 | M50: =L50*электроэнергия_среднегод_2019 -> 0 | N50: =M50*электроэнергия_среднегод_2020 -> 0
B51: объем электроэнергии | C51: кВт.ч | L51: ='свод потребности объемов эл.эн'!O20 -> 0 | M51: ='свод потребности объемов эл.эн'!T20 -> 0 | N51: ='свод потребности объемов эл.эн'!Y20 -> 0
A52: 2.2.3. | B52: среднее напряжение СН1 (35 кВ) | C52: руб. | D52: =D53*D54 -> 0 | E52: =E53*E54 -> 0 | F52: =F53*F54 -> 0 | G52: =G53*G54 -> 0 | H52: =H53*H54 -> 0 | I52: =I53*I54 -> 0 | J52: 0 | K52: 0 | L52: 0 | M52: 0 | N52: 0
B53: тариф на электрическую энергию | C53: руб/кВт.ч | L53: =G53*электроэнергия_среднегод_2017*электроэнергия_среднегод_2018 -> 0 | M53: =L53*электроэнергия_среднегод_2019 -> 0 | N53: =M53*электроэнергия_среднегод_2020 -> 0
B54: объем электроэнергии | C54: кВт.ч | L54: ='свод потребности объемов эл.эн'!N20 -> 0 | M54: ='свод потребности объемов эл.эн'!S20 -> 0 | N54: ='свод потребности объемов эл.эн'!X20 -> 0
A55: 2.2.4. | B55: высокое напряжение (110 кВ и выше) | C55: руб. | D55: =D56*D57 -> 0 | E55: =E56*E57 -> 0 | F55: =F56*F57 -> 0 | G55: =G56*G57 -> 0 | H55: =H56*H57 -> 0 | I55: =I56*I57 -> 0 | J55: 0 | K55: 0 | L55: 0 | M55: 0 | N55: 0
B56: тариф на электрическую энергию | C56: руб/кВт.ч | L56: =G56*электроэнергия_среднегод_2017*электроэнергия_среднегод_2018 -> 0 | M56: =L56*электроэнергия_среднегод_2019 -> 0 | N56: =M56*электроэнергия_среднегод_2020 -> 0
B57: объем электроэнергии | C57: кВт.ч | L57: ='свод потребности объемов эл.эн'!M20 -> 0 | M57: ='свод потребности объемов эл.эн'!R20 -> 0 | N57: ='свод потребности объемов эл.эн'!W20 -> 0
B59: проверка | C59: кВт.ч | D59: =D15+D48+D51+D54+D57-'свод потребности объемов эл.эн'!D12-'свод потребности объемов эл.эн'!D20 -> 0 | E59: =E15+E48+E51+E54+E57-'свод потребности объемов эл.эн'!E12-'свод потребности объемов эл.эн'!E20 -> 0 | F59: =F15+F48+F51+F54+F57-'свод потребности объемов эл.эн'!F12-'свод потребности объемов эл.эн'!F20 -> 0 | G59: =G15+G48+G51+G54+G57-'свод потребности объемов эл.эн'!G12-'свод потребности объемов эл.эн'!G20 -> 0 | H59: =H15+H48+H51+H54+H57-'свод потребности объемов эл.эн'!H12-'свод потребности объемов эл.эн'!H20 -> 0 | I59: =I15+I48+I51+I54+I57-'свод потребности объемов эл.эн'!I12-'свод потребности объемов эл.эн'!I20 -> 0 | J59: =J15+J48+J51+J54+J57-'свод потребности объемов эл.эн'!J12-'свод потребности объемов эл.эн'!J20 -> 0 | K59: =K15+K48+K51+K54+K57-'свод потребности объемов эл.эн'!K12-'свод потребности объемов эл.эн'!K20 -> 0 | L59: =L15+L48+L51+L54+L57-'свод потребности объемов эл.эн'!L12-'свод потребности объемов эл.эн'!L20 -> 0 | M59: =M15+M48+M51+M54+M57-'свод потребности объемов эл.эн'!Q12-'свод потребности объемов эл.эн'!Q20 -> 0 | N59: =N15+N48+N51+N54+N57-'свод потребности объемов эл.эн'!V12-'свод потребности объемов эл.эн'!V20 -> 0
C60: руб/кВт в мес | D60: =D34+D37+D40+D43-'свод потребности объемов эл.эн'!D17 -> 0 | E60: =E34+E37+E40+E43-'свод потребности объемов эл.эн'!E17 -> 0 | F60: =F34+F37+F40+F43-'свод потребности объемов эл.эн'!F17 -> 0 | G60: =G34+G37+G40+G43-'свод потребности объемов эл.эн'!G17 -> 0 | H60: =H34+H37+H40+H43-'свод потребности объемов эл.эн'!H17 -> 0 | I60: =I34+I37+I40+I43-'свод потребности объемов эл.эн'!I17 -> 0 | J60: =J34+J37+J40+J43-'свод потребности объемов эл.эн'!J17 -> 0 | K60: =K34+K37+K40+K43-'свод потребности объемов эл.эн'!K17 -> 0 | L60: =L34+L37+L40+L43-'свод потребности объемов эл.эн'!L17 -> 0 | M60: =M34+M37+M40+M43-'свод потребности объемов эл.эн'!Q17 -> 0 | N60: =N34+N37+N40+N43-'свод потребности объемов эл.эн'!V17 -> 0
A98: Таблица 22. Расчет расходов на электроэнергию на 2017-2019 годы | I98: Продолжение таблицы 22. Расчет расходов на электроэнергию на 2017-2019 годы организации
A100: № п/п | B100: Наименование статей | C100: Единица измерения | D100: 2015 год | F100: 2016 год | G100: 2017 год | I100: 2018 год | L100: 2019 год
D101: утвержденный план | E101: факт по данным организации | F101: утвержденный план | G101: план организации | H101: план, принятый экспертом | I101: план организации | J101: предложение эксперта | K101: отклонение | L101: план организации
A104: 1 | B104: 2 | C104: 3 | D104: 4 | E104: 5 | F104: 6 | G104: 7 | H104: 8 | I104: 10 | J104: 11 | K104: 12=гр.11-гр.10 | L104: 13
B105: Затраты на покупную электрическую энергию и мощность | C105: тыс. руб. | D105: =F11/1000 -> 0 | E105: =G11/1000 -> 0 | F105: =H11/1000 -> 0 | G105: =I11/1000 -> 0 | H105: =L11/1000 -> 0 | I105: =J11/1000 -> 0 | J105: =M11/1000 -> 0 | K105: =J105-I105 -> 0 | L105: =K11/1000 -> 0
A107: 1 | B107: Затраты на покупную электрическую энергию по одноставочному тарифу | C107: тыс.руб | D107: =F13/1000 -> 0 | E107: =G13/1000 -> 0 | F107: =H13/1000 -> 0 | G107: =I13/1000 -> 0 | H107: =L13/1000 -> 0 | I107: =J13/1000 -> 0 | J107: =M13/1000 -> 0 | K107: =J107-I107 -> 0 | L107: =K13/1000 -> 0
B108: средневзвешенный тариф на электрическую энергию | C108: руб/кВт.ч | D108: =F14 -> 0 | E108: =G14 -> 0 | F108: =H14 -> 0 | G108: =I14 -> 0 | H108: =L14 -> 0 | I108: =J14 -> 0 | J108: =M14 -> 0 | K108: =J108-I108 -> 0 | L108: =K14 -> 0
B109: объем электроэнергии | C109: тыс.кВт.ч | D109: =F15/1000 -> 0 | E109: 0 | F109: 0 | G109: =I15/1000 -> 0 | H109: =L15/1000 -> 0 | I109: =J15/1000 -> 0 | J109: =M15/1000 -> 0 | K109: =J109-I109 -> 0 | L109: =K15/1000 -> 0
B110: в том числе
A111: 1.1. | B111: низкое (0,4 и ниже) | C111: тыс.руб | D111: 0 | E111: 0 | F111: 0 | G111: 0 | H111: 0 | I111: =J17/1000 -> 0 | J111: =M17/1000 -> 0 | K111: =J111-I111 -> 0 | L111: =K17/1000 -> 0
B112: тариф на электрическую энергию | C112: руб/кВт.ч | D112: =F18 -> 0 | E112: =G18 -> 0 | F112: =H18 -> 0 | G112: =I18 -> 0 | H112: =L18 -> 0 | I112: =J18 -> 0 | J112: =M18 -> 0 | K112: 0 | L112: =K18 -> 0
B113: объем электроэнергии | C113: тыс.кВт.ч | D113: 0 | E113: 0 | F113: 0 | G113: 0 | H113: 0 | I113: =J19/1000 -> 0 | J113: =M19/1000 -> 0 | K113: 0 | L113: =K19/1000 -> 0
A114: 1.2. | B114: среднее напряжение СН2 | C114: тыс.руб | D114: 0 | E114: 0 | F114: 0 | G114: 0 | H114: 0 | I114: =J20/1000 -> 0 | J114: =M20/1000 -> 0 | K114: 0 | L114: =K20/1000 -> 0
B115: тариф на электрическую энергию | C115: руб/кВт.ч | D115: =F21 -> 0 | E115: =G21 -> 0 | F115: =H21 -> 0 | G115: =I21 -> 0 | H115: =L21 -> 0 | I115: =J21 -> 0 | J115: =M21 -> 0 | K115: 0 | L115: =K21 -> 0
B116: объем электроэнергии | C116: тыс.кВт.ч | D116: 0 | E116: 0 | F116: 0 | G116: 0 | H116: 0 | I116: =J22/1000 -> 0 | J116: =M22/1000 -> 0 | K116: 0 | L116: =K22/1000 -> 0
A117: 1.3. | B117: среднее напряжение СН1 (35 кВ) | C117: тыс.руб | D117: 0 | E117: 0 | F117: 0 | G117: 0 | H117: 0 | I117: =J23/1000 -> 0 | J117: =M23/1000 -> 0 | K117: 0 | L117: =K23/1000 -> 0
B118: тариф на электрическую энергию | C118: руб/кВт.ч | D118: =F24 -> 0 | E118: =G24 -> 0 | F118: =H24 -> 0 | G118: =I24 -> 0 | H118: =L24 -> 0 | I118: =J24 -> 0 | J118: =M24 -> 0 | K118: 0 | L118: =K24 -> 0
B119: объем электроэнергии | C119: тыс.кВт.ч | D119: 0 | E119: 0 | F119: 0 | G119: 0 | H119: 0 | I119: =J25/1000 -> 0 | J119: =M25/1000 -> 0 | K119: 0 | L119: =K25/1000 -> 0
A120: 1.4. | B120: высокое напряжение (110 кВ и выше) | C120: тыс.руб | D120: 0 | E120: 0 | F120: 0 | G120: 0 | H120: 0 | I120: =J26/1000 -> 0 | J120: =M26/1000 -> 0 | K120: 0 | L120: =K26/1000 -> 0
B121: тариф на электрическую энергию | C121: руб/кВт.ч | D121: =F27 -> 0 | E121: =G27 -> 0 | F121: =H27 -> 0 | G121: =I27 -> 0 | H121: =L27 -> 0 | I121: =J27 -> 0 | J121: =M27 -> 0 | K121: 0 | L121: =K27 -> 0
B122: объем электроэнергии | C122: тыс.кВт.ч | D122: 0 | E122: 0 | F122: 0 | G122: 0 | H122: 0 | I122: =J28/1000 -> 0 | J122: =M28/1000 -> 0 | K122: 0 | L122: =K28/1000 -> 0
A124: 2. | B124: Затраты на покупную электрическую энергию по двухставочному тарифу | C124: тыс.руб | D124: =F30/1000 -> 0 | E124: 0 | F124: 0 | G124: =I30/1000 -> 0 | H124: =L30/1000 -> 0 | I124: =J30/1000 -> 0 | J124: =M30/1000 -> 0 | K124: =J124-I124 -> 0 | L124: =K30/1000 -> 0
A125: 2.1. | B125: Затраты на покупку мощности | D125: 0 | E125: 0 | F125: 0 | G125: =I31/1000 -> 0 | H125: =L31/1000 -> 0 | I125: =J31/1000 -> 0 | J125: =M31/1000 -> 0 | K125: 0 | L125: =K31/1000 -> 0
A126: 2.1.1. | B126: низкое (0,4 и ниже) | C126: тыс.руб | D126: 0 | E126: 0 | F126: 0 | G126: =I32/1000 -> 0 | H126: =L32/1000 -> 0 | I126: =J32/1000 -> 0 | J126: =M32/1000 -> 0 | K126: 0 | L126: =K32/1000 -> 0
B127: ставка за мощность | C127: руб/кВт в мес | D127: =F33 -> 0 | E127: 0 | F127: 0 | G127: =I33 -> 0 | H127: =L33 -> 0 | I127: =J33 -> 0 | J127: =M33 -> 0 | K127: 0 | L127: =K33 -> 0
B128: объем мощности | C128: кВт в мес | D128: 0 | E128: 0 | F128: 0 | G128: =I34 -> 0 | H128: =L34 -> 0 | I128: =J34 -> 0 | J128: =M34 -> 0 | K128: 0 | L128: =K34 -> 0
A129: 2.1.2. | B129: среднее напряжение СН2 | C129: тыс.руб | D129: =F35/1000 -> 0 | E129: =G35/1000 -> 0 | F129: =H35/1000 -> 0 | G129: =I35/1000 -> 0 | H129: =L35/1000 -> 0 | I129: =J35/1000 -> 0 | J129: =M35/1000 -> 0 | K129: 0 | L129: =K35/1000 -> 0
B130: ставка за мощность | C130: руб/кВт в мес | D130: =F36 -> 0 | E130: 0 | F130: 0 | G130: =I36 -> 0 | H130: =L36 -> 0 | I130: =J36 -> 0 | J130: =M36 -> 0 | K130: 0 | L130: =K36 -> 0
B131: объем мощности | C131: кВт в мес | D131: 0 | E131: 0 | F131: 0 | G131: =I37 -> 0 | H131: =L37 -> 0 | I131: =J37 -> 0 | J131: =M37 -> 0 | K131: 0 | L131: =K37 -> 0
A132: 2.1.3. | B132: среднее напряжение СН1 (35 кВ) | C132: тыс.руб | D132: =F38/1000 -> 0 | E132: =G38/1000 -> 0 | F132: =H38/1000 -> 0 | G132: =I38/1000 -> 0 | H132: =L38/1000 -> 0 | I132: =J38/1000 -> 0 | J132: =M38/1000 -> 0 | K132: 0 | L132: =K38/1000 -> 0
B133: ставка за мощность | C133: руб/кВт в мес | D133: =F39 -> 0 | E133: 0 | F133: 0 | G133: =I39 -> 0 | H133: =L39 -> 0 | I133: =J39 -> 0 | J133: =M39 -> 0 | K133: 0 | L133: =K39 -> 0
B134: объем мощности | C134: кВт в мес | D134: 0 | E134: 0 | F134: 0 | G134: =I40 -> 0 | H134: =L40 -> 0 | I134: =J40 -> 0 | J134: =M40 -> 0 | K134: 0 | L134: =K40 -> 0
A135: 2.1.4. | B135: высокое напряжение (110 кВ и выше) | C135: тыс.руб | D135: =F41/1000 -> 0 | E135: =G41/1000 -> 0 | F135: =H41/1000 -> 0 | G135: =I41/1000 -> 0 | H135: =L41/1000 -> 0 | I135: =J41/1000 -> 0 | J135: =M41/1000 -> 0 | K135: 0 | L135: =K41/1000 -> 0
B136: ставка за мощность | C136: руб/кВт в мес | D136: =F42 -> 0 | E136: 0 | F136: 0 | G136: =I42 -> 0 | H136: =L42 -> 0 | I136: =J42 -> 0 | J136: =M42 -> 0 | K136: 0 | L136: =K42 -> 0
B137: объем мощности | C137: кВт в мес | D137: 0 | E137: 0 | F137: 0 | G137: =I43 -> 0 | H137: =L43 -> 0 | I137: =J43 -> 0 | J137: =M43 -> 0 | K137: 0 | L137: =K43 -> 0
A139: 2.2. | B139: Затраты на покупку активной электроэнергии | D139: =F45/1000 -> 0 | E139: 0 | F139: 0 | G139: =I45/1000 -> 0 | H139: =L45/1000 -> 0 | I139: =J45/1000 -> 0 | J139: =M45/1000 -> 0 | K139: =J139-I139 -> 0 | L139: =K45/1000 -> 0
A140: 2.2.1. | B140: низкое (0,4 и ниже) | C140: тыс.руб | D140: 0 | E140: 0 | F140: 0 | G140: =I46/1000 -> 0 | H140: =L46/1000 -> 0 | I140: =J46/1000 -> 0 | J140: =M46/1000 -> 0 | K140: 0 | L140: =K46/1000 -> 0
B141: тариф на электрическую энергию | C141: руб/кВт.ч | D141: =F47 -> 0 | E141: =G47 -> 0 | F141: =H47 -> 0 | G141: =I47 -> 0 | H141: =L47 -> 0 | I141: =J47 -> 0 | J141: =M47 -> 0 | K141: 0 | L141: =K47 -> 0
B142: объем электроэнергии | C142: тыс.кВт.ч | D142: =F48/1000 -> 0 | E142: 0 | F142: 0 | G142: =I48/1000 -> 0 | H142: =L48/1000 -> 0 | I142: =J48/1000 -> 0 | J142: =M48/1000 -> 0 | K142: 0 | L142: =K48/1000 -> 0
A143: 2.2.2. | B143: среднее напряжение СН2 | C143: тыс.руб | D143: 0 | E143: 0 | F143: 0 | G143: =I49/1000 -> 0 | H143: =L49/1000 -> 0 | I143: =J49/1000 -> 0 | J143: =M49/1000 -> 0 | K143: 0 | L143: =K49/1000 -> 0
B144: тариф на электрическую энергию | C144: руб/кВт.ч | D144: =F50 -> 0 | E144: =G50 -> 0 | F144: =H50 -> 0 | G144: =I50 -> 0 | H144: =L50 -> 0 | I144: =J50 -> 0 | J144: =M50 -> 0 | K144: 0 | L144: =K50 -> 0
B145: объем электроэнергии | C145: тыс.кВт.ч | D145: =F51/1000 -> 0 | E145: 0 | F145: 0 | G145: =I51/1000 -> 0 | H145: =L51/1000 -> 0 | I145: =J51/1000 -> 0 | J145: =M51/1000 -> 0 | K145: 0 | L145: =K51/1000 -> 0
A146: 2.2.3. | B146: среднее напряжение СН1 (35 кВ) | C146: тыс.руб | D146: 0 | E146: 0 | F146: 0 | G146: =I52/1000 -> 0 | H146: =L52/1000 -> 0 | I146: =J52/1000 -> 0 | J146: =M52/1000 -> 0 | K146: 0 | L146: =K52/1000 -> 0
B147: тариф на электрическую энергию | C147: руб/кВт.ч | D147: =F53 -> 0 | E147: =G53 -> 0 | F147: =H53 -> 0 | G147: =I53 -> 0 | H147: =L53 -> 0 | I147: =J53 -> 0 | J147: =M53 -> 0 | K147: 0 | L147: =K53 -> 0
B148: объем электроэнергии | C148: тыс.кВт.ч | D148: =F54/1000 -> 0 | E148: 0 | F148: 0 | G148: =I54/1000 -> 0 | H148: =L54/1000 -> 0 | I148: =J54/1000 -> 0 | J148: =M54/1000 -> 0 | K148: 0 | L148: =K54/1000 -> 0
A149: 2.2.4. | B149: высокое напряжение (110 кВ и выше) | C149: тыс.руб | D149: 0 | E149: 0 | F149: 0 | G149: =I55/1000 -> 0 | H149: =L55/1000 -> 0 | I149: =J55/1000 -> 0 | J149: =M55/1000 -> 0 | K149: 0 | L149: =K55/1000 -> 0
B150: тариф на электрическую энергию | C150: руб/кВт.ч | D150: =F56 -> 0 | E150: =G56 -> 0 | F150: =H56 -> 0 | G150: =I56 -> 0 | H150: =L56 -> 0 | I150: =J56 -> 0 | J150: =M56 -> 0 | K150: 0 | L150: =K56 -> 0
B151: объем электроэнергии | C151: тыс.кВт.ч | D151: =F57/1000 -> 0 | E151: =G57/1000 -> 0 | F151: =H57/1000 -> 0 | G151: =I57/1000 -> 0 | H151: =L57/1000 -> 0 | I151: =J57/1000 -> 0 | J151: =M57/1000 -> 0 | K151: 0 | L151: =K57/1000 -> 0

Sheet Аренда
A1: Данные об имуществе, полученном по договорам аренды и используемом при осуществлении регулируемой деятельности
A3: =Титульный!B9 -> 
A4: =Титульный!B23 -> 0
I6: рублей
A7: Объекты основных средств по подразделениям | B7: № договора аренды оборудования | C7: Вид договора (договор лизинга, коцессионное соглашение, другой вид договра(расшифровать)) | D7: Наименование организации - арендодателя | E7: Первоначальная (восстановительная) стоимость | F7: Дата ввода в эксплуатацию | G7: Срок полезного использования, мес. | H7: Сумма амортизации в мес | I7: 2018 | J7: =I7+1 -> 2019 | K7: =J7+1 -> 2020 | L7: 2018 год предложение эксперта | T7: 2019 год предложение эксперта | AB7: 2020 год предложение эксперта
I8: Сумма арендной платы за год | J8: Сумма арендной платы за год | K8: Сумма арендной платы за год | L8: Остаточная стоимость на начало периода | M8: Сумма амортизации за год | N8: Остаточная стоимость на конец периода | O8: Среднегодовая стоимость | P8: Ставка налога на имущество, % | Q8: Налог на имущество | R8: НДС | S8: Итого экономически обоснованный размер арендной платы | T8: Остаточная стоимость на начало периода | U8: Сумма амортизации за год | V8: Остаточная стоимость на конец периода | W8: Среднегодовая стоимость | X8: Ставка налога на имущество, % | Y8: Налог на имущество | Z8: НДС | AA8: Итого экономически обоснованный размер арендной платы | AB8: Остаточная стоимость на начало периода | AC8: Сумма амортизации за год | AD8: Остаточная стоимость на конец периода | AE8: Среднегодовая стоимость | AF8: Ставка налога на имущество, % | AG8: Налог на имущество | AH8: НДС | AI8: Итого экономически обоснованный размер арендной платы
L9: 2017-01-01 | N9: 2018-01-01 | T9: 2018-01-01 | V9: 2019-01-01 | AB9: 2019-01-01 | AD9: 2020-01-01
A10: Прием и транспортировка (перекачка) сточных вод
H11: =IF(G11=0,0,E11/G11) -> 0 | L11: =IF(DATEDIF(F11,$L$9,"m")*H11<E11,(E11-DATEDIF(F11,$L$9,"m")*H11),0) -> 0 | M11: =IF(H11*12<L11,H11*12,L11) -> 0 | N11: =IF(H11*12>L11,0,(L11-12*H11)) -> 0 | O11: =IF(H11=0,0,IF(12*H11<L11,(13*L11-78*H11)/13,(L11*L11/H11-H11*(L11/H11)*0.5*(L11/H11-1))/13)) -> 0 | P11: =IF(Титульный!$B$27="Общая",2.2,) -> 0 | Q11: =O11*P11/100 -> 0 | R11: =IF(Титульный!$B$27="Общая",SUM(M11,Q11)*0.18,0) -> 0 | S11: =M11+Q11+R11 -> 0 | T11: =N11 -> 0 | U11: =IF(H11*12<T11,H11*12,T11) -> 0 | V11: =IF(H11*12>T11,0,(T11-12*H11)) -> 0 | W11: =IF(H11=0,0,IF(12*H11<T11,(13*T11-78*H11)/13,(T11*T11/H11-H11*(T11/H11)*0.5*(T11/H11-1))/13)) -> 0 | X11: =IF(Титульный!$B$27="Общая",2.2,) -> 0 | Y11: =W11*AY11/100 -> 0 | Z11: =IF(Титульный!$B$27="Общая",SUM(U11,AY11)*0.18,0) -> 0 | AA11: =U11+Y11+Z11 -> 0 | AB11: =V11 -> 0 | AC11: =IF(H11*12<AB11,H11*12,AB11) -> 0 | AD11: =IF(H11*12>AB11,0,(AB11-12*H11)) -> 0 | AE11: =IF(H11=0,0,IF(12*H11<AB11,(13*AB11-78*H11)/13,(AB11*AB11/H11-H11*(AB11/H11)*0.5*(AB11/H11-1))/13)) -> 0 | AF11: =IF(Титульный!$B$27="Общая",2.2,) -> 0 | AG11: =AE11*AF11/100 -> 0 | AH11: =IF(Титульный!$B$27="Общая",SUM(AC11,AG11)*0.18,0) -> 0 | AI11: =AC11+AG11+AH11 -> 0
H12: 0 | L12: 0 | M12: 0 | N12: 0 | O12: 0 | P12: =IF(Титульный!$B$27="Общая",2.2,) -> 0 | Q12: =O12*P12/100 -> 0 | R12: =IF(Титульный!$B$27="Общая",SUM(M12,Q12)*0.18,0) -> 0 | S12: =M12+Q12+R12 -> 0 | T12: =N12 -> 0 | U12: 0 | V12: 0 | W12: 0 | X12: =IF(Титульный!$B$27="Общая",2.2,) -> 0 | Y12: =W12*X12/100 -> 0 | Z12: =IF(Титульный!$B$27="Общая",SUM(U12,AY12)*0.18,0) -> 0 | AA12: =U12+Y12+Z12 -> 0 | AB12: =V12 -> 0 | AC12: 0 | AD12: 0 | AE12: 0 | AF12: =IF(Титульный!$B$27="Общая",2.2,) -> 0 | AG12: =AE12*AF12/100 -> 0 | AH12: =IF(Титульный!$B$27="Общая",SUM(AC12,AG12)*0.18,0) -> 0 | AI12: =AC12+AG12+AH12 -> 0
H13: 0 | L13: 0 | M13: 0 | N13: 0 | O13: 0 | P13: =IF(Титульный!$B$27="Общая",2.2,) -> 0 | Q13: 0 | R13: =IF(Титульный!$B$27="Общая",SUM(M13,Q13)*0.18,0) -> 0 | S13: 0 | T13: 0 | U13: 0 | V13: 0 | W13: 0 | X13: =IF(Титульный!$B$27="Общая",2.2,) -> 0 | Y13: 0 | Z13: =IF(Титульный!$B$27="Общая",SUM(U13,AY13)*0.18,0) -> 0 | AA13: 0 | AB13: 0 | AC13: 0 | AD13: 0 | AE13: 0 | AF13: =IF(Титульный!$B$27="Общая",2.2,) -> 0 | AG13: 0 | AH13: =IF(Титульный!$B$27="Общая",SUM(AC13,AG13)*0.18,0) -> 0 | AI13: 0
H14: 0 | L14: 0 | M14: 0 | N14: 0 | O14: 0 | P14: =IF(Титульный!$B$27="Общая",2.2,) -> 0 | Q14: 0 | R14: =IF(Титульный!$B$27="Общая",SUM(M14,Q14)*0.18,0) -> 0 | S14: 0 | T14: 0 | U14: 0 | V14: 0 | W14: 0 | X14: =IF(Титульный!$B$27="Общая",2.2,) -> 0 | Y14: 0 | Z14: =IF(Титульный!$B$27="Общая",SUM(U14,AY14)*0.18,0) -> 0 | AA14: 0 | AB14: 0 | AC14: 0 | AD14: 0 | AE14: 0 | AF14: =IF(Титульный!$B$27="Общая",2.2,) -> 0 | AG14: 0 | AH14: =IF(Титульный!$B$27="Общая",SUM(AC14,AG14)*0.18,0) -> 0 | AI14: 0
H15: 0 | L15: 0 | M15: 0 | N15: 0 | O15: 0 | P15: =IF(Титульный!$B$27="Общая",2.2,) -> 0 | Q15: 0 | R15: =IF(Титульный!$B$27="Общая",SUM(M15,Q15)*0.18,0) -> 0 | S15: 0 | T15: 0 | U15: 0 | V15: 0 | W15: 0 | X15: =IF(Титульный!$B$27="Общая",2.2,) -> 0 | Y15: 0 | Z15: =IF(Титульный!$B$27="Общая",SUM(U15,AY15)*0.18,0) -> 0 | AA15: 0 | AB15: 0 | AC15: 0 | AD15: 0 | AE15: 0 | AF15: =IF(Титульный!$B$27="Общая",2.2,) -> 0 | AG15: 0 | AH15: =IF(Титульный!$B$27="Общая",SUM(AC15,AG15)*0.18,0) -> 0 | AI15: 0
H16: 0 | L16: 0 | M16: 0 | N16: 0 | O16: 0 | P16: =IF(Титульный!$B$27="Общая",2.2,) -> 0 | Q16: 0 | R16: =IF(Титульный!$B$27="Общая",SUM(M16,Q16)*0.18,0) -> 0 | S16: 0 | T16: 0 | U16: 0 | V16: 0 | W16: 0 | X16: =IF(Титульный!$B$27="Общая",2.2,) -> 0 | Y16: 0 | Z16: =IF(Титульный!$B$27="Общая",SUM(U16,AY16)*0.18,0) -> 0 | AA16: 0 | AB16: 0 | AC16: 0 | AD16: 0 | AE16: 0 | AF16: =IF(Титульный!$B$27="Общая",2.2,) -> 0 | AG16: 0 | AH16: =IF(Титульный!$B$27="Общая",SUM(AC16,AG16)*0.18,0) -> 0 | AI16: 0
H17: 0 | L17: 0 | M17: 0 | N17: 0 | O17: 0 | P17: =IF(Титульный!$B$27="Общая",2.2,) -> 0 | Q17: 0 | R17: =IF(Титульный!$B$27="Общая",SUM(M17,Q17)*0.18,0) -> 0 | S17: 0 | T17: 0 | U17: 0 | V17: 0 | W17: 0 | X17: =IF(Титульный!$B$27="Общая",2.2,) -> 0 | Y17: 0 | Z17: =IF(Титульный!$B$27="Общая",SUM(U17,AY17)*0.18,0) -> 0 | AA17: 0 | AB17: 0 | AC17: 0 | AD17: 0 | AE17: 0 | AF17: =IF(Титульный!$B$27="Общая",2.2,) -> 0 | AG17: 0 | AH17: =IF(Титульный!$B$27="Общая",SUM(AC17,AG17)*0.18,0) -> 0 | AI17: 0
H18: 0 | L18: 0 | M18: 0 | N18: 0 | O18: 0 | P18: =IF(Титульный!$B$27="Общая",2.2,) -> 0 | Q18: 0 | R18: =IF(Титульный!$B$27="Общая",SUM(M18,Q18)*0.18,0) -> 0 | S18: 0 | T18: 0 | U18: 0 | V18: 0 | W18: 0 | X18: =IF(Титульный!$B$27="Общая",2.2,) -> 0 | Y18: 0 | Z18: =IF(Титульный!$B$27="Общая",SUM(U18,AY18)*0.18,0) -> 0 | AA18: 0 | AB18: 0 | AC18: 0 | AD18: 0 | AE18: 0 | AF18: =IF(Титульный!$B$27="Общая",2.2,) -> 0 | AG18: 0 | AH18: =IF(Титульный!$B$27="Общая",SUM(AC18,AG18)*0.18,0) -> 0 | AI18: 0
H19: 0 | L19: 0 | M19: 0 | N19: 0 | O19: 0 | P19: =IF(Титульный!$B$27="Общая",2.2,) -> 0 | Q19: 0 | R19: =IF(Титульный!$B$27="Общая",SUM(M19,Q19)*0.18,0) -> 0 | S19: 0 | T19: 0 | U19: 0 | V19: 0 | W19: 0 | X19: =IF(Титульный!$B$27="Общая",2.2,) -> 0 | Y19: 0 | Z19: =IF(Титульный!$B$27="Общая",SUM(U19,AY19)*0.18,0) -> 0 | AA19: 0 | AB19: 0 | AC19: 0 | AD19: 0 | AE19: 0 | AF19: =IF(Титульный!$B$27="Общая",2.2,) -> 0 | AG19: 0 | AH19: =IF(Титульный!$B$27="Общая",SUM(AC19,AG19)*0.18,0) -> 0 | AI19: 0
H20: 0 | L20: 0 | M20: 0 | N20: 0 | O20: 0 | P20: =IF(Титульный!$B$27="Общая",2.2,) -> 0 | Q20: 0 | R20: =IF(Титульный!$B$27="Общая",SUM(M20,Q20)*0.18,0) -> 0 | S20: 0 | T20: 0 | U20: 0 | V20: 0 | W20: 0 | X20: =IF(Титульный!$B$27="Общая",2.2,) -> 0 | Y20: 0 | Z20: =IF(Титульный!$B$27="Общая",SUM(U20,AY20)*0.18,0) -> 0 | AA20: 0 | AB20: 0 | AC20: 0 | AD20: 0 | AE20: 0 | AF20: =IF(Титульный!$B$27="Общая",2.2,) -> 0 | AG20: 0 | AH20: =IF(Титульный!$B$27="Общая",SUM(AC20,AG20)*0.18,0) -> 0 | AI20: 0
H21: 0 | L21: 0 | M21: 0 | N21: 0 | O21: 0 | P21: =IF(Титульный!$B$27="Общая",2.2,) -> 0 | Q21: 0 | R21: =IF(Титульный!$B$27="Общая",SUM(M21,Q21)*0.18,0) -> 0 | S21: 0 | T21: 0 | U21: 0 | V21: 0 | W21: 0 | X21: =IF(Титульный!$B$27="Общая",2.2,) -> 0 | Y21: 0 | Z21: =IF(Титульный!$B$27="Общая",SUM(U21,AY21)*0.18,0) -> 0 | AA21: 0 | AB21: 0 | AC21: 0 | AD21: 0 | AE21: 0 | AF21: =IF(Титульный!$B$27="Общая",2.2,) -> 0 | AG21: 0 | AH21: =IF(Титульный!$B$27="Общая",SUM(AC21,AG21)*0.18,0) -> 0 | AI21: 0
H22: 0 | L22: 0 | M22: 0 | N22: 0 | O22: 0 | P22: =IF(Титульный!$B$27="Общая",2.2,) -> 0 | Q22: 0 | R22: =IF(Титульный!$B$27="Общая",SUM(M22,Q22)*0.18,0) -> 0 | S22: 0 | T22: 0 | U22: 0 | V22: 0 | W22: 0 | X22: =IF(Титульный!$B$27="Общая",2.2,) -> 0 | Y22: 0 | Z22: =IF(Титульный!$B$27="Общая",SUM(U22,AY22)*0.18,0) -> 0 | AA22: 0 | AB22: 0 | AC22: 0 | AD22: 0 | AE22: 0 | AF22: =IF(Титульный!$B$27="Общая",2.2,) -> 0 | AG22: 0 | AH22: =IF(Титульный!$B$27="Общая",SUM(AC22,AG22)*0.18,0) -> 0 | AI22: 0
H23: 0 | L23: 0 | M23: 0 | N23: 0 | O23: 0 | P23: =IF(Титульный!$B$27="Общая",2.2,) -> 0 | Q23: 0 | R23: =IF(Титульный!$B$27="Общая",SUM(M23,Q23)*0.18,0) -> 0 | S23: 0 | T23: 0 | U23: 0 | V23: 0 | W23: 0 | X23: =IF(Титульный!$B$27="Общая",2.2,) -> 0 | Y23: 0 | Z23: =IF(Титульный!$B$27="Общая",SUM(U23,AY23)*0.18,0) -> 0 | AA23: 0 | AB23: 0 | AC23: 0 | AD23: 0 | AE23: 0 | AF23: =IF(Титульный!$B$27="Общая",2.2,) -> 0 | AG23: 0 | AH23: =IF(Титульный!$B$27="Общая",SUM(AC23,AG23)*0.18,0) -> 0 | AI23: 0
H24: 0 | L24: 0 | M24: 0 | N24: 0 | O24: 0 | P24: =IF(Титульный!$B$27="Общая",2.2,) -> 0 | Q24: 0 | R24: =IF(Титульный!$B$27="Общая",SUM(M24,Q24)*0.18,0) -> 0 | S24: 0 | T24: 0 | U24: 0 | V24: 0 | W24: 0 | X24: =IF(Титульный!$B$27="Общая",2.2,) -> 0 | Y24: 0 | Z24: =IF(Титульный!$B$27="Общая",SUM(U24,AY24)*0.18,0) -> 0 | AA24: 0 | AB24: 0 | AC24: 0 | AD24: 0 | AE24: 0 | AF24: =IF(Титульный!$B$27="Общая",2.2,) -> 0 | AG24: 0 | AH24: =IF(Титульный!$B$27="Общая",SUM(AC24,AG24)*0.18,0) -> 0 | AI24: 0
H25: 0 | L25: 0 | M25: 0 | N25: 0 | O25: 0 | P25: =IF(Титульный!$B$27="Общая",2.2,) -> 0 | Q25: 0 | R25: =IF(Титульный!$B$27="Общая",SUM(M25,Q25)*0.18,0) -> 0 | S25: 0 | T25: 0 | U25: 0 | V25: 0 | W25: 0 | X25: =IF(Титульный!$B$27="Общая",2.2,) -> 0 | Y25: 0 | Z25: =IF(Титульный!$B$27="Общая",SUM(U25,AY25)*0.18,0) -> 0 | AA25: 0 | AB25: 0 | AC25: 0 | AD25: 0 | AE25: 0 | AF25: =IF(Титульный!$B$27="Общая",2.2,) -> 0 | AG25: 0 | AH25: =IF(Титульный!$B$27="Общая",SUM(AC25,AG25)*0.18,0) -> 0 | AI25: 0
H26: 0 | L26: 0 | M26: 0 | N26: 0 | O26: 0 | P26: =IF(Титульный!$B$27="Общая",2.2,) -> 0 | Q26: 0 | R26: =IF(Титульный!$B$27="Общая",SUM(M26,Q26)*0.18,0) -> 0 | S26: 0 | T26: 0 | U26: 0 | V26: 0 | W26: 0 | X26: =IF(Титульный!$B$27="Общая",2.2,) -> 0 | Y26: 0 | Z26: =IF(Титульный!$B$27="Общая",SUM(U26,AY26)*0.18,0) -> 0 | AA26: 0 | AB26: 0 | AC26: 0 | AD26: 0 | AE26: 0 | AF26: =IF(Титульный!$B$27="Общая",2.2,) -> 0 | AG26: 0 | AH26: =IF(Титульный!$B$27="Общая",SUM(AC26,AG26)*0.18,0) -> 0 | AI26: 0
H27: 0 | L27: 0 | M27: 0 | N27: 0 | O27: 0 | P27: =IF(Титульный!$B$27="Общая",2.2,) -> 0 | Q27: 0 | R27: =IF(Титульный!$B$27="Общая",SUM(M27,Q27)*0.18,0) -> 0 | S27: 0 | T27: 0 | U27: 0 | V27: 0 | W27: 0 | X27: =IF(Титульный!$B$27="Общая",2.2,) -> 0 | Y27: 0 | Z27: =IF(Титульный!$B$27="Общая",SUM(U27,AY27)*0.18,0) -> 0 | AA27: 0 | AB27: 0 | AC27: 0 | AD27: 0 | AE27: 0 | AF27: =IF(Титульный!$B$27="Общая",2.2,) -> 0 | AG27: 0 | AH27: =IF(Титульный!$B$27="Общая",SUM(AC27,AG27)*0.18,0) -> 0 | AI27: 0
H28: 0 | L28: 0 | M28: 0 | N28: 0 | O28: 0 | P28: =IF(Титульный!$B$27="Общая",2.2,) -> 0 | Q28: 0 | R28: =IF(Титульный!$B$27="Общая",SUM(M28,Q28)*0.18,0) -> 0 | S28: 0 | T28: 0 | U28: 0 | V28: 0 | W28: 0 | X28: =IF(Титульный!$B$27="Общая",2.2,) -> 0 | Y28: 0 | Z28: =IF(Титульный!$B$27="Общая",SUM(U28,AY28)*0.18,0) -> 0 | AA28: 0 | AB28: 0 | AC28: 0 | AD28: 0 | AE28: 0 | AF28: =IF(Титульный!$B$27="Общая",2.2,) -> 0 | AG28: 0 | AH28: =IF(Титульный!$B$27="Общая",SUM(AC28,AG28)*0.18,0) -> 0 | AI28: 0
H29: 0 | L29: 0 | M29: 0 | N29: 0 | O29: 0 | P29: =IF(Титульный!$B$27="Общая",2.2,) -> 0 | Q29: 0 | R29: =IF(Титульный!$B$27="Общая",SUM(M29,Q29)*0.18,0) -> 0 | S29: 0 | T29: 0 | U29: 0 | V29: 0 | W29: 0 | X29: =IF(Титульный!$B$27="Общая",2.2,) -> 0 | Y29: 0 | Z29: =IF(Титульный!$B$27="Общая",SUM(U29,AY29)*0.18,0) -> 0 | AA29: 0 | AB29: 0 | AC29: 0 | AD29: 0 | AE29: 0 | AF29: =IF(Титульный!$B$27="Общая",2.2,) -> 0 | AG29: 0 | AH29: =IF(Титульный!$B$27="Общая",SUM(AC29,AG29)*0.18,0) -> 0 | AI29: 0
H30: 0 | L30: 0 | M30: 0 | N30: 0 | O30: 0 | P30: =IF(Титульный!$B$27="Общая",2.2,) -> 0 | Q30: 0 | R30: =IF(Титульный!$B$27="Общая",SUM(M30,Q30)*0.18,0) -> 0 | S30: 0 | T30: 0 | U30: 0 | V30: 0 | W30: 0 | X30: =IF(Титульный!$B$27="Общая",2.2,) -> 0 | Y30: 0 | Z30: =IF(Титульный!$B$27="Общая",SUM(U30,AY30)*0.18,0) -> 0 | AA30: 0 | AB30: 0 | AC30: 0 | AD30: 0 | AE30: 0 | AF30: =IF(Титульный!$B$27="Общая",2.2,) -> 0 | AG30: 0 | AH30: =IF(Титульный!$B$27="Общая",SUM(AC30,AG30)*0.18,0) -> 0 | AI30: 0
A31: ИТОГО | B31: х | C31: х | D31: х | E31: =SUM(E11:E30) -> 0 | F31: х | G31: х | H31: =SUM(H11:H30) -> 0 | I31: =SUM(I11:I30) -> 0 | J31: 0 | K31: 0 | L31: 0 | M31: 0 | N31: 0 | O31: 0 | P31: х | Q31: =SUM(Q11:Q30) -> 0 | R31: 0 | S31: 0 | T31: 0 | U31: 0 | V31: 0 | W31: 0 | X31: х | Y31: =SUM(Y11:Y30) -> 0 | Z31: 0 | AA31: 0 | AB31: 0 | AC31: 0 | AD31: 0 | AE31: 0 | AF31: х | AG31: =SUM(AG11:AG30) -> 0 | AH31: =SUM(AH11:AH30) -> 0 | AI31: =SUM(AI11:AI30) -> 0
A32: Очистка сточных вод
H33: =IF(G33=0,0,E33/G33) -> 0 | L33: =IF(DATEDIF(F33,$L$9,"m")*H33<E33,(E33-DATEDIF(F33,$L$9,"m")*H33),0) -> 0 | M33: =IF(H33*12<L33,H33*12,L33) -> 0 | N33: =IF(H33*12>L33,0,(L33-12*H33)) -> 0 | O33: =IF(H33=0,0,IF(12*H33<L33,(13*L33-78*H33)/13,(L33*L33/H33-H33*(L33/H33)*0.5*(L33/H33-1))/13)) -> 0 | P33: =IF(Титульный!$B$27="Общая",2.2,) -> 0 | Q33: =O33*P33/100 -> 0 | R33: =IF(Титульный!$B$27="Общая",SUM(M33,Q33)*0.18,0) -> 0 | S33: =M33+Q33+R33 -> 0 | T33: =N33 -> 0 | U33: =IF(H33*12<T33,H33*12,T33) -> 0 | V33: =IF(H33*12>T33,0,(T33-12*H33)) -> 0 | W33: =IF(H33=0,0,IF(12*H33<T33,(13*T33-78*H33)/13,(T33*T33/H33-H33*(T33/H33)*0.5*(T33/H33-1))/13)) -> 0 | X33: =IF(Титульный!$B$27="Общая",2.2,) -> 0 | Y33: =W33*X33/100 -> 0 | Z33: =IF(Титульный!$B$27="Общая",SUM(U33,AY33)*0.18,0) -> 0 | AA33: =U33+Y33+Z33 -> 0 | AB33: =V33 -> 0 | AC33: =IF(H33*12<AB33,H33*12,AB33) -> 0 | AD33: =IF(H33*12>AB33,0,(AB33-12*H33)) -> 0 | AE33: =IF(H33=0,0,IF(12*H33<AB33,(13*AB33-78*H33)/13,(AB33*AB33/H33-H33*(AB33/H33)*0.5*(AB33/H33-1))/13)) -> 0 | AF33: =IF(Титульный!$B$27="Общая",2.2,) -> 0 | AG33: =AE33*AF33/100 -> 0 | AH33: =IF(Титульный!$B$27="Общая",SUM(AC33,AG33)*0.18,0) -> 0 | AI33: =AC33+AG33+AH33 -> 0
H34: 0 | L34: 0 | M34: 0 | N34: 0 | O34: 0 | P34: =IF(Титульный!$B$27="Общая",2.2,) -> 0 | Q34: =O34*P34/100 -> 0 | R34: =IF(Титульный!$B$27="Общая",SUM(M34,Q34)*0.18,0) -> 0 | S34: =M34+Q34+R34 -> 0 | T34: 0 | U34: 0 | V34: 0 | W34: 0 | X34: =IF(Титульный!$B$27="Общая",2.2,) -> 0 | Y34: =W34*X34/100 -> 0 | Z34: =IF(Титульный!$B$27="Общая",SUM(U34,AY34)*0.18,0) -> 0 | AA34: =U34+Y34+Z34 -> 0 | AB34: 0 | AC34: 0 | AD34: 0 | AE34: 0 | AF34: =IF(Титульный!$B$27="Общая",2.2,) -> 0 | AG34: =AE34*AF34/100 -> 0 | AH34: =IF(Титульный!$B$27="Общая",SUM(AC34,AG34)*0.18,0) -> 0 | AI34: =AC34+AG34+AH34 -> 0
H35: 0 | L35: 0 | M35: 0 | N35: 0 | O35: 0 | P35: =IF(Титульный!$B$27="Общая",2.2,) -> 0 | Q35: 0 | R35: =IF(Титульный!$B$27="Общая",SUM(M35,Q35)*0.18,0) -> 0 | S35: 0 | T35: 0 | U35: 0 | V35: 0 | W35: 0 | X35: =IF(Титульный!$B$27="Общая",2.2,) -> 0 | Y35: 0 | Z35: =IF(Титульный!$B$27="Общая",SUM(U35,AY35)*0.18,0) -> 0 | AA35: 0 | AB35: 0 | AC35: 0 | AD35: 0 | AE35: 0 | AF35: =IF(Титульный!$B$27="Общая",2.2,) -> 0 | AG35: 0 | AH35: =IF(Титульный!$B$27="Общая",SUM(AC35,AG35)*0.18,0) -> 0 | AI35: 0
H36: 0 | L36: 0 | M36: 0 | N36: 0 | O36: 0 | P36: =IF(Титульный!$B$27="Общая",2.2,) -> 0 | Q36: 0 | R36: =IF(Титульный!$B$27="Общая",SUM(M36,Q36)*0.18,0) -> 0 | S36: 0 | T36: 0 | U36: 0 | V36: 0 | W36: 0 | X36: =IF(Титульный!$B$27="Общая",2.2,) -> 0 | Y36: 0 | Z36: =IF(Титульный!$B$27="Общая",SUM(U36,AY36)*0.18,0) -> 0 | AA36: 0 | AB36: 0 | AC36: 0 | AD36: 0 | AE36: 0 | AF36: =IF(Титульный!$B$27="Общая",2.2,) -> 0 | AG36: 0 | AH36: =IF(Титульный!$B$27="Общая",SUM(AC36,AG36)*0.18,0) -> 0 | AI36: 0
H37: 0 | L37: 0 | M37: 0 | N37: 0 | O37: 0 | P37: =IF(Титульный!$B$27="Общая",2.2,) -> 0 | Q37: 0 | R37: =IF(Титульный!$B$27="Общая",SUM(M37,Q37)*0.18,0) -> 0 | S37: 0 | T37: 0 | U37: 0 | V37: 0 | W37: 0 | X37: =IF(Титульный!$B$27="Общая",2.2,) -> 0 | Y37: 0 | Z37: =IF(Титульный!$B$27="Общая",SUM(U37,AY37)*0.18,0) -> 0 | AA37: 0 | AB37: 0 | AC37: 0 | AD37: 0 | AE37: 0 | AF37: =IF(Титульный!$B$27="Общая",2.2,) -> 0 | AG37: 0 | AH37: =IF(Титульный!$B$27="Общая",SUM(AC37,AG37)*0.18,0) -> 0 | AI37: 0
H38: 0 | L38: 0 | M38: 0 | N38: 0 | O38: 0 | P38: =IF(Титульный!$B$27="Общая",2.2,) -> 0 | Q38: 0 | R38: =IF(Титульный!$B$27="Общая",SUM(M38,Q38)*0.18,0) -> 0 | S38: 0 | T38: 0 | U38: 0 | V38: 0 | W38: 0 | X38: =IF(Титульный!$B$27="Общая",2.2,) -> 0 | Y38: 0 | Z38: =IF(Титульный!$B$27="Общая",SUM(U38,AY38)*0.18,0) -> 0 | AA38: 0 | AB38: 0 | AC38: 0 | AD38: 0 | AE38: 0 | AF38: =IF(Титульный!$B$27="Общая",2.2,) -> 0 | AG38: 0 | AH38: =IF(Титульный!$B$27="Общая",SUM(AC38,AG38)*0.18,0) -> 0 | AI38: 0
H39: 0 | L39: 0 | M39: 0 | N39: 0 | O39: 0 | P39: =IF(Титульный!$B$27="Общая",2.2,) -> 0 | Q39: 0 | R39: =IF(Титульный!$B$27="Общая",SUM(M39,Q39)*0.18,0) -> 0 | S39: 0 | T39: 0 | U39: 0 | V39: 0 | W39: 0 | X39: =IF(Титульный!$B$27="Общая",2.2,) -> 0 | Y39: 0 | Z39: =IF(Титульный!$B$27="Общая",SUM(U39,AY39)*0.18,0) -> 0 | AA39: 0 | AB39: 0 | AC39: 0 | AD39: 0 | AE39: 0 | AF39: =IF(Титульный!$B$27="Общая",2.2,) -> 0 | AG39: 0 | AH39: =IF(Титульный!$B$27="Общая",SUM(AC39,AG39)*0.18,0) -> 0 | AI39: 0
H40: 0 | L40: 0 | M40: 0 | N40: 0 | O40: 0 | P40: =IF(Титульный!$B$27="Общая",2.2,) -> 0 | Q40: 0 | R40: =IF(Титульный!$B$27="Общая",SUM(M40,Q40)*0.18,0) -> 0 | S40: 0 | T40: 0 | U40: 0 | V40: 0 | W40: 0 | X40: =IF(Титульный!$B$27="Общая",2.2,) -> 0 | Y40: 0 | Z40: =IF(Титульный!$B$27="Общая",SUM(U40,AY40)*0.18,0) -> 0 | AA40: 0 | AB40: 0 | AC40: 0 | AD40: 0 | AE40: 0 | AF40: =IF(Титульный!$B$27="Общая",2.2,) -> 0 | AG40: 0 | AH40: =IF(Титульный!$B$27="Общая",SUM(AC40,AG40)*0.18,0) -> 0 | AI40: 0
H41: 0 | L41: 0 | M41: 0 | N41: 0 | O41: 0 | P41: =IF(Титульный!$B$27="Общая",2.2,) -> 0 | Q41: 0 | R41: =IF(Титульный!$B$27="Общая",SUM(M41,Q41)*0.18,0) -> 0 | S41: 0 | T41: 0 | U41: 0 | V41: 0 | W41: 0 | X41: =IF(Титульный!$B$27="Общая",2.2,) -> 0 | Y41: 0 | Z41: =IF(Титульный!$B$27="Общая",SUM(U41,AY41)*0.18,0) -> 0 | AA41: 0 | AB41: 0 | AC41: 0 | AD41: 0 | AE41: 0 | AF41: =IF(Титульный!$B$27="Общая",2.2,) -> 0 | AG41: 0 | AH41: =IF(Титульный!$B$27="Общая",SUM(AC41,AG41)*0.18,0) -> 0 | AI41: 0
H42: 0 | L42: 0 | M42: 0 | N42: 0 | O42: 0 | P42: =IF(Титульный!$B$27="Общая",2.2,) -> 0 | Q42: 0 | R42: =IF(Титульный!$B$27="Общая",SUM(M42,Q42)*0.18,0) -> 0 | S42: 0 | T42: 0 | U42: 0 | V42: 0 | W42: 0 | X42: =IF(Титульный!$B$27="Общая",2.2,) -> 0 | Y42: 0 | Z42: =IF(Титульный!$B$27="Общая",SUM(U42,AY42)*0.18,0) -> 0 | AA42: 0 | AB42: 0 | AC42: 0 | AD42: 0 | AE42: 0 | AF42: =IF(Титульный!$B$27="Общая",2.2,) -> 0 | AG42: 0 | AH42: =IF(Титульный!$B$27="Общая",SUM(AC42,AG42)*0.18,0) -> 0 | AI42: 0
H43: 0 | L43: 0 | M43: 0 | N43: 0 | O43: 0 | P43: =IF(Титульный!$B$27="Общая",2.2,) -> 0 | Q43: 0 | R43: =IF(Титульный!$B$27="Общая",SUM(M43,Q43)*0.18,0) -> 0 | S43: 0 | T43: 0 | U43: 0 | V43: 0 | W43: 0 | X43: =IF(Титульный!$B$27="Общая",2.2,) -> 0 | Y43: 0 | Z43: =IF(Титульный!$B$27="Общая",SUM(U43,AY43)*0.18,0) -> 0 | AA43: 0 | AB43: 0 | AC43: 0 | AD43: 0 | AE43: 0 | AF43: =IF(Титульный!$B$27="Общая",2.2,) -> 0 | AG43: 0 | AH43: =IF(Титульный!$B$27="Общая",SUM(AC43,AG43)*0.18,0) -> 0 | AI43: 0
H44: 0 | L44: 0 | M44: 0 | N44: 0 | O44: 0 | P44: =IF(Титульный!$B$27="Общая",2.2,) -> 0 | Q44: 0 | R44: =IF(Титульный!$B$27="Общая",SUM(M44,Q44)*0.18,0) -> 0 | S44: 0 | T44: 0 | U44: 0 | V44: 0 | W44: 0 | X44: =IF(Титульный!$B$27="Общая",2.2,) -> 0 | Y44: 0 | Z44: =IF(Титульный!$B$27="Общая",SUM(U44,AY44)*0.18,0) -> 0 | AA44: 0 | AB44: 0 | AC44: 0 | AD44: 0 | AE44: 0 | AF44: =IF(Титульный!$B$27="Общая",2.2,) -> 0 | AG44: 0 | AH44: =IF(Титульный!$B$27="Общая",SUM(AC44,AG44)*0.18,0) -> 0 | AI44: 0
H45: 0 | L45: 0 | M45: 0 | N45: 0 | O45: 0 | P45: =IF(Титульный!$B$27="Общая",2.2,) -> 0 | Q45: 0 | R45: =IF(Титульный!$B$27="Общая",SUM(M45,Q45)*0.18,0) -> 0 | S45: 0 | T45: 0 | U45: 0 | V45: 0 | W45: 0 | X45: =IF(Титульный!$B$27="Общая",2.2,) -> 0 | Y45: 0 | Z45: =IF(Титульный!$B$27="Общая",SUM(U45,AY45)*0.18,0) -> 0 | AA45: 0 | AB45: 0 | AC45: 0 | AD45: 0 | AE45: 0 | AF45: =IF(Титульный!$B$27="Общая",2.2,) -> 0 | AG45: 0 | AH45: =IF(Титульный!$B$27="Общая",SUM(AC45,AG45)*0.18,0) -> 0 | AI45: 0
H46: 0 | L46: 0 | M46: 0 | N46: 0 | O46: 0 | P46: =IF(Титульный!$B$27="Общая",2.2,) -> 0 | Q46: 0 | R46: =IF(Титульный!$B$27="Общая",SUM(M46,Q46)*0.18,0) -> 0 | S46: 0 | T46: 0 | U46: 0 | V46: 0 | W46: 0 | X46: =IF(Титульный!$B$27="Общая",2.2,) -> 0 | Y46: 0 | Z46: =IF(Титульный!$B$27="Общая",SUM(U46,AY46)*0.18,0) -> 0 | AA46: 0 | AB46: 0 | AC46: 0 | AD46: 0 | AE46: 0 | AF46: =IF(Титульный!$B$27="Общая",2.2,) -> 0 | AG46: 0 | AH46: =IF(Титульный!$B$27="Общая",SUM(AC46,AG46)*0.18,0) -> 0 | AI46: 0
H47: 0 | L47: 0 | M47: 0 | N47: 0 | O47: 0 | P47: =IF(Титульный!$B$27="Общая",2.2,) -> 0 | Q47: 0 | R47: =IF(Титульный!$B$27="Общая",SUM(M47,Q47)*0.18,0) -> 0 | S47: 0 | T47: 0 | U47: 0 | V47: 0 | W47: 0 | X47: =IF(Титульный!$B$27="Общая",2.2,) -> 0 | Y47: 0 | Z47: =IF(Титульный!$B$27="Общая",SUM(U47,AY47)*0.18,0) -> 0 | AA47: 0 | AB47: 0 | AC47: 0 | AD47: 0 | AE47: 0 | AF47: =IF(Титульный!$B$27="Общая",2.2,) -> 0 | AG47: 0 | AH47: =IF(Титульный!$B$27="Общая",SUM(AC47,AG47)*0.18,0) -> 0 | AI47: 0
H48: 0 | L48: 0 | M48: 0 | N48: 0 | O48: 0 | P48: =IF(Титульный!$B$27="Общая",2.2,) -> 0 | Q48: 0 | R48: =IF(Титульный!$B$27="Общая",SUM(M48,Q48)*0.18,0) -> 0 | S48: 0 | T48: 0 | U48: 0 | V48: 0 | W48: 0 | X48: =IF(Титульный!$B$27="Общая",2.2,) -> 0 | Y48: 0 | Z48: =IF(Титульный!$B$27="Общая",SUM(U48,AY48)*0.18,0) -> 0 | AA48: 0 | AB48: 0 | AC48: 0 | AD48: 0 | AE48: 0 | AF48: =IF(Титульный!$B$27="Общая",2.2,) -> 0 | AG48: 0 | AH48: =IF(Титульный!$B$27="Общая",SUM(AC48,AG48)*0.18,0) -> 0 | AI48: 0
H49: 0 | L49: 0 | M49: 0 | N49: 0 | O49: 0 | P49: =IF(Титульный!$B$27="Общая",2.2,) -> 0 | Q49: 0 | R49: =IF(Титульный!$B$27="Общая",SUM(M49,Q49)*0.18,0) -> 0 | S49: 0 | T49: 0 | U49: 0 | V49: 0 | W49: 0 | X49: =IF(Титульный!$B$27="Общая",2.2,) -> 0 | Y49: 0 | Z49: =IF(Титульный!$B$27="Общая",SUM(U49,AY49)*0.18,0) -> 0 | AA49: 0 | AB49: 0 | AC49: 0 | AD49: 0 | AE49: 0 | AF49: =IF(Титульный!$B$27="Общая",2.2,) -> 0 | AG49: 0 | AH49: =IF(Титульный!$B$27="Общая",SUM(AC49,AG49)*0.18,0) -> 0 | AI49: 0
H50: 0 | L50: 0 | M50: 0 | N50: 0 | O50: 0 | P50: =IF(Титульный!$B$27="Общая",2.2,) -> 0 | Q50: 0 | R50: =IF(Титульный!$B$27="Общая",SUM(M50,Q50)*0.18,0) -> 0 | S50: 0 | T50: 0 | U50: 0 | V50: 0 | W50: 0 | X50: =IF(Титульный!$B$27="Общая",2.2,) -> 0 | Y50: 0 | Z50: =IF(Титульный!$B$27="Общая",SUM(U50,AY50)*0.18,0) -> 0 | AA50: 0 | AB50: 0 | AC50: 0 | AD50: 0 | AE50: 0 | AF50: =IF(Титульный!$B$27="Общая",2.2,) -> 0 | AG50: 0 | AH50: =IF(Титульный!$B$27="Общая",SUM(AC50,AG50)*0.18,0) -> 0 | AI50: 0
H51: 0 | L51: 0 | M51: 0 | N51: 0 | O51: 0 | P51: =IF(Титульный!$B$27="Общая",2.2,) -> 0 | Q51: 0 | R51: =IF(Титульный!$B$27="Общая",SUM(M51,Q51)*0.18,0) -> 0 | S51: 0 | T51: 0 | U51: 0 | V51: 0 | W51: 0 | X51: =IF(Титульный!$B$27="Общая",2.2,) -> 0 | Y51: 0 | Z51: =IF(Титульный!$B$27="Общая",SUM(U51,AY51)*0.18,0) -> 0 | AA51: 0 | AB51: 0 | AC51: 0 | AD51: 0 | AE51: 0 | AF51: =IF(Титульный!$B$27="Общая",2.2,) -> 0 | AG51: 0 | AH51: =IF(Титульный!$B$27="Общая",SUM(AC51,AG51)*0.18,0) -> 0 | AI51: 0
H52: 0 | L52: 0 | M52: 0 | N52: 0 | O52: 0 | P52: =IF(Титульный!$B$27="Общая",2.2,) -> 0 | Q52: 0 | R52: =IF(Титульный!$B$27="Общая",SUM(M52,Q52)*0.18,0) -> 0 | S52: 0 | T52: 0 | U52: 0 | V52: 0 | W52: 0 | X52: =IF(Титульный!$B$27="Общая",2.2,) -> 0 | Y52: 0 | Z52: =IF(Титульный!$B$27="Общая",SUM(U52,AY52)*0.18,0) -> 0 | AA52: 0 | AB52: 0 | AC52: 0 | AD52: 0 | AE52: 0 | AF52: =IF(Титульный!$B$27="Общая",2.2,) -> 0 | AG52: 0 | AH52: =IF(Титульный!$B$27="Общая",SUM(AC52,AG52)*0.18,0) -> 0 | AI52: 0
A53: ИТОГО очистка | B53: х | C53: х | D53: х | E53: =SUM(E33:E52) -> 0 | F53: х | G53: х | H53: =SUM(H33:H52) -> 0 | I53: =SUM(I33:I52) -> 0 | J53: 0 | K53: 0 | L53: 0 | M53: 0 | N53: 0 | O53: 0 | P53: х | Q53: =SUM(Q33:Q52) -> 0 | R53: 0 | S53: 0 | T53: 0 | U53: 0 | V53: 0 | W53: 0 | X53: х | Y53: =SUM(Y33:Y52) -> 0 | Z53: 0 | AA53: 0 | AB53: 0 | AC53: 0 | AD53: 0 | AE53: 0 | AF53: х | AG53: =SUM(AG33:AG52) -> 0 | AH53: =SUM(AH33:AH52) -> 0 | AI53: =SUM(AI33:AI52) -> 0
A54: ВСЕГО | B54: х | C54: х | D54: х | E54: =E53+E31 -> 0 | F54: х | G54: х | H54: =H53+H31 -> 0 | I54: =I53+I31 -> 0 | J54: 0 | K54: 0 | L54: 0 | M54: 0 | N54: 0 | O54: 0 | P54: х | Q54: =Q53+Q31 -> 0 | R54: =R53+R31 -> 0 | S54: 0 | T54: 0 | U54: 0 | V54: 0 | W54: =W53+W31 -> 0 | X54: х | Y54: =Y53+Y31 -> 0 | Z54: 0 | AA54: 0 | AB54: 0 | AC54: 0 | AD54: 0 | AE54: 0 | AF54: х | AG54: =AG53+AG31 -> 0 | AH54: =AH53+AH31 -> 0 | AI54: =AI53+AI31 -> 0

Sheet земля
A1: Расчет затрат на земельный налог и аренду земельных участков
A2: =Титульный!B9 -> 
A3: =Титульный!B23 -> 0
B5: Район | C5: =Титульный!B5 -> 0 | F5: МО | G5: =Титульный!B6 -> 0
B7: 1. Аренда земли
A8: № | B8: Реквизиты земельного участка | C8: № договора | D8: площадь, кв.м. | E8: факт 2016 г | G8: план 2018 г | I8: план 2019 г | K8: план 2020 г | M8: план 2018 г | O8: план 2019 г | Q8: план 2020 г
E9: факт по данным организации | G9: предложение организации | I9: предложение организации | K9: предложение организации | M9: предложение эксперта ДТР ТО | O9: предложение эксперта ДТР ТО | Q9: предложение эксперта ДТР ТО
E10: ставка за 1 кв.м. | F10: Сумма, руб | G10: ставка за 1 кв.м. | H10: Сумма, руб | I10: ставка за 1 кв.м. | J10: Сумма, руб | K10: ставка за 1 кв.м. | L10: Сумма, руб | M10: ставка за 1 кв.м. | N10: Сумма, руб | O10: ставка за 1 кв.м. | P10: Сумма, руб | Q10: ставка за 1 кв.м. | R10: Сумма, руб
A11: 1 | H11: =D11*G11 -> 0 | J11: =D11*I11 -> 0 | L11: =D11*K11 -> 0 | M11: 10.6676 | N11: =D11*M11 -> 0 | O11: 10.6676 | P11: =D11*O11 -> 0 | Q11: 10.6676 | R11: =D11*Q11 -> 0
A12: 2 | H12: =D12*G12 -> 0 | J12: =D12*I12 -> 0 | L12: =D12*K12 -> 0 | M12: 9.4062 | N12: 0 | O12: 9.4062 | P12: =D12*O12 -> 0 | Q12: 9.4062 | R12: =D12*Q12 -> 0
A13: 3 | H13: 0 | J13: 0 | L13: 0 | N13: 0 | P13: 0 | R13: 0
A14: 4 | H14: 0 | J14: 0 | L14: 0 | N14: 0 | P14: 0 | R14: 0
A15: 5 | H15: 0 | J15: 0 | L15: 0 | N15: 0 | P15: 0 | R15: 0
A16: 6 | H16: 0 | J16: 0 | L16: 0 | N16: 0 | P16: 0 | R16: 0
A17: 7 | H17: 0 | J17: 0 | L17: 0 | N17: 0 | P17: 0 | R17: 0
A18: 8 | H18: 0 | J18: 0 | L18: 0 | N18: 0 | P18: 0 | R18: 0
A19: 9 | H19: 0 | J19: 0 | L19: 0 | N19: 0 | P19: 0 | R19: 0
A20: 10 | H20: 0 | J20: 0 | L20: 0 | N20: 0 | P20: 0 | R20: 0
A21: 11 | H21: 0 | J21: 0 | L21: 0 | N21: 0 | P21: 0 | R21: 0
A22: 12 | H22: 0 | J22: 0 | L22: 0 | N22: 0 | P22: 0 | R22: 0
A23: 13 | H23: 0 | J23: 0 | L23: 0 | N23: 0 | P23: 0 | R23: 0
A24: 14 | H24: 0 | J24: 0 | L24: 0 | N24: 0 | P24: 0 | R24: 0
A25: 15 | H25: 0 | J25: 0 | L25: 0 | N25: 0 | P25: 0 | R25: 0
A26: 16 | H26: 0 | J26: 0 | L26: 0 | N26: 0 | P26: 0 | R26: 0
A27: 17 | H27: 0 | J27: 0 | L27: 0 | N27: 0 | P27: 0 | R27: 0
A28: 18 | H28: 0 | J28: 0 | L28: 0 | N28: 0 | P28: 0 | R28: 0
A29: 19 | H29: 0 | J29: 0 | L29: 0 | N29: 0 | P29: 0 | R29: 0
A30: 20 | H30: 0 | J30: 0 | L30: 0 | N30: 0 | P30: 0 | R30: 0
B31: ИТОГО | F31: =SUM(F11:F30) -> 0 | H31: =SUM(H11:H30) -> 0 | J31: =SUM(J11:J30) -> 0 | L31: =SUM(L11:L30) -> 0 | N31: =SUM(N11:N30) -> 0 | P31: =SUM(P11:P30) -> 0 | R31: =SUM(R11:R30) -> 0
B33: 2. Налог на землю
A35: № | B35: Реквизиты земельного участка | G35: Кадастровая стоимость, руб | H35: налоговая ставка | I35: факт 2016 г | J35: план 2018 г | K35: план 2019 г | L35: план 2020 г | M35: =M8 -> план 2018 г | N35: =O8 -> план 2019 г | O35: =Q8 -> план 2020 г
I36: факт по данным организации | J36: предложение организации | K36: предложение организации | L36: предложение организации | M36: =M9 -> предложение эксперта ДТР ТО | N36: =O9 -> предложение эксперта ДТР ТО | O36: =Q9 -> предложение эксперта ДТР ТО
I37: Сумма, руб | J37: Сумма, руб | K37: Сумма, руб | L37: Сумма, руб | M37: Сумма, руб | N37: Сумма, руб | O37: Сумма, руб
A38: 1 | M38: =I38 -> 0 | N38: =M38 -> 0 | O38: =N38 -> 0
A39: 2 | M39: 0 | N39: =M39 -> 0 | O39: 0
A40: 3 | M40: 0 | N40: 0 | O40: 0
A41: 4 | M41: 0 | N41: 0 | O41: 0
A42: 5 | M42: 0 | N42: 0 | O42: 0
A43: 6 | M43: 0 | N43: 0 | O43: 0
A44: 7 | M44: 0 | N44: 0 | O44: 0
A45: 8 | M45: 0 | N45: 0 | O45: 0
A46: 9 | M46: 0 | N46: 0 | O46: 0
A47: 10 | M47: 0 | N47: 0 | O47: 0
A48: 11 | M48: 0 | N48: 0 | O48: 0
A49: 12 | M49: 0 | N49: 0 | O49: 0
A50: 13 | M50: 0 | N50: 0 | O50: 0
A51: 14 | M51: 0 | N51: 0 | O51: 0
A52: 15 | M52: 0 | N52: 0 | O52: 0
A53: 16 | M53: 0 | N53: 0 | O53: 0
A54: 17 | M54: 0 | N54: 0 | O54: 0
A55: 18 | M55: 0 | N55: 0 | O55: 0
A56: 19 | M56: 0 | N56: 0 | O56: 0
A57: 20 | M57: 0 | N57: 0 | O57: 0
B58: ИТОГО | I58: =SUM(I38:I57) -> 0 | J58: 0 | K58: 0 | L58: 0 | M58: 0 | N58: 0 | O58: 0
A60: ВСЕГО платежей за землю | I60: =F31+I58 -> 0 | J60: =H31+J58 -> 0 | K60: =J31+K58 -> 0 | L60: =L31+L58 -> 0 | M60: =N31+M58 -> 0 | N60: =P31+N58 -> 0 | O60: =R31+O58 -> 0

Sheet амортизация и им.налог
A1: Расчет амортизации и налога на имущество
A2: =Титульный!B9 -> 
A3: =Титульный!B23 -> 0
A5: Район | B5: =Титульный!B5 -> 0 | F5: МО | G5: =Титульный!B6 -> 0 | K5: рублей
A6: Объекты основных средств по подразделениям | B6: Первоначальная (восстановитель ная) стоимость | C6: Дата ввода в эксплуатацию | D6: Срок полезного использования, мес. | E6: Сумма амортизации в месяц | F6: 2018 год | L6: 2019 год | R6: 2020 год | X6: Сумма амортизации в месяц | Y6: 2018 год | AE6: 2019 год | AK6: 2020 год
F7: предложение организации | L7: предложение организации | R7: предложение организации | Y7: предложение эксперта ДТР ТО | AE7: предложение эксперта ДТР ТО | AK7: предложение эксперта ДТР ТО
F8: Остаточная стоимость на начало периода | G8: Сумма амортизации за год | H8: Остаточная стоимость на конец периода | I8: Среднегодовая стоимость | J8: Ставка налога на имущество, % | K8: Налог на имущество | L8: Остаточная стоимость на начало периода | M8: Сумма амортизации за год | N8: Остаточная стоимость на конец периода | O8: Среднегодовая стоимость | P8: Ставка налога на имущество, % | Q8: Налог на имущество | R8: Остаточная стоимость на начало периода | S8: Сумма амортизации за год | T8: Остаточная стоимость на конец периода | U8: Среднегодовая стоимость | V8: Ставка налога на имущество, % | W8: Налог на имущество | Y8: Остаточная стоимость на начало периода | Z8: Сумма амортизации за год | AA8: Остаточная стоимость на конец периода | AB8: Среднегодовая стоимость | AC8: Ставка налога на имущество, % | AD8: Налог на имущество | AE8: Остаточная стоимость на начало периода | AF8: Сумма амортизации за год | AG8: Остаточная стоимость на конец периода | AH8: Среднегодовая стоимость | AI8: Ставка налога на имущество, % | AJ8: Налог на имущество | AK8: Остаточная стоимость на начало периода | AL8: Сумма амортизации за год | AM8: Остаточная стоимость на конец периода | AN8: Среднегодовая стоимость | AO8: Ставка налога на имущество, % | AP8: Налог на имущество
F9: 2018-01-01 | H9: 2019-01-01 | L9: 2019-01-01 | N9: 2020-01-01 | R9: 2020-01-01 | T9: 2021-01-01 | Y9: 2018-01-01 | AA9: 2019-01-01 | AE9: 2019-01-01 | AG9: 2020-01-01 | AK9: 2020-01-01 | AM9: 2021-01-01
A10: Прием и транспортировка (перекачка) сточных вод
E11: =IF(D11=0,0,B11/D11) -> 0 | F11: =IF(DATEDIF(C11,$F$9,"m")*E11<B11,(B11-DATEDIF(C11,$F$9,"m")*E11),0) -> 0 | G11: =IF(E11*12<F11,E11*12,F11) -> 0 | H11: =IF(E11*12>F11,0,(F11-12*E11)) -> 0 | I11: =IF(E11=0,0,IF(12*E11<F11,(13*F11-78*E11)/13,(F11*F11/E11-E11*(F11/E11)*0.5*(F11/E11-1))/13)) -> 0 | J11: =IF(Титульный!$B$27="Общая",2.2,) -> 0 | K11: =I11*J11/100 -> 0 | L11: =H11 -> 0 | M11: =IF(E11*12<L11,E11*12,L11) -> 0 | N11: =IF(E11*12>L11,0,(L11-12*E11)) -> 0 | O11: =IF(E11=0,0,IF(12*E11<L11,(13*L11-78*E11)/13,(L11*L11/E11-E11*(L11/E11)*0.5*(L11/E11-1))/13)) -> 0 | P11: =IF(Титульный!$B$27="Общая",2.2,) -> 0 | Q11: =O11*P11/100 -> 0 | R11: =N11 -> 0 | S11: =IF(E11*12<R11,E11*12,R11) -> 0 | T11: =IF(E11*12>R11,0,(R11-12*E11)) -> 0 | U11: =IF(E11=0,0,IF(12*E11<R11,(13*R11-78*E11)/13,(R11*R11/E11-E11*(R11/E11)*0.5*(R11/E11-1))/13)) -> 0 | V11: =IF(Титульный!$B$27="Общая",2.2,) -> 0 | W11: =U11*V11/100 -> 0 | X11: =IF(D11=0,0,B11/D11) -> 0 | Y11: =IF(DATEDIF(C11,$Y$9,"m")*X11<B11,(B11-DATEDIF(C11,$Y$9,"m")*X11),0) -> 0 | Z11: =IF(X11*12<Y11,(X11*12),Y11) -> 0 | AA11: =IF(X11*12>Y11,0,(Y11-12*X11)) -> 0 | AB11: =IF(X11=0,0,IF(12*X11<Y11,(13*Y11-78*X11)/13,(Y11*Y11/X11-X11*(Y11/X11)*0.5*(Y11/X11-1))/13)) -> 0 | AC11: =IF(Титульный!$B$27="Общая",2.2,) -> 0 | AD11: =AB11*AC11/100 -> 0 | AE11: =AA11 -> 0 | AF11: =IF(X11*12<AE11,(X11*12),AE11) -> 0 | AG11: =IF(X11*12>AE11,0,(AE11-12*X11)) -> 0 | AH11: =IF(X11=0,0,IF(12*X11<AE11,(13*AE11-78*X11)/13,(AE11*AE11/X11-X11*(AE11/X11)*0.5*(AE11/X11-1))/13)) -> 0 | AI11: =IF(Титульный!$B$27="Общая",2.2,) -> 0 | AJ11: =AH11*AI11/100 -> 0 | AK11: =AG11 -> 0 | AL11: =IF(X11*12<AK11,(X11*12),AK11) -> 0 | AM11: =IF(X11*12>AK11,0,(AK11-12*X11)) -> 0 | AN11: =IF(X11=0,0,IF(12*X11<AK11,(13*AK11-78*X11)/13,(AK11*AK11/X11-X11*(AK11/X11)*0.5*(AK11/X11-1))/13)) -> 0 | AO11: =IF(Титульный!$B$27="Общая",2.2,) -> 0 | AP11: =AN11*AO11/100 -> 0
E12: 0 | F12: 0 | G12: =IF(E12*12<F12,E12*12,F12) -> 0 | H12: =IF(E12*12>F12,0,(F12-12*E12)) -> 0 | I12: =IF(E12=0,0,IF(12*E12<F12,(13*F12-78*E12)/13,(F12*F12/E12-E12*(F12/E12)*0.5*(F12/E12-1))/13)) -> 0 | J12: =IF(Титульный!$B$27="Общая",2.2,) -> 0 | K12: =I12*J12/100 -> 0 | L12: =H12 -> 0 | M12: =IF(E12*12<L12,E12*12,L12) -> 0 | N12: =IF(E12*12>L12,0,(L12-12*E12)) -> 0 | O12: =IF(E12=0,0,IF(12*E12<L12,(13*L12-78*E12)/13,(L12*L12/E12-E12*(L12/E12)*0.5*(L12/E12-1))/13)) -> 0 | P12: =IF(Титульный!$B$27="Общая",2.2,) -> 0 | Q12: =O12*P12/100 -> 0 | R12: =N12 -> 0 | S12: =IF(E12*12<R12,E12*12,R12) -> 0 | T12: =IF(E12*12>R12,0,(R12-12*E12)) -> 0 | U12: =IF(E12=0,0,IF(12*E12<R12,(13*R12-78*E12)/13,(R12*R12/E12-E12*(R12/E12)*0.5*(R12/E12-1))/13)) -> 0 | V12: =IF(Титульный!$B$27="Общая",2.2,) -> 0 | W12: =U12*V12/100 -> 0 | X12: =IF(D12=0,0,B12/D12) -> 0 | Y12: =IF(DATEDIF(C12,$Y$9,"m")*X12<B12,(B12-DATEDIF(C12,$Y$9,"m")*X12),0) -> 0 | Z12: =IF(X12*12<Y12,(X12*12),Y12) -> 0 | AA12: =IF(X12*12>Y12,0,(Y12-12*X12)) -> 0 | AB12: =IF(X12=0,0,IF(12*X12<Y12,(13*Y12-78*X12)/13,(Y12*Y12/X12-X12*(Y12/X12)*0.5*(Y12/X12-1))/13)) -> 0 | AC12: =IF(Титульный!$B$27="Общая",2.2,) -> 0 | AD12: =AB12*AC12/100 -> 0 | AE12: =AA12 -> 0 | AF12: =IF(X12*12<AE12,(X12*12),AE12) -> 0 | AG12: =IF(X12*12>AE12,0,(AE12-12*X12)) -> 0 | AH12: =IF(X12=0,0,IF(12*X12<AE12,(13*AE12-78*X12)/13,(AE12*AE12/X12-X12*(AE12/X12)*0.5*(AE12/X12-1))/13)) -> 0 | AI12: =IF(Титульный!$B$27="Общая",2.2,) -> 0 | AJ12: =AH12*AI12/100 -> 0 | AK12: =AG12 -> 0 | AL12: =IF(X12*12<AK12,(X12*12),AK12) -> 0 | AM12: =IF(X12*12>AK12,0,(AK12-12*X12)) -> 0 | AN12: =IF(X12=0,0,IF(12*X12<AK12,(13*AK12-78*X12)/13,(AK12*AK12/X12-X12*(AK12/X12)*0.5*(AK12/X12-1))/13)) -> 0 | AO12: =IF(Титульный!$B$27="Общая",2.2,) -> 0 | AP12: =AN12*AO12/100 -> 0
E13: 0 | F13: 0 | G13: 0 | H13: 0 | I13: 0 | J13: =IF(Титульный!$B$27="Общая",2.2,) -> 0 | K13: 0 | L13: 0 | M13: 0 | N13: 0 | O13: 0 | P13: =IF(Титульный!$B$27="Общая",2.2,) -> 0 | Q13: 0 | R13: 0 | S13: 0 | T13: 0 | U13: 0 | V13: =IF(Титульный!$B$27="Общая",2.2,) -> 0 | W13: 0 | X13: 0 | Y13: 0 | Z13: 0 | AA13: 0 | AB13: 0 | AC13: =IF(Титульный!$B$27="Общая",2.2,) -> 0 | AD13: 0 | AE13: 0 | AF13: 0 | AG13: 0 | AH13: 0 | AI13: =IF(Титульный!$B$27="Общая",2.2,) -> 0 | AJ13: 0 | AK13: 0 | AL13: 0 | AM13: 0 | AN13: 0 | AO13: =IF(Титульный!$B$27="Общая",2.2,) -> 0 | AP13: 0
E14: 0 | F14: 0 | G14: 0 | H14: 0 | I14: 0 | J14: =IF(Титульный!$B$27="Общая",2.2,) -> 0 | K14: 0 | L14: 0 | M14: 0 | N14: 0 | O14: 0 | P14: =IF(Титульный!$B$27="Общая",2.2,) -> 0 | Q14: 0 | R14: 0 | S14: 0 | T14: 0 | U14: 0 | V14: =IF(Титульный!$B$27="Общая",2.2,) -> 0 | W14: 0 | X14: 0 | Y14: 0 | Z14: 0 | AA14: 0 | AB14: 0 | AC14: =IF(Титульный!$B$27="Общая",2.2,) -> 0 | AD14: 0 | AE14: 0 | AF14: 0 | AG14: 0 | AH14: 0 | AI14: =IF(Титульный!$B$27="Общая",2.2,) -> 0 | AJ14: 0 | AK14: 0 | AL14: 0 | AM14: 0 | AN14: 0 | AO14: =IF(Титульный!$B$27="Общая",2.2,) -> 0 | AP14: 0
E15: 0 | F15: 0 | G15: 0 | H15: 0 | I15: 0 | J15: =IF(Титульный!$B$27="Общая",2.2,) -> 0 | K15: 0 | L15: 0 | M15: 0 | N15: 0 | O15: 0 | P15: =IF(Титульный!$B$27="Общая",2.2,) -> 0 | Q15: 0 | R15: 0 | S15: 0 | T15: 0 | U15: 0 | V15: =IF(Титульный!$B$27="Общая",2.2,) -> 0 | W15: 0 | X15: 0 | Y15: 0 | Z15: 0 | AA15: 0 | AB15: 0 | AC15: =IF(Титульный!$B$27="Общая",2.2,) -> 0 | AD15: 0 | AE15: 0 | AF15: 0 | AG15: 0 | AH15: 0 | AI15: =IF(Титульный!$B$27="Общая",2.2,) -> 0 | AJ15: 0 | AK15: 0 | AL15: 0 | AM15: 0 | AN15: 0 | AO15: =IF(Титульный!$B$27="Общая",2.2,) -> 0 | AP15: 0
E16: 0 | F16: 0 | G16: 0 | H16: 0 | I16: 0 | J16: =IF(Титульный!$B$27="Общая",2.2,) -> 0 | K16: 0 | L16: 0 | M16: 0 | N16: 0 | O16: 0 | P16: =IF(Титульный!$B$27="Общая",2.2,) -> 0 | Q16: 0 | R16: 0 | S16: 0 | T16: 0 | U16: 0 | V16: =IF(Титульный!$B$27="Общая",2.2,) -> 0 | W16: 0 | X16: 0 | Y16: 0 | Z16: 0 | AA16: 0 | AB16: 0 | AC16: =IF(Титульный!$B$27="Общая",2.2,) -> 0 | AD16: 0 | AE16: 0 | AF16: 0 | AG16: 0 | AH16: 0 | AI16: =IF(Титульный!$B$27="Общая",2.2,) -> 0 | AJ16: 0 | AK16: 0 | AL16: 0 | AM16: 0 | AN16: 0 | AO16: =IF(Титульный!$B$27="Общая",2.2,) -> 0 | AP16: 0
E17: 0 | F17: 0 | G17: 0 | H17: 0 | I17: 0 | J17: =IF(Титульный!$B$27="Общая",2.2,) -> 0 | K17: 0 | L17: 0 | M17: 0 | N17: 0 | O17: 0 | P17: =IF(Титульный!$B$27="Общая",2.2,) -> 0 | Q17: 0 | R17: 0 | S17: 0 | T17: 0 | U17: 0 | V17: =IF(Титульный!$B$27="Общая",2.2,) -> 0 | W17: 0 | X17: 0 | Y17: 0 | Z17: 0 | AA17: 0 | AB17: 0 | AC17: =IF(Титульный!$B$27="Общая",2.2,) -> 0 | AD17: 0 | AE17: 0 | AF17: 0 | AG17: 0 | AH17: 0 | AI17: =IF(Титульный!$B$27="Общая",2.2,) -> 0 | AJ17: 0 | AK17: 0 | AL17: 0 | AM17: 0 | AN17: 0 | AO17: =IF(Титульный!$B$27="Общая",2.2,) -> 0 | AP17: 0
E18: 0 | F18: 0 | G18: 0 | H18: 0 | I18: 0 | J18: =IF(Титульный!$B$27="Общая",2.2,) -> 0 | K18: 0 | L18: 0 | M18: 0 | N18: 0 | O18: 0 | P18: =IF(Титульный!$B$27="Общая",2.2,) -> 0 | Q18: 0 | R18: 0 | S18: 0 | T18: 0 | U18: 0 | V18: =IF(Титульный!$B$27="Общая",2.2,) -> 0 | W18: 0 | X18: 0 | Y18: 0 | Z18: 0 | AA18: 0 | AB18: 0 | AC18: =IF(Титульный!$B$27="Общая",2.2,) -> 0 | AD18: 0 | AE18: 0 | AF18: 0 | AG18: 0 | AH18: 0 | AI18: =IF(Титульный!$B$27="Общая",2.2,) -> 0 | AJ18: 0 | AK18: 0 | AL18: 0 | AM18: 0 | AN18: 0 | AO18: =IF(Титульный!$B$27="Общая",2.2,) -> 0 | AP18: 0
E19: 0 | F19: 0 | G19: 0 | H19: 0 | I19: 0 | J19: =IF(Титульный!$B$27="Общая",2.2,) -> 0 | K19: 0 | L19: 0 | M19: 0 | N19: 0 | O19: 0 | P19: =IF(Титульный!$B$27="Общая",2.2,) -> 0 | Q19: 0 | R19: 0 | S19: 0 | T19: 0 | U19: 0 | V19: =IF(Титульный!$B$27="Общая",2.2,) -> 0 | W19: 0 | X19: 0 | Y19: 0 | Z19: 0 | AA19: 0 | AB19: 0 | AC19: =IF(Титульный!$B$27="Общая",2.2,) -> 0 | AD19: 0 | AE19: 0 | AF19: 0 | AG19: 0 | AH19: 0 | AI19: =IF(Титульный!$B$27="Общая",2.2,) -> 0 | AJ19: 0 | AK19: 0 | AL19: 0 | AM19: 0 | AN19: 0 | AO19: =IF(Титульный!$B$27="Общая",2.2,) -> 0 | AP19: 0
E20: 0 | F20: 0 | G20: 0 | H20: 0 | I20: 0 | J20: =IF(Титульный!$B$27="Общая",2.2,) -> 0 | K20: 0 | L20: 0 | M20: 0 | N20: 0 | O20: 0 | P20: =IF(Титульный!$B$27="Общая",2.2,) -> 0 | Q20: 0 | R20: 0 | S20: 0 | T20: 0 | U20: 0 | V20: =IF(Титульный!$B$27="Общая",2.2,) -> 0 | W20: 0 | X20: 0 | Y20: 0 | Z20: 0 | AA20: 0 | AB20: 0 | AC20: =IF(Титульный!$B$27="Общая",2.2,) -> 0 | AD20: 0 | AE20: 0 | AF20: 0 | AG20: 0 | AH20: 0 | AI20: =IF(Титульный!$B$27="Общая",2.2,) -> 0 | AJ20: 0 | AK20: 0 | AL20: 0 | AM20: 0 | AN20: 0 | AO20: =IF(Титульный!$B$27="Общая",2.2,) -> 0 | AP20: 0
E21: 0 | F21: 0 | G21: 0 | H21: 0 | I21: 0 | J21: =IF(Титульный!$B$27="Общая",2.2,) -> 0 | K21: 0 | L21: 0 | M21: 0 | N21: 0 | O21: 0 | P21: =IF(Титульный!$B$27="Общая",2.2,) -> 0 | Q21: 0 | R21: 0 | S21: 0 | T21: 0 | U21: 0 | V21: =IF(Титульный!$B$27="Общая",2.2,) -> 0 | W21: 0 | X21: 0 | Y21: 0 | Z21: 0 | AA21: 0 | AB21: 0 | AC21: =IF(Титульный!$B$27="Общая",2.2,) -> 0 | AD21: 0 | AE21: 0 | AF21: 0 | AG21: 0 | AH21: 0 | AI21: =IF(Титульный!$B$27="Общая",2.2,) -> 0 | AJ21: 0 | AK21: 0 | AL21: 0 | AM21: 0 | AN21: 0 | AO21: =IF(Титульный!$B$27="Общая",2.2,) -> 0 | AP21: 0
E22: 0 | F22: 0 | G22: 0 | H22: 0 | I22: 0 | J22: =IF(Титульный!$B$27="Общая",2.2,) -> 0 | K22: 0 | L22: 0 | M22: 0 | N22: 0 | O22: 0 | P22: =IF(Титульный!$B$27="Общая",2.2,) -> 0 | Q22: 0 | R22: 0 | S22: 0 | T22: 0 | U22: 0 | V22: =IF(Титульный!$B$27="Общая",2.2,) -> 0 | W22: 0 | X22: 0 | Y22: 0 | Z22: 0 | AA22: 0 | AB22: 0 | AC22: =IF(Титульный!$B$27="Общая",2.2,) -> 0 | AD22: 0 | AE22: 0 | AF22: 0 | AG22: 0 | AH22: 0 | AI22: =IF(Титульный!$B$27="Общая",2.2,) -> 0 | AJ22: 0 | AK22: 0 | AL22: 0 | AM22: 0 | AN22: 0 | AO22: =IF(Титульный!$B$27="Общая",2.2,) -> 0 | AP22: 0
E23: 0 | F23: 0 | G23: 0 | H23: 0 | I23: 0 | J23: =IF(Титульный!$B$27="Общая",2.2,) -> 0 | K23: 0 | L23: 0 | M23: 0 | N23: 0 | O23: 0 | P23: =IF(Титульный!$B$27="Общая",2.2,) -> 0 | Q23: 0 | R23: 0 | S23: 0 | T23: 0 | U23: 0 | V23: =IF(Титульный!$B$27="Общая",2.2,) -> 0 | W23: 0 | X23: 0 | Y23: 0 | Z23: 0 | AA23: 0 | AB23: 0 | AC23: =IF(Титульный!$B$27="Общая",2.2,) -> 0 | AD23: 0 | AE23: 0 | AF23: 0 | AG23: 0 | AH23: 0 | AI23: =IF(Титульный!$B$27="Общая",2.2,) -> 0 | AJ23: 0 | AK23: 0 | AL23: 0 | AM23: 0 | AN23: 0 | AO23: =IF(Титульный!$B$27="Общая",2.2,) -> 0 | AP23: 0
E24: 0 | F24: 0 | G24: 0 | H24: 0 | I24: 0 | J24: =IF(Титульный!$B$27="Общая",2.2,) -> 0 | K24: 0 | L24: 0 | M24: 0 | N24: 0 | O24: 0 | P24: =IF(Титульный!$B$27="Общая",2.2,) -> 0 | Q24: 0 | R24: 0 | S24: 0 | T24: 0 | U24: 0 | V24: =IF(Титульный!$B$27="Общая",2.2,) -> 0 | W24: 0 | X24: 0 | Y24: 0 | Z24: 0 | AA24: 0 | AB24: 0 | AC24: =IF(Титульный!$B$27="Общая",2.2,) -> 0 | AD24: 0 | AE24: 0 | AF24: 0 | AG24: 0 | AH24: 0 | AI24: =IF(Титульный!$B$27="Общая",2.2,) -> 0 | AJ24: 0 | AK24: 0 | AL24: 0 | AM24: 0 | AN24: 0 | AO24: =IF(Титульный!$B$27="Общая",2.2,) -> 0 | AP24: 0
E25: 0 | F25: 0 | G25: 0 | H25: 0 | I25: 0 | J25: =IF(Титульный!$B$27="Общая",2.2,) -> 0 | K25: 0 | L25: 0 | M25: 0 | N25: 0 | O25: 0 | P25: =IF(Титульный!$B$27="Общая",2.2,) -> 0 | Q25: 0 | R25: 0 | S25: 0 | T25: 0 | U25: 0 | V25: =IF(Титульный!$B$27="Общая",2.2,) -> 0 | W25: 0 | X25: 0 | Y25: 0 | Z25: 0 | AA25: 0 | AB25: 0 | AC25: =IF(Титульный!$B$27="Общая",2.2,) -> 0 | AD25: 0 | AE25: 0 | AF25: 0 | AG25: 0 | AH25: 0 | AI25: =IF(Титульный!$B$27="Общая",2.2,) -> 0 | AJ25: 0 | AK25: 0 | AL25: 0 | AM25: 0 | AN25: 0 | AO25: =IF(Титульный!$B$27="Общая",2.2,) -> 0 | AP25: 0
E26: 0 | F26: 0 | G26: 0 | H26: 0 | I26: 0 | J26: =IF(Титульный!$B$27="Общая",2.2,) -> 0 | K26: 0 | L26: 0 | M26: 0 | N26: 0 | O26: 0 | P26: =IF(Титульный!$B$27="Общая",2.2,) -> 0 | Q26: 0 | R26: 0 | S26: 0 | T26: 0 | U26: 0 | V26: =IF(Титульный!$B$27="Общая",2.2,) -> 0 | W26: 0 | X26: 0 | Y26: 0 | Z26: 0 | AA26: 0 | AB26: 0 | AC26: =IF(Титульный!$B$27="Общая",2.2,) -> 0 | AD26: 0 | AE26: 0 | AF26: 0 | AG26: 0 | AH26: 0 | AI26: =IF(Титульный!$B$27="Общая",2.2,) -> 0 | AJ26: 0 | AK26: 0 | AL26: 0 | AM26: 0 | AN26: 0 | AO26: =IF(Титульный!$B$27="Общая",2.2,) -> 0 | AP26: 0
E27: 0 | F27: 0 | G27: 0 | H27: 0 | I27: 0 | J27: =IF(Титульный!$B$27="Общая",2.2,) -> 0 | K27: 0 | L27: 0 | M27: 0 | N27: 0 | O27: 0 | P27: =IF(Титульный!$B$27="Общая",2.2,) -> 0 | Q27: 0 | R27: 0 | S27: 0 | T27: 0 | U27: 0 | V27: =IF(Титульный!$B$27="Общая",2.2,) -> 0 | W27: 0 | X27: 0 | Y27: 0 | Z27: 0 | AA27: 0 | AB27: 0 | AC27: =IF(Титульный!$B$27="Общая",2.2,) -> 0 | AD27: 0 | AE27: 0 | AF27: 0 | AG27: 0 | AH27: 0 | AI27: =IF(Титульный!$B$27="Общая",2.2,) -> 0 | AJ27: 0 | AK27: 0 | AL27: 0 | AM27: 0 | AN27: 0 | AO27: =IF(Титульный!$B$27="Общая",2.2,) -> 0 | AP27: 0
E28: 0 | F28: 0 | G28: 0 | H28: 0 | I28: 0 | J28: =IF(Титульный!$B$27="Общая",2.2,) -> 0 | K28: 0 | L28: 0 | M28: 0 | N28: 0 | O28: 0 | P28: =IF(Титульный!$B$27="Общая",2.2,) -> 0 | Q28: 0 | R28: 0 | S28: 0 | T28: 0 | U28: 0 | V28: =IF(Титульный!$B$27="Общая",2.2,) -> 0 | W28: 0 | X28: 0 | Y28: 0 | Z28: 0 | AA28: 0 | AB28: 0 | AC28: =IF(Титульный!$B$27="Общая",2.2,) -> 0 | AD28: 0 | AE28: 0 | AF28: 0 | AG28: 0 | AH28: 0 | AI28: =IF(Титульный!$B$27="Общая",2.2,) -> 0 | AJ28: 0 | AK28: 0 | AL28: 0 | AM28: 0 | AN28: 0 | AO28: =IF(Титульный!$B$27="Общая",2.2,) -> 0 | AP28: 0
E29: 0 | F29: 0 | G29: 0 | H29: 0 | I29: 0 | J29: =IF(Титульный!$B$27="Общая",2.2,) -> 0 | K29: 0 | L29: 0 | M29: 0 | N29: 0 | O29: 0 | P29: =IF(Титульный!$B$27="Общая",2.2,) -> 0 | Q29: 0 | R29: 0 | S29: 0 | T29: 0 | U29: 0 | V29: =IF(Титульный!$B$27="Общая",2.2,) -> 0 | W29: 0 | X29: 0 | Y29: 0 | Z29: 0 | AA29: 0 | AB29: 0 | AC29: =IF(Титульный!$B$27="Общая",2.2,) -> 0 | AD29: 0 | AE29: 0 | AF29: 0 | AG29: 0 | AH29: 0 | AI29: =IF(Титульный!$B$27="Общая",2.2,) -> 0 | AJ29: 0 | AK29: 0 | AL29: 0 | AM29: 0 | AN29: 0 | AO29: =IF(Титульный!$B$27="Общая",2.2,) -> 0 | AP29: 0
E30: 0 | F30: 0 | G30: 0 | H30: 0 | I30: 0 | J30: =IF(Титульный!$B$27="Общая",2.2,) -> 0 | K30: 0 | L30: 0 | M30: 0 | N30: 0 | O30: 0 | P30: =IF(Титульный!$B$27="Общая",2.2,) -> 0 | Q30: 0 | R30: 0 | S30: 0 | T30: 0 | U30: 0 | V30: =IF(Титульный!$B$27="Общая",2.2,) -> 0 | W30: 0 | X30: 0 | Y30: 0 | Z30: 0 | AA30: 0 | AB30: 0 | AC30: =IF(Титульный!$B$27="Общая",2.2,) -> 0 | AD30: 0 | AE30: 0 | AF30: 0 | AG30: 0 | AH30: 0 | AI30: =IF(Титульный!$B$27="Общая",2.2,) -> 0 | AJ30: 0 | AK30: 0 | AL30: 0 | AM30: 0 | AN30: 0 | AO30: =IF(Титульный!$B$27="Общая",2.2,) -> 0 | AP30: 0
A31: ИТОГО | B31: =SUM(B11:B30) -> 0 | C31: х | D31: х | E31: =SUM(E11:E30) -> 0 | F31: =SUM(F11:F30) -> 0 | G31: =SUM(G11:G30) -> 0 | H31: =SUM(H11:H30) -> 0 | I31: =SUM(I11:I30) -> 0 | K31: =SUM(K11:K30) -> 0 | L31: =SUM(L11:L30) -> 0 | M31: =SUM(M11:M30) -> 0 | N31: =SUM(N11:N30) -> 0 | O31: =SUM(O11:O30) -> 0 | Q31: =SUM(Q11:Q30) -> 0 | R31: =SUM(R11:R30) -> 0 | S31: =SUM(S11:S30) -> 0 | T31: =SUM(T11:T30) -> 0 | U31: =SUM(U11:U30) -> 0 | W31: =SUM(W11:W30) -> 0 | X31: 0 | Y31: 0 | Z31: 0 | AA31: 0 | AB31: 0 | AD31: =SUM(AD11:AD30) -> 0 | AE31: =SUM(AE11:AE30) -> 0 | AF31: =SUM(AF11:AF30) -> 0 | AG31: =SUM(AG11:AG30) -> 0 | AH31: =SUM(AH11:AH30) -> 0 | AJ31: =SUM(AJ11:AJ30) -> 0 | AK31: =SUM(AK11:AK30) -> 0 | AL31: =SUM(AL11:AL30) -> 0 | AM31: =SUM(AM11:AM30) -> 0 | AN31: =SUM(AN11:AN30) -> 0 | AP31: =SUM(AP11:AP30) -> 0
A32: Очистка сточных вод
E33: 1559.500679 | F33: =IF(DATEDIF(C33,$F$9,"m")*E33<B33,(B33-DATEDIF(C33,$F$9,"m")*E33),0) -> 0 | G33: =IF(E33*12<F33,E33*12,F33) -> 0 | H33: =IF(E33*12>F33,0,(F33-12*E33)) -> 0 | I33: =IF(E33=0,0,IF(12*E33<F33,(13*F33-78*E33)/13,(F33*F33/E33-E33*(F33/E33)*0.5*(F33/E33-1))/13)) -> 0 | J33: =IF(Титульный!$B$27="Общая",2.2,) -> 0 | K33: =I33*J33/100 -> 0 | L33: =H33 -> 0 | M33: =IF(E33*12<L33,E33*12,L33) -> 0 | N33: =IF(E33*12>L33,0,(L33-12*E33)) -> 0 | O33: =IF(E33=0,0,IF(12*E33<L33,(13*L33-78*E33)/13,(L33*L33/E33-E33*(L33/E33)*0.5*(L33/E33-1))/13)) -> 0 | P33: =IF(Титульный!$B$27="Общая",2.2,) -> 0 | Q33: =O33*P33/100 -> 0 | R33: =N33 -> 0 | S33: =IF(E33*12<R33,E33*12,R33) -> 0 | T33: =IF(E33*12>R33,0,(R33-12*E33)) -> 0 | U33: =IF(E33=0,0,IF(12*E33<R33,(13*R33-78*E33)/13,(R33*R33/E33-E33*(R33/E33)*0.5*(R33/E33-1))/13)) -> 0 | V33: =IF(Титульный!$B$27="Общая",2.2,) -> 0 | W33: =U33*V33/100 -> 0 | X33: =IF(D33=0,0,B33/D33) -> 0 | Y33: =IF(DATEDIF(C33,$Y$9,"m")*X33<B33,(B33-DATEDIF(C33,$Y$9,"m")*X33),0) -> 0 | Z33: =IF(X33*12<Y33,(X33*12),Y33) -> 0 | AA33: =IF(X33*12>Y33,0,(Y33-12*X33)) -> 0 | AB33: =IF(X33=0,0,IF(12*X33<Y33,(13*Y33-78*X33)/13,(Y33*Y33/X33-X33*(Y33/X33)*0.5*(Y33/X33-1))/13)) -> 0 | AC33: =IF(Титульный!$B$27="Общая",2.2,) -> 0 | AD33: =AB33*AC33/100 -> 0 | AE33: =AA33 -> 0 | AF33: =IF(X33*12<AE33,(X33*12),AE33) -> 0 | AG33: =IF(X33*12>AE33,0,(AE33-12*X33)) -> 0 | AH33: =IF(X33=0,0,IF(12*X33<AE33,(13*AE33-78*X33)/13,(AE33*AE33/X33-X33*(AE33/X33)*0.5*(AE33/X33-1))/13)) -> 0 | AI33: =IF(Титульный!$B$27="Общая",2.2,) -> 0 | AJ33: =AH33*AI33/100 -> 0 | AK33: =AG33 -> 0 | AL33: =IF(X33*12<AK33,(X33*12),AK33) -> 0 | AM33: =IF(X33*12>AK33,0,(AK33-12*X33)) -> 0 | AN33: =IF(X33=0,0,IF(12*X33<AK33,(13*AK33-78*X33)/13,(AK33*AK33/X33-X33*(AK33/X33)*0.5*(AK33/X33-1))/13)) -> 0 | AO33: =IF(Титульный!$B$27="Общая",2.2,) -> 0 | AP33: =AN33*AO33/100 -> 0
E34: =IF(D34=0,0,B34/D34) -> 0 | F34: 0 | G34: 0 | H34: 0 | I34: 0 | J34: =IF(Титульный!$B$27="Общая",2.2,) -> 0 | K34: =I34*J34/100 -> 0 | L34: 0 | M34: 0 | N34: 0 | O34: 0 | P34: =IF(Титульный!$B$27="Общая",2.2,) -> 0 | Q34: =O34*P34/100 -> 0 | R34: 0 | S34: 0 | T34: 0 | U34: 0 | V34: =IF(Титульный!$B$27="Общая",2.2,) -> 0 | W34: =U34*V34/100 -> 0 | X34: 0 | Y34: 0 | Z34: 0 | AA34: 0 | AB34: 0 | AC34: =IF(Титульный!$B$27="Общая",2.2,) -> 0 | AD34: =AB34*AC34/100 -> 0 | AE34: 0 | AF34: 0 | AG34: 0 | AH34: 0 | AI34: =IF(Титульный!$B$27="Общая",2.2,) -> 0 | AJ34: =AH34*AI34/100 -> 0 | AK34: 0 | AL34: 0 | AM34: 0 | AN34: 0 | AO34: =IF(Титульный!$B$27="Общая",2.2,) -> 0 | AP34: =AN34*AO34/100 -> 0
E35: 0 | F35: 0 | G35: 0 | H35: 0 | I35: 0 | J35: =IF(Титульный!$B$27="Общая",2.2,) -> 0 | K35: 0 | L35: 0 | M35: 0 | N35: 0 | O35: 0 | P35: =IF(Титульный!$B$27="Общая",2.2,) -> 0 | Q35: 0 | R35: 0 | S35: 0 | T35: 0 | U35: 0 | V35: =IF(Титульный!$B$27="Общая",2.2,) -> 0 | W35: 0 | X35: 0 | Y35: 0 | Z35: 0 | AA35: 0 | AB35: 0 | AC35: =IF(Титульный!$B$27="Общая",2.2,) -> 0 | AD35: 0 | AE35: 0 | AF35: 0 | AG35: 0 | AH35: 0 | AI35: =IF(Титульный!$B$27="Общая",2.2,) -> 0 | AJ35: 0 | AK35: 0 | AL35: 0 | AM35: 0 | AN35: 0 | AO35: =IF(Титульный!$B$27="Общая",2.2,) -> 0 | AP35: 0
E36: 0 | F36: 0 | G36: 0 | H36: 0 | I36: 0 | J36: =IF(Титульный!$B$27="Общая",2.2,) -> 0 | K36: 0 | L36: 0 | M36: 0 | N36: 0 | O36: 0 | P36: =IF(Титульный!$B$27="Общая",2.2,) -> 0 | Q36: 0 | R36: 0 | S36: 0 | T36: 0 | U36: 0 | V36: =IF(Титульный!$B$27="Общая",2.2,) -> 0 | W36: 0 | X36: 0 | Y36: 0 | Z36: 0 | AA36: 0 | AB36: 0 | AC36: =IF(Титульный!$B$27="Общая",2.2,) -> 0 | AD36: 0 | AE36: 0 | AF36: 0 | AG36: 0 | AH36: 0 | AI36: =IF(Титульный!$B$27="Общая",2.2,) -> 0 | AJ36: 0 | AK36: 0 | AL36: 0 | AM36: 0 | AN36: 0 | AO36: =IF(Титульный!$B$27="Общая",2.2,) -> 0 | AP36: 0
E37: 0 | F37: 0 | G37: 0 | H37: 0 | I37: 0 | J37: =IF(Титульный!$B$27="Общая",2.2,) -> 0 | K37: 0 | L37: 0 | M37: 0 | N37: 0 | O37: 0 | P37: =IF(Титульный!$B$27="Общая",2.2,) -> 0 | Q37: 0 | R37: 0 | S37: 0 | T37: 0 | U37: 0 | V37: =IF(Титульный!$B$27="Общая",2.2,) -> 0 | W37: 0 | X37: 0 | Y37: 0 | Z37: 0 | AA37: 0 | AB37: 0 | AC37: =IF(Титульный!$B$27="Общая",2.2,) -> 0 | AD37: 0 | AE37: 0 | AF37: 0 | AG37: 0 | AH37: 0 | AI37: =IF(Титульный!$B$27="Общая",2.2,) -> 0 | AJ37: 0 | AK37: 0 | AL37: 0 | AM37: 0 | AN37: 0 | AO37: =IF(Титульный!$B$27="Общая",2.2,) -> 0 | AP37: 0
E38: 0 | F38: 0 | G38: 0 | H38: 0 | I38: 0 | J38: =IF(Титульный!$B$27="Общая",2.2,) -> 0 | K38: 0 | L38: 0 | M38: 0 | N38: 0 | O38: 0 | P38: =IF(Титульный!$B$27="Общая",2.2,) -> 0 | Q38: 0 | R38: 0 | S38: 0 | T38: 0 | U38: 0 | V38: =IF(Титульный!$B$27="Общая",2.2,) -> 0 | W38: 0 | X38: 0 | Y38: 0 | Z38: 0 | AA38: 0 | AB38: 0 | AC38: =IF(Титульный!$B$27="Общая",2.2,) -> 0 | AD38: 0 | AE38: 0 | AF38: 0 | AG38: 0 | AH38: 0 | AI38: =IF(Титульный!$B$27="Общая",2.2,) -> 0 | AJ38: 0 | AK38: 0 | AL38: 0 | AM38: 0 | AN38: 0 | AO38: =IF(Титульный!$B$27="Общая",2.2,) -> 0 | AP38: 0
E39: 0 | F39: 0 | G39: 0 | H39: 0 | I39: 0 | J39: =IF(Титульный!$B$27="Общая",2.2,) -> 0 | K39: 0 | L39: 0 | M39: 0 | N39: 0 | O39: 0 | P39: =IF(Титульный!$B$27="Общая",2.2,) -> 0 | Q39: 0 | R39: 0 | S39: 0 | T39: 0 | U39: 0 | V39: =IF(Титульный!$B$27="Общая",2.2,) -> 0 | W39: 0 | X39: 0 | Y39: 0 | Z39: 0 | AA39: 0 | AB39: 0 | AC39: =IF(Титульный!$B$27="Общая",2.2,) -> 0 | AD39: 0 | AE39: 0 | AF39: 0 | AG39: 0 | AH39: 0 | AI39: =IF(Титульный!$B$27="Общая",2.2,) -> 0 | AJ39: 0 | AK39: 0 | AL39: 0 | AM39: 0 | AN39: 0 | AO39: =IF(Титульный!$B$27="Общая",2.2,) -> 0 | AP39: 0
E40: 0 | F40: 0 | G40: 0 | H40: 0 | I40: 0 | J40: =IF(Титульный!$B$27="Общая",2.2,) -> 0 | K40: 0 | L40: 0 | M40: 0 | N40: 0 | O40: 0 | P40: =IF(Титульный!$B$27="Общая",2.2,) -> 0 | Q40: 0 | R40: =IF(DATEDIF(O40,$F$9,"m")*Q40<N40,(N40-DATEDIF(O40,$F$9,"m")*Q40),0) -> 0 | S40: 0 | T40: 0 | U40: 0 | V40: =IF(Титульный!$B$27="Общая",2.2,) -> 0 | W40: 0 | X40: 0 | Y40: 0 | Z40: 0 | AA40: 0 | AB40: 0 | AC40: =IF(Титульный!$B$27="Общая",2.2,) -> 0 | AD40: 0 | AE40: 0 | AF40: 0 | AG40: 0 | AH40: 0 | AI40: =IF(Титульный!$B$27="Общая",2.2,) -> 0 | AJ40: 0 | AK40: 0 | AL40: 0 | AM40: 0 | AN40: 0 | AO40: =IF(Титульный!$B$27="Общая",2.2,) -> 0 | AP40: 0
E41: 0 | F41: 0 | G41: 0 | H41: 0 | I41: 0 | J41: =IF(Титульный!$B$27="Общая",2.2,) -> 0 | K41: 0 | L41: 0 | M41: 0 | N41: 0 | O41: 0 | P41: =IF(Титульный!$B$27="Общая",2.2,) -> 0 | Q41: 0 | R41: 0 | S41: 0 | T41: 0 | U41: 0 | V41: =IF(Титульный!$B$27="Общая",2.2,) -> 0 | W41: 0 | X41: 0 | Y41: 0 | Z41: 0 | AA41: 0 | AB41: 0 | AC41: =IF(Титульный!$B$27="Общая",2.2,) -> 0 | AD41: 0 | AE41: 0 | AF41: 0 | AG41: 0 | AH41: 0 | AI41: =IF(Титульный!$B$27="Общая",2.2,) -> 0 | AJ41: 0 | AK41: 0 | AL41: 0 | AM41: 0 | AN41: 0 | AO41: =IF(Титульный!$B$27="Общая",2.2,) -> 0 | AP41: 0
E42: 0 | F42: 0 | G42: 0 | H42: 0 | I42: 0 | J42: =IF(Титульный!$B$27="Общая",2.2,) -> 0 | K42: 0 | L42: 0 | M42: 0 | N42: 0 | O42: 0 | P42: =IF(Титульный!$B$27="Общая",2.2,) -> 0 | Q42: 0 | R42: 0 | S42: 0 | T42: 0 | U42: 0 | V42: =IF(Титульный!$B$27="Общая",2.2,) -> 0 | W42: 0 | X42: 0 | Y42: 0 | Z42: 0 | AA42: 0 | AB42: 0 | AC42: =IF(Титульный!$B$27="Общая",2.2,) -> 0 | AD42: 0 | AE42: 0 | AF42: 0 | AG42: 0 | AH42: 0 | AI42: =IF(Титульный!$B$27="Общая",2.2,) -> 0 | AJ42: 0 | AK42: 0 | AL42: 0 | AM42: 0 | AN42: 0 | AO42: =IF(Титульный!$B$27="Общая",2.2,) -> 0 | AP42: 0
E43: 0 | F43: 0 | G43: 0 | H43: 0 | I43: 0 | J43: =IF(Титульный!$B$27="Общая",2.2,) -> 0 | K43: 0 | L43: 0 | M43: 0 | N43: 0 | O43: 0 | P43: =IF(Титульный!$B$27="Общая",2.2,) -> 0 | Q43: 0 | R43: 0 | S43: 0 | T43: 0 | U43: 0 | V43: =IF(Титульный!$B$27="Общая",2.2,) -> 0 | W43: 0 | X43: 0 | Y43: 0 | Z43: 0 | AA43: 0 | AB43: 0 | AC43: =IF(Титульный!$B$27="Общая",2.2,) -> 0 | AD43: 0 | AE43: 0 | AF43: 0 | AG43: 0 | AH43: 0 | AI43: =IF(Титульный!$B$27="Общая",2.2,) -> 0 | AJ43: 0 | AK43: 0 | AL43: 0 | AM43: 0 | AN43: 0 | AO43: =IF(Титульный!$B$27="Общая",2.2,) -> 0 | AP43: 0
E44: 0 | F44: 0 | G44: 0 | H44: 0 | I44: 0 | J44: =IF(Титульный!$B$27="Общая",2.2,) -> 0 | K44: 0 | L44: 0 | M44: 0 | N44: 0 | O44: 0 | P44: =IF(Титульный!$B$27="Общая",2.2,) -> 0 | Q44: 0 | R44: 0 | S44: 0 | T44: 0 | U44: 0 | V44: =IF(Титульный!$B$27="Общая",2.2,) -> 0 | W44: 0 | X44: 0 | Y44: 0 | Z44: 0 | AA44: 0 | AB44: 0 | AC44: =IF(Титульный!$B$27="Общая",2.2,) -> 0 | AD44: 0 | AE44: 0 | AF44: 0 | AG44: 0 | AH44: 0 | AI44: =IF(Титульный!$B$27="Общая",2.2,) -> 0 | AJ44: 0 | AK44: 0 | AL44: 0 | AM44: 0 | AN44: 0 | AO44: =IF(Титульный!$B$27="Общая",2.2,) -> 0 | AP44: 0
E45: 0 | F45: 0 | G45: 0 | H45: 0 | I45: 0 | J45: =IF(Титульный!$B$27="Общая",2.2,) -> 0 | K45: 0 | L45: 0 | M45: 0 | N45: 0 | O45: 0 | P45: =IF(Титульный!$B$27="Общая",2.2,) -> 0 | Q45: 0 | R45: 0 | S45: 0 | T45: 0 | U45: 0 | V45: =IF(Титульный!$B$27="Общая",2.2,) -> 0 | W45: 0 | X45: 0 | Y45: 0 | Z45: 0 | AA45: 0 | AB45: 0 | AC45: =IF(Титульный!$B$27="Общая",2.2,) -> 0 | AD45: 0 | AE45: 0 | AF45: 0 | AG45: 0 | AH45: 0 | AI45: =IF(Титульный!$B$27="Общая",2.2,) -> 0 | AJ45: 0 | AK45: 0 | AL45: 0 | AM45: 0 | AN45: 0 | AO45: =IF(Титульный!$B$27="Общая",2.2,) -> 0 | AP45: 0
E46: 0 | F46: 0 | G46: 0 | H46: 0 | I46: 0 | J46: =IF(Титульный!$B$27="Общая",2.2,) -> 0 | K46: 0 | L46: 0 | M46: 0 | N46: 0 | O46: 0 | P46: =IF(Титульный!$B$27="Общая",2.2,) -> 0 | Q46: 0 | R46: 0 | S46: 0 | T46: 0 | U46: 0 | V46: =IF(Титульный!$B$27="Общая",2.2,) -> 0 | W46: 0 | X46: 0 | Y46: 0 | Z46: 0 | AA46: 0 | AB46: 0 | AC46: =IF(Титульный!$B$27="Общая",2.2,) -> 0 | AD46: 0 | AE46: 0 | AF46: 0 | AG46: 0 | AH46: 0 | AI46: =IF(Титульный!$B$27="Общая",2.2,) -> 0 | AJ46: 0 | AK46: 0 | AL46: 0 | AM46: 0 | AN46: 0 | AO46: =IF(Титульный!$B$27="Общая",2.2,) -> 0 | AP46: 0
E47: 0 | F47: 0 | G47: 0 | H47: 0 | I47: 0 | J47: =IF(Титульный!$B$27="Общая",2.2,) -> 0 | K47: 0 | L47: 0 | M47: 0 | N47: 0 | O47: 0 | P47: =IF(Титульный!$B$27="Общая",2.2,) -> 0 | Q47: 0 | R47: 0 | S47: 0 | T47: 0 | U47: 0 | V47: =IF(Титульный!$B$27="Общая",2.2,) -> 0 | W47: 0 | X47: 0 | Y47: 0 | Z47: 0 | AA47: 0 | AB47: 0 | AC47: =IF(Титульный!$B$27="Общая",2.2,) -> 0 | AD47: 0 | AE47: 0 | AF47: 0 | AG47: 0 | AH47: 0 | AI47: =IF(Титульный!$B$27="Общая",2.2,) -> 0 | AJ47: 0 | AK47: 0 | AL47: 0 | AM47: 0 | AN47: 0 | AO47: =IF(Титульный!$B$27="Общая",2.2,) -> 0 | AP47: 0
E48: 0 | F48: 0 | G48: 0 | H48: 0 | I48: 0 | J48: =IF(Титульный!$B$27="Общая",2.2,) -> 0 | K48: 0 | L48: 0 | M48: 0 | N48: 0 | O48: 0 | P48: =IF(Титульный!$B$27="Общая",2.2,) -> 0 | Q48: 0 | R48: 0 | S48: 0 | T48: 0 | U48: 0 | V48: =IF(Титульный!$B$27="Общая",2.2,) -> 0 | W48: 0 | X48: 0 | Y48: 0 | Z48: 0 | AA48: 0 | AB48: 0 | AC48: =IF(Титульный!$B$27="Общая",2.2,) -> 0 | AD48: 0 | AE48: 0 | AF48: 0 | AG48: 0 | AH48: 0 | AI48: =IF(Титульный!$B$27="Общая",2.2,) -> 0 | AJ48: 0 | AK48: 0 | AL48: 0 | AM48: 0 | AN48: 0 | AO48: =IF(Титульный!$B$27="Общая",2.2,) -> 0 | AP48: 0
E49: 0 | F49: 0 | G49: 0 | H49: 0 | I49: 0 | J49: =IF(Титульный!$B$27="Общая",2.2,) -> 0 | K49: 0 | L49: 0 | M49: 0 | N49: 0 | O49: 0 | P49: =IF(Титульный!$B$27="Общая",2.2,) -> 0 | Q49: 0 | R49: 0 | S49: 0 | T49: 0 | U49: 0 | V49: =IF(Титульный!$B$27="Общая",2.2,) -> 0 | W49: 0 | X49: 0 | Y49: 0 | Z49: 0 | AA49: 0 | AB49: 0 | AC49: =IF(Титульный!$B$27="Общая",2.2,) -> 0 | AD49: 0 | AE49: 0 | AF49: 0 | AG49: 0 | AH49: 0 | AI49: =IF(Титульный!$B$27="Общая",2.2,) -> 0 | AJ49: 0 | AK49: 0 | AL49: 0 | AM49: 0 | AN49: 0 | AO49: =IF(Титульный!$B$27="Общая",2.2,) -> 0 | AP49: 0
E50: 0 | F50: 0 | G50: 0 | H50: 0 | I50: 0 | J50: =IF(Титульный!$B$27="Общая",2.2,) -> 0 | K50: 0 | L50: 0 | M50: 0 | N50: 0 | O50: 0 | P50: =IF(Титульный!$B$27="Общая",2.2,) -> 0 | Q50: 0 | R50: 0 | S50: 0 | T50: 0 | U50: 0 | V50: =IF(Титульный!$B$27="Общая",2.2,) -> 0 | W50: 0 | X50: 0 | Y50: 0 | Z50: 0 | AA50: 0 | AB50: 0 | AC50: =IF(Титульный!$B$27="Общая",2.2,) -> 0 | AD50: 0 | AE50: 0 | AF50: 0 | AG50: 0 | AH50: 0 | AI50: =IF(Титульный!$B$27="Общая",2.2,) -> 0 | AJ50: 0 | AK50: 0 | AL50: 0 | AM50: 0 | AN50: 0 | AO50: =IF(Титульный!$B$27="Общая",2.2,) -> 0 | AP50: 0
E51: 0 | F51: 0 | G51: 0 | H51: 0 | I51: 0 | J51: =IF(Титульный!$B$27="Общая",2.2,) -> 0 | K51: 0 | L51: 0 | M51: 0 | N51: 0 | O51: 0 | P51: =IF(Титульный!$B$27="Общая",2.2,) -> 0 | Q51: 0 | R51: 0 | S51: 0 | T51: 0 | U51: 0 | V51: =IF(Титульный!$B$27="Общая",2.2,) -> 0 | W51: 0 | X51: 0 | Y51: 0 | Z51: 0 | AA51: 0 | AB51: 0 | AC51: =IF(Титульный!$B$27="Общая",2.2,) -> 0 | AD51: 0 | AE51: 0 | AF51: 0 | AG51: 0 | AH51: 0 | AI51: =IF(Титульный!$B$27="Общая",2.2,) -> 0 | AJ51: 0 | AK51: 0 | AL51: 0 | AM51: 0 | AN51: 0 | AO51: =IF(Титульный!$B$27="Общая",2.2,) -> 0 | AP51: 0
E52: 0 | F52: 0 | G52: 0 | H52: 0 | I52: 0 | J52: =IF(Титульный!$B$27="Общая",2.2,) -> 0 | K52: 0 | L52: 0 | M52: 0 | N52: 0 | O52: 0 | P52: =IF(Титульный!$B$27="Общая",2.2,) -> 0 | Q52: 0 | R52: 0 | S52: 0 | T52: 0 | U52: 0 | V52: =IF(Титульный!$B$27="Общая",2.2,) -> 0 | W52: 0 | X52: 0 | Y52: 0 | Z52: 0 | AA52: 0 | AB52: 0 | AC52: =IF(Титульный!$B$27="Общая",2.2,) -> 0 | AD52: 0 | AE52: 0 | AF52: 0 | AG52: 0 | AH52: 0 | AI52: =IF(Титульный!$B$27="Общая",2.2,) -> 0 | AJ52: 0 | AK52: 0 | AL52: 0 | AM52: 0 | AN52: 0 | AO52: =IF(Титульный!$B$27="Общая",2.2,) -> 0 | AP52: 0
A53: ИТОГО очистка | B53: =SUM(B33:B52) -> 0 | C53: х | D53: х | E53: =SUM(E33:E52) -> 1559.500679 | F53: =SUM(F33:F52) -> 0 | G53: =SUM(G33:G52) -> 0 | H53: =SUM(H33:H52) -> 0 | I53: =SUM(I33:I52) -> 0 | K53: =SUM(K33:K52) -> 0 | L53: =SUM(L33:L52) -> 0 | M53: =SUM(M33:M52) -> 0 | N53: =SUM(N33:N52) -> 0 | O53: =SUM(O33:O52) -> 0 | Q53: =SUM(Q33:Q52) -> 0 | R53: =SUM(R33:R52) -> 0 | S53: =SUM(S33:S52) -> 0 | T53: =SUM(T33:T52) -> 0 | U53: =SUM(U33:U52) -> 0 | W53: =SUM(W33:W52) -> 0 | X53: 0 | Y53: 0 | Z53: 0 | AA53: 0 | AB53: 0 | AD53: =SUM(AD33:AD52) -> 0 | AE53: =SUM(AE33:AE52) -> 0 | AF53: =SUM(AF33:AF52) -> 0 | AG53: =SUM(AG33:AG52) -> 0 | AH53: =SUM(AH33:AH52) -> 0 | AJ53: =SUM(AJ33:AJ52) -> 0 | AK53: =SUM(AK33:AK52) -> 0 | AL53: =SUM(AL33:AL52) -> 0 | AM53: =SUM(AM33:AM52) -> 0 | AN53: =SUM(AN33:AN52) -> 0 | AP53: =SUM(AP33:AP52) -> 0
A55: ВСЕГО | B55: =B31+B53 -> 0 | C55: х | D55: х | E55: =E31+E53 -> 1559.500679 | F55: =F31+F53 -> 0 | G55: =G31+G53 -> 0 | H55: =H31+H53 -> 0 | I55: =I31+I53 -> 0 | J55: х | K55: =K31+K53 -> 0 | L55: =L31+L53 -> 0 | M55: =M31+M53 -> 0 | N55: =N31+N53 -> 0 | O55: =O31+O53 -> 0 | P55: х | Q55: =Q31+Q53 -> 0 | R55: =R31+R53 -> 0 | S55: =S31+S53 -> 0 | T55: =T31+T53 -> 0 | U55: =U31+U53 -> 0 | V55: х | W55: =W31+W53 -> 0 | X55: 0 | Y55: 0 | Z55: 0 | AA55: 0 | AB55: 0 | AC55: х | AD55: =AD31+AD53 -> 0 | AE55: =AE31+AE53 -> 0 | AF55: =AF31+AF53 -> 0 | AG55: =AG31+AG53 -> 0 | AH55: =AH31+AH53 -> 0 | AI55: х | AJ55: =AJ31+AJ53 -> 0 | AK55: =AK31+AK53 -> 0 | AL55: =AL31+AL53 -> 0 | AM55: =AM31+AM53 -> 0 | AN55: =AN31+AN53 -> 0 | AO55: х | AP55: =AP31+AP53 -> 0
A108: Таблица 32. Расчет плановых сумм амортизационных отчислений на 2017-2019 год организации
K109: тыс.руб
A110: Объекты основных средств по подразделениям | B110: план организации
B111: Первоначальная стоимость | C111: Дата ввода в эксплуатацию | D111: Срок полезного использования, мес. | E111: Сумма амортизации в месяц | F111: 2017 год | H111: 2018 год | J111: 2019 год
F112: остаточная стоимость на начало периода | G112: сумма амортизации за год | H112: остаточная стоимость на начало периода | I112: сумма амортизации за год | J112: остаточная стоимость на начало периода | K112: сумма амортизации за год
F113: 2017-01-01 | H113: 2018-01-01 | J113: 2019-01-01
A114: 1 | B114: 2 | C114: 3 | D114: 4 | E114: 5 | F114: 6 | G114: 7 | H114: 8 | I114: 9 | J114: 10 | K114: 11
A115: =A11 -> 0 | B115: =B11/1000 -> 0 | C115: =C11 -> 0 | D115: 0 | E115: =E11/1000 -> 0 | F115: 0 | G115: 0 | H115: =L11/1000 -> 0 | I115: =M11/1000 -> 0 | J115: =R11/1000 -> 0 | K115: =S11/1000 -> 0
A116: 0 | B116: 0 | C116: 0 | D116: 0 | E116: 0 | F116: 0 | G116: 0 | H116: 0 | I116: 0 | J116: 0 | K116: 0
A117: 0 | B117: 0 | C117: 0 | D117: 0 | E117: 0 | F117: 0 | G117: 0 | H117: 0 | I117: 0 | J117: 0 | K117: 0
A118: 0 | B118: 0 | C118: 0 | D118: 0 | E118: 0 | F118: 0 | G118: 0 | H118: 0 | I118: 0 | J118: 0 | K118: 0
A119: 0 | B119: 0 | C119: 0 | D119: 0 | E119: 0 | F119: 0 | G119: 0 | H119: 0 | I119: 0 | J119: 0 | K119: 0
A120: 0 | B120: 0 | C120: 0 | D120: 0 | E120: 0 | F120: 0 | G120: 0 | H120: 0 | I120: 0 | J120: 0 | K120: 0
A121: 0 | B121: 0 | C121: 0 | D121: 0 | E121: 0 | F121: 0 | G121: 0 | H121: 0 | I121: 0 | J121: 0 | K121: 0
A122: 0 | B122: 0 | C122: 0 | D122: 0 | E122: 0 | F122: 0 | G122: 0 | H122: 0 | I122: 0 | J122: 0 | K122: 0
A123: 0 | B123: 0 | C123: 0 | D123: 0 | E123: 0 | F123: 0 | G123: 0 | H123: 0 | I123: 0 | J123: 0 | K123: 0
A124: 0 | B124: 0 | C124: 0 | D124: 0 | E124: 0 | F124: 0 | G124: 0 | H124: 0 | I124: 0 | J124: 0 | K124: 0
A125: 0 | B125: 0 | C125: 0 | D125: 0 | E125: 0 | F125: 0 | G125: 0 | H125: 0 | I125: 0 | J125: 0 | K125: 0
A126: 0 | B126: 0 | C126: 0 | D126: 0 | E126: 0 | F126: 0 | G126: 0 | H126: 0 | I126: 0 | J126: 0 | K126: 0
A127: 0 | B127: 0 | C127: 0 | D127: 0 | E127: 0 | F127: 0 | G127: 0 | H127: 0 | I127: 0 | J127: 0 | K127: 0
A128: 0 | B128: 0 | C128: 0 | D128: 0 | E128: 0 | F128: 0 | G128: 0 | H128: 0 | I128: 0 | J128: 0 | K128: 0
A129: 0 | B129: 0 | C129: 0 | D129: 0 | E129: 0 | F129: 0 | G129: 0 | H129: 0 | I129: 0 | J129: 0 | K129: 0
A130: 0 | B130: 0 | C130: 0 | D130: 0 | E130: 0 | F130: 0 | G130: 0 | H130: 0 | I130: 0 | J130: 0 | K130: 0
A131: 0 | B131: 0 | C131: 0 | D131: 0 | E131: 0 | F131: 0 | G131: 0 | H131: 0 | I131: 0 | J131: 0 | K131: 0
A132: 0 | B132: 0 | C132: 0 | D132: 0 | E132: 0 | F132: 0 | G132: 0 | H132: 0 | I132: 0 | J132: 0 | K132: 0
A133: 0 | B133: 0 | C133: 0 | D133: 0 | E133: 0 | F133: 0 | G133: 0 | H133: 0 | I133: 0 | J133: 0 | K133: 0
A134: 0 | B134: 0 | C134: 0 | D134: 0 | E134: 0 | F134: 0 | G134: 0 | H134: 0 | I134: 0 | J134: 0 | K134: 0
A135: =A33 -> 0 | B135: =B33/1000 -> 0 | C135: =C33 -> 0 | D135: 0 | E135: =E33/1000 -> 1.559500679 | F135: 0 | G135: 0 | H135: =L33/1000 -> 0 | I135: =M33/1000 -> 0 | J135: =R33/1000 -> 0 | K135: =S33/1000 -> 0
A136: 0 | B136: 0 | C136: 0 | D136: 0 | E136: 0 | F136: 0 | G136: 0 | H136: 0 | I136: 0 | J136: 0 | K136: 0
A137: 0 | B137: 0 | C137: 0 | D137: 0 | E137: 0 | F137: 0 | G137: 0 | H137: 0 | I137: 0 | J137: 0 | K137: 0
A138: 0 | B138: 0 | C138: 0 | D138: 0 | E138: 0 | F138: 0 | G138: 0 | H138: 0 | I138: 0 | J138: 0 | K138: 0
A139: 0 | B139: 0 | C139: 0 | D139: 0 | E139: 0 | F139: 0 | G139: 0 | H139: 0 | I139: 0 | J139: 0 | K139: 0
A140: 0 | B140: 0 | C140: 0 | D140: 0 | E140: 0 | F140: 0 | G140: 0 | H140: 0 | I140: 0 | J140: 0 | K140: 0
A141: 0 | B141: 0 | C141: 0 | D141: 0 | E141: 0 | F141: 0 | G141: 0 | H141: 0 | I141: 0 | J141: 0 | K141: 0
A142: 0 | B142: 0 | C142: 0 | D142: 0 | E142: 0 | F142: 0 | G142: 0 | H142: 0 | I142: 0 | J142: 0 | K142: 0
A143: 0 | B143: 0 | C143: 0 | D143: 0 | E143: 0 | F143: 0 | G143: 0 | H143: 0 | I143: 0 | J143: 0 | K143: 0
A144: 0 | B144: 0 | C144: 0 | D144: 0 | E144: 0 | F144: 0 | G144: 0 | H144: 0 | I144: 0 | J144: 0 | K144: 0
A145: 0 | B145: 0 | C145: 0 | D145: 0 | E145: 0 | F145: 0 | G145: 0 | H145: 0 | I145: 0 | J145: 0 | K145: 0
A146: 0 | B146: 0 | C146: 0 | D146: 0 | E146: 0 | F146: 0 | G146: 0 | H146: 0 | I146: 0 | J146: 0 | K146: 0
A147: 0 | B147: 0 | C147: 0 | D147: 0 | E147: 0 | F147: 0 | G147: 0 | H147: 0 | I147: 0 | J147: 0 | K147: 0
A148: 0 | B148: 0 | C148: 0 | D148: 0 | E148: 0 | F148: 0 | G148: 0 | H148: 0 | I148: 0 | J148: 0 | K148: 0
A149: 0 | B149: 0 | C149: 0 | D149: 0 | E149: 0 | F149: 0 | G149: 0 | H149: 0 | I149: 0 | J149: 0 | K149: 0
A150: 0 | B150: 0 | C150: 0 | D150: 0 | E150: 0 | F150: 0 | G150: 0 | H150: 0 | I150: 0 | J150: 0 | K150: 0
A151: 0 | B151: 0 | C151: 0 | D151: 0 | E151: 0 | F151: 0 | G151: 0 | H151: 0 | I151: 0 | J151: 0 | K151: 0
A152: 0 | B152: 0 | C152: 0 | D152: 0 | E152: 0 | F152: 0 | G152: 0 | H152: 0 | I152: 0 | J152: 0 | K152: 0
A153: 0 | B153: 0 | C153: 0 | D153: 0 | E153: 0 | F153: 0 | G153: 0 | H153: 0 | I153: 0 | J153: 0 | K153: 0
A154: 0 | B154: 0 | C154: 0 | D154: 0 | E154: 0 | F154: 0 | G154: 0 | H154: 0 | I154: 0 | J154: 0 | K154: 0
A155: =#REF! ->  | B155: =#REF!/1000 ->  | C155: =#REF! ->  | D155: =#REF! ->  | E155: =#REF!/1000 ->  | F155: =#REF!/1000 ->  | G155: =#REF!/1000 ->  | H155: =#REF!/1000 ->  | I155: =#REF!/1000 ->  | J155: =#REF!/1000 ->  | K155: =#REF!/1000 -> 
A156: =#REF! ->  | B156: =#REF!/1000 ->  | C156: =#REF! ->  | D156: =#REF! ->  | E156: =#REF!/1000 ->  | F156: =#REF!/1000 ->  | G156: =#REF!/1000 ->  | H156: =#REF!/1000 ->  | I156: =#REF!/1000 ->  | J156: =#REF!/1000 ->  | K156: =#REF!/1000 -> 
A157: =#REF! ->  | B157: =#REF!/1000 ->  | C157: =#REF! ->  | D157: =#REF! ->  | E157: =#REF!/1000 ->  | F157: =#REF!/1000 ->  | G157: =#REF!/1000 ->  | H157: =#REF!/1000 ->  | I157: =#REF!/1000 ->  | J157: =#REF!/1000 ->  | K157: =#REF!/1000 -> 
A158: =#REF! ->  | B158: =#REF!/1000 ->  | C158: =#REF! ->  | D158: =#REF! ->  | E158: =#REF!/1000 ->  | F158: =#REF!/1000 ->  | G158: =#REF!/1000 ->  | H158: =#REF!/1000 ->  | I158: =#REF!/1000 ->  | J158: =#REF!/1000 ->  | K158: =#REF!/1000 -> 
A159: =#REF! ->  | B159: =#REF!/1000 ->  | C159: =#REF! ->  | D159: =#REF! ->  | E159: =#REF!/1000 ->  | F159: =#REF!/1000 ->  | G159: =#REF!/1000 ->  | H159: =#REF!/1000 ->  | I159: =#REF!/1000 ->  | J159: =#REF!/1000 ->  | K159: =#REF!/1000 -> 
A160: =#REF! ->  | B160: =#REF!/1000 ->  | C160: =#REF! ->  | D160: =#REF! ->  | E160: =#REF!/1000 ->  | F160: =#REF!/1000 ->  | G160: =#REF!/1000 ->  | H160: =#REF!/1000 ->  | I160: =#REF!/1000 ->  | J160: =#REF!/1000 ->  | K160: =#REF!/1000 -> 
A161: =#REF! ->  | B161: =#REF!/1000 ->  | C161: =#REF! ->  | D161: =#REF! ->  | E161: =#REF!/1000 ->  | F161: =#REF!/1000 ->  | G161: =#REF!/1000 ->  | H161: =#REF!/1000 ->  | I161: =#REF!/1000 ->  | J161: =#REF!/1000 ->  | K161: =#REF!/1000 -> 
A162: =#REF! ->  | B162: =#REF!/1000 ->  | C162: =#REF! ->  | D162: =#REF! ->  | E162: =#REF!/1000 ->  | F162: =#REF!/1000 ->  | G162: =#REF!/1000 ->  | H162: =#REF!/1000 ->  | I162: =#REF!/1000 ->  | J162: =#REF!/1000 ->  | K162: =#REF!/1000 -> 
A163: =#REF! ->  | B163: =#REF!/1000 ->  | C163: =#REF! ->  | D163: =#REF! ->  | E163: =#REF!/1000 ->  | F163: =#REF!/1000 ->  | G163: =#REF!/1000 ->  | H163: =#REF!/1000 ->  | I163: =#REF!/1000 ->  | J163: =#REF!/1000 ->  | K163: =#REF!/1000 -> 
A164: =#REF! ->  | B164: =#REF!/1000 ->  | C164: =#REF! ->  | D164: =#REF! ->  | E164: =#REF!/1000 ->  | F164: =#REF!/1000 ->  | G164: =#REF!/1000 ->  | H164: =#REF!/1000 ->  | I164: =#REF!/1000 ->  | J164: =#REF!/1000 ->  | K164: =#REF!/1000 -> 
A165: =#REF! ->  | B165: =#REF!/1000 ->  | C165: =#REF! ->  | D165: =#REF! ->  | E165: =#REF!/1000 ->  | F165: =#REF!/1000 ->  | G165: =#REF!/1000 ->  | H165: =#REF!/1000 ->  | I165: =#REF!/1000 ->  | J165: =#REF!/1000 ->  | K165: =#REF!/1000 -> 
A166: =#REF! ->  | B166: =#REF!/1000 ->  | C166: =#REF! ->  | D166: =#REF! ->  | E166: =#REF!/1000 ->  | F166: =#REF!/1000 ->  | G166: =#REF!/1000 ->  | H166: =#REF!/1000 ->  | I166: =#REF!/1000 ->  | J166: =#REF!/1000 ->  | K166: =#REF!/1000 -> 
A167: =#REF! ->  | B167: =#REF!/1000 ->  | C167: =#REF! ->  | D167: =#REF! ->  | E167: =#REF!/1000 ->  | F167: =#REF!/1000 ->  | G167: =#REF!/1000 ->  | H167: =#REF!/1000 ->  | I167: =#REF!/1000 ->  | J167: =#REF!/1000 ->  | K167: =#REF!/1000 -> 
A168: =#REF! ->  | B168: =#REF!/1000 ->  | C168: =#REF! ->  | D168: =#REF! ->  | E168: =#REF!/1000 ->  | F168: =#REF!/1000 ->  | G168: =#REF!/1000 ->  | H168: =#REF!/1000 ->  | I168: =#REF!/1000 ->  | J168: =#REF!/1000 ->  | K168: =#REF!/1000 -> 
A169: =#REF! ->  | B169: =#REF!/1000 ->  | C169: =#REF! ->  | D169: =#REF! ->  | E169: =#REF!/1000 ->  | F169: =#REF!/1000 ->  | G169: =#REF!/1000 ->  | H169: =#REF!/1000 ->  | I169: =#REF!/1000 ->  | J169: =#REF!/1000 ->  | K169: =#REF!/1000 -> 
A170: =#REF! ->  | B170: =#REF!/1000 ->  | C170: =#REF! ->  | D170: =#REF! ->  | E170: =#REF!/1000 ->  | F170: =#REF!/1000 ->  | G170: =#REF!/1000 ->  | H170: =#REF!/1000 ->  | I170: =#REF!/1000 ->  | J170: =#REF!/1000 ->  | K170: =#REF!/1000 -> 
A171: =#REF! ->  | B171: =#REF!/1000 ->  | C171: =#REF! ->  | D171: =#REF! ->  | E171: =#REF!/1000 ->  | F171: =#REF!/1000 ->  | G171: =#REF!/1000 ->  | H171: =#REF!/1000 ->  | I171: =#REF!/1000 ->  | J171: =#REF!/1000 ->  | K171: =#REF!/1000 -> 
A172: =#REF! ->  | B172: =#REF!/1000 ->  | C172: =#REF! ->  | D172: =#REF! ->  | E172: =#REF!/1000 ->  | F172: =#REF!/1000 ->  | G172: =#REF!/1000 ->  | H172: =#REF!/1000 ->  | I172: =#REF!/1000 ->  | J172: =#REF!/1000 ->  | K172: =#REF!/1000 -> 
A173: =#REF! ->  | B173: =#REF!/1000 ->  | C173: =#REF! ->  | D173: =#REF! ->  | E173: =#REF!/1000 ->  | F173: =#REF!/1000 ->  | G173: =#REF!/1000 ->  | H173: =#REF!/1000 ->  | I173: =#REF!/1000 ->  | J173: =#REF!/1000 ->  | K173: =#REF!/1000 -> 
A174: =#REF! ->  | B174: =#REF!/1000 ->  | C174: =#REF! ->  | D174: =#REF! ->  | E174: =#REF!/1000 ->  | F174: =#REF!/1000 ->  | G174: =#REF!/1000 ->  | H174: =#REF!/1000 ->  | I174: =#REF!/1000 ->  | J174: =#REF!/1000 ->  | K174: =#REF!/1000 -> 
A175: =A55 -> ВСЕГО | B175: =SUM(B115:B174) ->  | C175: x | D175: x | E175: =SUM(E115:E174) -> 
A178: Продолжение таблицы 32. Расчет плановых сумм амортизационных отчислений на 2017-2019 год организации
K179: тыс.руб
A180: Объекты основных средств по подразделениям | B180: предложение эксперта
B181: Первоначальная стоимость | C181: Дата ввода в эксплуатацию | D181: Срок полезного использования, мес. | E181: Сумма амортизации в месяц | F181: 2017 год | H181: 2018 год | J181: 2019 год
B182: проверить расчет!!! На совпадение с данными организации | F182: остаточная стоимость на начало периода | G182: сумма амортизации за год | H182: остаточная стоимость на начало периода | I182: сумма амортизации за год | J182: остаточная стоимость на начало периода | K182: сумма амортизации за год
F183: 2017-01-01 | H183: 2018-01-01 | J183: 2019-01-01
A184: 1 | B184: 2 | C184: 3 | D184: 4 | E184: 5 | F184: 12 | G184: 13 | H184: 14 | I184: 15 | J184: 16 | K184: 17
A185: =A115 -> 0 | B185: =B115 -> 0 | C185: 0 | D185: =IF(E185=0,0,B185/E185) -> 0 | E185: =X11/1000 -> 0 | F185: =Y11/1000 -> 0 | G185: =Z11/1000 -> 0 | H185: =AE11/1000 -> 0 | I185: =AF11/1000 -> 0 | J185: =AK11/1000 -> 0 | K185: =AL11/1000 -> 0
A186: 0 | B186: 0 | C186: 0 | D186: =IF(E186=0,0,B186/E186) -> 0 | E186: 0 | F186: 0 | G186: 0 | H186: 0 | I186: 0 | J186: 0 | K186: 0
A187: 0 | B187: 0 | C187: 0 | D187: 0 | E187: 0 | F187: 0 | G187: 0 | H187: 0 | I187: 0 | J187: 0 | K187: 0
A188: 0 | B188: 0 | C188: 0 | D188: 0 | E188: 0 | F188: 0 | G188: 0 | H188: 0 | I188: 0 | J188: 0 | K188: 0
A189: 0 | B189: 0 | C189: 0 | D189: 0 | E189: 0 | F189: 0 | G189: 0 | H189: 0 | I189: 0 | J189: 0 | K189: 0
A190: 0 | B190: 0 | C190: 0 | D190: 0 | E190: 0 | F190: 0 | G190: 0 | H190: 0 | I190: 0 | J190: 0 | K190: 0
A191: 0 | B191: 0 | C191: 0 | D191: 0 | E191: 0 | F191: 0 | G191: 0 | H191: 0 | I191: 0 | J191: 0 | K191: 0
A192: 0 | B192: 0 | C192: 0 | D192: 0 | E192: 0 | F192: 0 | G192: 0 | H192: 0 | I192: 0 | J192: 0 | K192: 0
A193: 0 | B193: 0 | C193: 0 | D193: 0 | E193: 0 | F193: 0 | G193: 0 | H193: 0 | I193: 0 | J193: 0 | K193: 0
A194: 0 | B194: 0 | C194: 0 | D194: 0 | E194: 0 | F194: 0 | G194: 0 | H194: 0 | I194: 0 | J194: 0 | K194: 0
A195: 0 | B195: 0 | C195: 0 | D195: 0 | E195: 0 | F195: 0 | G195: 0 | H195: 0 | I195: 0 | J195: 0 | K195: 0
A196: 0 | B196: 0 | C196: 0 | D196: 0 | E196: 0 | F196: 0 | G196: 0 | H196: 0 | I196: 0 | J196: 0 | K196: 0
A197: 0 | B197: 0 | C197: 0 | D197: 0 | E197: 0 | F197: 0 | G197: 0 | H197: 0 | I197: 0 | J197: 0 | K197: 0
A198: 0 | B198: 0 | C198: 0 | D198: 0 | E198: 0 | F198: 0 | G198: 0 | H198: 0 | I198: 0 | J198: 0 | K198: 0
A199: 0 | B199: 0 | C199: 0 | D199: 0 | E199: 0 | F199: 0 | G199: 0 | H199: 0 | I199: 0 | J199: 0 | K199: 0
A200: 0 | B200: 0 | C200: 0 | D200: 0 | E200: 0 | F200: 0 | G200: 0 | H200: 0 | I200: 0 | J200: 0 | K200: 0
A201: 0 | B201: 0 | C201: 0 | D201: 0 | E201: 0 | F201: 0 | G201: 0 | H201: 0 | I201: 0 | J201: 0 | K201: 0
A202: 0 | B202: 0 | C202: 0 | D202: 0 | E202: 0 | F202: 0 | G202: 0 | H202: 0 | I202: 0 | J202: 0 | K202: 0
A203: 0 | B203: 0 | C203: 0 | D203: 0 | E203: 0 | F203: 0 | G203: 0 | H203: 0 | I203: 0 | J203: 0 | K203: 0
A204: 0 | B204: 0 | C204: 0 | D204: 0 | E204: 0 | F204: 0 | G204: 0 | H204: 0 | I204: 0 | J204: 0 | K204: 0
A205: =A135 -> 0 | B205: 0 | C205: 0 | D205: 0 | E205: =X33/1000 -> 0 | F205: =Y33/1000 -> 0 | G205: =Z33/1000 -> 0 | H205: =AE33/1000 -> 0 | I205: =AF33/1000 -> 0 | J205: =AK33/1000 -> 0 | K205: =AL33/1000 -> 0
A206: 0 | B206: 0 | C206: 0 | D206: 0 | E206: 0 | F206: 0 | G206: 0 | H206: 0 | I206: 0 | J206: 0 | K206: 0
A207: 0 | B207: 0 | C207: 0 | D207: 0 | E207: 0 | F207: 0 | G207: 0 | H207: 0 | I207: 0 | J207: 0 | K207: 0
A208: 0 | B208: 0 | C208: 0 | D208: 0 | E208: 0 | F208: 0 | G208: 0 | H208: 0 | I208: 0 | J208: 0 | K208: 0
A209: 0 | B209: 0 | C209: 0 | D209: 0 | E209: 0 | F209: 0 | G209: 0 | H209: 0 | I209: 0 | J209: 0 | K209: 0
A210: 0 | B210: 0 | C210: 0 | D210: 0 | E210: 0 | F210: 0 | G210: 0 | H210: 0 | I210: 0 | J210: 0 | K210: 0
A211: 0 | B211: 0 | C211: 0 | D211: 0 | E211: 0 | F211: 0 | G211: 0 | H211: 0 | I211: 0 | J211: 0 | K211: 0
A212: 0 | B212: 0 | C212: 0 | D212: 0 | E212: 0 | F212: 0 | G212: 0 | H212: 0 | I212: 0 | J212: 0 | K212: 0
A213: 0 | B213: 0 | C213: 0 | D213: 0 | E213: 0 | F213: 0 | G213: 0 | H213: 0 | I213: 0 | J213: 0 | K213: 0
A214: 0 | B214: 0 | C214: 0 | D214: 0 | E214: 0 | F214: 0 | G214: 0 | H214: 0 | I214: 0 | J214: 0 | K214: 0
A215: 0 | B215: 0 | C215: 0 | D215: 0 | E215: 0 | F215: 0 | G215: 0 | H215: 0 | I215: 0 | J215: 0 | K215: 0
A216: 0 | B216: 0 | C216: 0 | D216: 0 | E216: 0 | F216: 0 | G216: 0 | H216: 0 | I216: 0 | J216: 0 | K216: 0
A217: 0 | B217: 0 | C217: 0 | D217: 0 | E217: 0 | F217: 0 | G217: 0 | H217: 0 | I217: 0 | J217: 0 | K217: 0
A218: 0 | B218: 0 | C218: 0 | D218: 0 | E218: 0 | F218: 0 | G218: 0 | H218: 0 | I218: 0 | J218: 0 | K218: 0
A219: 0 | B219: 0 | C219: 0 | D219: 0 | E219: 0 | F219: 0 | G219: 0 | H219: 0 | I219: 0 | J219: 0 | K219: 0
A220: 0 | B220: 0 | C220: 0 | D220: 0 | E220: 0 | F220: 0 | G220: 0 | H220: 0 | I220: 0 | J220: 0 | K220: 0
A221: 0 | B221: 0 | C221: 0 | D221: 0 | E221: 0 | F221: 0 | G221: 0 | H221: 0 | I221: 0 | J221: 0 | K221: 0
A222: 0 | B222: 0 | C222: 0 | D222: 0 | E222: 0 | F222: 0 | G222: 0 | H222: 0 | I222: 0 | J222: 0 | K222: 0
A223: 0 | B223: 0 | C223: 0 | D223: 0 | E223: 0 | F223: 0 | G223: 0 | H223: 0 | I223: 0 | J223: 0 | K223: 0
A224: 0 | B224: 0 | C224: 0 | D224: 0 | E224: 0 | F224: 0 | G224: 0 | H224: 0 | I224: 0 | J224: 0 | K224: 0
A225: =A155 ->  | E225: =#REF!/1000 ->  | F225: =#REF!/1000 ->  | G225: =#REF!/1000 ->  | H225: =#REF!/1000 ->  | I225: =#REF!/1000 ->  | J225: =#REF!/1000 ->  | K225: =#REF!/1000 -> 
E226: =#REF!/1000 ->  | F226: =#REF!/1000 ->  | G226: =#REF!/1000 ->  | H226: =#REF!/1000 ->  | I226: =#REF!/1000 ->  | J226: =#REF!/1000 ->  | K226: =#REF!/1000 -> 
E227: =#REF!/1000 ->  | F227: =#REF!/1000 ->  | G227: =#REF!/1000 ->  | H227: =#REF!/1000 ->  | I227: =#REF!/1000 ->  | J227: =#REF!/1000 ->  | K227: =#REF!/1000 -> 
E228: =#REF!/1000 ->  | F228: =#REF!/1000 ->  | G228: =#REF!/1000 ->  | H228: =#REF!/1000 ->  | I228: =#REF!/1000 ->  | J228: =#REF!/1000 ->  | K228: =#REF!/1000 -> 
E229: =#REF!/1000 ->  | F229: =#REF!/1000 ->  | G229: =#REF!/1000 ->  | H229: =#REF!/1000 ->  | I229: =#REF!/1000 ->  | J229: =#REF!/1000 ->  | K229: =#REF!/1000 -> 
E230: =#REF!/1000 ->  | F230: =#REF!/1000 ->  | G230: =#REF!/1000 ->  | H230: =#REF!/1000 ->  | I230: =#REF!/1000 ->  | J230: =#REF!/1000 ->  | K230: =#REF!/1000 -> 
E231: =#REF!/1000 ->  | F231: =#REF!/1000 ->  | G231: =#REF!/1000 ->  | H231: =#REF!/1000 ->  | I231: =#REF!/1000 ->  | J231: =#REF!/1000 ->  | K231: =#REF!/1000 -> 
E232: =#REF!/1000 ->  | F232: =#REF!/1000 ->  | G232: =#REF!/1000 ->  | H232: =#REF!/1000 ->  | I232: =#REF!/1000 ->  | J232: =#REF!/1000 ->  | K232: =#REF!/1000 -> 
E233: =#REF!/1000 ->  | F233: =#REF!/1000 ->  | G233: =#REF!/1000 ->  | H233: =#REF!/1000 ->  | I233: =#REF!/1000 ->  | J233: =#REF!/1000 ->  | K233: =#REF!/1000 -> 
E234: =#REF!/1000 ->  | F234: =#REF!/1000 ->  | G234: =#REF!/1000 ->  | H234: =#REF!/1000 ->  | I234: =#REF!/1000 ->  | J234: =#REF!/1000 ->  | K234: =#REF!/1000 -> 
E235: =#REF!/1000 ->  | F235: =#REF!/1000 ->  | G235: =#REF!/1000 ->  | H235: =#REF!/1000 ->  | I235: =#REF!/1000 ->  | J235: =#REF!/1000 ->  | K235: =#REF!/1000 -> 
E236: =#REF!/1000 ->  | F236: =#REF!/1000 ->  | G236: =#REF!/1000 ->  | H236: =#REF!/1000 ->  | I236: =#REF!/1000 ->  | J236: =#REF!/1000 ->  | K236: =#REF!/1000 -> 
E237: =#REF!/1000 ->  | F237: =#REF!/1000 ->  | G237: =#REF!/1000 ->  | H237: =#REF!/1000 ->  | I237: =#REF!/1000 ->  | J237: =#REF!/1000 ->  | K237: =#REF!/1000 -> 
E238: =#REF!/1000 ->  | F238: =#REF!/1000 ->  | G238: =#REF!/1000 ->  | H238: =#REF!/1000 ->  | I238: =#REF!/1000 ->  | J238: =#REF!/1000 ->  | K238: =#REF!/1000 -> 
E239: =#REF!/1000 ->  | F239: =#REF!/1000 ->  | G239: =#REF!/1000 ->  | H239: =#REF!/1000 ->  | I239: =#REF!/1000 ->  | J239: =#REF!/1000 ->  | K239: =#REF!/1000 -> 
E240: =#REF!/1000 ->  | F240: =#REF!/1000 ->  | G240: =#REF!/1000 ->  | H240: =#REF!/1000 ->  | I240: =#REF!/1000 ->  | J240: =#REF!/1000 ->  | K240: =#REF!/1000 -> 
E241: =#REF!/1000 ->  | F241: =#REF!/1000 ->  | G241: =#REF!/1000 ->  | H241: =#REF!/1000 ->  | I241: =#REF!/1000 ->  | J241: =#REF!/1000 ->  | K241: =#REF!/1000 -> 
E242: =#REF!/1000 ->  | F242: =#REF!/1000 ->  | G242: =#REF!/1000 ->  | H242: =#REF!/1000 ->  | I242: =#REF!/1000 ->  | J242: =#REF!/1000 ->  | K242: =#REF!/1000 -> 
E243: =#REF!/1000 ->  | F243: =#REF!/1000 ->  | G243: =#REF!/1000 ->  | H243: =#REF!/1000 ->  | I243: =#REF!/1000 ->  | J243: =#REF!/1000 ->  | K243: =#REF!/1000 -> 
E244: =#REF!/1000 ->  | F244: =#REF!/1000 ->  | G244: =#REF!/1000 ->  | H244: =#REF!/1000 ->  | I244: =#REF!/1000 ->  | J244: =#REF!/1000 ->  | K244: =#REF!/1000 -> 
A245: ВСЕГО | B245: =SUM(B185:B244) ->  | C245: x | D245: x | E245: =SUM(E185:E244) -> 
A248: Продолжение таблицы 32. Расчет плановых сумм амортизационных отчислений на 2017-2019 год организации
A250: Объекты основных средств по подразделениям | B250: Отклонение плана, принятого экспертом, от плана организации
B251: по сроку полезного использования | C251: по сумме месячной амортизации | D251: по сумме амортизационных отчислений на 2017 год | E251: по сумме амортизационных отчислений на 2018 год | F251: по сумме амортизационных отчислений на 2019 год
A252: 1 | B252: 18 | C252: 19 | D252: 20 | E252: 21 | F252: 22
A253: =A185 -> 0 | B253: =D185-D115 -> 0 | C253: =E185-E115 -> 0 | D253: =G185-G115 -> 0 | E253: =I185-I115 -> 0 | F253: =K185-K115 -> 0
A254: 0 | B254: =D186-D116 -> 0 | C254: 0 | D254: 0 | E254: 0 | F254: 0
A255: 0 | B255: 0 | C255: 0 | D255: 0 | E255: 0 | F255: 0
A256: 0 | B256: 0 | C256: 0 | D256: 0 | E256: 0 | F256: 0
A257: 0 | B257: 0 | C257: 0 | D257: 0 | E257: 0 | F257: 0
A258: 0 | B258: 0 | C258: 0 | D258: 0 | E258: 0 | F258: 0
A259: 0 | B259: 0 | C259: 0 | D259: 0 | E259: 0 | F259: 0
... 34 more rows

Sheet Численность
A1: Расчет численности производственного персонала
A2: =Титульный!B9 -> 
A3: =Титульный!B23 -> 0
T4: Тарифная сетка
A5: Район | B5: =Титульный!B5 -> 0 | D5: МО | E5: =Титульный!B6 -> 0
A6: Профессии | B6: По факту предбазового периода | D6: По плану на период регулирования | F6: По плану на период регулирования | Q6: ср. тарифный коэффициент | T6: Указать в соответствии с каким документом принята указанная тарифная сетка | DI6: НЕ ТРОГАТЬ !!!!!!!
B7: 2016 | D7: 2018 | F7: =D7 -> 2018
B8: по данным организации | D8: по данным организации | F8: принято в расчет тарифа экспертом ДТР ТО
B9: Численность | C9: Разряд | D9: Численность | E9: Разряд | F9: нормативная численность | G9: численность, принятая в тариф | H9: Разряд (ступень оплаты) | I9: Ст.7*Ст.8 | J9: Премия, % | K9: Выслуга, % | M9: Выплаты, связанные с режимом работы , %
M10: Вредность | N10: Ночные | P10: ВСЕГО | T10: тарифная сетка | U10: тарифный коэффициент | DJ10: транспортировка | DM10: очистка | DQ10: общий по тарифу
A11: 1 | B11: 2 | C11: 3 | D11: 4 | E11: 5 | F11: 6 | G11: 7 | H11: 8 | I11: 9 | J11: 10 | K11: 11 | L11: 12 | M11: 13 | N11: 14 | O11: 15 | P11: 16 | T11: 1 | DJ11: =IF((T11-INT($H$29))=0,1,0) -> 0 | DK11: =IF(DJ11=1,(($H$29-INT($H$29))*(U12-U11)+U11),0) -> 0 | DM11: =IF((T11-INT($H$50))=0,1,0) -> 0 | DN11: =IF(DM11=1,(($H$50-INT($H$50))*(U12-U11)+U11),0) -> 0 | DQ11: =IF((T11-INT($H$54))=0,1,0) -> 0 | DR11: =IF(DQ11=1,(($H$54-INT($H$54))*(U12-U11)+U11),0) -> 0
A12: На текущее содержание | T12: 2 | DJ12: 0 | DK12: 0 | DM12: 0 | DN12: 0 | DQ12: 0 | DR12: 0
A13: Прием и транспортировка (перекачка) сточных вод | T13: 3 | DJ13: 0 | DK13: 0 | DM13: 1 | DN13: 0 | DQ13: 1 | DR13: 0
A14: слесарь АВР | I14: =G14*H14 -> 0 | J14: =J13 -> 0 | P14: =M14+N14+O14 -> 0 | T14: 4 | DJ14: 0 | DK14: 0 | DM14: 0 | DN14: 0 | DQ14: 0 | DR14: 0
A15: МНУ | I15: =G15*H15 -> 0 | J15: =J14 -> 0 | P15: =M15+N15+O15 -> 0 | T15: 5 | DJ15: 0 | DK15: 0 | DM15: 0 | DN15: 0 | DQ15: 0 | DR15: 0
A16: обходчик | I16: =G16*H16 -> 0 | J16: =J15 -> 0 | P16: =M16+N16+O16 -> 0 | T16: 6 | DJ16: 0 | DK16: 0 | DM16: 0 | DN16: 0 | DQ16: 0 | DR16: 0
A17: слесарь-ремонтник | I17: =G17*H17 -> 0 | J17: 0 | P17: =M17+N17+O17 -> 0 | T17: 7 | DJ17: 0 | DK17: 0 | DM17: 0 | DN17: 0 | DQ17: 0 | DR17: 0
A18: мастер | I18: =G18*H18 -> 0 | J18: 0 | P18: =M18+N18+O18 -> 0 | T18: 8 | DJ18: 0 | DK18: 0 | DM18: 0 | DN18: 0 | DQ18: 0 | DR18: 0
A19: контролер водопроводно-канализационного хоз-ва | I19: 0 | J19: 0 | P19: 0 | T19: 9 | DJ19: 0 | DK19: 0 | DM19: 0 | DN19: 0 | DQ19: 0 | DR19: 0
I20: 0 | J20: 0 | P20: 0 | T20: 10 | DJ20: 0 | DK20: 0 | DM20: 0 | DN20: 0 | DQ20: 0 | DR20: 0
I21: 0 | J21: 0 | P21: 0 | T21: 11 | DJ21: 0 | DK21: 0 | DM21: 0 | DN21: 0 | DQ21: 0 | DR21: 0
I22: 0 | J22: 0 | P22: 0 | T22: 12 | DJ22: 0 | DK22: 0 | DM22: 0 | DN22: 0 | DQ22: 0 | DR22: 0
I23: 0 | J23: 0 | P23: 0 | T23: 13 | DJ23: 0 | DK23: 0 | DM23: 0 | DN23: 0 | DQ23: 0 | DR23: 0
I24: 0 | J24: 0 | P24: 0 | T24: 14 | DJ24: 0 | DK24: 0 | DM24: 0 | DN24: 0 | DQ24: 0 | DR24: 0
I25: 0 | J25: 0 | P25: 0 | T25: 15 | DJ25: 0 | DK25: 0 | DM25: 0 | DN25: 0 | DQ25: 0 | DR25: 0
I26: 0 | J26: 0 | P26: 0 | T26: 16 | DJ26: 0 | DK26: 0 | DM26: 0 | DN26: 0 | DQ26: 0 | DR26: 0
I27: =G27*H27 -> 0 | J27: =J17 -> 0 | P27: =M27+N27+O27 -> 0 | T27: 17 | DJ27: =IF((T27-INT($H$29))=0,1,0) -> 0 | DK27: =IF(DJ27=1,(($H$29-INT($H$29))*(U28-U27)+U27),0) -> 0 | DM27: =IF((T27-INT($H$50))=0,1,0) -> 0 | DN27: =IF(DM27=1,(($H$50-INT($H$50))*(U28-U27)+U27),0) -> 0 | DQ27: =IF((T27-INT($H$54))=0,1,0) -> 0 | DR27: 0
I28: =G28*H28 -> 0 | J28: =J27 -> 0 | P28: =M28+N28+O28 -> 0 | T28: 18 | DJ28: =IF((T28-INT($H$29))=0,1,0) -> 0 | DK28: =IF(DJ28=1,(($H$29-INT($H$29))*(U29-U28)+U28),0) -> 0 | DM28: =IF((T28-INT($H$50))=0,1,0) -> 0 | DN28: =IF(DM28=1,(($H$50-INT($H$50))*(U29-U28)+U28),0) -> 0 | DQ28: =IF((T28-INT($H$54))=0,1,0) -> 0 | DR28: 0
A29: итого | B29: =SUM(B14:B28) -> 0 | C29: =IF(B29=0,0,SUMPRODUCT(B14:B28,C14:C28)/B29) -> 0 | D29: =SUM(D14:D28) -> 0 | E29: =IF(D29=0,0,SUMPRODUCT(D14:D28,E14:E28)/D29) -> 0 | F29: =SUM(F14:F28) -> 0 | G29: =SUM(G14:G28) -> 0 | H29: =IF(I29=0,0,I29/G29) -> 0 | I29: =SUM(I14:I28) -> 0 | J29: =IF(G29=0,0,SUMPRODUCT(J14:J28,G14:G28)/G29) -> 0 | K29: =IF(G29=0,0,SUMPRODUCT(K14:K28,G14:G28)/G29) -> 0 | L29: =IF(G29=0,0,SUMPRODUCT(L14:L28,G14:G28)/G29) -> 0 | M29: =IF(G29=0,0,SUMPRODUCT(M14:M28,G14:G28)/G29) -> 0 | N29: =IF(G29=0,0,SUMPRODUCT(N14:N28,G14:G28)/G29) -> 0 | O29: =IF(G29=0,0,SUMPRODUCT(O14:O28,G14:G28)/G29) -> 0 | P29: =IF(G29=0,0,SUMPRODUCT(G14:G28,P14:P28)/G29) -> 0 | Q29: =SUMPRODUCT(DK11:DK26) -> 0 | DJ29: =IF((T29-INT($H$29))=0,1,0) -> 1 | DK29: =IF(DJ29=1,(($H$29-INT($H$29))*(U30-U29)+U29),0) -> 0 | DM29: =IF((T29-INT($H$50))=0,1,0) -> 0 | DN29: =IF(DM29=1,(($H$50-INT($H$50))*(U30-U29)+U29),0) -> 0 | DQ29: =IF((T29-INT($H$54))=0,1,0) -> 0 | DR29: 0
A30: Очистка сточных вод
A31: оператор на решетках | G31: 5 | H31: 2 | I31: =G31*H31 -> 10 | J31: =J28 -> 0 | M31: 12 | N31: 13.33333333 | O31: 3.835616438 | P31: =SUM(M31:O31) -> 29.16894977
A32: оператор на отстойниках | G32: 4 | H32: 3 | I32: 12 | J32: =J29 -> 0 | M32: 12 | N32: 13.33333333 | O32: 3.835616438 | P32: 29.16894977
A33: оператор на иловых площадках | G33: 18 | H33: 2 | I33: 36 | J33: 0 | M33: 12 | N33: 13.33333333 | O33: 3.835616438 | P33: 29.16894977
A34: МНУ | G34: 12 | H34: 3 | I34: 36 | J34: 0 | M34: 12 | N34: 13.33333333 | O34: 3.835616438 | P34: 29.16894977
A35: мастер | G35: 5 | H35: 4 | I35: 20 | J35: 0 | M35: 12 | N35: 13.33333333 | O35: 3.835616438 | P35: 29.16894977
A36: техник | G36: 1 | H36: 5 | I36: 5 | J36: 0 | P36: 0
G37: 2 | H37: 3 | I37: =G37*H37 -> 6 | J37: 0
G38: 6 | H38: 4 | I38: 24 | J38: 0
G39: 1 | H39: 10 | I39: 10 | J39: 0
G40: 0 | H40: 8 | I40: 0 | J40: 0
G41: 0 | H41: 13 | I41: 0 | J41: 0
G42: 1 | H42: 11.5 | I42: 11.5 | J42: 0
G43: 3 | H43: 7 | I43: 21 | J43: 0
G44: 1 | H44: 10 | I44: 10 | J44: 0
G45: 1 | H45: 3 | I45: 3 | J45: 0
G46: 2 | H46: 3 | I46: =G46*H46 -> 6 | J46: 0
I47: =G47*H47 -> 0 | J47: 0
I48: =G48*H48 -> 0 | J48: =J34 -> 0 | P48: =SUM(M48:O48) -> 0
I49: =G49*H49 -> 0 | J49: =J35 -> 0 | P49: =SUM(M49:O49) -> 0
A50: итого | B50: =SUM(B31:B49) -> 0 | C50: =IF(B50=0,0,SUMPRODUCT(B31:B49,C31:C49)/B50) -> 0 | D50: =SUM(D31:D49) -> 0 | E50: =IF(D50=0,0,SUMPRODUCT(D31:D49,E31:E49)/D50) -> 0 | F50: =SUM(F31:F49) -> 0 | G50: =SUM(G31:G49) -> 62 | H50: =IF(G50=0,0,I50/G50) -> 3.39516129 | I50: =SUM(I31:I49) -> 210.5 | J50: =IF($G$50=0,0,SUMPRODUCT(J31:J49,$G$31:$G$49)/$G$50) -> 0 | K50: 0 | L50: 0 | M50: 8.516129032 | N50: 9.462365591 | O50: 2.722050376 | P50: 20.700545 | Q50: =SUMPRODUCT(DN11:DN26) -> 0
P52: =SUM(M52:O52) -> 0
A53: Итого | B53: =SUM(B14:B28,B31:B49) -> 0 | C53: х | D53: =SUM(D14:D28,D31:D49) -> 0 | E53: х | F53: =SUM(F14:F28,F31:F49) -> 0 | G53: =SUM(G14:G28,G31:G49) -> 62 | H53: х | I53: =SUM(I14:I28,I31:I49) -> 210.5 | J53: х | K53: х | L53: х | M53: х | N53: х | O53: х | P53: х
A54: Среднее значение | B54: х | C54: =IF(B53=0,0,(SUMPRODUCT(B14:B28,C14:C28)+SUMPRODUCT(B31:B49,C31:C49)+SUMPRODUCT(#REF!,#REF!))/B53) -> 0 | D54: х | E54: =IF(D53=0,0,(SUMPRODUCT(D14:D28,E14:E28)+SUMPRODUCT(D31:D49,E31:E49))/D53) -> 0 | F54: х | G54: х | H54: =IF($G$53=0,0,I53/G53) -> 3.39516129 | I54: х | J54: =IF($G$53=0,0,(J29*$G$29+J50*$G$50)/$G$53) -> 0 | K54: 0 | L54: 0 | M54: 8.516129032 | N54: 9.462365591 | O54: 2.722050376 | P54: 20.700545 | Q54: =SUMPRODUCT(DR11:DR26) -> 0
A55: В том числе на ремонт:
A56: Численность | I56: =G56*H56 -> 0 | P56: =M56+N56+O56 -> 0

Sheet ФОТ ПП
A1: Расчет расходов на оплату труда производственного персонала (по периодам)
A3: =Численность!A2:Q2 -> 
A4: =Численность!A3:Q3 -> 0
A6: Район | B6: =Титульный!B5 -> 0 | C6: МО | D6: =Титульный!B6 -> 0
A7: № | B7: Показатели | C7: Ед.изм. | D7: ='НП 2018-2020'!D8 -> 2014 | E7: =D7+1 -> 2015 | F7: =E7+1 -> 2016 | G7: =F7 -> 2016 | H7: =G7+1 -> 2017 | I7: =H7+1 -> 2018 | J7: =I7 -> 2018
D10: =G10 -> Факт по данным организации | E10: =G10 -> Факт по данным организации | F10: утв. ДТР ТО | G10: Факт по данным организации | H10: утв. ДТР ТО | I10: план организации | J10: предложение эксперта
A12: 1 | B12: =+A12+1 -> 2 | C12: 3 | D12: 4 | E12: 5 | F12: 6 | G12: 7 | H12: 8 | I12: 9 | J12: 10
B13: Численность по нормативу всего, в том числе | C13: чел. | H13: =SUM(H14:H15) -> 0 | J13: =SUM(J14:J15) -> 3
B14: численность производственного персонала (транспортировка стоков) | C14: чел. | J14: =Численность!H22 -> 0
B15: численность производственного персонала (очистка стоков) | J15: =Численность!H32 -> 3
A16: 1. | B16: Численность, учтенная в тарифах, всего, в том числе | C16: чел. | D16: =D17+D18 -> 0 | E16: =E17+E18 -> 0 | F16: 0 | G16: 0 | H16: 62 | I16: 0 | J16: 62
A17: 1.1 | B17: численность производственного персонала (транспортировка стоков) | C17: чел. | G17: =Численность!B29 -> 0 | H17: 0 | I17: =Численность!D29 -> 0 | J17: =Численность!I22 -> 0
A18: 1.2 | B18: численность производственного персонала (очистка стоков) | C18: чел. | G18: =Численность!B50 -> 0 | H18: 62 | I18: =Численность!D50 -> 0 | J18: =Численность!G50 -> 62
A19: 2. | B19: Средняя оплата труда | D19: х | E19: х | F19: х | G19: х | H19: х | I19: х | J19: х
A20: 2.1. | B20: Тарифная ставка рабочего 1 разряда | C20: руб. | H20: 4475.225 | J20: =H23 -> 5760.062097
A21: 2.2. | B21: Отраслевой коэффициент | H21: 1.22 | J21: 1
A22: 2.3. | B22: Дефлятор по заработной плате | H22: 1.055 | J22: =зарплата_среднегод_2018 -> 1.04
A23: 2.4. | B23: Тарифная ставка рабочего 1 разряда с учетом отраслевого коэффициента и дефлятора | C23: руб. | D23: =D20*D21*D22 -> 0 | E23: =E20*E21*E22 -> 0 | F23: =F20*F21*F22 -> 0 | G23: =G20*G21*G22 -> 0 | H23: 5760.062097 | I23: =I20*I21*I22 -> 0 | J23: =J20*J21*J22 -> 5990.464581
A24: 2.5. | B24: Средняя ступень оплаты | H24: 3.17 | J24: =Численность!E54 -> 0
A25: 2.6. | B25: Тарифный коэффициент, соответствующий средней ступени по оплате труда | H25: 1.59712 | J25: =Численность!Q54 -> 0
A26: 2.7. | B26: Среднемесячная тарифная ставка ППП | C26: руб. | D26: =D23*D25 -> 0 | E26: =E23*E25 -> 0 | F26: =F23*F25 -> 0 | G26: =G23*G25 -> 0 | H26: 9199.510377 | I26: =I23*I25 -> 0 | J26: =J23*J25 -> 0
A27: 2.8. | B27: Выплаты, связанные с режимом работы с условиями труда 1 работника | C27: х | D27: х | E27: х | F27: х | G27: х | H27: х | I27: х | J27: х
A28: 2.8.1. | B28: процент выплаты | C28: % | H28: 20.81662792 | J28: =Численность!P50 -> 20.700545
A29: 2.8.2. | B29: сумма выплат | C29: руб. | D29: =D28/100*D26 -> 0 | E29: =E28/100*E26 -> 0 | F29: 0 | G29: 0 | H29: 1915.027846 | I29: 0 | J29: 0
A30: 2.9. | B30: Текущее премирование | D30: х | E30: х | F30: х | G30: х | H30: х | I30: х | J30: х
A31: 2.9.1. | B31: процент выплаты | C31: % | H31: 10.63 | J31: =Численность!J13 -> 0
A32: 2.9.2. | B32: сумма выплат | C32: руб. | H32: 1181.475413 | J32: =(J26+J29)*J31/100 -> 0
A33: 2.10. | B33: Вознаграждение за выслугу лет | D33: х | E33: х | F33: х | G33: х | H33: х | I33: х | J33: х
A34: 2.10.1. | B34: процент выплаты | C34: % | J34: =Численность!K54 -> 0
A35: 2.10.2. | B35: сумма выплат | C35: руб. | H35: 0 | J35: =J34*J26/100 -> 0
A36: 2.11. | B36: Выплаты по итогам года | D36: х | E36: х | F36: х | G36: х | H36: х | I36: х | J36: х
A37: 2.11.1. | B37: процент выплаты | C37: % | H37: 9.25 | J37: =I37 -> 0
A38: 2.11.2. | B38: сумма выплат | C38: руб. | H38: 850.9547099 | J38: =J37*J26/100 -> 0
A39: 2.12. | B39: Выплаты по районному коэффициенту и северные надбавки | D39: х | E39: х | F39: х | G39: х | H39: х | I39: х | J39: х
A40: 2.12.1. | B40: процент выплаты | C40: % | H40: 120 | J40: 120
A41: 2.12.2. | B41: сумма выплат | C41: руб. | D41: =(D26+D29+D32+D35)*D40/100 -> 0 | E41: =(E26+E29+E32+E35)*E40/100 -> 0 | F41: 0 | G41: 0 | H41: 14755.21636 | I41: 0 | J41: 0
A42: 2.13. | B42: Итого среднемесячная оплата труда на 1 работника | C42: руб. | D42: =D26+D29+D32+D35+D38+D41 -> 0 | E42: =E26+E29+E32+E35+E38+E41 -> 0 | F42: 0 | G42: 0 | H42: 27902.18471 | I42: 0 | J42: 0
A43: 3. | B43: Итого средства на оплату труда (включаемые в себестоимость) | C43: руб. | D43: =D42*D16*12 -> 0 | E43: =E42*E16*12 -> 0 | F43: 0 | G43: 0 | H43: 20759225.42 | I43: 0 | J43: 0
A45: х | B45: Заполнению не подлежит
B46: темп роста ФОТ к утв. | C46: =H7 -> 2017 | D46: году | I46: =IF(H43=0,0,I43/H43) -> 0 | J46: =IF(H43=0,0,J43/H43) -> 0
B47: темп роста ср. з/п к факт. | C47: 2016 | D47: году | I47: =IF(G42=0,0,I42/G42) -> 0 | J47: =IF(G42=0,0,J42/G42) -> 0
B48: темп роста ср. з/п к утв. | C48: 2017 | D48: году | I48: =IF(H42=0,0,I42/H42) -> 0 | J48: =IF(H42=0,0,J42/H42) -> 0
B49: средняя з/пл индексацией факта | C49: 2016 | D49: года | J49: =G42*Зарплата_среднегод_2017*зарплата_среднегод_2018 -> 0

Sheet ремонт хозспособ
A1: Расходы на проведение текущего и капитального ремонтов хозспособом
A2: =Титульный!B9 -> 
A3: ='ФОТ ПП'!A4 -> 0
A4: Район | B4: =Титульный!B5 -> 0 | D4: МО | E4: =Титульный!B6 -> 0
A5: ТЕКУЩИЙ РЕМОНТ | K5: рублей
A6: Наименование объекта | B6: Наименование основного оборудования | C6: Вид выполняемых работ | D6: Расходы на преведение текущего ремонта по плану организации | L6: Расходы на преведение текущего ремонта по предложению эксперта
D7: всего | E7: в том числе | L7: в том числе
E8: заработная плата | F8: отчисления от ФОТ | G8: материалы | H8: транспортные затраты | I8: услуги вспомогательных производств | J8: цеховые расходы | K8: Общехозяйственные расходы | L8: Всего | M8: заработная плата | N8: отчисления от ФОТ | O8: материалы | P8: транспортные расходы | Q8: услуги вспомогательных производств | R8: цеховые расходы | S8: Общехозяйственные расходы
A9: 2016 | B9: ='НП 2018-2020'!E10 -> факт по данным организации | D9: =SUM(D10:D16) -> 0 | E9: =SUM(E10:E16) -> 0 | F9: 0 | G9: 0 | H9: 0 | I9: 0 | J9: 0 | K9: 0 | L9: 0 | M9: 0 | N9: 0 | O9: 0 | P9: 0 | Q9: 0 | R9: 0 | S9: 0
D10: =SUM(E10:K10) -> 0 | L10: =SUM(M10:S10) -> 0
D11: =SUM(E11:K11) -> 0 | L11: =SUM(M11:S11) -> 0
D12: 0 | L12: 0
D13: 0 | L13: 0 | T13: строки вставлять здесь
D14: 0 | L14: 0
D15: 0 | L15: 0
D16: 0 | L16: 0
A17: =A9+1 -> 2017 | B17: утв. ДТР ТО | L17: =SUM(L18:L24) -> 0 | M17: =SUM(M18:M24) -> 0 | N17: 0 | O17: 0 | P17: 0 | Q17: 0 | R17: 0 | S17: 0
L18: =SUM(M18:S18) -> 0
L19: 0
L20: 0 | T20: строки вставлять здесь
L21: 0
L22: 0
L23: 0
L24: 0
A25: 2018 | B25: ='балансы по МО'!O82 -> Период регулирования (план) | D25: =SUM(D26:D32) -> 0 | E25: =SUM(E26:E32) -> 0 | F25: 0 | G25: 0 | H25: 0 | I25: 0 | J25: 0 | K25: 0 | L25: =SUM(L26:L32) -> 0 | M25: =SUM(M26:M32) -> 0 | N25: =SUM(N26:N32) -> 0 | O25: 0 | P25: 0 | Q25: 0 | R25: 0 | S25: 0
D26: =SUM(E26:K26) -> 0 | L26: =SUM(M26:S26) -> 0
D27: 0 | L27: =SUM(M27:S27) -> 0
D28: 0 | L28: 0 | T28: строки вставлять здесь
D29: 0 | L29: 0
D30: 0 | L30: 0
D31: 0 | L31: 0
D32: 0 | L32: 0
A34: КАПИТАЛЬНЫЙ РЕМОНТ | L34: рублей
A35: Наименование объекта | B35: Наименование основного оборудования | C35: Вид выполняемых работ | D35: Расходы на преведение капитального ремонта по плану организации | L35: Расходы на преведение капитального ремонта по предложению эксперта
D36: всего | E36: в том числе | L36: в том числе
E37: заработная плата | F37: отчисления от ФОТ | G37: материалы | H37: транспортные затраты | I37: услуги вспомогательных производств | J37: цеховые расходы | K37: Общехозяйственные расходы | L37: Всего | M37: заработная плата | N37: отчисления от ФОТ | O37: материалы | P37: транспортные расходы | Q37: услуги вспомогательных производств | R37: цеховые расходы | S37: Общехозяйственные расходы
A38: =A9 -> 2016 | B38: =B9 -> факт по данным организации | D38: =SUM(D39:D44) -> 0 | E38: =SUM(E39:E44) -> 0 | F38: 0 | G38: 0 | H38: 0 | I38: 0 | J38: 0 | K38: 0 | L38: =SUM(L39:L44) -> 0 | M38: =SUM(M39:M44) -> 0 | N38: 0 | O38: 0 | P38: 0 | Q38: 0 | R38: 0
D39: =SUM(E39:K39) -> 0 | L39: =SUM(M39:S39) -> 0
D40: 0 | L40: 0
D41: 0 | L41: 0 | T41: строки вставлять здесь
D42: 0 | L42: 0
D43: 0 | L43: 0
D44: 0 | L44: 0
A45: =A17 -> 2017 | B45: =B17 -> утв. ДТР ТО | L45: =SUM(L46:L51) -> 0 | M45: =SUM(M46:M51) -> 0 | N45: 0 | O45: 0 | P45: 0 | Q45: 0 | R45: 0 | S45: 0
L46: =SUM(M46:S46) -> 0
L47: 0
L48: 0 | T48: строки вставлять здесь
L49: 0
L50: 0
L51: 0
A52: =A25 -> 2018 | B52: =B25 -> Период регулирования (план) | D52: =SUM(D53:D58) -> 0 | E52: =SUM(E53:E58) -> 0 | F52: 0 | G52: 0 | H52: 0 | I52: 0 | J52: 0 | K52: 0 | L52: =SUM(L53:L58) -> 0 | M52: =SUM(M53:M58) -> 0 | N52: 0 | O52: 0 | P52: 0 | Q52: 0 | R52: 0 | S52: 0
D53: =SUM(E53:K53) -> 0 | L53: =SUM(M53:S53) -> 0
D54: 0 | L54: 0
D55: 0 | L55: 0 | T55: строки вставлять здесь
D56: 0 | L56: 0
D57: 0 | L57: 0
D58: 0 | L58: 0

Sheet ремонт подряд
A1: Расходы на проведение текущего и капитального ремонтов силами сторонних организаций
A2: =Титульный!B9 -> 
A3: ='ремонт хозспособ'!A3:S3 -> 0
A5: Район | B5: =Титульный!B5 -> 0 | D5: МО | E5: =Титульный!B6 -> 0
A6: ТЕКУЩИЙ РЕМОНТ | F6: рублей
A7: Наименование объекта | B7: Наименование основного оборудования | C7: Вид выполняемых работ | D7: Наименование организации- подрядчика | E7: № договора | F7: Сумма | G7: предложение эксперта
A11: ='ремонт хозспособ'!A9 -> 2016 | B11: ='ремонт хозспособ'!B9:C9 -> факт по данным организации
H14: строки вставлять здесь
A18: Итого | B18: х | C18: х | D18: х | E18: х | F18: =SUM(F12:F17) -> 0 | G18: =SUM(G12:G17) -> 0
A19: 2017 | B19: ='ремонт хозспособ'!B17:C17 -> утв. ДТР ТО
H22: строки вставлять здесь
A25: Итого | B25: х | C25: х | D25: х | E25: х | F25: х | G25: =SUM(G20:G24) -> 0
A26: ='ремонт хозспособ'!A25 -> 2018 | B26: ='ремонт хозспособ'!B25:C25 -> Период регулирования (план)
H28: строки вставлять здесь
A31: Итого | B31: х | C31: х | D31: х | E31: х | F31: =SUM(F27:F30) -> 0 | G31: =SUM(G27:G30) -> 0
A34: КАПИТАЛЬНЫЙ РЕМОНТ | F34: рублей
A35: Наименование объекта | B35: Наименование основного оборудования | C35: Вид выполняемых работ | D35: Наименование организации- подрядчика | E35: № договора | F35: итого по данным организации | G35: предложение эксперта
A39: =A11 -> 2016 | B39: =B11 -> факт по данным организации
H42: строки вставлять здесь
A46: Итого | B46: х | C46: х | D46: х | E46: х | F46: =SUM(F40:F45) -> 0 | G46: =SUM(G40:G45) -> 0
A47: 2017 | B47: =B19 -> утв. ДТР ТО
H50: строки вставлять здесь
A53: Итого | B53: х | C53: х | D53: х | E53: х | F53: х | G53: =SUM(G48:G52) -> 0
A54: =A26 -> 2018 | B54: =B26 -> Период регулирования (план)
H57: строки вставлять здесь
A61: Итого | B61: х | C61: х | D61: х | E61: х | F61: =SUM(F55:F60) -> 0 | G61: =SUM(G55:G60) -> 0

Sheet сторонние услуги в тарифе
A1: Расчет затрат по услугам, оказываемым сторонними организациями, стоимость которых регулируется
A2: =Титульный!B9 -> 
A4: =Титульный!B23 -> 0
A5: Район | B5: =Титульный!B5 -> 0 | D5: МО | F5: =Титульный!B6 -> 0
A6: № п/п | B6: Наименование | C6: Единица измерения | D6: 2016 | E6: =D6+1 -> 2017 | F6: =D6+2 -> 2018 | G6: =F6+1 -> 2019 | H6: =G6+1 -> 2020 | I6: =F6 -> 2018 | J6: =I6+1 -> 2019 | K6: =J6+1 -> 2020
D8: ='НП 2018-2020'!E10 -> факт по данным организации | E8: =I8 -> план эксперта ДТР ТО | F8: ='НП 2018-2020'!I10 -> план организации | G8: ='НП 2018-2020'!J10 -> план организации | H8: ='НП 2018-2020'!K10 -> план организации | I8: ='НП 2018-2020'!L10 -> план эксперта ДТР ТО | J8: =I8 -> план эксперта ДТР ТО | K8: =J8 -> план эксперта ДТР ТО
I9: ='НП 2018-2020'!H10 -> утв.ДТР ТО | J9: =I9 -> утв.ДТР ТО | K9: =J9 -> утв.ДТР ТО
A10: 1 | B10: Услуги по транспортировке стоков | C10: руб | D10: =D11+D14+D17+D20+D23 -> 0 | E10: =E11+E14+E17+E20+E23 -> 0 | F10: =F11+F14+F17+F20+F23 -> 0 | G10: =G11+G14+G17+G20+G23 -> 0 | H10: =H11+H14+H17+H20+H23 -> 0 | I10: =I11+I14 -> 0 | J10: =J11+J14 -> 0 | K10: =K11+K14 -> 0
A11: 1.1 | B11: Наименование организации | C11: руб | D11: =D12*D13 -> 0 | E11: 0 | F11: 0 | G11: 0 | H11: 0 | I11: 0 | J11: 0 | K11: 0
B12: объем стоков, транспортируемый сторонними организациями | C12: м3 | J12: =I12 -> 0 | K12: =I12 -> 0
B13: стоимость услуги | C13: руб./м3 | J13: =I13*вода_среднегод_2019 -> 0 | K13: =J13*вода_среднегод_2020 -> 0
A14: 1.2 | B14: Наименование организации | C14: руб | D14: =D15*D16 -> 0 | E14: 0 | F14: 0 | G14: 0 | H14: 0 | I14: 0 | J14: 0 | K14: 0
B15: объем стоков, транспортируемый сторонними организациями | C15: м3 | J15: =I15 -> 0 | K15: =I15 -> 0
B16: стоимость услуги | C16: руб./м3 | J16: =I16*вода_среднегод_2019 -> 0 | K16: =J16*вода_среднегод_2020 -> 0
A17: 1.3 | B17: Наименование организации | C17: руб | D17: =D18*D19 -> 0 | E17: 0 | F17: 0 | G17: 0 | H17: 0 | I17: 0 | J17: 0 | K17: 0
B18: объем стоков, транспортируемый сторонними организациями | C18: м3 | J18: =I18 -> 0 | K18: =I18 -> 0
B19: стоимость услуги | C19: руб./м3 | J19: =I19*вода_среднегод_2019 -> 0 | K19: =J19*вода_среднегод_2020 -> 0
A20: 1.4 | B20: Наименование организации | C20: руб | D20: =D21*D22 -> 0 | E20: 0 | F20: 0 | G20: 0 | H20: 0 | I20: 0 | J20: 0 | K20: 0
B21: объем стоков, транспортируемый сторонними организациями | C21: м3 | J21: =I21 -> 0 | K21: =I21 -> 0
B22: стоимость услуги | C22: руб./м3 | J22: =I22*вода_среднегод_2019 -> 0 | K22: =J22*вода_среднегод_2020 -> 0
A23: 1.5 | B23: Наименование организации | C23: руб | D23: =D24*D25 -> 0 | E23: 0 | F23: 0 | G23: 0 | H23: 0 | I23: 0 | J23: 0 | K23: 0
B24: объем стоков, транспортируемый сторонними организациями | C24: м3 | J24: =I24 -> 0 | K24: =I24 -> 0
B25: стоимость услуги | C25: руб./м3 | J25: =I25*вода_среднегод_2019 -> 0 | K25: =J25*вода_среднегод_2020 -> 0
A27: 2 | B27: Услуги по очистке стоков | C27: руб. | D27: =D28+D31 -> 0 | E27: =E28+E31 -> 0 | F27: 0 | G27: 0 | H27: 0 | I27: 0 | J27: 0 | K27: 0
A28: 2.1 | B28: Наименование организации | C28: руб | D28: =D29*D30 -> 0 | E28: 0 | F28: 0 | G28: 0 | H28: 0 | I28: 0 | J28: 0 | K28: 0
B29: объем стоков, переданный на очистку и утилизацию сторонним организациям | C29: м3 | J29: =I29 -> 0 | K29: =I29 -> 0
B30: стоимость услуги | C30: руб./м3 | J30: =I30*вода_среднегод_2019 -> 0 | K30: =J30*вода_среднегод_2020 -> 0
A31: 2.2 | B31: Наименование организации | C31: руб | D31: =D32*D33 -> 0 | E31: 0 | F31: 0 | G31: 0 | H31: 0 | I31: 0 | J31: 0 | K31: 0
B32: объем стоков, переданный на очистку и утилизацию сторонним организациям | C32: м3 | J32: =I32 -> 0 | K32: =I32 -> 0
B33: стоимость услуги | C33: руб./м3 | J33: =I33*вода_среднегод_2019 -> 0 | K33: =J33*вода_среднегод_2020 -> 0
A35: 4 | B35: Услуги, оказываемые сторонними организациями, стоимость которых регулируется - всего | C35: руб. | D35: =D10+D27 -> 0 | E35: =E10+E27 -> 0 | F35: 0 | G35: 0 | H35: 0 | I35: 0 | J35: 0 | K35: 0
A92: Таблица 24. Расчет расходов на оплату регулируемых услуг, оказываемых сторонними организациями организации | I92: Таблица 25. Расчет расходов на оплату регулируемых услуг, оказываемых сторонними организациями организации
A93: при необходимости сделать ссылки на листы "тепловая энергия на обогрев" и "Прочие энергоресурсы"!
A94: № п/п | B94: Наименование статьи | C94: Ед.изм | D94: 2015 год | E94: 2017 год | I94: 2017 год
D95: факт по данным организации | E95: план организации | F95: план, принятый экспертом | G95: отклонение | I95: план организации | J95: план, принятый экспертом | K95: план, принятый экспертом
A96: 1 | B96: 2 | C96: 3 | D96: 4 | E96: 5 | F96: 6 | G96: 7=гр.6-гр.5 | J96: 6 | K96: 6
A97: 1 | B97: Расходы на оплату товаров (услуг, работ), приобретаемых у других организаций | C97: тыс.руб | D97: =D98+D101+D104+D107+D110 ->  | E97: =E98+E101+E104+E107+E110 ->  | F97: =F98+F101+F104+F107+F110 ->  | G97: =F97-E97 ->  | I97: =I98+I101+I104+I107+I110 ->  | J97: =J98+J101+J104+J107+J110 ->  | K97: =K98+K101+K104+K107+K110 -> 
A98: 1.1. | B98: Расходы на тепловую энергию | C98: тыс.руб | G98: 0 | I98: =E98 -> 0
B99: объем тепловой энергии | C99: Гкал | G99: 0 | I99: =E99 -> 0
B100: тариф на тепловую энергию | C100: руб/Гкал | G100: 0 | I100: 0
A101: 1.2. | B101: Расходы на очистку сточной жидкости | C101: тыс.руб | D101: =D27/1000 -> 0 | E101: =F27/1000 -> 0 | F101: =I27/1000 -> 0 | G101: 0 | I101: 0 | J101: =J27/1000 -> 0 | K101: =K27/1000 -> 0
B102: объем воды | C102: тыс.куб.м. | D102: =(D29+D32)/1000 -> 0 | E102: =(F29+F32)/1000 -> 0 | F102: =(I29+I32)/1000 -> 0 | G102: 0 | I102: 0 | J102: =(J29+J32)/1000 -> 0 | K102: =(K29+K32)/1000 -> 0
B103: тариф на воду | C103: руб/куб.м. | D103: =IF(D102=0,0,D101/D102*1000) -> 0 | E103: =IF(E102=0,0,E101/E102*1000) -> 0 | F103: =IF(F102=0,0,F101/F102*1000) -> 0 | G103: 0 | I103: 0 | J103: =IF(J102=0,0,J101/J102*1000) -> 0 | K103: =IF(K102=0,0,K101/K102*1000) -> 0
A104: 1.3. | B104: Услуги по утилизации осадка | C104: тыс.руб | D104: =#REF!/1000 ->  | E104: =#REF!/1000 ->  | F104: =#REF!/1000 ->  | G104: =F104-E104 ->  | J104: =#REF!/1000 ->  | K104: =#REF!/1000 -> 
B105: объем воды | C105: тыс.куб.м. | D105: =#REF!/1000 ->  | E105: =#REF!/1000 ->  | F105: =#REF!/1000 ->  | G105: =F105-E105 ->  | J105: =#REF!/1000 ->  | K105: =#REF!/1000 -> 
B106: тариф на услуги | C106: руб/куб.м. | D106: =IF(D105=0,0,D104/D105*1000) ->  | E106: =IF(E105=0,0,E104/E105*1000) ->  | F106: =IF(F105=0,0,F104/F105*1000) ->  | G106: =F106-E106 ->  | J106: =IF(J105=0,0,J104/J105*1000) ->  | K106: =IF(K105=0,0,K104/K105*1000) -> 
A107: 1.4. | B107: Услуги по транспортировке стоков | C107: тыс.руб | D107: =D10/1000 -> 0 | E107: =F10/1000 -> 0 | F107: =I10/1000 -> 0 | G107: =F107-E107 -> 0 | I107: 0 | J107: =J10/1000 -> 0 | K107: =K10/1000 -> 0
B108: объем воды | C108: тыс.куб.м. | D108: =(D12+D15+D18+D21+D24)/1000 -> 0 | E108: =(F12+F15+F18+F21+F24)/1000 -> 0 | F108: =(I12+I15+I18+I21+I24)/1000 -> 0 | G108: 0 | I108: 0 | J108: =(J12+J15+J18+J21+J24)/1000 -> 0 | K108: =(K12+K15+K18+K21+K24)/1000 -> 0
B109: тариф на услуги | C109: руб/куб.м. | D109: =IF(D108=0,0,D107/D108*1000) -> 0 | E109: =IF(E108=0,0,E107/E108*1000) -> 0 | F109: =IF(F108=0,0,F107/F108*1000) -> 0 | G109: 0 | I109: 0 | J109: =IF(J108=0,0,J107/J108*1000) -> 0 | K109: =IF(K108=0,0,K107/K108*1000) -> 0
A110: 1.5. | B110: Расходы на прочие энергоресурсы | C110: тыс.руб | G110: 0 | I110: 0
B111: объем | G111: 0 | I111: 0
B112: цена, тариф | G112: 0 | I112: 0

Sheet реагенты
A1: Расчет затрат на химреагенты
A2: =Титульный!B9 -> 
A4: =Титульный!B23 -> 0
A5: Район | B5: =Титульный!B5 -> 0 | C5: МО | D5: =Титульный!B6 -> 0
A6: № п/п | B6: Наименование химреагентов | C6: по данным организации | F6: предложение эксперта | I6: Примечание (порядок расчета, источник информации)
C7: Необходимое количество химреагентов (кг/год) | D7: Цена за 1 кг химреагента (руб.) | E7: Затраты, (руб.) | F7: Необходимое количество химреагентов (кг/год) | G7: Цена за 1 кг химреагента (руб.) | H7: Затраты, (руб.)
A9: 2016 | B9: факт по данным организации
E10: =C10*D10 -> 0
E11: =C11*D11 -> 0
E12: =C12*D12 -> 0 | J12: строки вставлять здесь
E13: =C13*D13 -> 0
E14: =C14*D14 -> 0
A15: Итого | C15: х | D15: х | E15: =SUM(E10:E14) -> 0 | F15: х | G15: х | H15: =SUM(H10:H14) -> 0
A16: =A9+1 -> 2017 | B16: ут. ДТР ТО
E17: =C17*D17 -> 0 | H17: =F17*G17 -> 0
E18: =C18*D18 -> 0 | H18: =F18*G18 -> 0
E19: =C19*D19 -> 0 | H19: =F19*G19 -> 0 | J19: строки вставлять здесь
E20: =C20*D20 -> 0 | H20: =F20*G20 -> 0
A21: Итого | C21: х | D21: х | F21: х | G21: х | H21: =SUM(H17:H20) -> 0
A22: 2018 | B22: план организации
E23: =C23*D23 -> 0 | H23: =F23*G23 -> 0
E24: =C24*D24 -> 0 | H24: =F24*G24 -> 0
E25: =C25*D25 -> 0 | H25: =F25*G25 -> 0 | J25: строки вставлять здесь
E26: =C26*D26 -> 0 | H26: =F26*G26 -> 0
E27: =C27*D27 -> 0 | H27: =F27*G27 -> 0
A28: Итого | C28: х | D28: х | E28: =SUM(E23:E27) -> 0 | F28: х | G28: х | H28: =SUM(H23:H27) -> 0

Sheet тепловая энергия на обогрев
A1: Расчет расходов на тепловую энергию
A2: =Титульный!B9 -> 
A4: =Титульный!B23 -> 0
A5: Район | B5: =Титульный!B5 -> 0 | D5: МО | E5: =Титульный!B6 -> 0
A6: № | B6: Наименование отапливаемого объекта | C6: Поставщик тепла | D6: по данным организации | G6: предложение эксперта
D7: Кол-во, объем Гкал. | E7: Тариф, руб./Гкал | F7: Сумма, тыс. руб. | G7: Кол-во, объем Гкал. | H7: Тариф, руб./Гкал | I7: Сумма, руб.
B8: ='НП 2018-2020'!E10 -> факт по данным организации | C8: 2016
F9: =D9*E9 -> 0
F10: 0
F11: 0 | J11: строки вставлять здесь
F12: 0
F13: 0
F14: 0
B15: Итого | C15: х | D15: =SUM(D9:D14) -> 0 | E15: х | F15: =SUM(F9:F14) -> 0 | G15: х | H15: х | I15: х | M15: ip
B16: Период регулирования | C16: 2017
F17: 2281925.416 | I17: 2281925.416
I18: =G18*H18 -> 0
I19: =G19*H19 -> 0
I20: =G20*H20 -> 0 | J20: строки вставлять здесь
I21: =G21*H21 -> 0
I22: =G22*H22 -> 0
B23: Итого | C23: х | D23: =SUM(D17:D22) -> 0 | E23: х | F23: =SUM(F17:F22) -> 2281925.416 | G23: =SUM(G17:G22) -> 0 | H23: =IF(G23=0,0,I23/G23) -> 0 | I23: =SUM(I17:I22) -> 2281925.416 | M23: ip
B24: =Титульный!A21 -> Период регулирования | C24: =C8+2 -> 2018
F25: =D25*E25 -> 0 | I25: =G25*H25 -> 0
F26: 0 | I26: 0
F27: 0 | I27: 0
F28: 0 | I28: 0 | J28: строки вставлять здесь
F29: 0 | I29: 0
F30: 0 | I30: 0
B31: Итого | C31: х | D31: =SUM(D25:D30) -> 0 | E31: х | F31: =SUM(F25:F30) -> 0 | G31: =SUM(G25:G30) -> 0 | H31: =IF(G31=0,0,I31/G31) -> 0 | I31: =SUM(I25:I30) -> 0
B32: =B24 -> Период регулирования | C32: =C24+1 -> 2019
F33: =D33*E33 -> 0 | I33: =G33*H33 -> 0
F34: 0 | I34: 0
F35: 0 | I35: 0 | J35: строки вставлять здесь
F36: 0 | I36: 0
F37: 0 | I37: 0
F38: 0 | I38: 0
B39: Итого | C39: х | D39: =SUM(D33:D38) -> 0 | E39: х | F39: =SUM(F33:F38) -> 0 | G39: =SUM(G33:G38) -> 0 | H39: =IF(G39=0,0,I39/G39) -> 0 | I39: =SUM(I33:I38) -> 0
B40: =B32 -> Период регулирования | C40: =C32+1 -> 2020
F41: =D41*E41 -> 0 | I41: =G41*H41 -> 0
F42: 0 | I42: 0
F43: 0 | I43: 0 | J43: строки вставлять здесь
F44: 0 | I44: 0
F45: 0 | I45: 0
F46: 0 | I46: 0
B47: Итого | C47: х | D47: =SUM(D41:D46) -> 0 | E47: х | F47: =SUM(F41:F46) -> 0 | G47: =SUM(G41:G46) -> 0 | H47: =IF(G47=0,0,I47/G47) -> 0 | I47: =SUM(I41:I46) -> 0

Sheet Прочие энергоресурсы
A1: Расчет затрат на приобретение прочих энергоресурсов у организаций, деятельность которых регулируется для очистки и транспортировки сточных вод
A2: =Титульный!B9 -> 
A4: =Титульный!B23 -> 0
A6: Район | B6: =Титульный!B5 -> 0 | D6: МО | E6: =Титульный!B6 -> 0
A7: № п/п | B7: Наименование | C7: Единица измерения | D7: 2016 | E7: =D7+1 -> 2017 | F7: =E7+1 -> 2018 | G7: =F7+1 -> 2019 | H7: =G7+1 -> 2020 | I7: =F7 -> 2018 | J7: =I7+1 -> 2019 | K7: =J7+1 -> 2020
D9: ='тепловая энергия на обогрев'!B8 -> факт по данным организации | E9: утв. ДТР ТО | F9: ='НП 2018-2020'!I10 -> план организации | G9: =F9 -> план организации | H9: =G9 -> план организации | I9: предложение эксперта | J9: =I9 -> предложение эксперта | K9: =J9 -> предложение эксперта
A11: 1 | B11: Затраты на (наименование энергоресурса) | C11: руб. | D11: =D12*D13 -> 0 | E11: 0 | F11: 0 | G11: 0 | H11: 0 | I11: 0 | J11: 0 | K11: 0
A12: 1.1 | B12: Объем | J12: =I12 -> 0 | K12: =J12 -> 0
A13: 1.2 | B13: тариф | J13: =I13*вода_среднегод_2019 -> 0 | K13: =J13*вода_среднегод_2020 -> 0
A14: 2 | B14: Затраты на воду | C14: руб. | D14: =D15*D16 -> 0 | F14: 0 | G14: 0 | H14: 0 | I14: 0 | J14: 0 | K14: 0
A15: 2.1 | B15: объем воды | C15: м3 | J15: =I15 -> 0 | K15: =J15 -> 0
A16: 2.2 | B16: тариф | C16: руб./м3 | J16: =I16*вода_среднегод_2019 -> 0 | K16: =J16*вода_среднегод_2020 -> 0
A17: 3 | B17: Затраты на водоотведение | C17: руб. | D17: =D18*D19 -> 0 | F17: 0 | G17: 0 | H17: 0 | I17: 0 | J17: 0 | K17: 0
A18: 3.1. | B18: объем стоков | C18: м3 | J18: =I18 -> 0 | K18: =J18 -> 0
A19: 3.1.2. | B19: тариф | C19: руб./м3 | J19: =I19*вода_среднегод_2019 -> 0 | K19: =J19*вода_среднегод_2020 -> 0
A20: 4 | B20: Услуги, оказываемые сторонними организациями, стоимость которых регулируется - всего | C20: руб. | D20: =D11+D14+D17 -> 0 | F20: =F11+F14+F17 -> 0 | G20: 0 | H20: 0 | I20: 0 | J20: 0 | K20: 0
B23: Заполняется без учета затрат, входящих в транспортные расходы и ОХР!
B24: только по стадии подъема, очистки и транспортировки воды

Sheet Транспортные расходы
A1: Смета транспортные расходы организации | I1: Распределение транспортных расходов по видам деятельности
A3: ='тепловая энергия на обогрев'!A2 ->  | I3: База для распределения согласно учетной политике
F4: рублей
B5: Статьи расходов | C5: 2016 | E5: =C5+1 -> 2017 | F5: 2018 | Z5: рублей
I6: Подразделение | L6: Виды тарифов, виды деятельности (согласно Учетной политике организации) | Z6: всего
L7: Электрическая энергия | M7: Тепловая энергия | N7: Водоотведение | O7: Водоснабжение | P7: Тариф 5 | Q7: Тариф 6 | R7: Тариф 7 | S7: Тариф 8 | T7: Тариф 9 | U7: Тариф 10 | V7: Тариф 11 | W7: ОХР | X7: транспортные услуги на сторону | Y7: Прочие
C8: ='Прочие энергоресурсы'!E9 -> утв. ДТР ТО | D8: ='Прочие энергоресурсы'!D9 -> факт по данным организации | E8: =C8 -> утв. ДТР ТО | F8: ='Прочие энергоресурсы'!F9 -> план организации | G8: предложение эксперта | I8: 2016 | J8: База | Z8: =SUM(L8:Y8) -> 0
J9: Сумма транспортных расходов | K9: всего | L9: =SUM(L10:L11,L13:L14,L16:L26,L28,L30:L40) -> 0 | M9: 0 | N9: 0 | O9: 0 | P9: 0 | Q9: 0 | R9: 0 | S9: 0 | T9: 0 | U9: 0 | V9: 0 | W9: 0 | X9: 0 | Y9: 0 | Z9: =SUM(Z10:Z11,Z13:Z15,Z21:Z26,Z28,Z30:Z40) -> 0 | AA9: =Z9-D63 -> 0
K10: расходы на оплату труда | L10: =IF($Z$8=0,0,$D$12/$Z$8*L8) -> 0 | M10: 0 | N10: 0 | O10: 0 | P10: 0 | Q10: 0 | R10: 0 | S10: 0 | T10: 0 | U10: 0 | V10: 0 | W10: 0 | X10: 0 | Y10: 0 | Z10: =SUM(L10:Y10) -> 0 | AA10: =Z10-D12 -> 0
K11: отчисления от ФОТ | L11: =IF($Z$8=0,0,$D$15/$Z$8*L8) -> 0 | M11: 0 | N11: 0 | O11: 0 | P11: 0 | Q11: 0 | R11: 0 | S11: 0 | T11: 0 | U11: 0 | V11: 0 | W11: 0 | X11: 0 | Y11: 0 | Z11: 0 | AA11: =Z11-D15 -> 0
A12: 1. | B12: Заработная плата всего | K12: численность | L12: =IF($Z$8=0,0,$D$13/$Z$8*L8) -> 0 | M12: 0 | N12: 0 | O12: 0 | P12: 0 | Q12: 0 | R12: 0 | S12: 0 | T12: 0 | U12: 0 | V12: 0 | W12: 0 | X12: 0 | Y12: 0 | Z12: 0 | AA12: =Z12-D13 -> 0
A13: 1.1. | B13: численность | K13: Амортизация | L13: =IF($Z$8=0,0,$D$17/$Z$8*L8) -> 0 | M13: 0 | N13: 0 | O13: 0 | P13: 0 | Q13: 0 | R13: 0 | S13: 0 | T13: 0 | U13: 0 | V13: 0 | W13: 0 | X13: 0 | Y13: 0 | Z13: 0 | AA13: =Z13-D17 -> 0
A14: 1.2. | B14: среднемесячная заработная плата на 1 работника | C14: =IF(C13=0,0,C12/C13/12) -> 0 | D14: =IF(D13=0,0,D12/D13/12) -> 0 | E14: =IF(E13=0,0,E12/E13/12) -> 0 | F14: =IF(F13=0,0,F12/F13/12) -> 0 | G14: =IF(G13=0,0,G12/G13/12) -> 0 | K14: Аренда | L14: =IF($Z$8=0,0,$D$18/$Z$8*L8) -> 0 | M14: 0 | N14: 0 | O14: 0 | P14: 0 | Q14: 0 | R14: 0 | S14: 0 | T14: 0 | U14: 0 | V14: 0 | W14: 0 | X14: 0 | Y14: 0 | Z14: 0 | AA14: 0
A15: 2. | B15: Отчисления на социальные нужды | C15: =C12*C16/100 -> 0 | E15: =E12*E16/100 -> 0 | F15: =F12*F16/100 -> 0 | G15: =G12*G16/100 -> 0 | K15: содержание зданий | L15: =IF($Z$8=0,0,$D$19/$Z$8*L8) -> 0 | M15: 0 | N15: 0 | O15: 0 | P15: 0 | Q15: 0 | R15: 0 | S15: 0 | T15: 0 | U15: 0 | V15: 0 | W15: 0 | X15: 0 | Y15: 0 | Z15: 0 | AA15: 0
A16: 2.1. | B16: % отчислений (включая отчисления в ФСС от несчастных случаев) | D16: =IF(D12=0,0,D15/D12*100) -> 0 | E16: ='данные об организации'!B39 -> 30.2 | F16: ='данные об организации'!B40 -> 30.2 | K16: электроэнергия | L16: =IF($Z$8=0,0,$D$20/$Z$8*L8) -> 0 | M16: 0 | N16: 0 | O16: 0 | P16: 0 | Q16: 0 | R16: 0 | S16: 0 | T16: 0 | U16: 0 | V16: 0 | W16: 0 | X16: 0 | Y16: 0 | Z16: =SUM(L16:Y16) -> 0 | AA16: 0
A17: 3. | B17: Амортизация | K17: тепловая энергия | L17: =IF($Z$8=0,0,$D$21/$Z$8*L8) -> 0 | M17: 0 | N17: 0 | O17: 0 | P17: 0 | Q17: 0 | R17: 0 | S17: 0 | T17: 0 | U17: 0 | V17: 0 | W17: 0 | X17: 0 | Y17: 0 | Z17: =SUM(L17:Y17) -> 0 | AA17: 0
A18: 4. | B18: Аренда | K18: водоснабжение | L18: =IF($Z$8=0,0,$D$22/$Z$8*L8) -> 0 | M18: 0 | N18: 0 | O18: 0 | P18: 0 | Q18: 0 | R18: 0 | S18: 0 | T18: 0 | U18: 0 | V18: 0 | W18: 0 | X18: 0 | Y18: 0 | Z18: =SUM(L18:Y18) -> 0 | AA18: 0
A19: 5. | B19: Содержание зданий всего, в том числе: | C19: =SUM(C20:C24) -> 0 | D19: =SUM(D20:D24) -> 0 | E19: =SUM(E20:E24) -> 0 | F19: =SUM(F20:F24) -> 0 | G19: =SUM(G20:G24) -> 0 | K19: водоотведение | L19: =IF($Z$8=0,0,$D$23/$Z$8*L8) -> 0 | M19: 0 | N19: 0 | O19: 0 | P19: 0 | Q19: 0 | R19: 0 | S19: 0 | T19: 0 | U19: 0 | V19: 0 | W19: 0 | X19: 0 | Y19: 0 | Z19: =SUM(L19:Y19) -> 0 | AA19: 0
A20: 5.1. | B20: электроэнергия | K20: прочие услуги | L20: =IF($Z$8=0,0,$D$24/$Z$8*L8) -> 0 | M20: 0 | N20: 0 | O20: 0 | P20: 0 | Q20: 0 | R20: 0 | S20: 0 | T20: 0 | U20: 0 | V20: 0 | W20: 0 | X20: 0 | Y20: 0 | Z20: =SUM(L20:Y20) -> 0 | AA20: 0
A21: 5.2. | B21: тепловая энергия | K21: транспортный налог | L21: =IF($Z$8=0,0,$D$26/$Z$8*L8) -> 0 | M21: 0 | N21: 0 | O21: 0 | P21: 0 | Q21: 0 | R21: 0 | S21: 0 | T21: 0 | U21: 0 | V21: 0 | W21: 0 | X21: 0 | Y21: 0 | Z21: 0 | AA21: =Z21-D26 -> 0
A22: 5.3. | B22: водоснабжение | K22: налог на имущество | L22: =IF($Z$8=0,0,$D$27/$Z$8*L8) -> 0 | M22: 0 | N22: 0 | O22: 0 | P22: 0 | Q22: 0 | R22: 0 | S22: 0 | T22: 0 | U22: 0 | V22: 0 | W22: 0 | X22: 0 | Y22: 0 | Z22: 0 | AA22: 0
A23: 5.4. | B23: водоотведение | K23: аренда земли | L23: =IF($Z$8=0,0,$D$28/$Z$8*L8) -> 0 | M23: 0 | N23: 0 | O23: 0 | P23: 0 | Q23: 0 | R23: 0 | S23: 0 | T23: 0 | U23: 0 | V23: 0 | W23: 0 | X23: 0 | Y23: 0 | Z23: 0 | AA23: 0
A24: 5.9. | B24: прочие услуги | I24: =D8 -> факт по данным организации | K24: земельный налог | L24: =IF($Z$8=0,0,$D$29/$Z$8*L8) -> 0 | M24: 0 | N24: 0 | O24: 0 | P24: 0 | Q24: 0 | R24: 0 | S24: 0 | T24: 0 | U24: 0 | V24: 0 | W24: 0 | X24: 0 | Y24: 0 | Z24: 0 | AA24: 0
A25: 6. | B25: Налоги и сборы, в т.ч.: | C25: =SUM(C26:C30) -> 0 | D25: =SUM(D26:D30) -> 0 | E25: =SUM(E26:E30) -> 0 | F25: =SUM(F26:F30) -> 0 | G25: =SUM(G26:G30) -> 0 | K25: плата за загрязнение окружающей среды | L25: =IF($Z$8=0,0,$D$30/$Z$8*L8) -> 0 | M25: 0 | N25: 0 | O25: 0 | P25: 0 | Q25: 0 | R25: 0 | S25: 0 | T25: 0 | U25: 0 | V25: 0 | W25: 0 | X25: 0 | Y25: 0 | Z25: 0 | AA25: 0
A26: 6.1. | B26: транспортный налог | K26: ремонт всего | L26: =IF($Z$8=0,0,$D$31/$Z$8*L8) -> 0 | M26: 0 | N26: 0 | O26: 0 | P26: 0 | Q26: 0 | R26: 0 | S26: 0 | T26: 0 | U26: 0 | V26: 0 | W26: 0 | X26: 0 | Y26: 0 | Z26: 0 | AA26: 0
A27: 6.2. | B27: налог на имущество | K27: в т.ч. материалы на ремонт | L27: =IF($Z$8=0,0,$D$32/$Z$8*L8) -> 0 | M27: 0 | N27: 0 | O27: 0 | P27: 0 | Q27: 0 | R27: 0 | S27: 0 | T27: 0 | U27: 0 | V27: 0 | W27: 0 | X27: 0 | Y27: 0 | Z27: 0 | AA27: 0
A28: 6.3. | B28: аренда земли | K28: материалы на эксплуатацию и ТО | L28: =IF($Z$8=0,0,$D$33/$Z$8*L8) -> 0 | M28: 0 | N28: 0 | O28: 0 | P28: 0 | Q28: 0 | R28: 0 | S28: 0 | T28: 0 | U28: 0 | V28: 0 | W28: 0 | X28: 0 | Y28: 0 | Z28: 0 | AA28: 0
A29: 6.4. | B29: земельный налог | K29: в т.ч. ГСМ | L29: =IF($Z$8=0,0,$D$34/$Z$8*L8) -> 0 | M29: 0 | N29: 0 | O29: 0 | P29: 0 | Q29: 0 | R29: 0 | S29: 0 | T29: 0 | U29: 0 | V29: 0 | W29: 0 | X29: 0 | Y29: 0 | Z29: 0 | AA29: 0
A30: 6.5. | B30: плата за загрязнение окружающей среды | K30: обучение персонала | L30: =IF($Z$8=0,0,$D$37/$Z$8*L8) -> 0 | M30: 0 | N30: 0 | O30: 0 | P30: 0 | Q30: 0 | R30: 0 | S30: 0 | T30: 0 | U30: 0 | V30: 0 | W30: 0 | X30: 0 | Y30: 0 | Z30: 0 | AA30: =Z30-D37 -> 0
A31: 7. | B31: Расходы на ремонт всего, в том числе: | K31: командировочные расходы | L31: =IF($Z$8=0,0,$D$38/$Z$8*L8) -> 0 | M31: 0 | N31: 0 | O31: 0 | P31: 0 | Q31: 0 | R31: 0 | S31: 0 | T31: 0 | U31: 0 | V31: 0 | W31: 0 | X31: 0 | Y31: 0 | Z31: 0 | AA31: =Z31-D38 -> 0
A32: 7.1. | B32: материалы на ремонт | K32: Расходы на оплату работ и услуг, выполняемых сторонними организациями (услуги связи, вневедомственная охрана, юридические, аудиторкие, информационные услуги и т.д.) | L32: =IF($Z$8=0,0,SUM($D$36,$D$40:$D$43)/$Z$8*L8) -> 0 | M32: 0 | N32: 0 | O32: 0 | P32: 0 | Q32: 0 | R32: 0 | S32: 0 | T32: 0 | U32: 0 | V32: 0 | W32: 0 | X32: 0 | Y32: 0 | Z32: 0 | AA32: =Z32-D36-D40-D41-D42-D43 -> 0
A33: 8. | B33: Материалы на эксплуатацию и ТО | K33: страхование объектов | L33: =IF($Z$8=0,0,$D$44/$Z$8*L8) -> 0 | M33: 0 | N33: 0 | O33: 0 | P33: 0 | Q33: 0 | R33: 0 | S33: 0 | T33: 0 | U33: 0 | V33: 0 | W33: 0 | X33: 0 | Y33: 0 | Z33: 0 | AA33: =Z33-D44 -> 0
A34: 8.1. | B34: в т.ч. ГСМ | K34: =B56 -> моющие средства | L34: =IF($Z$8=0,0,$D$56/$Z$8*L8) -> 0 | M34: 0 | N34: 0 | O34: 0 | P34: 0 | Q34: 0 | R34: 0 | S34: 0 | T34: 0 | U34: 0 | V34: 0 | W34: 0 | X34: 0 | Y34: 0 | Z34: 0 | AA34: =Z34-D56 -> 0
A35: 9. | B35: Прочие расходы (услуги непроизводственного характера) | C35: =SUM(C36:C62) -> 0 | D35: =SUM(D36:D62) -> 0 | E35: =SUM(E36:E62) -> 0 | F35: =SUM(F36:F62) -> 0 | G35: =SUM(G36:G62) -> 0 | K35: специальное питание | L35: =IF($Z$8=0,0,$D$57/$Z$8*L8) -> 0 | M35: 0 | N35: 0 | O35: 0 | P35: 0 | Q35: 0 | R35: 0 | S35: 0 | T35: 0 | U35: 0 | V35: 0 | W35: 0 | X35: 0 | Y35: 0 | Z35: 0 | AA35: 0
A36: 9.1 | B36: услуги связи и интернета | K36: страхование персонала (кроме ДМС) | L36: =IF($Z$8=0,0,$D$58/$Z$8*L8) -> 0 | M36: 0 | N36: 0 | O36: 0 | P36: 0 | Q36: 0 | R36: 0 | S36: 0 | T36: 0 | U36: 0 | V36: 0 | W36: 0 | X36: 0 | Y36: 0 | Z36: 0 | AA36: 0
A37: 9.2 | B37: обучение персонала | K37: аттестация | L37: =IF($Z$8=0,0,$D$59/$Z$8*L8) -> 0 | M37: 0 | N37: 0 | O37: 0 | P37: 0 | Q37: 0 | R37: 0 | S37: 0 | T37: 0 | U37: 0 | V37: 0 | W37: 0 | X37: 0 | Y37: 0 | Z37: 0 | AA37: 0
A38: 9.3 | B38: командировочные расходы | K38: медицинский осмотр | L38: =IF($Z$8=0,0,$D$60/$Z$8*L8) -> 0 | M38: 0 | N38: 0 | O38: 0 | P38: 0 | Q38: 0 | R38: 0 | S38: 0 | T38: 0 | U38: 0 | V38: 0 | W38: 0 | X38: 0 | Y38: 0 | Z38: 0 | AA38: 0
A39: 9.4 | B39: почтово-канцелярские расходы | K39: расходы на льготный проезд | L39: =IF($Z$8=0,0,$D$61/$Z$8*L8) -> 0 | M39: 0 | N39: 0 | O39: 0 | P39: 0 | Q39: 0 | R39: 0 | S39: 0 | T39: 0 | U39: 0 | V39: 0 | W39: 0 | X39: 0 | Y39: 0 | Z39: 0 | AA39: 0
A40: 9.5 | B40: ведомственная/вневедомственная охрана | K40: прочие расходы | L40: =IF($Z$8=0,0,SUM($D$39,$D$45:$D$55,$D$62)/$Z$8*L8) -> 0 | M40: 0 | N40: 0 | O40: 0 | P40: 0 | Q40: 0 | R40: 0 | S40: 0 | T40: 0 | U40: 0 | V40: 0 | W40: 0 | X40: 0 | Y40: 0 | Z40: =SUM(L40:Y40) -> 0 | AA40: =Z40-D62-SUM(D45:D55)-D39 -> 0
A41: 9.6 | B41: пожарная охрана | Z41: рублей
A42: 9.7 | B42: услуги по обслуживанию программного обеспечения | I42: Подразделение | L42: Виды тарифов, виды деятельности (согласно Учетной политике организации) | Z42: всего
A43: 9.8 | B43: консультационные услуги | L43: Электрическая энергия | M43: Тепловая энергия | N43: =N7 -> Водоотведение | O43: Водоснабжение | P43: Тариф 5 | Q43: Тариф 6 | R43: Тариф 7 | S43: Тариф 8 | T43: Тариф 9 | U43: Тариф 10 | V43: Тариф 11 | W43: ОХР | X43: транспортные услуги на сторону | Y43: Прочие
A44: 9.9 | B44: расходы на страхование объектов | I44: 2018 | J44: База | Z44: =SUM(L44:Y44) -> 0
B45: транспортные расходы | J45: Сумма транспортных расходов | K45: всего | L45: =SUM(L46:L47,L49:L50,L52:L62,L64,L66:L76) -> 0 | M45: =SUM(M46:M47,M49:M50,M52:M62,M64,M66:M76) -> 0 | N45: 0 | O45: 0 | P45: 0 | Q45: 0 | R45: 0 | S45: 0 | T45: 0 | U45: 0 | V45: 0 | W45: 0 | X45: 0 | Y45: 0 | Z45: =SUM(L45:Y45) -> 0 | AA45: =Z45-F63 -> 0
K46: расходы на оплату труда | L46: =IF($Z$44=0,0,$F$12/$Z$44*L44) -> 0 | M46: 0 | N46: 0 | O46: 0 | P46: 0 | Q46: 0 | R46: 0 | S46: 0 | T46: 0 | U46: 0 | V46: 0 | W46: 0 | X46: 0 | Y46: 0 | Z46: 0 | AA46: =Z46-F12 -> 0
K47: отчисления от ФОТ | L47: =IF($Z$44=0,0,$F$15/$Z$44*L44) -> 0 | M47: 0 | N47: 0 | O47: 0 | P47: 0 | Q47: 0 | R47: 0 | S47: 0 | T47: 0 | U47: 0 | V47: 0 | W47: 0 | X47: 0 | Y47: 0 | Z47: 0 | AA47: =Z47-F15 -> 0
K48: численность | L48: =IF($Z$44=0,0,$F$13/$Z$44*L44) -> 0 | M48: 0 | N48: 0 | O48: 0 | P48: 0 | Q48: 0 | R48: 0 | S48: 0 | T48: 0 | U48: 0 | V48: 0 | W48: 0 | X48: 0 | Y48: 0 | Z48: 0 | AA48: =Z48-F13 -> 0
K49: Амортизация | L49: =IF($Z$44=0,0,$F$17/$Z$44*L44) -> 0 | M49: 0 | N49: 0 | O49: 0 | P49: 0 | Q49: 0 | R49: 0 | S49: 0 | T49: 0 | U49: 0 | V49: 0 | W49: 0 | X49: 0 | Y49: 0 | Z49: 0 | AA49: =Z49-F17 -> 0
K50: Аренда | L50: =IF($Z$44=0,0,$F$18/$Z$44*L44) -> 0 | M50: 0 | N50: 0 | O50: 0 | P50: 0 | Q50: 0 | R50: 0 | S50: 0 | T50: 0 | U50: 0 | V50: 0 | W50: 0 | X50: 0 | Y50: 0 | Z50: 0 | AA50: 0
K51: содержание зданий | L51: =IF($Z$44=0,0,$F$19/$Z$44*L44) -> 0 | M51: 0 | N51: 0 | O51: 0 | P51: 0 | Q51: 0 | R51: 0 | S51: 0 | T51: 0 | U51: 0 | V51: 0 | W51: 0 | X51: 0 | Y51: 0 | Z51: 0 | AA51: 0
K52: электроэнергия | L52: =IF($Z$44=0,0,$F$20/$Z$44*L44) -> 0 | M52: 0 | N52: 0 | O52: 0 | P52: 0 | Q52: 0 | R52: 0 | S52: 0 | T52: 0 | U52: 0 | V52: 0 | W52: 0 | X52: 0 | Y52: 0 | Z52: 0 | AA52: 0
K53: тепловая энергия | L53: =IF($Z$44=0,0,$F$21/$Z$44*L44) -> 0 | M53: 0 | N53: 0 | O53: 0 | P53: 0 | Q53: 0 | R53: 0 | S53: 0 | T53: 0 | U53: 0 | V53: 0 | W53: 0 | X53: 0 | Y53: 0 | Z53: 0 | AA53: 0
K54: водоснабжение | L54: =IF($Z$44=0,0,$F$22/$Z$44*L44) -> 0 | M54: 0 | N54: 0 | O54: 0 | P54: 0 | Q54: 0 | R54: 0 | S54: 0 | T54: 0 | U54: 0 | V54: 0 | W54: 0 | X54: 0 | Y54: 0 | Z54: 0 | AA54: 0
K55: водоотведение | L55: =IF($Z$44=0,0,$F$23/$Z$44*L44) -> 0 | M55: 0 | N55: 0 | O55: 0 | P55: 0 | Q55: 0 | R55: 0 | S55: 0 | T55: 0 | U55: 0 | V55: 0 | W55: 0 | X55: 0 | Y55: 0 | Z55: 0 | AA55: 0
B56: моющие средства | K56: прочие услуги | L56: =IF($Z$44=0,0,$F$24/$Z$44*L44) -> 0 | M56: 0 | N56: 0 | O56: 0 | P56: 0 | Q56: 0 | R56: 0 | S56: 0 | T56: 0 | U56: 0 | V56: 0 | W56: 0 | X56: 0 | Y56: 0 | Z56: 0 | AA56: 0
B57: специальное питание | K57: транспортный налог | L57: =IF($Z$44=0,0,$F$26/$Z$44*L44) -> 0 | M57: 0 | N57: 0 | O57: 0 | P57: 0 | Q57: 0 | R57: 0 | S57: 0 | T57: 0 | U57: 0 | V57: 0 | W57: 0 | X57: 0 | Y57: 0 | Z57: 0 | AA57: =Z57-F26 -> 0
B58: страхование персонала (кроме ДМС) | K58: налог на имущество | L58: =IF($Z$44=0,0,$F$27/$Z$44*L44) -> 0 | M58: 0 | N58: 0 | O58: 0 | P58: 0 | Q58: 0 | R58: 0 | S58: 0 | T58: 0 | U58: 0 | V58: 0 | W58: 0 | X58: 0 | Y58: 0 | Z58: 0 | AA58: 0
B59: аттестация | K59: аренда земли | L59: =IF($Z$44=0,0,$F$28/$Z$44*L44) -> 0 | M59: 0 | N59: 0 | O59: 0 | P59: 0 | Q59: 0 | R59: 0 | S59: 0 | T59: 0 | U59: 0 | V59: 0 | W59: 0 | X59: 0 | Y59: 0 | Z59: 0 | AA59: 0
B60: медицинский осмотр | I60: =F8 -> план организации | K60: земельный налог | L60: =IF($Z$44=0,0,$F$29/$Z$44*L44) -> 0 | M60: 0 | N60: 0 | O60: 0 | P60: 0 | Q60: 0 | R60: 0 | S60: 0 | T60: 0 | U60: 0 | V60: 0 | W60: 0 | X60: 0 | Y60: 0 | Z60: 0 | AA60: 0
B61: расходы на льготный проезд | K61: плата за загрязнение окружающей среды | L61: =IF($Z$44=0,0,$F$30/$Z$44*L44) -> 0 | M61: 0 | N61: 0 | O61: 0 | P61: 0 | Q61: 0 | R61: 0 | S61: 0 | T61: 0 | U61: 0 | V61: 0 | W61: 0 | X61: 0 | Y61: 0 | Z61: 0 | AA61: 0
B62: прочие расходы | K62: ремонт всего | L62: =IF($Z$44=0,0,$F$31/$Z$44*L44) -> 0 | M62: 0 | N62: 0 | O62: 0 | P62: 0 | Q62: 0 | R62: 0 | S62: 0 | T62: 0 | U62: 0 | V62: 0 | W62: 0 | X62: 0 | Y62: 0 | Z62: 0 | AA62: 0
B63: ВСЕГО | C63: =SUM(C12,C15,C17:C19,C25,C31,C33,C35) -> 0 | D63: =SUM(D12,D15,D17:D19,D25,D31,D33,D35) -> 0 | E63: =SUM(E12,E15,E17:E19,E25,E31,E33,E35) -> 0 | F63: =SUM(F12,F15,F17:F19,F25,F31,F33,F35) -> 0 | G63: =SUM(G12,G15,G17:G19,G25,G31,G33,G35) -> 0 | K63: в т.ч. материалы на ремонт | L63: =IF($Z$44=0,0,$F$32/$Z$44*L44) -> 0 | M63: 0 | N63: 0 | O63: 0 | P63: 0 | Q63: 0 | R63: 0 | S63: 0 | T63: 0 | U63: 0 | V63: 0 | W63: 0 | X63: 0 | Y63: 0 | Z63: 0 | AA63: 0
K64: материалы на эксплуатацию и ТО | L64: =IF($Z$44=0,0,$F$33/$Z$44*L44) -> 0 | M64: 0 | N64: 0 | O64: 0 | P64: 0 | Q64: 0 | R64: 0 | S64: 0 | T64: 0 | U64: 0 | V64: 0 | W64: 0 | X64: 0 | Y64: 0 | Z64: 0 | AA64: 0
K65: в т.ч. ГСМ | L65: =IF($Z$44=0,0,$F$34/$Z$44*L44) -> 0 | M65: 0 | N65: 0 | O65: 0 | P65: 0 | Q65: 0 | R65: 0 | S65: 0 | T65: 0 | U65: 0 | V65: 0 | W65: 0 | X65: 0 | Y65: 0 | Z65: 0 | AA65: 0
K66: обучение персонала | L66: =IF($Z$44=0,0,$F$37/$Z$44*L44) -> 0 | M66: 0 | N66: 0 | O66: 0 | P66: 0 | Q66: 0 | R66: 0 | S66: 0 | T66: 0 | U66: 0 | V66: 0 | W66: 0 | X66: 0 | Y66: 0 | Z66: 0 | AA66: =Z66-F37 -> 0
K67: командировочные расходы | L67: =IF($Z$44=0,0,$F$38/$Z$44*L44) -> 0 | M67: 0 | N67: 0 | O67: 0 | P67: 0 | Q67: 0 | R67: 0 | S67: 0 | T67: 0 | U67: 0 | V67: 0 | W67: 0 | X67: 0 | Y67: 0 | Z67: 0 | AA67: =Z67-F38 -> 0
K68: Расходы на оплату работ и услуг, выполняемых сторонними организациями (услуги связи, вневедомственная охрана, юридические, аудиторкие, информационные услуги и т.д.) | L68: =IF($Z$44=0,0,SUM($F$36,$F$40:$F$43)/$Z$44*L44) -> 0 | M68: 0 | N68: 0 | O68: 0 | P68: 0 | Q68: 0 | R68: 0 | S68: 0 | T68: 0 | U68: 0 | V68: 0 | W68: 0 | X68: 0 | Y68: 0 | Z68: 0 | AA68: =Z68-SUM(F36,F40:F43) -> 0
K69: страхование объектов | L69: =IF($Z$44=0,0,$F$44/$Z$44*L44) -> 0 | M69: 0 | N69: 0 | O69: 0 | P69: 0 | Q69: 0 | R69: 0 | S69: 0 | T69: 0 | U69: 0 | V69: 0 | W69: 0 | X69: 0 | Y69: 0 | Z69: 0 | AA69: =Z69-F44 -> 0
K70: =K34 -> моющие средства | L70: =IF($Z$44=0,0,$F$56/$Z$44*L44) -> 0 | M70: 0 | N70: 0 | O70: 0 | P70: 0 | Q70: 0 | R70: 0 | S70: 0 | T70: 0 | U70: 0 | V70: 0 | W70: 0 | X70: 0 | Y70: 0 | Z70: 0 | AA70: =Z70-F56 -> 0
K71: специальное питание | L71: =IF($Z$44=0,0,$F$57/$Z$44*L44) -> 0 | M71: 0 | N71: 0 | O71: 0 | P71: 0 | Q71: 0 | R71: 0 | S71: 0 | T71: 0 | U71: 0 | V71: 0 | W71: 0 | X71: 0 | Y71: 0 | Z71: 0 | AA71: 0
K72: страхование персонала (кроме ДМС) | L72: =IF($Z$44=0,0,$F$58/$Z$44*L44) -> 0 | M72: 0 | N72: 0 | O72: 0 | P72: 0 | Q72: 0 | R72: 0 | S72: 0 | T72: 0 | U72: 0 | V72: 0 | W72: 0 | X72: 0 | Y72: 0 | Z72: 0 | AA72: 0
K73: аттестация | L73: =IF($Z$44=0,0,$F$59/$Z$44*L44) -> 0 | M73: 0 | N73: 0 | O73: 0 | P73: 0 | Q73: 0 | R73: 0 | S73: 0 | T73: 0 | U73: 0 | V73: 0 | W73: 0 | X73: 0 | Y73: 0 | Z73: 0 | AA73: 0
K74: медицинский осмотр | L74: =IF($Z$44=0,0,$F$60/$Z$44*L44) -> 0 | M74: 0 | N74: 0 | O74: 0 | P74: 0 | Q74: 0 | R74: 0 | S74: 0 | T74: 0 | U74: 0 | V74: 0 | W74: 0 | X74: 0 | Y74: 0 | Z74: 0 | AA74: 0
K75: расходы на льготный проезд | L75: =IF($Z$44=0,0,$F$61/$Z$44*L44) -> 0 | M75: 0 | N75: 0 | O75: 0 | P75: 0 | Q75: 0 | R75: 0 | S75: 0 | T75: 0 | U75: 0 | V75: 0 | W75: 0 | X75: 0 | Y75: 0 | Z75: 0 | AA75: 0
K76: прочие расходы | L76: =IF($Z$44=0,0,SUM($F$45:$F$55,$F$62,$F$39)/$Z$44*L44) -> 0 | M76: 0 | N76: 0 | O76: 0 | P76: 0 | Q76: 0 | R76: 0 | S76: 0 | T76: 0 | U76: 0 | V76: 0 | W76: 0 | X76: 0 | Y76: 0 | Z76: 0 | AA76: =Z76-SUM(F39,F45:F55,F62) -> 0
Z77: рублей
I78: Подразделение | L78: Виды тарифов, виды деятельности (согласно Учетной политике организации) | Z78: всего
L79: Электрическая энергия | M79: Тепловая энергия | N79: =N43 -> Водоотведение | O79: Водоснабжение | P79: Тариф 5 | Q79: Тариф 6 | R79: Тариф 7 | S79: Тариф 8 | T79: Тариф 9 | U79: Тариф 10 | V79: Тариф 11 | W79: ОХР | X79: транспортные услуги на сторону | Y79: Прочие
I80: =I44 -> 2018 | J80: База | Z80: =SUM(L80:Y80) -> 0
J81: Сумма транспортных расходов | K81: всего | L81: =SUM(L82:L83,L85:L86,L88:L98,L100,L102:L112) -> 0 | M81: =SUM(M82:M83,M85:M86,M88:M98,M100,M102:M112) -> 0 | N81: 0 | O81: 0 | P81: 0 | Q81: 0 | R81: 0 | S81: 0 | T81: 0 | U81: 0 | V81: 0 | W81: 0 | X81: 0 | Y81: 0 | Z81: =SUM(L81:Y81) -> 0 | AA81: =Z81-G63 -> 0
K82: расходы на оплату труда | L82: =IF($Z$80=0,0,$G$12/$Z$80*L80) -> 0 | M82: 0 | N82: 0 | O82: 0 | P82: 0 | Q82: 0 | R82: 0 | S82: 0 | T82: 0 | U82: 0 | V82: 0 | W82: 0 | X82: 0 | Y82: 0 | Z82: =SUM(L82:Y82) -> 0 | AA82: =Z82-G12 -> 0
K83: отчисления от ФОТ | L83: =IF($Z$80=0,0,$G$15/$Z$80*L80) -> 0 | M83: 0 | N83: 0 | O83: 0 | P83: 0 | Q83: 0 | R83: 0 | S83: 0 | T83: 0 | U83: 0 | V83: 0 | W83: 0 | X83: 0 | Y83: 0 | Z83: 0 | AA83: =Z83-G15 -> 0
K84: численность | L84: =IF($Z$80=0,0,$G$13/$Z$80*L80) -> 0 | M84: 0 | N84: 0 | O84: 0 | P84: 0 | Q84: 0 | R84: 0 | S84: 0 | T84: 0 | U84: 0 | V84: 0 | W84: 0 | X84: 0 | Y84: 0 | Z84: 0 | AA84: =Z84-G13 -> 0
K85: Амортизация | L85: =IF($Z$80=0,0,$G$17/$Z$80*L80) -> 0 | M85: 0 | N85: 0 | O85: 0 | P85: 0 | Q85: 0 | R85: 0 | S85: 0 | T85: 0 | U85: 0 | V85: 0 | W85: 0 | X85: 0 | Y85: 0 | Z85: 0 | AA85: =Z85-G17 -> 0
K86: Аренда | L86: =IF($Z$80=0,0,$G$18/$Z$80*L80) -> 0 | M86: 0 | N86: 0 | O86: 0 | P86: 0 | Q86: 0 | R86: 0 | S86: 0 | T86: 0 | U86: 0 | V86: 0 | W86: 0 | X86: 0 | Y86: 0 | Z86: 0 | AA86: 0
K87: содержание зданий | L87: =IF($Z$80=0,0,$G$19/$Z$80*L80) -> 0 | M87: 0 | N87: 0 | O87: 0 | P87: 0 | Q87: 0 | R87: 0 | S87: 0 | T87: 0 | U87: 0 | V87: 0 | W87: 0 | X87: 0 | Y87: 0 | Z87: 0 | AA87: 0
K88: электроэнергия | L88: =IF($Z$80=0,0,$G$20/$Z$80*L80) -> 0 | M88: 0 | N88: 0 | O88: 0 | P88: 0 | Q88: 0 | R88: 0 | S88: 0 | T88: 0 | U88: 0 | V88: 0 | W88: 0 | X88: 0 | Y88: 0 | Z88: =SUM(L88:Y88) -> 0 | AA88: 0
K89: тепловая энергия | L89: =IF($Z$80=0,0,$G$21/$Z$80*L80) -> 0 | M89: 0 | N89: 0 | O89: 0 | P89: 0 | Q89: 0 | R89: 0 | S89: 0 | T89: 0 | U89: 0 | V89: 0 | W89: 0 | X89: 0 | Y89: 0 | Z89: =SUM(L89:Y89) -> 0 | AA89: 0
K90: водоснабжение | L90: =IF($Z$80=0,0,$G$22/$Z$80*L80) -> 0 | M90: 0 | N90: 0 | O90: 0 | P90: 0 | Q90: 0 | R90: 0 | S90: 0 | T90: 0 | U90: 0 | V90: 0 | W90: 0 | X90: 0 | Y90: 0 | Z90: =SUM(L90:Y90) -> 0 | AA90: 0
K91: водоотведение | L91: =IF($Z$80=0,0,$G$23/$Z$80*L80) -> 0 | M91: 0 | N91: 0 | O91: 0 | P91: 0 | Q91: 0 | R91: 0 | S91: 0 | T91: 0 | U91: 0 | V91: 0 | W91: 0 | X91: 0 | Y91: 0 | Z91: =SUM(L91:Y91) -> 0 | AA91: 0
K92: прочие услуги | L92: =IF($Z$80=0,0,$G$24/$Z$80*L80) -> 0 | M92: 0 | N92: 0 | O92: 0 | P92: 0 | Q92: 0 | R92: 0 | S92: 0 | T92: 0 | U92: 0 | V92: 0 | W92: 0 | X92: 0 | Y92: 0 | Z92: =SUM(L92:Y92) -> 0 | AA92: 0
K93: транспортный налог | L93: =IF($Z$80=0,0,$G$26/$Z$80*L80) -> 0 | M93: 0 | N93: 0 | O93: 0 | P93: 0 | Q93: 0 | R93: 0 | S93: 0 | T93: 0 | U93: 0 | V93: 0 | W93: 0 | X93: 0 | Y93: 0 | Z93: 0 | AA93: =Z93-G26 -> 0
K94: налог на имущество | L94: =IF($Z$80=0,0,$G$27/$Z$80*L80) -> 0 | M94: 0 | N94: 0 | O94: 0 | P94: 0 | Q94: 0 | R94: 0 | S94: 0 | T94: 0 | U94: 0 | V94: 0 | W94: 0 | X94: 0 | Y94: 0 | Z94: 0 | AA94: 0
K95: аренда земли | L95: =IF($Z$80=0,0,$G$28/$Z$80*L80) -> 0 | M95: 0 | N95: 0 | O95: 0 | P95: 0 | Q95: 0 | R95: 0 | S95: 0 | T95: 0 | U95: 0 | V95: 0 | W95: 0 | X95: 0 | Y95: 0 | Z95: 0 | AA95: 0
I96: =G8 -> предложение эксперта | K96: земельный налог | L96: =IF($Z$80=0,0,$G$29/$Z$80*L80) -> 0 | M96: 0 | N96: 0 | O96: 0 | P96: 0 | Q96: 0 | R96: 0 | S96: 0 | T96: 0 | U96: 0 | V96: 0 | W96: 0 | X96: 0 | Y96: 0 | Z96: 0 | AA96: 0
K97: плата за загрязнение окружающей среды | L97: =IF($Z$80=0,0,$G$30/$Z$80*L80) -> 0 | M97: 0 | N97: 0 | O97: 0 | P97: 0 | Q97: 0 | R97: 0 | S97: 0 | T97: 0 | U97: 0 | V97: 0 | W97: 0 | X97: 0 | Y97: 0 | Z97: 0 | AA97: 0
K98: ремонт всего | L98: =IF($Z$80=0,0,$G$31/$Z$80*L80) -> 0 | M98: 0 | N98: 0 | O98: 0 | P98: 0 | Q98: 0 | R98: 0 | S98: 0 | T98: 0 | U98: 0 | V98: 0 | W98: 0 | X98: 0 | Y98: 0 | Z98: 0 | AA98: 0
K99: в т.ч. материалы на ремонт | L99: =IF($Z$80=0,0,$G$32/$Z$80*L80) -> 0 | M99: 0 | N99: 0 | O99: 0 | P99: 0 | Q99: 0 | R99: 0 | S99: 0 | T99: 0 | U99: 0 | V99: 0 | W99: 0 | X99: 0 | Y99: 0 | Z99: 0 | AA99: 0
K100: материалы на эксплуатацию и ТО | L100: =IF($Z$80=0,0,$G$33/$Z$80*L80) -> 0 | M100: 0 | N100: 0 | O100: 0 | P100: 0 | Q100: 0 | R100: 0 | S100: 0 | T100: 0 | U100: 0 | V100: 0 | W100: 0 | X100: 0 | Y100: 0 | Z100: 0 | AA100: 0
K101: в т.ч. ГСМ | L101: =IF($Z$80=0,0,$G$34/$Z$80*L80) -> 0 | M101: 0 | N101: 0 | O101: 0 | P101: 0 | Q101: 0 | R101: 0 | S101: 0 | T101: 0 | U101: 0 | V101: 0 | W101: 0 | X101: 0 | Y101: 0 | Z101: 0 | AA101: 0
K102: обучение персонала | L102: =IF($Z$80=0,0,$G$37/$Z$80*L80) -> 0 | M102: 0 | N102: 0 | O102: 0 | P102: 0 | Q102: 0 | R102: 0 | S102: 0 | T102: 0 | U102: 0 | V102: 0 | W102: 0 | X102: 0 | Y102: 0 | Z102: 0 | AA102: =Z102-G37 -> 0
K103: командировочные расходы | L103: =IF($Z$80=0,0,$G$38/$Z$80*L80) -> 0 | M103: 0 | N103: 0 | O103: 0 | P103: 0 | Q103: 0 | R103: 0 | S103: 0 | T103: 0 | U103: 0 | V103: 0 | W103: 0 | X103: 0 | Y103: 0 | Z103: 0 | AA103: =Z103-G38 -> 0
K104: Расходы на оплату работ и услуг, выполняемых сторонними организациями (услуги связи, вневедомственная охрана, юридические, аудиторкие, информационные услуги и т.д.) | L104: =IF($Z$80=0,0,SUM($G$36,$G$40:$G$43)/$Z$80*L80) -> 0 | M104: 0 | N104: 0 | O104: 0 | P104: 0 | Q104: 0 | R104: 0 | S104: 0 | T104: 0 | U104: 0 | V104: 0 | W104: 0 | X104: 0 | Y104: 0 | Z104: 0 | AA104: =Z104-SUM(G36,G40:G43) -> 0
K105: =K69 -> страхование объектов | L105: =IF($Z$80=0,0,$G$44/$Z$80*L80) -> 0 | M105: 0 | N105: 0 | O105: 0 | P105: 0 | Q105: 0 | R105: 0 | S105: 0 | T105: 0 | U105: 0 | V105: 0 | W105: 0 | X105: 0 | Y105: 0 | Z105: 0 | AA105: =Z105-G44 -> 0
K106: =K70 -> моющие средства | L106: =IF($Z$80=0,0,$G$56/$Z$80*L80) -> 0 | M106: 0 | N106: 0 | O106: 0 | P106: 0 | Q106: 0 | R106: 0 | S106: 0 | T106: 0 | U106: 0 | V106: 0 | W106: 0 | X106: 0 | Y106: 0 | Z106: 0 | AA106: =Z106-G56 -> 0
K107: специальное питание | L107: =IF($Z$80=0,0,$G$57/$Z$80*L80) -> 0 | M107: 0 | N107: 0 | O107: 0 | P107: 0 | Q107: 0 | R107: 0 | S107: 0 | T107: 0 | U107: 0 | V107: 0 | W107: 0 | X107: 0 | Y107: 0 | Z107: 0 | AA107: 0
K108: страхование персонала (кроме ДМС) | L108: =IF($Z$80=0,0,$G$58/$Z$80*L80) -> 0 | M108: 0 | N108: 0 | O108: 0 | P108: 0 | Q108: 0 | R108: 0 | S108: 0 | T108: 0 | U108: 0 | V108: 0 | W108: 0 | X108: 0 | Y108: 0 | Z108: 0 | AA108: 0
K109: аттестация | L109: =IF($Z$80=0,0,$G$59/$Z$80*L80) -> 0 | M109: 0 | N109: 0 | O109: 0 | P109: 0 | Q109: 0 | R109: 0 | S109: 0 | T109: 0 | U109: 0 | V109: 0 | W109: 0 | X109: 0 | Y109: 0 | Z109: 0 | AA109: 0
K110: медицинский осмотр | L110: =IF($Z$80=0,0,$G$60/$Z$80*L80) -> 0 | M110: 0 | N110: 0 | O110: 0 | P110: 0 | Q110: 0 | R110: 0 | S110: 0 | T110: 0 | U110: 0 | V110: 0 | W110: 0 | X110: 0 | Y110: 0 | Z110: 0 | AA110: 0
K111: расходы на льготный проезд | L111: =IF($Z$80=0,0,$G$61/$Z$80*L80) -> 0 | M111: 0 | N111: 0 | O111: 0 | P111: 0 | Q111: 0 | R111: 0 | S111: 0 | T111: 0 | U111: 0 | V111: 0 | W111: 0 | X111: 0 | Y111: 0 | Z111: 0 | AA111: 0
K112: =K76 -> прочие расходы | L112: =IF($Z$80=0,0,SUM($G$39,$G$45:$G$55,$G$62)/$Z$80*L80) -> 0 | M112: 0 | N112: 0 | O112: 0 | P112: 0 | Q112: 0 | R112: 0 | S112: 0 | T112: 0 | U112: 0 | V112: 0 | W112: 0 | X112: 0 | Y112: 0 | Z112: 0 | AA112: =Z112-SUM(G39,G45:G55,G62) -> 0

Sheet вспомогательные
A1: Услуги вспомогательных производств | I1: Распределение общехозяйственных расходов по видам деятельности
A3: ='тепловая энергия на обогрев'!A2 ->  | I3: База для распределения согласно учетной политике
F4: рублей
B5: Статьи расходов | C5: ='Транспортные расходы'!C5 -> 2016 | E5: 2017 | F5: 2018 | Z5: рублей
I6: Подразделение | L6: Виды тарифов, виды деятельности (согласно Учетной политике организации) | Z6: всего
L7: Электрическая энергия | M7: Тепловая энергия | N7: Водоотведение | O7: Водоснабжение | P7: Тариф 5 | Q7: Тариф 6 | R7: Тариф 7 | S7: Тариф 8 | T7: Тариф 9 | U7: Тариф 10 | V7: Тариф 11 | W7: Тариф 12 | X7: Тариф 13 | Y7: прочая деятельность
C8: ='Транспортные расходы'!C8 -> утв. ДТР ТО | D8: ='Транспортные расходы'!D8:D11 -> факт по данным организации | E8: =C8 -> утв. ДТР ТО | F8: ='Транспортные расходы'!F8 -> план организации | G8: предложение эксперта | I8: =C5 -> 2016 | J8: База | Z8: =SUM(L8:Y8) -> 0
J9: Расходы вспомогательных производств | K9: всего | L9: =SUM(L10:L11,L13:L15,L21:L26,L28,L29:L39) -> 0 | M9: 0 | N9: 0 | O9: 0 | P9: 0 | Q9: 0 | R9: 0 | S9: 0 | T9: 0 | U9: 0 | V9: 0 | W9: 0 | X9: 0 | Y9: 0 | Z9: 0 | AA9: =Z9-D74 -> 0
K10: =B12 -> Заработная плата всего | L10: =IF($Z$8=0,0,$D$12/$Z$8*L8) -> 0 | M10: 0 | N10: 0 | O10: 0 | P10: 0 | Q10: 0 | R10: 0 | S10: 0 | T10: 0 | U10: 0 | V10: 0 | W10: 0 | X10: 0 | Y10: 0 | Z10: =SUM(L10:Y10) -> 0 | AA10: =Z10-D12 -> 0
K11: =B15 -> Отчисления на социальные нужды | L11: =IF($Z$8=0,0,$D$15/$Z$8*L8) -> 0 | M11: 0 | N11: 0 | O11: 0 | P11: 0 | Q11: 0 | R11: 0 | S11: 0 | T11: 0 | U11: 0 | V11: 0 | W11: 0 | X11: 0 | Y11: 0 | Z11: 0 | AA11: =Z11-D15 -> 0
A12: 1. | B12: Заработная плата всего | K12: =B13 -> численность | L12: =IF($Z$8=0,0,$D$13/$Z$8*L8) -> 0 | M12: 0 | N12: 0 | O12: 0 | P12: 0 | Q12: 0 | R12: 0 | S12: 0 | T12: 0 | U12: 0 | V12: 0 | W12: 0 | X12: 0 | Y12: 0 | Z12: 0 | AA12: =Z12-D13 -> 0
A13: 1.1. | B13: численность | K13: =B17 -> Амортизация | L13: =IF($Z$8=0,0,$D$17/$Z$8*L8) -> 0 | M13: 0 | N13: 0 | O13: 0 | P13: 0 | Q13: 0 | R13: 0 | S13: 0 | T13: 0 | U13: 0 | V13: 0 | W13: 0 | X13: 0 | Y13: 0 | Z13: 0 | AA13: =Z13-D17 -> 0
A14: 1.2. | B14: среднемесячная заработная плата на 1 работника | C14: =IF(C13=0,0,C12/C13/12) -> 0 | D14: =IF(D13=0,0,D12/D13/12) -> 0 | E14: =IF(E13=0,0,E12/E13/12) -> 0 | F14: =IF(F13=0,0,F12/F13/12) -> 0 | G14: =IF(G13=0,0,G12/G13/12) -> 0 | K14: Аренда | L14: =IF($Z$8=0,0,$D$18/$Z$8*L8) -> 0 | M14: 0 | N14: 0 | O14: 0 | P14: 0 | Q14: 0 | R14: 0 | S14: 0 | T14: 0 | U14: 0 | V14: 0 | W14: 0 | X14: 0 | Y14: 0 | Z14: 0 | AA14: 0
A15: 2. | B15: Отчисления на социальные нужды | C15: =C12*C16/100 -> 0 | E15: =E12*E16/100 -> 0 | F15: =F12*F16/100 -> 0 | G15: =G12*G16/100 -> 0 | K15: Содержание зданий всего, в том числе: | L15: =IF($Z$8=0,0,$D$19/$Z$8*L8) -> 0 | M15: 0 | N15: 0 | O15: 0 | P15: 0 | Q15: 0 | R15: 0 | S15: 0 | T15: 0 | U15: 0 | V15: 0 | W15: 0 | X15: 0 | Y15: 0 | Z15: 0 | AA15: 0
A16: 2.1. | B16: % отчислений (включая отчисления в ФСС от несчастных случаев) | D16: =IF(D12=0,0,D15/D12*100) -> 0 | F16: ='данные об организации'!B40 -> 30.2 | K16: электроэнергия | L16: =IF($Z$8=0,0,$D$20/$Z$8*L8) -> 0 | M16: 0 | N16: 0 | O16: 0 | P16: 0 | Q16: 0 | R16: 0 | S16: 0 | T16: 0 | U16: 0 | V16: 0 | W16: 0 | X16: 0 | Y16: 0 | Z16: 0 | AA16: 0
A17: 3. | B17: Амортизация | K17: тепловая энергия | L17: =IF($Z$8=0,0,$D$21/$Z$8*L8) -> 0 | M17: 0 | N17: 0 | O17: 0 | P17: 0 | Q17: 0 | R17: 0 | S17: 0 | T17: 0 | U17: 0 | V17: 0 | W17: 0 | X17: 0 | Y17: 0 | Z17: 0 | AA17: 0
A18: 4. | B18: Аренда | K18: водоснабжение | L18: =IF($Z$8=0,0,$D$22/$Z$8*L8) -> 0 | M18: 0 | N18: 0 | O18: 0 | P18: 0 | Q18: 0 | R18: 0 | S18: 0 | T18: 0 | U18: 0 | V18: 0 | W18: 0 | X18: 0 | Y18: 0 | Z18: 0 | AA18: 0
A19: 5. | B19: Содержание зданий всего, в том числе: | C19: =SUM(C20:C24) -> 0 | D19: =SUM(D20:D24) -> 0 | E19: =SUM(E20:E24) -> 0 | F19: =SUM(F20:F24) -> 0 | G19: =SUM(G20:G24) -> 0 | K19: водоотведение | L19: =IF($Z$8=0,0,$D$23/$Z$8*L8) -> 0 | M19: 0 | N19: 0 | O19: 0 | P19: 0 | Q19: 0 | R19: 0 | S19: 0 | T19: 0 | U19: 0 | V19: 0 | W19: 0 | X19: 0 | Y19: 0 | Z19: 0 | AA19: 0
A20: 5.1. | B20: электроэнергия | K20: прочие услуги | L20: =IF($Z$8=0,0,$D$24/$Z$8*L8) -> 0 | M20: 0 | N20: 0 | O20: 0 | P20: 0 | Q20: 0 | R20: 0 | S20: 0 | T20: 0 | U20: 0 | V20: 0 | W20: 0 | X20: 0 | Y20: 0 | Z20: 0 | AA20: 0
A21: 5.2. | B21: тепловая энергия | K21: =B26 -> транспортный налог | L21: =IF($Z$8=0,0,$D$26/$Z$8*L8) -> 0 | M21: 0 | N21: 0 | O21: 0 | P21: 0 | Q21: 0 | R21: 0 | S21: 0 | T21: 0 | U21: 0 | V21: 0 | W21: 0 | X21: 0 | Y21: 0 | Z21: 0 | AA21: =Z21-D26 -> 0
A22: 5.3. | B22: водоснабжение | K22: налог на имущество | L22: =IF($Z$8=0,0,$D$27/$Z$8*L8) -> 0 | M22: 0 | N22: 0 | O22: 0 | P22: 0 | Q22: 0 | R22: 0 | S22: 0 | T22: 0 | U22: 0 | V22: 0 | W22: 0 | X22: 0 | Y22: 0 | Z22: 0 | AA22: 0
A23: 5.4. | B23: водоотведение | K23: аренда земли | L23: =IF($Z$8=0,0,$D$28/$Z$8*L8) -> 0 | M23: 0 | N23: 0 | O23: 0 | P23: 0 | Q23: 0 | R23: 0 | S23: 0 | T23: 0 | U23: 0 | V23: 0 | W23: 0 | X23: 0 | Y23: 0 | Z23: 0 | AA23: 0
A24: 5.9. | B24: прочие услуги | I24: =D8 -> факт по данным организации | K24: земельный налог | L24: =IF($Z$8=0,0,$D$29/$Z$8*L8) -> 0 | M24: 0 | N24: 0 | O24: 0 | P24: 0 | Q24: 0 | R24: 0 | S24: 0 | T24: 0 | U24: 0 | V24: 0 | W24: 0 | X24: 0 | Y24: 0 | Z24: 0 | AA24: 0
A25: 6. | B25: Налоги и сборы, в т.ч.: | C25: =SUM(C26:C30) -> 0 | D25: =SUM(D26:D30) -> 0 | E25: =SUM(E26:E30) -> 0 | F25: =SUM(F26:F30) -> 0 | G25: =SUM(G26:G30) -> 0 | K25: плата за загрязнение окружающей среды | L25: =IF($Z$8=0,0,$D$30/$Z$8*L8) -> 0 | M25: 0 | N25: 0 | O25: 0 | P25: 0 | Q25: 0 | R25: 0 | S25: 0 | T25: 0 | U25: 0 | V25: 0 | W25: 0 | X25: 0 | Y25: 0 | Z25: 0 | AA25: 0
A26: 6.1. | B26: транспортный налог | K26: Расходы на ремонт всего, в том числе: | L26: =IF($Z$8=0,0,$D$31/$Z$8*L8) -> 0 | M26: 0 | N26: 0 | O26: 0 | P26: 0 | Q26: 0 | R26: 0 | S26: 0 | T26: 0 | U26: 0 | V26: 0 | W26: 0 | X26: 0 | Y26: 0 | Z26: 0 | AA26: 0
A27: 6.2. | B27: налог на имущество | K27: материалы на ремонт | L27: =IF($Z$8=0,0,$D$32/$Z$8*L8) -> 0 | M27: 0 | N27: 0 | O27: 0 | P27: 0 | Q27: 0 | R27: 0 | S27: 0 | T27: 0 | U27: 0 | V27: 0 | W27: 0 | X27: 0 | Y27: 0 | Z27: 0 | AA27: 0
A28: 6.3. | B28: аренда земли | K28: Хозинвентарь и другие вспомогательные материалы | L28: =IF($Z$8=0,0,$D$33/$Z$8*L8) -> 0 | M28: 0 | N28: 0 | O28: 0 | P28: 0 | Q28: 0 | R28: 0 | S28: 0 | T28: 0 | U28: 0 | V28: 0 | W28: 0 | X28: 0 | Y28: 0 | Z28: 0 | AA28: 0
A29: 6.4. | B29: земельный налог | K29: =B36 -> обучение персонала | L29: =IF($Z$8=0,0,$D$36/$Z$8*L8) -> 0 | M29: 0 | N29: 0 | O29: 0 | P29: 0 | Q29: 0 | R29: 0 | S29: 0 | T29: 0 | U29: 0 | V29: 0 | W29: 0 | X29: 0 | Y29: 0 | Z29: 0 | AA29: =Z29-D36 -> 0
A30: 6.5. | B30: плата за загрязнение окружающей среды | K30: =B37 -> командировочные расходы | L30: =IF($Z$8=0,0,$D$37/$Z$8*L8) -> 0 | M30: 0 | N30: 0 | O30: 0 | P30: 0 | Q30: 0 | R30: 0 | S30: 0 | T30: 0 | U30: 0 | V30: 0 | W30: 0 | X30: 0 | Y30: 0 | Z30: 0 | AA30: =Z30-D37 -> 0
A31: 7. | B31: Расходы на ремонт всего, в том числе: | K31: Расходы на оплату работ и услуг, выполняемых сторонними организациями (услуги связи, вневедомственная охрана, юридические, аудиторкие, информационные услуги и т.д.) | L31: =IF($Z$8=0,0,SUM($D$35,$D$39:$D$42,$D$44:$D$46,$D$71:$D$72)/$Z$8*L8) -> 0 | M31: 0 | N31: 0 | O31: 0 | P31: 0 | Q31: 0 | R31: 0 | S31: 0 | T31: 0 | U31: 0 | V31: 0 | W31: 0 | X31: 0 | Y31: 0 | Z31: 0 | AA31: =Z31-SUM(D35,D39:D42,D44:D46,D71:D72) -> 0
A32: 7.1. | B32: материалы на ремонт | K32: страхование объектов | L32: =IF($Z$8=0,0,$D$43/$Z$8*L8) -> 0 | M32: 0 | N32: 0 | O32: 0 | P32: 0 | Q32: 0 | R32: 0 | S32: 0 | T32: 0 | U32: 0 | V32: 0 | W32: 0 | X32: 0 | Y32: 0 | Z32: 0 | AA32: =Z32-D43 -> 0
A33: 8. | B33: Хозинвентарь и другие вспомогательные материалы | K33: =B65 -> моющие средства | L33: =IF($Z$8=0,0,$D$65/$Z$8*L8) -> 0 | M33: 0 | N33: 0 | O33: 0 | P33: 0 | Q33: 0 | R33: 0 | S33: 0 | T33: 0 | U33: 0 | V33: 0 | W33: 0 | X33: 0 | Y33: 0 | Z33: 0 | AA33: =Z33-D65 -> 0
A34: 9. | B34: Прочие расходы (услуги непроизводственного характера) | C34: =SUM(C35:C73) -> 0 | D34: =SUM(D35:D73) -> 0 | E34: =SUM(E35:E73) -> 0 | F34: =SUM(F35:F73) -> 0 | G34: =SUM(G35:G73) -> 0 | K34: специальное питание | L34: =IF($Z$8=0,0,$D$66/$Z$8*L8) -> 0 | M34: 0 | N34: 0 | O34: 0 | P34: 0 | Q34: 0 | R34: 0 | S34: 0 | T34: 0 | U34: 0 | V34: 0 | W34: 0 | X34: 0 | Y34: 0 | Z34: 0 | AA34: 0
A35: 9.1 | B35: услуги связи и интернета | K35: страхование персонала (кроме ДМС) | L35: =IF($Z$8=0,0,$D$67/$Z$8*L8) -> 0 | M35: 0 | N35: 0 | O35: 0 | P35: 0 | Q35: 0 | R35: 0 | S35: 0 | T35: 0 | U35: 0 | V35: 0 | W35: 0 | X35: 0 | Y35: 0 | Z35: 0 | AA35: 0
A36: 9.2 | B36: обучение персонала | K36: аттестация | L36: =IF($Z$8=0,0,$D$68/$Z$8*L8) -> 0 | M36: 0 | N36: 0 | O36: 0 | P36: 0 | Q36: 0 | R36: 0 | S36: 0 | T36: 0 | U36: 0 | V36: 0 | W36: 0 | X36: 0 | Y36: 0 | Z36: 0 | AA36: 0
A37: 9.3 | B37: командировочные расходы | K37: медицинский осмотр | L37: =IF($Z$8=0,0,$D$69/$Z$8*L8) -> 0 | M37: 0 | N37: 0 | O37: 0 | P37: 0 | Q37: 0 | R37: 0 | S37: 0 | T37: 0 | U37: 0 | V37: 0 | W37: 0 | X37: 0 | Y37: 0 | Z37: 0 | AA37: 0
A38: 9.4 | B38: почтово-канцелярские расходы | K38: расходы на льготный проезд | L38: =IF($Z$8=0,0,$D$70/$Z$8*L8) -> 0 | M38: 0 | N38: 0 | O38: 0 | P38: 0 | Q38: 0 | R38: 0 | S38: 0 | T38: 0 | U38: 0 | V38: 0 | W38: 0 | X38: 0 | Y38: 0 | Z38: 0 | AA38: 0
A39: 9.5 | B39: ведомственная/вневедомственная охрана | K39: =B73 -> прочие расходы | L39: =IF($Z$8=0,0,SUM($D$47:$D$64,$D$73,$D$38)/$Z$8*L8) -> 0 | M39: 0 | N39: 0 | O39: 0 | P39: 0 | Q39: 0 | R39: 0 | S39: 0 | T39: 0 | U39: 0 | V39: 0 | W39: 0 | X39: 0 | Y39: 0 | Z39: 0 | AA39: =Z39-SUM(D38,D47:D64,D73) -> 0
A40: 9.6 | B40: пожарная охрана | Z40: рублей
A41: 9.7 | B41: услуги по обслуживанию программного обеспечения | I41: Подразделение | L41: Виды тарифов, виды деятельности (согласно Учетной политике организации) | Z41: всего
A42: 9.8 | B42: консультационные услуги | L42: =L7 -> Электрическая энергия | M42: Тепловая энергия | N42: Водоотведение | O42: Водоснабжение | P42: Тариф 5 | Q42: Тариф 6 | R42: Тариф 7 | S42: Тариф 8 | T42: Тариф 9 | U42: Тариф 10 | V42: Тариф 11 | W42: Тариф 12 | X42: Тариф 13 | Y42: прочая деятельность
A43: 9.9 | B43: расходы на страхование объектов | I43: 2018 | J43: База | N43: 35.07782931 | Y43: 64.92217069 | Z43: =SUM(L43:Y43) -> 100
A44: 9.10. | B44: аудиторские услуги | J44: =J9 -> Расходы вспомогательных производств | K44: =K9 -> всего | L44: =SUM(L45:L46,L48:L50,L56:L61,L63,L64:L74) -> 0 | M44: =SUM(M45:M46,M48:M50,M56:M61,M63,M64:M74) -> 0 | N44: =SUM(N45:N46,N48:N50,N56:N61,N63,N64:N74) -> 0 | O44: =SUM(O45:O46,O48:O50,O56:O61,O63,O64:O74) -> 0 | P44: 0 | Q44: 0 | R44: 0 | S44: 0 | T44: 0 | U44: 0 | V44: 0 | W44: 0 | X44: 0 | Y44: 0 | Z44: =SUM(Z45:Z46,Z48:Z50,Z56:Z61,Z63,Z64:Z74) -> 0 | AA44: =Z44-F74 -> 0
A45: 9.11. | B45: информационные услуги | K45: =K10 -> Заработная плата всего | L45: =IF($Z$43=0,0,$F$12/$Z$43*L43) -> 0 | M45: 0 | N45: 0 | O45: 0 | P45: 0 | Q45: 0 | R45: 0 | S45: 0 | T45: 0 | U45: 0 | V45: 0 | W45: 0 | X45: 0 | Y45: 0 | Z45: =SUM(L45:Y45) -> 0 | AA45: =Z45-F12 -> 0
A46: 9.12. | B46: юридические услуги | K46: Отчисления на социальные нужды | L46: =IF($Z$43=0,0,$F$15/$Z$43*L43) -> 0 | M46: 0 | N46: 0 | O46: 0 | P46: 0 | Q46: 0 | R46: 0 | S46: 0 | T46: 0 | U46: 0 | V46: 0 | W46: 0 | X46: 0 | Y46: 0 | Z46: 0 | AA46: =Z46-F15 -> 0
A47: 9.13. | B47: услуги банка | K47: численность | L47: =IF($Z$43=0,0,$F$13/$Z$43*L43) -> 0 | M47: 0 | N47: 0 | O47: 0 | P47: 0 | Q47: 0 | R47: 0 | S47: 0 | T47: 0 | U47: 0 | V47: 0 | W47: 0 | X47: 0 | Y47: 0 | Z47: 0 | AA47: =Z47-F13 -> 0
K48: Амортизация | L48: =IF($Z$43=0,0,$F$17/$Z$43*L43) -> 0 | M48: 0 | N48: 0 | O48: 0 | P48: 0 | Q48: 0 | R48: 0 | S48: 0 | T48: 0 | U48: 0 | V48: 0 | W48: 0 | X48: 0 | Y48: 0 | Z48: 0 | AA48: =Z48-F17 -> 0
K49: Аренда | L49: =IF($Z$43=0,0,$F$18/$Z$43*L43) -> 0 | M49: 0 | N49: 0 | O49: 0 | P49: 0 | Q49: 0 | R49: 0 | S49: 0 | T49: 0 | U49: 0 | V49: 0 | W49: 0 | X49: 0 | Y49: 0 | Z49: 0 | AA49: 0
K50: Содержание зданий всего, в том числе: | L50: =IF($Z$43=0,0,$F$19/$Z$43*L43) -> 0 | M50: 0 | N50: 0 | O50: 0 | P50: 0 | Q50: 0 | R50: 0 | S50: 0 | T50: 0 | U50: 0 | V50: 0 | W50: 0 | X50: 0 | Y50: 0 | Z50: 0 | AA50: 0
K51: электроэнергия | L51: =IF($Z$43=0,0,$F$20/$Z$43*L43) -> 0 | M51: 0 | N51: 0 | O51: 0 | P51: 0 | Q51: 0 | R51: 0 | S51: 0 | T51: 0 | U51: 0 | V51: 0 | W51: 0 | X51: 0 | Y51: 0 | Z51: 0 | AA51: 0
K52: тепловая энергия | L52: =IF($Z$43=0,0,$F$21/$Z$43*L43) -> 0 | M52: 0 | N52: 0 | O52: 0 | P52: 0 | Q52: 0 | R52: 0 | S52: 0 | T52: 0 | U52: 0 | V52: 0 | W52: 0 | X52: 0 | Y52: 0 | Z52: 0 | AA52: 0
K53: водоснабжение | L53: =IF($Z$43=0,0,$F$22/$Z$43*L43) -> 0 | M53: 0 | N53: 0 | O53: 0 | P53: 0 | Q53: 0 | R53: 0 | S53: 0 | T53: 0 | U53: 0 | V53: 0 | W53: 0 | X53: 0 | Y53: 0 | Z53: 0 | AA53: 0
K54: водоотведение | L54: =IF($Z$43=0,0,$F$23/$Z$43*L43) -> 0 | M54: 0 | N54: 0 | O54: 0 | P54: 0 | Q54: 0 | R54: 0 | S54: 0 | T54: 0 | U54: 0 | V54: 0 | W54: 0 | X54: 0 | Y54: 0 | Z54: 0 | AA54: 0
K55: прочие услуги | L55: =IF($Z$43=0,0,$F$24/$Z$43*L43) -> 0 | M55: 0 | N55: 0 | O55: 0 | P55: 0 | Q55: 0 | R55: 0 | S55: 0 | T55: 0 | U55: 0 | V55: 0 | W55: 0 | X55: 0 | Y55: 0 | Z55: 0 | AA55: 0
K56: транспортный налог | L56: =IF($Z$43=0,0,$F$26/$Z$43*L43) -> 0 | M56: 0 | N56: 0 | O56: 0 | P56: 0 | Q56: 0 | R56: 0 | S56: 0 | T56: 0 | U56: 0 | V56: 0 | W56: 0 | X56: 0 | Y56: 0 | Z56: 0 | AA56: =Z56-F26 -> 0
K57: налог на имущество | L57: =IF($Z$43=0,0,$F$27/$Z$43*L43) -> 0 | M57: 0 | N57: 0 | O57: 0 | P57: 0 | Q57: 0 | R57: 0 | S57: 0 | T57: 0 | U57: 0 | V57: 0 | W57: 0 | X57: 0 | Y57: 0 | Z57: 0 | AA57: 0
K58: аренда земли | L58: =IF($Z$43=0,0,$F$28/$Z$43*L43) -> 0 | M58: 0 | N58: 0 | O58: 0 | P58: 0 | Q58: 0 | R58: 0 | S58: 0 | T58: 0 | U58: 0 | V58: 0 | W58: 0 | X58: 0 | Y58: 0 | Z58: 0 | AA58: 0
I59: =F8 -> план организации | K59: земельный налог | L59: =IF($Z$43=0,0,$F$29/$Z$43*L43) -> 0 | M59: 0 | N59: 0 | O59: 0 | P59: 0 | Q59: 0 | R59: 0 | S59: 0 | T59: 0 | U59: 0 | V59: 0 | W59: 0 | X59: 0 | Y59: 0 | Z59: 0 | AA59: 0
K60: плата за загрязнение окружающей среды | L60: =IF($Z$43=0,0,$F$30/$Z$43*L43) -> 0 | M60: 0 | N60: 0 | O60: 0 | P60: 0 | Q60: 0 | R60: 0 | S60: 0 | T60: 0 | U60: 0 | V60: 0 | W60: 0 | X60: 0 | Y60: 0 | Z60: 0 | AA60: 0
K61: Расходы на ремонт всего, в том числе: | L61: =IF($Z$43=0,0,$F$31/$Z$43*L43) -> 0 | M61: 0 | N61: 0 | O61: 0 | P61: 0 | Q61: 0 | R61: 0 | S61: 0 | T61: 0 | U61: 0 | V61: 0 | W61: 0 | X61: 0 | Y61: 0 | Z61: 0 | AA61: 0
K62: материалы на ремонт | L62: =IF($Z$43=0,0,$F$32/$Z$43*L43) -> 0 | M62: 0 | N62: 0 | O62: 0 | P62: 0 | Q62: 0 | R62: 0 | S62: 0 | T62: 0 | U62: 0 | V62: 0 | W62: 0 | X62: 0 | Y62: 0 | Z62: 0 | AA62: 0
K63: Хозинвентарь и другие вспомогательные материалы | L63: =IF($Z$43=0,0,$F$33/$Z$43*L43) -> 0 | M63: 0 | N63: 0 | O63: 0 | P63: 0 | Q63: 0 | R63: 0 | S63: 0 | T63: 0 | U63: 0 | V63: 0 | W63: 0 | X63: 0 | Y63: 0 | Z63: 0 | AA63: 0
K64: обучение персонала | L64: =IF($Z$43=0,0,$F$36/$Z$43*L43) -> 0 | M64: 0 | N64: 0 | O64: 0 | P64: 0 | Q64: 0 | R64: 0 | S64: 0 | T64: 0 | U64: 0 | V64: 0 | W64: 0 | X64: 0 | Y64: 0 | Z64: 0 | AA64: =Z64-F36 -> 0
B65: моющие средства | K65: командировочные расходы | L65: =IF($Z$43=0,0,$F$37/$Z$43*L43) -> 0 | M65: 0 | N65: 0 | O65: 0 | P65: 0 | Q65: 0 | R65: 0 | S65: 0 | T65: 0 | U65: 0 | V65: 0 | W65: 0 | X65: 0 | Y65: 0 | Z65: 0 | AA65: =Z65-F37 -> 0
B66: специальное питание | K66: Расходы на оплату работ и услуг, выполняемых сторонними организациями (услуги связи, вневедомственная охрана, юридические, аудиторкие, информационные услуги и т.д.) | L66: =IF($Z$43=0,0,SUM($F$35,$F$39:$F$42,$F$44:$F$46,$F$71:$F$72)/$Z$43*L43) -> 0 | M66: 0 | N66: 0 | O66: 0 | P66: 0 | Q66: 0 | R66: 0 | S66: 0 | T66: 0 | U66: 0 | V66: 0 | W66: 0 | X66: 0 | Y66: 0 | Z66: 0 | AA66: =Z66-SUM(F35,F39:F42,F44:F46,F71:F72) -> 0
B67: страхование персонала (кроме ДМС) | K67: страхование объектов | L67: =IF($Z$43=0,0,$F$43/$Z$43*L43) -> 0 | M67: 0 | N67: 0 | O67: 0 | P67: 0 | Q67: 0 | R67: 0 | S67: 0 | T67: 0 | U67: 0 | V67: 0 | W67: 0 | X67: 0 | Y67: 0 | Z67: 0 | AA67: =Z67-F43 -> 0
B68: аттестация | K68: моющие средства | L68: =IF($Z$43=0,0,$F$65/$Z$43*L43) -> 0 | M68: =IF($Z$43=0,0,$F$65/$Z$43*M43) -> 0 | N68: 0 | O68: 0 | P68: 0 | Q68: 0 | R68: 0 | S68: 0 | T68: 0 | U68: 0 | V68: 0 | W68: 0 | X68: 0 | Y68: 0 | Z68: 0 | AA68: =Z68-F65 -> 0
B69: медицинский осмотр | K69: специальное питание | L69: =IF($Z$43=0,0,$F$66/$Z$43*L43) -> 0 | M69: =IF($Z$43=0,0,$F$66/$Z$43*M43) -> 0 | N69: 0 | O69: 0 | P69: 0 | Q69: 0 | R69: 0 | S69: 0 | T69: 0 | U69: 0 | V69: 0 | W69: 0 | X69: 0 | Y69: 0 | Z69: 0 | AA69: 0
B70: расходы на льготный проезд | K70: страхование персонала (кроме ДМС) | L70: =IF($Z$43=0,0,$F$67/$Z$43*L43) -> 0 | M70: =IF($Z$43=0,0,$F$67/$Z$43*M43) -> 0 | N70: 0 | O70: 0 | P70: 0 | Q70: 0 | R70: 0 | S70: 0 | T70: 0 | U70: 0 | V70: 0 | W70: 0 | X70: 0 | Y70: 0 | Z70: 0 | AA70: 0
B71: услуги по управлению | K71: аттестация | L71: =IF($Z$43=0,0,$F$68/$Z$43*L43) -> 0 | M71: =IF($Z$43=0,0,$F$68/$Z$43*M43) -> 0 | N71: 0 | O71: 0 | P71: 0 | Q71: 0 | R71: 0 | S71: 0 | T71: 0 | U71: 0 | V71: 0 | W71: 0 | X71: 0 | Y71: 0 | Z71: 0 | AA71: 0
B72: транспортные услуги | K72: медицинский осмотр | L72: =IF($Z$43=0,0,$F$69/$Z$43*L43) -> 0 | M72: =IF($Z$43=0,0,$F$69/$Z$43*M43) -> 0 | N72: 0 | O72: 0 | P72: 0 | Q72: 0 | R72: 0 | S72: 0 | T72: 0 | U72: 0 | V72: 0 | W72: 0 | X72: 0 | Y72: 0 | Z72: 0 | AA72: 0
B73: прочие расходы | K73: расходы на льготный проезд | L73: =IF($Z$43=0,0,$F$70/$Z$43*L43) -> 0 | M73: =IF($Z$43=0,0,$F$70/$Z$43*M43) -> 0 | N73: 0 | O73: 0 | P73: 0 | Q73: 0 | R73: 0 | S73: 0 | T73: 0 | U73: 0 | V73: 0 | W73: 0 | X73: 0 | Y73: 0 | Z73: 0 | AA73: 0
B74: ВСЕГО | C74: =SUM(C12,C15,C17:C19,C25,C31,C33,C34) -> 0 | D74: =SUM(D12,D15,D17:D19,D25,D31,D33,D34) -> 0 | E74: =SUM(E12,E15,E17:E19,E25,E31,E33,E34) -> 0 | F74: =SUM(F12,F15,F17:F19,F25,F31,F33,F34) -> 0 | G74: =SUM(G12,G15,G17:G19,G25,G31,G33,G34) -> 0 | K74: прочие расходы | L74: =IF($Z$43=0,0,SUM($F$38,$F$47:$F$64,$F$73)/$Z$43*L43) -> 0 | M74: 0 | N74: 0 | O74: 0 | P74: 0 | Q74: 0 | R74: 0 | S74: 0 | T74: 0 | U74: 0 | V74: 0 | W74: 0 | X74: 0 | Y74: 0 | Z74: 0 | AA74: =Z74-SUM(F38,F47:F64,F73) -> 0
Z75: рублей
I76: Подразделение | L76: Виды тарифов, виды деятельности (согласно Учетной политике организации) | Z76: всего
L77: =L42 -> Электрическая энергия | M77: Тепловая энергия | N77: Водоотведение | O77: Водоснабжение | P77: Тариф 5 | Q77: Тариф 6 | R77: Тариф 7 | S77: Тариф 8 | T77: Тариф 9 | U77: Тариф 10 | V77: Тариф 11 | W77: Тариф 12 | X77: Тариф 13 | Y77: прочая деятельность
I78: =I43 -> 2018 | J78: База | Z78: =SUM(L78:Y78) -> 0
J79: =J44 -> Расходы вспомогательных производств | K79: всего | L79: =SUM(L80:L81,L83:L85,L91:L96,L98,L99:L109) -> 0 | M79: =SUM(M80:M81,M83:M85,M91:M96,M98,M99:M109) -> 0 | N79: =SUM(N80:N81,N83:N85,N91:N96,N98,N99:N109) -> 0 | O79: =SUM(O80:O81,O83:O85,O91:O96,O98,O99:O109) -> 0 | P79: 0 | Q79: 0 | R79: 0 | S79: 0 | T79: 0 | U79: 0 | V79: 0 | W79: 0 | X79: 0 | Y79: 0 | Z79: 0 | AA79: =Z79-G74 -> 0
K80: =K45 -> Заработная плата всего | L80: =IF($Z$78=0,0,$G$12/$Z$78*L78) -> 0 | M80: 0 | N80: 0 | O80: 0 | P80: 0 | Q80: 0 | R80: 0 | S80: 0 | T80: 0 | U80: 0 | V80: 0 | W80: 0 | X80: 0 | Y80: 0 | Z80: =SUM(L80:Y80) -> 0 | AA80: =Z80-G12 -> 0
K81: Отчисления на социальные нужды | L81: =IF($Z$78=0,0,$G$15/$Z$78*L78) -> 0 | M81: 0 | N81: 0 | O81: 0 | P81: 0 | Q81: 0 | R81: 0 | S81: 0 | T81: 0 | U81: 0 | V81: 0 | W81: 0 | X81: 0 | Y81: 0 | Z81: 0 | AA81: =Z81-G15 -> 0
K82: численность | L82: =IF($Z$78=0,0,$G$13/$Z$78*L78) -> 0 | M82: 0 | N82: 0 | O82: 0 | P82: 0 | Q82: 0 | R82: 0 | S82: 0 | T82: 0 | U82: 0 | V82: 0 | W82: 0 | X82: 0 | Y82: 0 | Z82: 0 | AA82: =Z82-G13 -> 0
K83: Амортизация | L83: =IF($Z$78=0,0,$G$17/$Z$78*L78) -> 0 | M83: 0 | N83: 0 | O83: 0 | P83: 0 | Q83: 0 | R83: 0 | S83: 0 | T83: 0 | U83: 0 | V83: 0 | W83: 0 | X83: 0 | Y83: 0 | Z83: 0 | AA83: =Z83-G17 -> 0
K84: Аренда | L84: =IF($Z$78=0,0,$G$18/$Z$78*L78) -> 0 | M84: 0 | N84: 0 | O84: 0 | P84: 0 | Q84: 0 | R84: 0 | S84: 0 | T84: 0 | U84: 0 | V84: 0 | W84: 0 | X84: 0 | Y84: 0 | Z84: 0 | AA84: 0
K85: Содержание зданий всего, в том числе: | L85: =IF($Z$78=0,0,$G$19/$Z$78*L78) -> 0 | M85: 0 | N85: 0 | O85: 0 | P85: 0 | Q85: 0 | R85: 0 | S85: 0 | T85: 0 | U85: 0 | V85: 0 | W85: 0 | X85: 0 | Y85: 0 | Z85: 0 | AA85: 0
K86: электроэнергия | L86: =IF($Z$78=0,0,$G$20/$Z$78*L78) -> 0 | M86: 0 | N86: 0 | O86: 0 | P86: 0 | Q86: 0 | R86: 0 | S86: 0 | T86: 0 | U86: 0 | V86: 0 | W86: 0 | X86: 0 | Y86: 0 | Z86: 0 | AA86: 0
K87: тепловая энергия | L87: =IF($Z$78=0,0,$G$21/$Z$78*L78) -> 0 | M87: 0 | N87: 0 | O87: 0 | P87: 0 | Q87: 0 | R87: 0 | S87: 0 | T87: 0 | U87: 0 | V87: 0 | W87: 0 | X87: 0 | Y87: 0 | Z87: 0 | AA87: 0
K88: водоснабжение | L88: =IF($Z$78=0,0,$G$22/$Z$78*L78) -> 0 | M88: 0 | N88: 0 | O88: 0 | P88: 0 | Q88: 0 | R88: 0 | S88: 0 | T88: 0 | U88: 0 | V88: 0 | W88: 0 | X88: 0 | Y88: 0 | Z88: 0 | AA88: 0
K89: водоотведение | L89: =IF($Z$78=0,0,$G$23/$Z$78*L78) -> 0 | M89: 0 | N89: 0 | O89: 0 | P89: 0 | Q89: 0 | R89: 0 | S89: 0 | T89: 0 | U89: 0 | V89: 0 | W89: 0 | X89: 0 | Y89: 0 | Z89: 0 | AA89: 0
K90: прочие услуги | L90: =IF($Z$78=0,0,$G$24/$Z$78*L78) -> 0 | M90: 0 | N90: 0 | O90: 0 | P90: 0 | Q90: 0 | R90: 0 | S90: 0 | T90: 0 | U90: 0 | V90: 0 | W90: 0 | X90: 0 | Y90: 0 | Z90: 0 | AA90: 0
K91: транспортный налог | L91: =IF($Z$78=0,0,$G$26/$Z$78*L78) -> 0 | M91: 0 | N91: 0 | O91: 0 | P91: 0 | Q91: 0 | R91: 0 | S91: 0 | T91: 0 | U91: 0 | V91: 0 | W91: 0 | X91: 0 | Y91: 0 | Z91: 0 | AA91: =Z91-G26 -> 0
K92: налог на имущество | L92: =IF($Z$78=0,0,$G$27/$Z$78*L78) -> 0 | M92: 0 | N92: 0 | O92: 0 | P92: 0 | Q92: 0 | R92: 0 | S92: 0 | T92: 0 | U92: 0 | V92: 0 | W92: 0 | X92: 0 | Y92: 0 | Z92: 0 | AA92: 0
K93: аренда земли | L93: =IF($Z$78=0,0,$G$28/$Z$78*L78) -> 0 | M93: 0 | N93: 0 | O93: 0 | P93: 0 | Q93: 0 | R93: 0 | S93: 0 | T93: 0 | U93: 0 | V93: 0 | W93: 0 | X93: 0 | Y93: 0 | Z93: 0 | AA93: 0
I94: ='Транспортные расходы'!I96 -> предложение эксперта | K94: земельный налог | L94: =IF($Z$78=0,0,$G$29/$Z$78*L78) -> 0 | M94: 0 | N94: 0 | O94: 0 | P94: 0 | Q94: 0 | R94: 0 | S94: 0 | T94: 0 | U94: 0 | V94: 0 | W94: 0 | X94: 0 | Y94: 0 | Z94: 0 | AA94: 0
K95: плата за загрязнение окружающей среды | L95: =IF($Z$78=0,0,$G$30/$Z$78*L78) -> 0 | M95: 0 | N95: 0 | O95: 0 | P95: 0 | Q95: 0 | R95: 0 | S95: 0 | T95: 0 | U95: 0 | V95: 0 | W95: 0 | X95: 0 | Y95: 0 | Z95: 0 | AA95: 0
K96: Расходы на ремонт всего, в том числе: | L96: =IF($Z$78=0,0,$G$31/$Z$78*L78) -> 0 | M96: 0 | N96: 0 | O96: 0 | P96: 0 | Q96: 0 | R96: 0 | S96: 0 | T96: 0 | U96: 0 | V96: 0 | W96: 0 | X96: 0 | Y96: 0 | Z96: 0 | AA96: 0
K97: материалы на ремонт | L97: =IF($Z$78=0,0,$G$32/$Z$78*L78) -> 0 | M97: 0 | N97: 0 | O97: 0 | P97: 0 | Q97: 0 | R97: 0 | S97: 0 | T97: 0 | U97: 0 | V97: 0 | W97: 0 | X97: 0 | Y97: 0 | Z97: 0 | AA97: 0
K98: Хозинвентарь и другие вспомогательные материалы | L98: =IF($Z$78=0,0,$G$33/$Z$78*L78) -> 0 | M98: 0 | N98: 0 | O98: 0 | P98: 0 | Q98: 0 | R98: 0 | S98: 0 | T98: 0 | U98: 0 | V98: 0 | W98: 0 | X98: 0 | Y98: 0 | Z98: 0 | AA98: 0
K99: обучение персонала | L99: =IF($Z$78=0,0,$G$36/$Z$78*L78) -> 0 | M99: 0 | N99: 0 | O99: 0 | P99: 0 | Q99: 0 | R99: 0 | S99: 0 | T99: 0 | U99: 0 | V99: 0 | W99: 0 | X99: 0 | Y99: 0 | Z99: 0 | AA99: =Z99-G36 -> 0
K100: командировочные расходы | L100: =IF($Z$78=0,0,$G$37/$Z$78*L78) -> 0 | M100: 0 | N100: 0 | O100: 0 | P100: 0 | Q100: 0 | R100: 0 | S100: 0 | T100: 0 | U100: 0 | V100: 0 | W100: 0 | X100: 0 | Y100: 0 | Z100: 0 | AA100: =Z100-G37 -> 0
K101: Расходы на оплату работ и услуг, выполняемых сторонними организациями (услуги связи, вневедомственная охрана, юридические, аудиторкие, информационные услуги и т.д.) | L101: =IF($Z$78=0,0,SUM($G$35,$G$39:$G$42,$G$44:$G$46,$G$71:$G$72)/$Z$78*L78) -> 0 | M101: 0 | N101: 0 | O101: 0 | P101: 0 | Q101: 0 | R101: 0 | S101: 0 | T101: 0 | U101: 0 | V101: 0 | W101: 0 | X101: 0 | Y101: 0 | Z101: 0 | AA101: =Z101-SUM(G35,G39:G42,G44:G46,G71:G72) -> 0
K102: страхование объектов | L102: =IF($Z$78=0,0,$G$43/$Z$78*L78) -> 0 | M102: 0 | N102: 0 | O102: 0 | P102: 0 | Q102: 0 | R102: 0 | S102: 0 | T102: 0 | U102: 0 | V102: 0 | W102: 0 | X102: 0 | Y102: 0 | Z102: 0 | AA102: =Z102-G43 -> 0
K103: моющие средства | L103: =IF($Z$78=0,0,$G$65/$Z$78*L78) -> 0 | M103: =IF($Z$78=0,0,$G$65/$Z$78*M78) -> 0 | N103: 0 | O103: 0 | P103: 0 | Q103: 0 | R103: 0 | S103: 0 | T103: 0 | U103: 0 | V103: 0 | W103: 0 | X103: 0 | Y103: 0 | Z103: 0 | AA103: =Z103-G65 -> 0
K104: специальное питание | L104: =IF($Z$78=0,0,$G$66/$Z$78*L78) -> 0 | M104: =IF($Z$78=0,0,$G$66/$Z$78*M78) -> 0 | N104: 0 | O104: 0 | P104: 0 | Q104: 0 | R104: 0 | S104: 0 | T104: 0 | U104: 0 | V104: 0 | W104: 0 | X104: 0 | Y104: 0 | Z104: 0 | AA104: 0
K105: страхование персонала (кроме ДМС) | L105: =IF($Z$78=0,0,$G$67/$Z$78*L78) -> 0 | M105: =IF($Z$78=0,0,$G$67/$Z$78*M78) -> 0 | N105: 0 | O105: 0 | P105: 0 | Q105: 0 | R105: 0 | S105: 0 | T105: 0 | U105: 0 | V105: 0 | W105: 0 | X105: 0 | Y105: 0 | Z105: 0 | AA105: 0
K106: аттестация | L106: =IF($Z$78=0,0,$G$68/$Z$78*L78) -> 0 | M106: =IF($Z$78=0,0,$G$68/$Z$78*M78) -> 0 | N106: 0 | O106: 0 | P106: 0 | Q106: 0 | R106: 0 | S106: 0 | T106: 0 | U106: 0 | V106: 0 | W106: 0 | X106: 0 | Y106: 0 | Z106: 0 | AA106: 0
K107: медицинский осмотр | L107: =IF($Z$78=0,0,$G$69/$Z$78*L78) -> 0 | M107: =IF($Z$78=0,0,$G$69/$Z$78*M78) -> 0 | N107: 0 | O107: 0 | P107: 0 | Q107: 0 | R107: 0 | S107: 0 | T107: 0 | U107: 0 | V107: 0 | W107: 0 | X107: 0 | Y107: 0 | Z107: 0 | AA107: 0
K108: расходы на льготный проезд | L108: =IF($Z$78=0,0,$G$70/$Z$78*L78) -> 0 | M108: =IF($Z$78=0,0,$G$70/$Z$78*M78) -> 0 | N108: 0 | O108: 0 | P108: 0 | Q108: 0 | R108: 0 | S108: 0 | T108: 0 | U108: 0 | V108: 0 | W108: 0 | X108: 0 | Y108: 0 | Z108: 0 | AA108: 0
K109: =K74 -> прочие расходы | L109: =IF($Z$78=0,0,SUM($G$47:$G$64,$G$38,$G$73)/$Z$78*L78) -> 0 | M109: =IF($Z$78=0,0,SUM($G$47:$G$64,$G$38,$G$73)/$Z$78*M78) -> 0 | N109: 0 | O109: 0 | P109: 0 | Q109: 0 | R109: 0 | S109: 0 | T109: 0 | U109: 0 | V109: 0 | W109: 0 | X109: 0 | Y109: 0 | Z109: 0 | AA109: =Z109-SUM(G38,G47:G64,G73) -> 0

Sheet цеховые
A1: Смета цеховых расходов организации | I1: Распределение общехозяйственных расходов по видам деятельности
A3: ='тепловая энергия на обогрев'!A2 ->  | I3: База для распределения согласно учетной политике
F4: рублей
B5: Статьи расходов | C5: ='Транспортные расходы'!C5 -> 2016 | E5: 2017 | F5: 2018 | Z5: рублей
I6: Подразделение | L6: Виды тарифов, виды деятельности (согласно Учетной политике организации) | Z6: всего
L7: Электрическая энергия | M7: Тепловая энергия | N7: Водоотведение | O7: Водоснабжение | P7: Тариф 5 | Q7: Тариф 6 | R7: Тариф 7 | S7: Тариф 8 | T7: Тариф 9 | U7: Тариф 10 | V7: Тариф 11 | W7: Тариф 12 | X7: Тариф 13 | Y7: прочая деятельность
C8: ='Транспортные расходы'!C8 -> утв. ДТР ТО | D8: ='Транспортные расходы'!D8:D11 -> факт по данным организации | E8: =C8 -> утв. ДТР ТО | F8: ='Транспортные расходы'!F8 -> план организации | G8: предложение эксперта | I8: =C5 -> 2016 | J8: База | Z8: =SUM(L8:Y8) -> 0
J9: Сумма цеховых расходов | K9: всего | L9: =SUM(L10:L11,L13:L15,L21:L26,L28,L29:L39) -> 0 | M9: 0 | N9: =SUM(N10:N11,N13:N15,N21:N26,N28,N29:N39) -> 0 | O9: 0 | P9: 0 | Q9: 0 | R9: 0 | S9: 0 | T9: 0 | U9: 0 | V9: 0 | W9: 0 | X9: 0 | Y9: 0 | Z9: 0 | AA9: =Z9-D74 -> 0
K10: =B12 -> Заработная плата всего | L10: =IF($Z$8=0,0,$D$12/$Z$8*L8) -> 0 | M10: 0 | N10: 0 | O10: 0 | P10: 0 | Q10: 0 | R10: 0 | S10: 0 | T10: 0 | U10: 0 | V10: 0 | W10: 0 | X10: 0 | Y10: 0 | Z10: =SUM(L10:Y10) -> 0 | AA10: =Z10-D12 -> 0
K11: =B15 -> Отчисления на социальные нужды | L11: =IF($Z$8=0,0,$D$15/$Z$8*L8) -> 0 | M11: 0 | N11: 0 | O11: 0 | P11: 0 | Q11: 0 | R11: 0 | S11: 0 | T11: 0 | U11: 0 | V11: 0 | W11: 0 | X11: 0 | Y11: 0 | Z11: 0 | AA11: =Z11-D15 -> 0
A12: 1. | B12: Заработная плата всего | K12: =B13 -> численность | L12: =IF($Z$8=0,0,$D$13/$Z$8*L8) -> 0 | M12: 0 | N12: 0 | O12: 0 | P12: 0 | Q12: 0 | R12: 0 | S12: 0 | T12: 0 | U12: 0 | V12: 0 | W12: 0 | X12: 0 | Y12: 0 | Z12: 0 | AA12: =Z12-D13 -> 0
A13: 1.1. | B13: численность | K13: =B17 -> Амортизация | L13: =IF($Z$8=0,0,$D$17/$Z$8*L8) -> 0 | M13: 0 | N13: 0 | O13: 0 | P13: 0 | Q13: 0 | R13: 0 | S13: 0 | T13: 0 | U13: 0 | V13: 0 | W13: 0 | X13: 0 | Y13: 0 | Z13: 0 | AA13: =Z13-D17 -> 0
A14: 1.2. | B14: среднемесячная заработная плата на 1 работника | C14: =IF(C13=0,0,C12/C13/12) -> 0 | D14: =IF(D13=0,0,D12/D13/12) -> 0 | E14: =IF(E13=0,0,E12/E13/12) -> 0 | F14: =IF(F13=0,0,F12/F13/12) -> 0 | G14: =IF(G13=0,0,G12/G13/12) -> 0 | K14: Аренда | L14: =IF($Z$8=0,0,$D$18/$Z$8*L8) -> 0 | M14: 0 | N14: 0 | O14: 0 | P14: 0 | Q14: 0 | R14: 0 | S14: 0 | T14: 0 | U14: 0 | V14: 0 | W14: 0 | X14: 0 | Y14: 0 | Z14: 0 | AA14: 0
A15: 2. | B15: Отчисления на социальные нужды | C15: =C12*C16/100 -> 0 | E15: =E12*E16/100 -> 0 | F15: =F12*F16/100 -> 0 | G15: =G12*G16/100 -> 0 | K15: Содержание зданий всего, в том числе: | L15: =IF($Z$8=0,0,$D$19/$Z$8*L8) -> 0 | M15: 0 | N15: 0 | O15: 0 | P15: 0 | Q15: 0 | R15: 0 | S15: 0 | T15: 0 | U15: 0 | V15: 0 | W15: 0 | X15: 0 | Y15: 0 | Z15: 0 | AA15: 0
A16: 2.1. | B16: % отчислений (включая отчисления в ФСС от несчастных случаев) | D16: =IF(D12=0,0,D15/D12*100) -> 0 | F16: ='данные об организации'!B40 -> 30.2 | K16: электроэнергия | L16: =IF($Z$8=0,0,$D$20/$Z$8*L8) -> 0 | M16: 0 | N16: 0 | O16: 0 | P16: 0 | Q16: 0 | R16: 0 | S16: 0 | T16: 0 | U16: 0 | V16: 0 | W16: 0 | X16: 0 | Y16: 0 | Z16: 0 | AA16: 0
A17: 3. | B17: Амортизация | K17: тепловая энергия | L17: =IF($Z$8=0,0,$D$21/$Z$8*L8) -> 0 | M17: 0 | N17: 0 | O17: 0 | P17: 0 | Q17: 0 | R17: 0 | S17: 0 | T17: 0 | U17: 0 | V17: 0 | W17: 0 | X17: 0 | Y17: 0 | Z17: 0 | AA17: 0
A18: 4. | B18: Аренда | K18: водоснабжение | L18: =IF($Z$8=0,0,$D$22/$Z$8*L8) -> 0 | M18: 0 | N18: 0 | O18: 0 | P18: 0 | Q18: 0 | R18: 0 | S18: 0 | T18: 0 | U18: 0 | V18: 0 | W18: 0 | X18: 0 | Y18: 0 | Z18: 0 | AA18: 0
A19: 5. | B19: Содержание зданий всего, в том числе: | C19: =SUM(C20:C24) -> 0 | D19: =SUM(D20:D24) -> 0 | E19: =SUM(E20:E24) -> 0 | F19: =SUM(F20:F24) -> 0 | G19: =SUM(G20:G24) -> 0 | K19: водоотведение | L19: =IF($Z$8=0,0,$D$23/$Z$8*L8) -> 0 | M19: 0 | N19: 0 | O19: 0 | P19: 0 | Q19: 0 | R19: 0 | S19: 0 | T19: 0 | U19: 0 | V19: 0 | W19: 0 | X19: 0 | Y19: 0 | Z19: 0 | AA19: 0
A20: 5.1. | B20: электроэнергия | K20: прочие услуги | L20: =IF($Z$8=0,0,$D$24/$Z$8*L8) -> 0 | M20: 0 | N20: 0 | O20: 0 | P20: 0 | Q20: 0 | R20: 0 | S20: 0 | T20: 0 | U20: 0 | V20: 0 | W20: 0 | X20: 0 | Y20: 0 | Z20: 0 | AA20: 0
A21: 5.2. | B21: тепловая энергия | K21: =B26 -> транспортный налог | L21: =IF($Z$8=0,0,$D$26/$Z$8*L8) -> 0 | M21: 0 | N21: 0 | O21: 0 | P21: 0 | Q21: 0 | R21: 0 | S21: 0 | T21: 0 | U21: 0 | V21: 0 | W21: 0 | X21: 0 | Y21: 0 | Z21: 0 | AA21: =Z21-D26 -> 0
A22: 5.3. | B22: водоснабжение | K22: налог на имущество | L22: =IF($Z$8=0,0,$D$27/$Z$8*L8) -> 0 | M22: 0 | N22: 0 | O22: 0 | P22: 0 | Q22: 0 | R22: 0 | S22: 0 | T22: 0 | U22: 0 | V22: 0 | W22: 0 | X22: 0 | Y22: 0 | Z22: 0 | AA22: 0
A23: 5.4. | B23: водоотведение | K23: аренда земли | L23: =IF($Z$8=0,0,$D$28/$Z$8*L8) -> 0 | M23: 0 | N23: 0 | O23: 0 | P23: 0 | Q23: 0 | R23: 0 | S23: 0 | T23: 0 | U23: 0 | V23: 0 | W23: 0 | X23: 0 | Y23: 0 | Z23: 0 | AA23: 0
A24: 5.9. | B24: прочие услуги | I24: =D8 -> факт по данным организации | K24: земельный налог | L24: =IF($Z$8=0,0,$D$29/$Z$8*L8) -> 0 | M24: 0 | N24: 0 | O24: 0 | P24: 0 | Q24: 0 | R24: 0 | S24: 0 | T24: 0 | U24: 0 | V24: 0 | W24: 0 | X24: 0 | Y24: 0 | Z24: 0 | AA24: 0
A25: 6. | B25: Налоги и сборы, в т.ч.: | C25: =SUM(C26:C30) -> 0 | D25: =SUM(D26:D30) -> 0 | E25: =SUM(E26:E30) -> 0 | F25: =SUM(F26:F30) -> 0 | G25: =SUM(G26:G30) -> 0 | K25: плата за загрязнение окружающей среды | L25: =IF($Z$8=0,0,$D$30/$Z$8*L8) -> 0 | M25: 0 | N25: 0 | O25: 0 | P25: 0 | Q25: 0 | R25: 0 | S25: 0 | T25: 0 | U25: 0 | V25: 0 | W25: 0 | X25: 0 | Y25: 0 | Z25: 0 | AA25: 0
A26: 6.1. | B26: транспортный налог | K26: Расходы на ремонт всего, в том числе: | L26: =IF($Z$8=0,0,$D$31/$Z$8*L8) -> 0 | M26: 0 | N26: 0 | O26: 0 | P26: 0 | Q26: 0 | R26: 0 | S26: 0 | T26: 0 | U26: 0 | V26: 0 | W26: 0 | X26: 0 | Y26: 0 | Z26: 0 | AA26: 0
A27: 6.2. | B27: налог на имущество | K27: материалы на ремонт | L27: =IF($Z$8=0,0,$D$32/$Z$8*L8) -> 0 | M27: 0 | N27: 0 | O27: 0 | P27: 0 | Q27: 0 | R27: 0 | S27: 0 | T27: 0 | U27: 0 | V27: 0 | W27: 0 | X27: 0 | Y27: 0 | Z27: 0 | AA27: 0
A28: 6.3. | B28: аренда земли | K28: Хозинвентарь и другие вспомогательные материалы | L28: =IF($Z$8=0,0,$D$33/$Z$8*L8) -> 0 | M28: 0 | N28: 0 | O28: 0 | P28: 0 | Q28: 0 | R28: 0 | S28: 0 | T28: 0 | U28: 0 | V28: 0 | W28: 0 | X28: 0 | Y28: 0 | Z28: 0 | AA28: 0
A29: 6.4. | B29: земельный налог | K29: =B36 -> обучение персонала | L29: =IF($Z$8=0,0,$D$36/$Z$8*L8) -> 0 | M29: 0 | N29: 0 | O29: 0 | P29: 0 | Q29: 0 | R29: 0 | S29: 0 | T29: 0 | U29: 0 | V29: 0 | W29: 0 | X29: 0 | Y29: 0 | Z29: 0 | AA29: =Z29-D36 -> 0
A30: 6.5. | B30: плата за загрязнение окружающей среды | K30: =B37 -> командировочные расходы | L30: =IF($Z$8=0,0,$D$37/$Z$8*L8) -> 0 | M30: 0 | N30: 0 | O30: 0 | P30: 0 | Q30: 0 | R30: 0 | S30: 0 | T30: 0 | U30: 0 | V30: 0 | W30: 0 | X30: 0 | Y30: 0 | Z30: 0 | AA30: =Z30-D37 -> 0
A31: 7. | B31: Расходы на ремонт всего, в том числе: | K31: Расходы на оплату работ и услуг, выполняемых сторонними организациями (услуги связи, вневедомственная охрана, юридические, аудиторкие, информационные услуги и т.д.) | L31: =IF($Z$8=0,0,SUM($D$35,$D$39:$D$42,$D$44:$D$46,$D$71:$D$72)/$Z$8*L8) -> 0 | M31: 0 | N31: 0 | O31: 0 | P31: 0 | Q31: 0 | R31: 0 | S31: 0 | T31: 0 | U31: 0 | V31: 0 | W31: 0 | X31: 0 | Y31: 0 | Z31: 0 | AA31: =Z31-SUM(D35,D39:D42,D44:D46,D71:D72) -> 0
A32: 7.1. | B32: материалы на ремонт | K32: страхование объектов | L32: =IF($Z$8=0,0,$D$43/$Z$8*L8) -> 0 | M32: 0 | N32: 0 | O32: 0 | P32: 0 | Q32: 0 | R32: 0 | S32: 0 | T32: 0 | U32: 0 | V32: 0 | W32: 0 | X32: 0 | Y32: 0 | Z32: 0 | AA32: =Z32-D43 -> 0
A33: 8. | B33: Хозинвентарь и другие вспомогательные материалы | K33: =B65 -> моющие средства | L33: =IF($Z$8=0,0,$D$65/$Z$8*L8) -> 0 | M33: 0 | N33: 0 | O33: 0 | P33: 0 | Q33: 0 | R33: 0 | S33: 0 | T33: 0 | U33: 0 | V33: 0 | W33: 0 | X33: 0 | Y33: 0 | Z33: 0 | AA33: =Z33-D65 -> 0
A34: 9. | B34: Прочие расходы (услуги непроизводственного характера) | C34: =SUM(C35:C73) -> 0 | D34: =SUM(D35:D73) -> 0 | E34: =SUM(E35:E73) -> 0 | F34: =SUM(F35:F73) -> 0 | G34: =SUM(G35:G73) -> 0 | K34: специальное питание | L34: =IF($Z$8=0,0,$D$66/$Z$8*L8) -> 0 | M34: 0 | N34: 0 | O34: 0 | P34: 0 | Q34: 0 | R34: 0 | S34: 0 | T34: 0 | U34: 0 | V34: 0 | W34: 0 | X34: 0 | Y34: 0 | Z34: 0 | AA34: 0
A35: 9.1 | B35: услуги связи и интернета | K35: страхование персонала (кроме ДМС) | L35: =IF($Z$8=0,0,$D$67/$Z$8*L8) -> 0 | M35: 0 | N35: 0 | O35: 0 | P35: 0 | Q35: 0 | R35: 0 | S35: 0 | T35: 0 | U35: 0 | V35: 0 | W35: 0 | X35: 0 | Y35: 0 | Z35: 0 | AA35: 0
A36: 9.2 | B36: обучение персонала | K36: аттестация | L36: =IF($Z$8=0,0,$D$68/$Z$8*L8) -> 0 | M36: 0 | N36: 0 | O36: 0 | P36: 0 | Q36: 0 | R36: 0 | S36: 0 | T36: 0 | U36: 0 | V36: 0 | W36: 0 | X36: 0 | Y36: 0 | Z36: 0 | AA36: 0
A37: 9.3 | B37: командировочные расходы | K37: медицинский осмотр | L37: =IF($Z$8=0,0,$D$69/$Z$8*L8) -> 0 | M37: 0 | N37: 0 | O37: 0 | P37: 0 | Q37: 0 | R37: 0 | S37: 0 | T37: 0 | U37: 0 | V37: 0 | W37: 0 | X37: 0 | Y37: 0 | Z37: 0 | AA37: 0
A38: 9.4 | B38: почтово-канцелярские расходы | K38: расходы на льготный проезд | L38: =IF($Z$8=0,0,$D$70/$Z$8*L8) -> 0 | M38: 0 | N38: 0 | O38: 0 | P38: 0 | Q38: 0 | R38: 0 | S38: 0 | T38: 0 | U38: 0 | V38: 0 | W38: 0 | X38: 0 | Y38: 0 | Z38: 0 | AA38: 0
A39: 9.5 | B39: ведомственная/вневедомственная охрана | K39: =B73 -> прочие расходы | L39: =IF($Z$8=0,0,SUM($D$47:$D$64,$D$73,$D$38)/$Z$8*L8) -> 0 | M39: 0 | N39: 0 | O39: 0 | P39: 0 | Q39: 0 | R39: 0 | S39: 0 | T39: 0 | U39: 0 | V39: 0 | W39: 0 | X39: 0 | Y39: 0 | Z39: 0 | AA39: =Z39-SUM(D38,D47:D64,D73) -> 0
A40: 9.6 | B40: пожарная охрана | Z40: рублей
A41: 9.7 | B41: услуги по обслуживанию программного обеспечения | I41: Подразделение | L41: Виды тарифов, виды деятельности (согласно Учетной политике организации) | Z41: всего
